Workbook

Sheet Introduction
C4: Joint Monitoring Programme for Water Supply, Sanitation and Hygiene
C6: Estimates on household water, sanitation and hygiene by wealth quintile and sub-national region in
C7: =+Water!B5 -> Philippines
C9: Updated May 2021
C11: Follow the links below to find the following information:
C13: JMP Estimates
C14: WASH status and trends by wealth quintile (customized quintiles made without water and sanitation assets)
C15: Water
C16: Sanitation
C17: Hygiene
C19: Data inputs
C20: customized wealth quintiles and subnational data:
C21: =IF(INDIRECT(CONCATENATE("Water","!B105"))=0,"",INDIRECT(CONCATENATE("Water","!B105"))) -> DHS03
C22: =IF(INDIRECT(CONCATENATE("Water","!B106"))=0,"",INDIRECT(CONCATENATE("Water","!B106"))) -> DHS08
C23: =IF(INDIRECT(CONCATENATE("Water","!B107"))=0,"",INDIRECT(CONCATENATE("Water","!B107"))) -> DHS13
C24: =IF(INDIRECT(CONCATENATE("Water","!B108"))=0,"",INDIRECT(CONCATENATE("Water","!B108"))) -> DHS17
C25: =IF(INDIRECT(CONCATENATE("Water","!B109"))=0,"",INDIRECT(CONCATENATE("Water","!B109"))) -> 
C26: =IF(INDIRECT(CONCATENATE("Water","!B110"))=0,"",INDIRECT(CONCATENATE("Water","!B110"))) -> 
C27: =IF(INDIRECT(CONCATENATE("Water","!B111"))=0,"",INDIRECT(CONCATENATE("Water","!B111"))) -> 
C28: =IF(INDIRECT(CONCATENATE("Water","!B112"))=0,"",INDIRECT(CONCATENATE("Water","!B112"))) -> 
C29: =IF(INDIRECT(CONCATENATE("Water","!B113"))=0,"",INDIRECT(CONCATENATE("Water","!B113"))) -> 
C30: =IF(INDIRECT(CONCATENATE("Water","!B114"))=0,"",INDIRECT(CONCATENATE("Water","!B114"))) -> 
C31: =IF(INDIRECT(CONCATENATE("Water","!B115"))=0,"",INDIRECT(CONCATENATE("Water","!B115"))) -> 
C32: =IF(INDIRECT(CONCATENATE("Water","!B116"))=0,"",INDIRECT(CONCATENATE("Water","!B116"))) -> 
L55: =+IF(ISNUMBER(M48), "", "Insufficient data to estimate safely managed sanitation services at national level") -> Insufficient data to estimate safely managed sanitation services at national level

Sheet Water
A1: BGD
B4: Summary of trends in use of drinking water by wealth quintile (%)
B5: =IF(ISERROR(INDIRECT(CONCATENATE($B105,"!A2"))),"",INDIRECT(CONCATENATE($B105,"!A2"))) -> Philippines
B7: =B118 -> National use of drinking water sources, 2000–2020 | J7: =B218 -> Urban use of drinking water sources, 2000–2020 | R7: =B318 -> Rural use of drinking water sources, 2000–2020
B31: =IF(ISERROR(INDIRECT(CONCATENATE($B105,"!A2"))),"",INDIRECT(CONCATENATE($B105,"!A2"))) -> Philippines | F31: Poorest | J31: Poor | N31: Middle | R31: Rich | V31: Richest
F32: Basic | G32: Limited | H32: Unimproved | I32: Surface water | J32: Basic | K32: Limited | L32: Unimproved | M32: Surface water | N32: Basic | O32: Limited | P32: Unimproved | Q32: Surface water | R32: Basic | S32: Limited | T32: Unimproved | U32: Surface water | V32: Basic | W32: Limited | X32: Unimproved | Y32: Surface water
B33: NATIONAL | D33: Estimate | E33: =C99 -> 2000 | F33: =E99 -> 64.70867058 | G33: =F99 -> 2.78079255 | H33: 30.24175772 | I33: 2.268779157 | J33: =J99 -> 86.20316773 | K33: =K99 -> 1.586106329 | L33: 11.15731099 | M33: 1.053414947 | N33: =O99 -> 94.4753572 | O33: =P99 -> 1.032801634 | P33: 3.96939162 | Q33: 0.5224495463 | R33: =T99 -> 96.86444909 | S33: =U99 -> 0.5931168419 | T33: 2.085325798 | U33: 0.4571082712 | V33: =Y99 -> 98.99404656 | W33: =Z99 -> 0.5791988686 | X33: 0.2078097051 | Y33: 0.218944869
E34: =C100 -> 2020 | F34: =E100 -> 85.46201805 | G34: 3.672647591 | H34: 10.86533436 | I34: 0 | J34: =J100 -> 94.97294586 | K34: 1.747466995 | L34: 3.279587149 | M34: 0 | N34: =O100 -> 97.40711865 | O34: 1.064851558 | P34: 1.528029787 | Q34: 0 | R34: =T100 -> 99.2606316 | S34: 0.6077890587 | T34: 0.131579344 | U34: 0 | V34: =Y100 -> 99.29657834 | W34: 0.5809689353 | X34: 0.1224527197 | Y34: 0
B36: URBAN | D36: Estimate | E36: =C199 -> 2000 | F36: =E199 -> 91.31614256 | G36: =F199 -> 1.727328442 | H36: 6.208919108 | I36: 0.7476098869 | J36: =J199 -> 96.926268 | K36: =K199 -> 0.4706082534 | L36: 2.109724813 | M36: 0.4933989336 | N36: =O199 -> 97.64953597 | O36: =P199 -> 0.5392455792 | P36: 1.558572292 | Q36: 0.2526461555 | R36: =T199 -> 99.12638071 | S36: =U199 -> 0.4832319782 | T36: 0.2080122187 | U36: 0.1823750965 | V36: =Y199 -> 99.56027822 | W36: =Z199 -> 0.4397217768 | X36: 0 | Y36: 0
E37: =C200 -> 2020 | F37: =E200 -> 91.15852654 | G37: 1.724346991 | H37: 7.117126471 | I37: 0 | J37: =J200 -> 98.31041668 | K37: 0.4773287411 | L37: 1.21225458 | M37: 0 | N37: =O200 -> 99.32852999 | O37: 0.5485174113 | P37: 0.122952602 | Q37: 0 | R37: =T200 -> 99.35506809 | S37: 0.4843468082 | T37: 0.1605851043 | U37: 0 | V37: =Y200 -> 99.51591992 | W37: 0.4395258622 | X37: 0.04455421809 | Y37: 0
B39: RURAL | D39: Estimate | E39: =C299 -> 2000 | F39: =E299 -> 56.67870983 | G39: =F299 -> 3.201777032 | H39: 37.35741686 | I39: 2.762096279 | J39: =J299 -> 67.65438268 | K39: =K299 -> 2.056714752 | L39: 28.25283415 | M39: 2.03606842 | N39: =O299 -> 83.82210895 | O39: =P299 -> 1.709439175 | P39: 13.20141653 | Q39: 1.267035341 | R39: =T299 -> 91.42359686 | S39: =U299 -> 1.455063303 | T39: 6.505551405 | U39: 0.61578843 | V39: =Y299 -> 95.64512964 | W39: =Z299 -> 0.8432703693 | X39: 2.580517423 | Y39: 0.9310825679
E40: =C300 -> 2020 | F40: =E300 -> 81.34824077 | G40: 4.595357405 | H40: 13.9382586 | I40: 0.1181432247 | J40: =J300 -> 94.36145385 | K40: 2.86861821 | L40: 2.769927941 | M40: 0 | N40: =O300 -> 95.6881977 | O40: 1.951432096 | P40: 2.360370206 | Q40: 0 | R40: =T300 -> 97.37600777 | S40: 1.549799618 | T40: 1.074192608 | U40: 0 | V40: =Y300 -> 99.12603964 | W40: 0.8739603613 | X40: 0 | Y40: 0
A97: NATIONAL | D97: Poorest | I97: Poor | N97: Middle | S97: Rich | X97: Richest
D98: Improved | E98: Basic | F98: Limited | G98: Unimproved | H98: Surface water | I98: Improved | J98: Basic | K98: Limited | L98: Unimproved | M98: Surface water | N98: Improved | O98: Basic | P98: Limited | Q98: Unimproved | R98: Surface water | S98: Improved | T98: Basic | U98: Limited | V98: Unimproved | W98: Surface water | X98: Improved | Y98: Basic | Z98: Limited | AA98: Unimproved | AB98: Surface water
A99: Forecast period: | C99: 2000 | D99: =IF((D101+H101)>100,D101*100/(D101+H101),D101) -> 67.48946313 | E99: =D99*AVERAGEIF(E105:E116,">0")/100 -> 64.70867058 | F99: =D99*(100-AVERAGEIF(E105:E116,">0"))/100 -> 2.78079255 | G99: =100-(E99+F99+H99) -> 30.24175772 | H99: =IF((D101+H101)>100,H101*100/(D101+H101),H101) -> 2.268779157 | I99: =IF((I101+M101)>100,I101*100/(I101+M101),I101) -> 87.78927406 | J99: =I99*AVERAGEIF(J105:J116,">0")/100 -> 86.20316773 | K99: =I99*(100-AVERAGEIF(J105:J116,">0"))/100 -> 1.586106329 | L99: =100-(J99+K99+M99) -> 11.15731099 | M99: =IF((I101+M101)>100,M101*100/(I101+M101),M101) -> 1.053414947 | N99: =IF((N101+R101)>100,N101*100/(N101+R101),N101) -> 95.50815883 | O99: =N99*AVERAGEIF(O105:O116,">0")/100 -> 94.4753572 | P99: =N99*(100-AVERAGEIF(O105:O116,">0"))/100 -> 1.032801634 | Q99: =100-(O99+P99+R99) -> 3.96939162 | R99: =IF((N101+R101)>100,R101*100/(N101+R101),R101) -> 0.5224495463 | S99: =IF((S101+W101)>100,S101*100/(S101+W101),S101) -> 97.45756593 | T99: =S99*AVERAGEIF(T105:T116,">0")/100 -> 96.86444909 | U99: =S99*(100-AVERAGEIF(T105:T116,">0"))/100 -> 0.5931168419 | V99: =100-(T99+U99+W99) -> 2.085325798 | W99: =IF((S101+W101)>100,W101*100/(S101+W101),W101) -> 0.4571082712 | X99: =IF((X101+AB101)>100,X101*100/(X101+AB101),X101) -> 99.57324543 | Y99: =X99*AVERAGEIF(Y105:Y116,">0")/100 -> 98.99404656 | Z99: =X99*(100-AVERAGEIF(Y105:Y116,">0"))/100 -> 0.5791988686 | AA99: =100-(Y99+Z99+AB99) -> 0.2078097051 | AB99: =IF((X101+AB101)>100,AB101*100/(X101+AB101),AB101) -> 0.218944869
C100: 2020 | D100: =IF((D102+H102)>100,D102*100/(D102+H102),D102) -> 89.13466564 | E100: =D100*AVERAGEIF(E105:E116,">0")/100 -> 85.46201805 | F100: =D100*(100-AVERAGEIF(E105:E116,">0"))/100 -> 3.672647591 | G100: =100-(E100+F100+H100) -> 10.86533436 | H100: =IF((D102+H102)>100,H102*100/(D102+H102),H102) -> 0 | I100: =IF((I102+M102)>100,I102*100/(I102+M102),I102) -> 96.72041285 | J100: =I100*AVERAGEIF(J105:J116,">0")/100 -> 94.97294586 | K100: =I100*(100-AVERAGEIF(J105:J116,">0"))/100 -> 1.747466995 | L100: =100-(J100+K100+M100) -> 3.279587149 | M100: =IF((I102+M102)>100,M102*100/(I102+M102),M102) -> 0 | N100: =IF((N102+R102)>100,N102*100/(N102+R102),N102) -> 98.47197021 | O100: =N100*AVERAGEIF(O105:O116,">0")/100 -> 97.40711865 | P100: =N100*(100-AVERAGEIF(O105:O116,">0"))/100 -> 1.064851558 | Q100: =100-(O100+P100+R100) -> 1.528029787 | R100: =IF((N102+R102)>100,R102*100/(N102+R102),R102) -> 0 | S100: =IF((S102+W102)>100,S102*100/(S102+W102),S102) -> 99.86842066 | T100: =S100*AVERAGEIF(T105:T116,">0")/100 -> 99.2606316 | U100: =S100*(100-AVERAGEIF(T105:T116,">0"))/100 -> 0.6077890587 | V100: =100-(T100+U100+W100) -> 0.131579344 | W100: =IF((S102+W102)>100,W102*100/(S102+W102),W102) -> 0 | X100: =IF((X102+AB102)>100,X102*100/(X102+AB102),X102) -> 99.87754728 | Y100: =X100*AVERAGEIF(Y105:Y116,">0")/100 -> 99.29657834 | Z100: =X100*(100-AVERAGEIF(Y105:Y116,">0"))/100 -> 0.5809689353 | AA100: =100-(Y100+Z100+AB100) -> 0.1224527197 | AB100: =IF((X102+AB102)>100,AB102*100/(X102+AB102),AB102) -> 0
A101: Regression period: | C101: =MinRegYear(C99,C105:C116) -> 2001 | D101: =IF(MAX(C105:C116)-MIN(C105:C116)<5,AVERAGEIF(C105:C116,">0",D105:D116), IF(FORECAST($C101,D$105:D$116,$C$105:$C$116)<0,0, IF(FORECAST($C101,D$105:D$116,$C$105:$C$116)>100,100, FORECAST($C101,D$105:D$116,$C$105:$C$116)))) -> 67.48946313 | H101: =IF(MAX(C105:C116)-MIN(C105:C116)<5,AVERAGEIF(C105:C116,">0",H105:H116), IF(FORECAST($C101,H$105:H$116,$C$105:$C$116)<0,0, IF(FORECAST($C101,H$105:H$116,$C$105:$C$116)>100,100, FORECAST($C101,H$105:H$116,$C$105:$C$116)))) -> 2.268779157 | I101: =IF(MAX(C105:C116)-MIN(C105:C116)<5,AVERAGEIF(C105:C116,">0",I105:I116), IF(FORECAST($C101,I$105:I$116,$C$105:$C$116)<0,0, IF(FORECAST($C101,I$105:I$116,$C$105:$C$116)>100,100, FORECAST($C101,I$105:I$116,$C$105:$C$116)))) -> 87.78927406 | M101: =IF(MAX(C105:C116)-MIN(C105:C116)<5,AVERAGEIF(C105:C116,">0",M105:M116), IF(FORECAST($C101,M$105:M$116,$C$105:$C$116)<0,0, IF(FORECAST($C101,M$105:M$116,$C$105:$C$116)>100,100, FORECAST($C101,M$105:M$116,$C$105:$C$116)))) -> 1.053414947 | N101: =IF(MAX(C105:C116)-MIN(C105:C116)<5,AVERAGEIF(C105:C116,">0",N105:N116), IF(FORECAST($C101,N$105:N$116,$C$105:$C$116)<0,0, IF(FORECAST($C101,N$105:N$116,$C$105:$C$116)>100,100, FORECAST($C101,N$105:N$116,$C$105:$C$116)))) -> 95.50815883 | R101: =IF(MAX(C105:C116)-MIN(C105:C116)<5,AVERAGEIF(C105:C116,">0",R105:R116), IF(FORECAST($C101,R$105:R$116,$C$105:$C$116)<0,0, IF(FORECAST($C101,R$105:R$116,$C$105:$C$116)>100,100, FORECAST($C101,R$105:R$116,$C$105:$C$116)))) -> 0.5224495463 | S101: =IF(MAX(C105:C116)-MIN(C105:C116)<5,AVERAGEIF(C105:C116,">0",S105:S116), IF(FORECAST($C101,S$105:S$116,$C$105:$C$116)<0,0, IF(FORECAST($C101,S$105:S$116,$C$105:$C$116)>100,100, FORECAST($C101,S$105:S$116,$C$105:$C$116)))) -> 97.45756593 | W101: =IF(MAX(C105:C116)-MIN(C105:C116)<5,AVERAGEIF(C105:C116,">0",W105:W116), IF(FORECAST($C101,W$105:W$116,$C$105:$C$116)<0,0, IF(FORECAST($C101,W$105:W$116,$C$105:$C$116)>100,100, FORECAST($C101,W$105:W$116,$C$105:$C$116)))) -> 0.4571082712 | X101: =IF(MAX(C105:C116)-MIN(C105:C116)<5,AVERAGEIF(C105:C116,">0",X105:X116), IF(FORECAST($C101,X$105:X$116,$C$105:$C$116)<0,0, IF(FORECAST($C101,X$105:X$116,$C$105:$C$116)>100,100, FORECAST($C101,X$105:X$116,$C$105:$C$116)))) -> 99.57324543 | AB101: =IF(MAX(C105:C116)-MIN(C105:C116)<5,AVERAGEIF(C105:C116,">0",AB105:AB116), IF(FORECAST($C101,AB$105:AB$116,$C$105:$C$116)<0,0, IF(FORECAST($C101,AB$105:AB$116,$C$105:$C$116)>100,100, FORECAST($C101,AB$105:AB$116,$C$105:$C$116)))) -> 0.218944869
C102: =MaxRegYear(C100,C105:C116) -> 2019 | D102: =IF(MAX(C105:C116)-MIN(C105:C116)<5,AVERAGEIF(C105:C116,">0",D105:D116), IF(FORECAST($C102,D$105:D$116,$C$105:$C$116)<0,0, IF(FORECAST($C102,D$105:D$116,$C$105:$C$116)>100,100, FORECAST($C102,D$105:D$116,$C$105:$C$116)))) -> 89.13466564 | H102: =IF(MAX(C105:C116)-MIN(C105:C116)<5,AVERAGEIF(C105:C116,">0",H105:H116), IF(FORECAST($C102,H$105:H$116,$C$105:$C$116)<0,0, IF(FORECAST($C102,H$105:H$116,$C$105:$C$116)>100,100, FORECAST($C102,H$105:H$116,$C$105:$C$116)))) -> 0 | I102: =IF(MAX(C105:C116)-MIN(C105:C116)<5,AVERAGEIF(C105:C116,">0",I105:I116), IF(FORECAST($C102,I$105:I$116,$C$105:$C$116)<0,0, IF(FORECAST($C102,I$105:I$116,$C$105:$C$116)>100,100, FORECAST($C102,I$105:I$116,$C$105:$C$116)))) -> 96.72041285 | M102: =IF(MAX(C105:C116)-MIN(C105:C116)<5,AVERAGEIF(C105:C116,">0",M105:M116), IF(FORECAST($C102,M$105:M$116,$C$105:$C$116)<0,0, IF(FORECAST($C102,M$105:M$116,$C$105:$C$116)>100,100, FORECAST($C102,M$105:M$116,$C$105:$C$116)))) -> 0 | N102: =IF(MAX(C105:C116)-MIN(C105:C116)<5,AVERAGEIF(C105:C116,">0",N105:N116), IF(FORECAST($C102,N$105:N$116,$C$105:$C$116)<0,0, IF(FORECAST($C102,N$105:N$116,$C$105:$C$116)>100,100, FORECAST($C102,N$105:N$116,$C$105:$C$116)))) -> 98.47197021 | R102: =IF(MAX(C105:C116)-MIN(C105:C116)<5,AVERAGEIF(C105:C116,">0",R105:R116), IF(FORECAST($C102,R$105:R$116,$C$105:$C$116)<0,0, IF(FORECAST($C102,R$105:R$116,$C$105:$C$116)>100,100, FORECAST($C102,R$105:R$116,$C$105:$C$116)))) -> 0 | S102: =IF(MAX(C105:C116)-MIN(C105:C116)<5,AVERAGEIF(C105:C116,">0",S105:S116), IF(FORECAST($C102,S$105:S$116,$C$105:$C$116)<0,0, IF(FORECAST($C102,S$105:S$116,$C$105:$C$116)>100,100, FORECAST($C102,S$105:S$116,$C$105:$C$116)))) -> 99.86842066 | W102: =IF(MAX(C105:C116)-MIN(C105:C116)<5,AVERAGEIF(C105:C116,">0",W105:W116), IF(FORECAST($C102,W$105:W$116,$C$105:$C$116)<0,0, IF(FORECAST($C102,W$105:W$116,$C$105:$C$116)>100,100, FORECAST($C102,W$105:W$116,$C$105:$C$116)))) -> 0 | X102: =IF(MAX(C105:C116)-MIN(C105:C116)<5,AVERAGEIF(C105:C116,">0",X105:X116), IF(FORECAST($C102,X$105:X$116,$C$105:$C$116)<0,0, IF(FORECAST($C102,X$105:X$116,$C$105:$C$116)>100,100, FORECAST($C102,X$105:X$116,$C$105:$C$116)))) -> 99.87754728 | AB102: =IF(MAX(C105:C116)-MIN(C105:C116)<5,AVERAGEIF(C105:C116,">0",AB105:AB116), IF(FORECAST($C102,AB$105:AB$116,$C$105:$C$116)<0,0, IF(FORECAST($C102,AB$105:AB$116,$C$105:$C$116)>100,100, FORECAST($C102,AB$105:AB$116,$C$105:$C$116)))) -> 0
B104: Survey | C104: Year | D104: Improved | E104: % Improved < = 30min | H104: Surface water | I104: Improved | J104: % Improved < = 30min | M104: Surface water | N104: Improved | O104: % Improved < = 30min | R104: Surface water | S104: Improved | T104: % Improved < = 30min | W104: Surface water | X104: Improved | Y104: % Improved < = 30min | AB104: Surface water
B105: DHS03 | C105: 2003 | D105: =IF(ISERROR(INDIRECT(CONCATENATE($B105,"!C16"))),"",INDIRECT(CONCATENATE($B105,"!C16"))) -> 71.17139797 | E105: =IF(ISERROR(INDIRECT(CONCATENATE($B105,"!C23"))),"",INDIRECT(CONCATENATE($B105,"!C23"))) -> 95.46072852 | H105: =IF(ISERROR(INDIRECT(CONCATENATE($B105,"!C21"))),"",INDIRECT(CONCATENATE($B105,"!C21"))) -> 2.670791895 | I105: =IF(ISERROR(INDIRECT(CONCATENATE($B105,"!D16"))),"",INDIRECT(CONCATENATE($B105,"!D16"))) -> 89.57124036 | J105: =IF(ISERROR(INDIRECT(CONCATENATE($B105,"!D23"))),"",INDIRECT(CONCATENATE($B105,"!D23"))) -> 97.38173993 | M105: =IF(ISERROR(INDIRECT(CONCATENATE($B105,"!D21"))),"",INDIRECT(CONCATENATE($B105,"!D21"))) -> 0.9904493509 | N105: =IF(ISERROR(INDIRECT(CONCATENATE($B105,"!E16"))),"",INDIRECT(CONCATENATE($B105,"!E16"))) -> 96.71453465 | O105: =IF(ISERROR(INDIRECT(CONCATENATE($B105,"!E23"))),"",INDIRECT(CONCATENATE($B105,"!E23"))) -> 99.16142603 | R105: =IF(ISERROR(INDIRECT(CONCATENATE($B105,"!E21"))),"",INDIRECT(CONCATENATE($B105,"!E21"))) -> 0.4336177432 | S105: =IF(ISERROR(INDIRECT(CONCATENATE($B105,"!F16"))),"",INDIRECT(CONCATENATE($B105,"!F16"))) -> 98.21872012 | T105: =IF(ISERROR(INDIRECT(CONCATENATE($B105,"!F23"))),"",INDIRECT(CONCATENATE($B105,"!F23"))) -> 98.85815796 | W105: =IF(ISERROR(INDIRECT(CONCATENATE($B105,"!F21"))),"",INDIRECT(CONCATENATE($B105,"!F21"))) -> 0.3364438428 | X105: =IF(ISERROR(INDIRECT(CONCATENATE($B105,"!G16"))),"",INDIRECT(CONCATENATE($B105,"!G16"))) -> 99.53671286 | Y105: =IF(ISERROR(INDIRECT(CONCATENATE($B105,"!G23"))),"",INDIRECT(CONCATENATE($B105,"!G23"))) -> 98.72570559 | AB105: =IF(ISERROR(INDIRECT(CONCATENATE($B105,"!G221"))),"",INDIRECT(CONCATENATE($B105,"!G21"))) -> 0.236320431
B106: DHS08 | C106: 2008 | D106: 73.6252848 | E106: 95.7 | H106: 0.3953050466 | I106: 89.93226733 | J106: 99.2 | M106: 0.5536798646 | N106: 95.17256018 | O106: 99.1 | R106: 0.407021048 | S106: 97.47465758 | T106: 99.8 | W106: 0.3952685813 | X106: 99.80920186 | Y106: 100 | AB106: 0.03828419383
B107: DHS13 | C107: 2013 | D107: 82.58435835 | E107: 96.5 | H107: 0.5718080044 | I107: 93.97271675 | J107: 97.9 | M107: 0.3553991402 | N107: 97.76274297 | O107: 98.2 | R107: 0 | S107: 99.40935904 | T107: 99.2 | W107: 0.0602579068 | X107: 99.75767908 | Y107: 99.1 | AB107: 0
B108: DHS17 | C108: 2017 | D108: 87.06972765 | E108: 95.85792804 | H108: 0.6402619627 | I108: 96.03932375 | J108: 98.29138027 | M108: 0.1390645217 | N108: 98.47507648 | O108: 99.2130728 | R108: 0.08530977701 | S108: 99.68317281 | T108: 99.7074827 | W108: 0.01609840442 | X108: 99.81489728 | Y108: 99.84756953 | AB108: 0
D111: =IF(ISERROR(INDIRECT(CONCATENATE($B111,"!C16"))),"",INDIRECT(CONCATENATE($B111,"!C16"))) ->  | E111: =IF(ISERROR(INDIRECT(CONCATENATE($B111,"!C23"))),"",INDIRECT(CONCATENATE($B111,"!C23"))) ->  | H111: =IF(ISERROR(INDIRECT(CONCATENATE($B111,"!C21"))),"",INDIRECT(CONCATENATE($B111,"!C21"))) ->  | I111: =IF(ISERROR(INDIRECT(CONCATENATE($B111,"!D16"))),"",INDIRECT(CONCATENATE($B111,"!D16"))) ->  | J111: =IF(ISERROR(INDIRECT(CONCATENATE($B111,"!D23"))),"",INDIRECT(CONCATENATE($B111,"!D23"))) ->  | M111: =IF(ISERROR(INDIRECT(CONCATENATE($B111,"!D21"))),"",INDIRECT(CONCATENATE($B111,"!D21"))) ->  | N111: =IF(ISERROR(INDIRECT(CONCATENATE($B111,"!E16"))),"",INDIRECT(CONCATENATE($B111,"!E16"))) ->  | O111: =IF(ISERROR(INDIRECT(CONCATENATE($B111,"!E23"))),"",INDIRECT(CONCATENATE($B111,"!E23"))) ->  | R111: =IF(ISERROR(INDIRECT(CONCATENATE($B111,"!E21"))),"",INDIRECT(CONCATENATE($B111,"!E21"))) ->  | S111: =IF(ISERROR(INDIRECT(CONCATENATE($B111,"!F16"))),"",INDIRECT(CONCATENATE($B111,"!F16"))) ->  | T111: =IF(ISERROR(INDIRECT(CONCATENATE($B111,"!F23"))),"",INDIRECT(CONCATENATE($B111,"!F23"))) ->  | W111: =IF(ISERROR(INDIRECT(CONCATENATE($B111,"!F21"))),"",INDIRECT(CONCATENATE($B111,"!F21"))) ->  | X111: =IF(ISERROR(INDIRECT(CONCATENATE($B111,"!G16"))),"",INDIRECT(CONCATENATE($B111,"!G16"))) ->  | Y111: =IF(ISERROR(INDIRECT(CONCATENATE($B111,"!G23"))),"",INDIRECT(CONCATENATE($B111,"!G23"))) ->  | AB111: =IF(ISERROR(INDIRECT(CONCATENATE($B111,"!G221"))),"",INDIRECT(CONCATENATE($B111,"!G21"))) -> 
D112: =IF(ISERROR(INDIRECT(CONCATENATE($B112,"!C16"))),"",INDIRECT(CONCATENATE($B112,"!C16"))) ->  | E112: =IF(ISERROR(INDIRECT(CONCATENATE($B112,"!C23"))),"",INDIRECT(CONCATENATE($B112,"!C23"))) ->  | H112: =IF(ISERROR(INDIRECT(CONCATENATE($B112,"!C21"))),"",INDIRECT(CONCATENATE($B112,"!C21"))) ->  | I112: =IF(ISERROR(INDIRECT(CONCATENATE($B112,"!D16"))),"",INDIRECT(CONCATENATE($B112,"!D16"))) ->  | J112: =IF(ISERROR(INDIRECT(CONCATENATE($B112,"!D23"))),"",INDIRECT(CONCATENATE($B112,"!D23"))) ->  | M112: =IF(ISERROR(INDIRECT(CONCATENATE($B112,"!D21"))),"",INDIRECT(CONCATENATE($B112,"!D21"))) ->  | N112: =IF(ISERROR(INDIRECT(CONCATENATE($B112,"!E16"))),"",INDIRECT(CONCATENATE($B112,"!E16"))) ->  | O112: =IF(ISERROR(INDIRECT(CONCATENATE($B112,"!E23"))),"",INDIRECT(CONCATENATE($B112,"!E23"))) ->  | R112: =IF(ISERROR(INDIRECT(CONCATENATE($B112,"!E21"))),"",INDIRECT(CONCATENATE($B112,"!E21"))) ->  | S112: =IF(ISERROR(INDIRECT(CONCATENATE($B112,"!F16"))),"",INDIRECT(CONCATENATE($B112,"!F16"))) ->  | T112: =IF(ISERROR(INDIRECT(CONCATENATE($B112,"!F23"))),"",INDIRECT(CONCATENATE($B112,"!F23"))) ->  | W112: =IF(ISERROR(INDIRECT(CONCATENATE($B112,"!F21"))),"",INDIRECT(CONCATENATE($B112,"!F21"))) ->  | X112: =IF(ISERROR(INDIRECT(CONCATENATE($B112,"!G16"))),"",INDIRECT(CONCATENATE($B112,"!G16"))) ->  | Y112: =IF(ISERROR(INDIRECT(CONCATENATE($B112,"!G23"))),"",INDIRECT(CONCATENATE($B112,"!G23"))) ->  | AB112: =IF(ISERROR(INDIRECT(CONCATENATE($B112,"!G221"))),"",INDIRECT(CONCATENATE($B112,"!G21"))) -> 
B118: =CONCATENATE("National use of drinking water sources, ",C99,"–",C100) -> National use of drinking water sources, 2000–2020 | S118: Data points used for regression
E153: =IF(ISERROR(INDIRECT(CONCATENATE($B153,"!M18"))),"",INDIRECT(CONCATENATE($B153,"!M18"))) ->  | F153: =IF(ISERROR(INDIRECT(CONCATENATE($B153,"!M19"))),"",INDIRECT(CONCATENATE($B153,"!M19"))) ->  | G153: =IF(ISERROR(INDIRECT(CONCATENATE($B153,"!M20"))),"",INDIRECT(CONCATENATE($B153,"!M20"))) ->  | H153: =IF(ISERROR(INDIRECT(CONCATENATE($B153,"!M21"))),"",INDIRECT(CONCATENATE($B153,"!M21"))) ->  | J153: =IF(ISERROR(INDIRECT(CONCATENATE($B153,"!N18"))),"",INDIRECT(CONCATENATE($B153,"!N18"))) ->  | K153: =IF(ISERROR(INDIRECT(CONCATENATE($B153,"!N19"))),"",INDIRECT(CONCATENATE($B153,"!N19"))) ->  | L153: =IF(ISERROR(INDIRECT(CONCATENATE($B153,"!N20"))),"",INDIRECT(CONCATENATE($B153,"!N20"))) ->  | M153: =IF(ISERROR(INDIRECT(CONCATENATE($B153,"!N21"))),"",INDIRECT(CONCATENATE($B153,"!N21"))) ->  | O153: =IF(ISERROR(INDIRECT(CONCATENATE($B153,"!O18"))),"",INDIRECT(CONCATENATE($B153,"!O18"))) ->  | P153: =IF(ISERROR(INDIRECT(CONCATENATE($B153,"!O19"))),"",INDIRECT(CONCATENATE($B153,"!O19"))) ->  | Q153: =IF(ISERROR(INDIRECT(CONCATENATE($B153,"!O20"))),"",INDIRECT(CONCATENATE($B153,"!O20"))) ->  | R153: =IF(ISERROR(INDIRECT(CONCATENATE($B153,"!O21"))),"",INDIRECT(CONCATENATE($B153,"!O21"))) ->  | T153: =IF(ISERROR(INDIRECT(CONCATENATE($B153,"!P18"))),"",INDIRECT(CONCATENATE($B153,"!P18"))) ->  | U153: =IF(ISERROR(INDIRECT(CONCATENATE($B153,"!P19"))),"",INDIRECT(CONCATENATE($B153,"!P19"))) ->  | V153: =IF(ISERROR(INDIRECT(CONCATENATE($B153,"!P20"))),"",INDIRECT(CONCATENATE($B153,"!P20"))) ->  | W153: =IF(ISERROR(INDIRECT(CONCATENATE($B153,"!P21"))),"",INDIRECT(CONCATENATE($B153,"!P21"))) ->  | Y153: =IF(ISERROR(INDIRECT(CONCATENATE($B153,"!Q18"))),"",INDIRECT(CONCATENATE($B153,"!Q18"))) ->  | Z153: =IF(ISERROR(INDIRECT(CONCATENATE($B153,"!Q19"))),"",INDIRECT(CONCATENATE($B153,"!Q19"))) ->  | AA153: =IF(ISERROR(INDIRECT(CONCATENATE($B153,"!Q20"))),"",INDIRECT(CONCATENATE($B153,"!Q20"))) ->  | AB153: =IF(ISERROR(INDIRECT(CONCATENATE($B153,"!Q21"))),"",INDIRECT(CONCATENATE($B153,"!Q1"))) -> 
A197: URBAN | D197: Poorest | I197: Poor | N197: Middle | S197: Rich | X197: Richest
D198: Improved | E198: Basic | F198: Limited | G198: Unimproved | H198: Surface water | I198: Improved | J198: Basic | K198: Limited | L198: Unimproved | M198: Surface water | N198: Improved | O198: Basic | P198: Limited | Q198: Unimproved | R198: Surface water | S198: Improved | T198: Basic | U198: Limited | V198: Unimproved | W198: Surface water | X198: Improved | Y198: Basic | Z198: Limited | AA198: Unimproved | AB198: Surface water
A199: Forecast period: | C199: 2000 | D199: =IF((D201+H201)>100,D201*100/(D201+H201),D201) -> 93.043471 | E199: =D199*AVERAGEIF(E205:E216,">0")/100 -> 91.31614256 | F199: =D199*(100-AVERAGEIF(E205:E216,">0"))/100 -> 1.727328442 | G199: =100-(E199+F199+H199) -> 6.208919108 | H199: =IF((D201+H201)>100,H201*100/(D201+H201),H201) -> 0.7476098869 | I199: =IF((I201+M201)>100,I201*100/(I201+M201),I201) -> 97.39687625 | J199: =I199*AVERAGEIF(J205:J216,">0")/100 -> 96.926268 | K199: =I199*(100-AVERAGEIF(J205:J216,">0"))/100 -> 0.4706082534 | L199: =100-(J199+K199+M199) -> 2.109724813 | M199: =IF((I201+M201)>100,M201*100/(I201+M201),M201) -> 0.4933989336 | N199: =IF((N201+R201)>100,N201*100/(N201+R201),N201) -> 98.18878155 | O199: =N199*AVERAGEIF(O205:O216,">0")/100 -> 97.64953597 | P199: =N199*(100-AVERAGEIF(O205:O216,">0"))/100 -> 0.5392455792 | Q199: =100-(O199+P199+R199) -> 1.558572292 | R199: =IF((N201+R201)>100,R201*100/(N201+R201),R201) -> 0.2526461555 | S199: =IF((S201+W201)>100,S201*100/(S201+W201),S201) -> 99.60961268 | T199: =S199*AVERAGEIF(T205:T216,">0")/100 -> 99.12638071 | U199: =S199*(100-AVERAGEIF(T205:T216,">0"))/100 -> 0.4832319782 | V199: =100-(T199+U199+W199) -> 0.2080122187 | W199: =IF((S201+W201)>100,W201*100/(S201+W201),W201) -> 0.1823750965 | X199: =IF((X201+AB201)>100,X201*100/(X201+AB201),X201) -> 100 | Y199: =X199*AVERAGEIF(Y205:Y216,">0")/100 -> 99.56027822 | Z199: =X199*(100-AVERAGEIF(Y205:Y216,">0"))/100 -> 0.4397217768 | AA199: =100-(Y199+Z199+AB199) -> 0 | AB199: =IF((X201+AB201)>100,AB201*100/(X201+AB201),AB201) -> 0
C200: 2020 | D200: =IF((D202+H202)>100,D202*100/(D202+H202),D202) -> 92.88287353 | E200: =D200*AVERAGEIF(E205:E216,">0")/100 -> 91.15852654 | F200: =D200*(100-AVERAGEIF(E205:E216,">0"))/100 -> 1.724346991 | G200: =100-(E200+F200+H200) -> 7.117126471 | H200: =IF((D202+H202)>100,H202*100/(D202+H202),H202) -> 0 | I200: =IF((I202+M202)>100,I202*100/(I202+M202),I202) -> 98.78774542 | J200: =I200*AVERAGEIF(J205:J216,">0")/100 -> 98.31041668 | K200: =I200*(100-AVERAGEIF(J205:J216,">0"))/100 -> 0.4773287411 | L200: =100-(J200+K200+M200) -> 1.21225458 | M200: =IF((I202+M202)>100,M202*100/(I202+M202),M202) -> 0 | N200: =IF((N202+R202)>100,N202*100/(N202+R202),N202) -> 99.8770474 | O200: =N200*AVERAGEIF(O205:O216,">0")/100 -> 99.32852999 | P200: =N200*(100-AVERAGEIF(O205:O216,">0"))/100 -> 0.5485174113 | Q200: =100-(O200+P200+R200) -> 0.122952602 | R200: =IF((N202+R202)>100,R202*100/(N202+R202),R202) -> 0 | S200: =IF((S202+W202)>100,S202*100/(S202+W202),S202) -> 99.8394149 | T200: =S200*AVERAGEIF(T205:T216,">0")/100 -> 99.35506809 | U200: =S200*(100-AVERAGEIF(T205:T216,">0"))/100 -> 0.4843468082 | V200: =100-(T200+U200+W200) -> 0.1605851043 | W200: =IF((S202+W202)>100,W202*100/(S202+W202),W202) -> 0 | X200: =IF((X202+AB202)>100,X202*100/(X202+AB202),X202) -> 99.95544578 | Y200: =X200*AVERAGEIF(Y205:Y216,">0")/100 -> 99.51591992 | Z200: =X200*(100-AVERAGEIF(Y205:Y216,">0"))/100 -> 0.4395258622 | AA200: =100-(Y200+Z200+AB200) -> 0.04455421809 | AB200: =IF((X202+AB202)>100,AB202*100/(X202+AB202),AB202) -> 0
A201: Regression period: | C201: =MinRegYear(C199,C205:C216) -> 2001 | D201: =IF(MAX(C205:C216)-MIN(C205:C216)<5,AVERAGEIF(C205:C216,">0",D205:D216), IF(FORECAST($C201,D$205:D$216,$C$205:$C$216)<0,0, IF(FORECAST($C201,D$205:D$216,$C$205:$C$216)>100,100, FORECAST($C201,D$205:D$216,$C$205:$C$216)))) -> 93.043471 | H201: =IF(MAX(C205:C216)-MIN(C205:C216)<5,AVERAGEIF(C205:C216,">0",H205:H216), IF(FORECAST($C201,H$205:H$216,$C$205:$C$216)<0,0, IF(FORECAST($C201,H$205:H$216,$C$205:$C$216)>100,100, FORECAST($C201,H$205:H$216,$C$205:$C$216)))) -> 0.7476098869 | I201: =IF(MAX(C205:C216)-MIN(C205:C216)<5,AVERAGEIF(C205:C216,">0",I205:I216), IF(FORECAST($C201,I$205:I$216,$C$205:$C$216)<0,0, IF(FORECAST($C201,I$205:I$216,$C$205:$C$216)>100,100, FORECAST($C201,I$205:I$216,$C$205:$C$216)))) -> 97.39687625 | M201: =IF(MAX(C205:C216)-MIN(C205:C216)<5,AVERAGEIF(C205:C216,">0",M205:M216), IF(FORECAST($C201,M$205:M$216,$C$205:$C$216)<0,0, IF(FORECAST($C201,M$205:M$216,$C$205:$C$216)>100,100, FORECAST($C201,M$205:M$216,$C$205:$C$216)))) -> 0.4933989336 | N201: =IF(MAX(C205:C216)-MIN(C205:C216)<5,AVERAGEIF(C205:C216,">0",N205:N216), IF(FORECAST($C201,N$205:N$216,$C$205:$C$216)<0,0, IF(FORECAST($C201,N$205:N$216,$C$205:$C$216)>100,100, FORECAST($C201,N$205:N$216,$C$205:$C$216)))) -> 98.18878155 | R201: =IF(MAX(C205:C216)-MIN(C205:C216)<5,AVERAGEIF(C205:C216,">0",R205:R216), IF(FORECAST($C201,R$205:R$216,$C$205:$C$216)<0,0, IF(FORECAST($C201,R$205:R$216,$C$205:$C$216)>100,100, FORECAST($C201,R$205:R$216,$C$205:$C$216)))) -> 0.2526461555 | S201: =IF(MAX(C205:C216)-MIN(C205:C216)<5,AVERAGEIF(C205:C216,">0",S205:S216), IF(FORECAST($C201,S$205:S$216,$C$205:$C$216)<0,0, IF(FORECAST($C201,S$205:S$216,$C$205:$C$216)>100,100, FORECAST($C201,S$205:S$216,$C$205:$C$216)))) -> 99.60961268 | W201: =IF(MAX(C205:C216)-MIN(C205:C216)<5,AVERAGEIF(C205:C216,">0",W205:W216), IF(FORECAST($C201,W$205:W$216,$C$205:$C$216)<0,0, IF(FORECAST($C201,W$205:W$216,$C$205:$C$216)>100,100, FORECAST($C201,W$205:W$216,$C$205:$C$216)))) -> 0.1823750965 | X201: =IF(MAX(C205:C216)-MIN(C205:C216)<5,AVERAGEIF(C205:C216,">0",X205:X216), IF(FORECAST($C201,X$205:X$216,$C$205:$C$216)<0,0, IF(FORECAST($C201,X$205:X$216,$C$205:$C$216)>100,100, FORECAST($C201,X$205:X$216,$C$205:$C$216)))) -> 100 | AB201: =IF(MAX(C205:C216)-MIN(C205:C216)<5,AVERAGEIF(C205:C216,">0",AB205:AB216), IF(FORECAST($C201,AB$205:AB$216,$C$205:$C$216)<0,0, IF(FORECAST($C201,AB$205:AB$216,$C$205:$C$216)>100,100, FORECAST($C201,AB$205:AB$216,$C$205:$C$216)))) -> 0
C202: =MaxRegYear(C200,C205:C216) -> 2019 | D202: =IF(MAX(C205:C216)-MIN(C205:C216)<5,AVERAGEIF(C205:C216,">0",D205:D216), IF(FORECAST($C202,D$205:D$216,$C$205:$C$216)<0,0, IF(FORECAST($C202,D$205:D$216,$C$205:$C$216)>100,100, FORECAST($C202,D$205:D$216,$C$205:$C$216)))) -> 92.88287353 | H202: =IF(MAX(C205:C216)-MIN(C205:C216)<5,AVERAGEIF(C205:C216,">0",H205:H216), IF(FORECAST($C202,H$205:H$216,$C$205:$C$216)<0,0, IF(FORECAST($C202,H$205:H$216,$C$205:$C$216)>100,100, FORECAST($C202,H$205:H$216,$C$205:$C$216)))) -> 0 | I202: =IF(MAX(C205:C216)-MIN(C205:C216)<5,AVERAGEIF(C205:C216,">0",I205:I216), IF(FORECAST($C202,I$205:I$216,$C$205:$C$216)<0,0, IF(FORECAST($C202,I$205:I$216,$C$205:$C$216)>100,100, FORECAST($C202,I$205:I$216,$C$205:$C$216)))) -> 98.78774542 | M202: =IF(MAX(C205:C216)-MIN(C205:C216)<5,AVERAGEIF(C205:C216,">0",M205:M216), IF(FORECAST($C202,M$205:M$216,$C$205:$C$216)<0,0, IF(FORECAST($C202,M$205:M$216,$C$205:$C$216)>100,100, FORECAST($C202,M$205:M$216,$C$205:$C$216)))) -> 0 | N202: =IF(MAX(C205:C216)-MIN(C205:C216)<5,AVERAGEIF(C205:C216,">0",N205:N216), IF(FORECAST($C202,N$205:N$216,$C$205:$C$216)<0,0, IF(FORECAST($C202,N$205:N$216,$C$205:$C$216)>100,100, FORECAST($C202,N$205:N$216,$C$205:$C$216)))) -> 99.8770474 | R202: =IF(MAX(C205:C216)-MIN(C205:C216)<5,AVERAGEIF(C205:C216,">0",R205:R216), IF(FORECAST($C202,R$205:R$216,$C$205:$C$216)<0,0, IF(FORECAST($C202,R$205:R$216,$C$205:$C$216)>100,100, FORECAST($C202,R$205:R$216,$C$205:$C$216)))) -> 0 | S202: =IF(MAX(C205:C216)-MIN(C205:C216)<5,AVERAGEIF(C205:C216,">0",S205:S216), IF(FORECAST($C202,S$205:S$216,$C$205:$C$216)<0,0, IF(FORECAST($C202,S$205:S$216,$C$205:$C$216)>100,100, FORECAST($C202,S$205:S$216,$C$205:$C$216)))) -> 99.8394149 | W202: =IF(MAX(C205:C216)-MIN(C205:C216)<5,AVERAGEIF(C205:C216,">0",W205:W216), IF(FORECAST($C202,W$205:W$216,$C$205:$C$216)<0,0, IF(FORECAST($C202,W$205:W$216,$C$205:$C$216)>100,100, FORECAST($C202,W$205:W$216,$C$205:$C$216)))) -> 0 | X202: =IF(MAX(C205:C216)-MIN(C205:C216)<5,AVERAGEIF(C205:C216,">0",X205:X216), IF(FORECAST($C202,X$205:X$216,$C$205:$C$216)<0,0, IF(FORECAST($C202,X$205:X$216,$C$205:$C$216)>100,100, FORECAST($C202,X$205:X$216,$C$205:$C$216)))) -> 99.95544578 | AB202: =IF(MAX(C205:C216)-MIN(C205:C216)<5,AVERAGEIF(C205:C216,">0",AB205:AB216), IF(FORECAST($C202,AB$205:AB$216,$C$205:$C$216)<0,0, IF(FORECAST($C202,AB$205:AB$216,$C$205:$C$216)>100,100, FORECAST($C202,AB$205:AB$216,$C$205:$C$216)))) -> 0
B204: Survey | C204: Year | D204: Improved | E204: % Improved < = 30min | H204: Surface water | I204: Improved | J204: % Improved < = 30min | M204: Surface water | N204: Improved | O204: % Improved < = 30min | R204: Surface water | S204: Improved | T204: % Improved < = 30min | W204: Surface water | X204: Improved | Y204: % Improved < = 30min | AB204: Surface water
B205: DHS03 | C205: 2003 | D205: =IF(ISERROR(INDIRECT(CONCATENATE($B205,"!H16"))),"",INDIRECT(CONCATENATE($B205,"!H16"))) -> 94.53564629 | E205: =IF(ISERROR(INDIRECT(CONCATENATE($B205,"!H23"))),"",INDIRECT(CONCATENATE($B205,"!H23"))) -> 97.87385521 | H205: =IF(ISERROR(INDIRECT(CONCATENATE($B205,"!H21"))),"",INDIRECT(CONCATENATE($B205,"!H21"))) -> 0.5678124726 | I205: =IF(ISERROR(INDIRECT(CONCATENATE($B205,"!I16"))),"",INDIRECT(CONCATENATE($B205,"!I16"))) -> 98.70346243 | J205: =IF(ISERROR(INDIRECT(CONCATENATE($B205,"!I23"))),"",INDIRECT(CONCATENATE($B205,"!I23"))) -> 99.66149606 | M205: =IF(ISERROR(INDIRECT(CONCATENATE($B205,"!I21"))),"",INDIRECT(CONCATENATE($B205,"!I21"))) -> 0.3230258628 | N205: =IF(ISERROR(INDIRECT(CONCATENATE($B205,"!J16"))),"",INDIRECT(CONCATENATE($B205,"!J16"))) -> 99.12142207 | O205: =IF(ISERROR(INDIRECT(CONCATENATE($B205,"!J23"))),"",INDIRECT(CONCATENATE($B205,"!J23"))) -> 98.97893954 | R205: =IF(ISERROR(INDIRECT(CONCATENATE($B205,"!J21"))),"",INDIRECT(CONCATENATE($B205,"!J21"))) -> 0.1726760114 | S205: =IF(ISERROR(INDIRECT(CONCATENATE($B205,"!K16"))),"",INDIRECT(CONCATENATE($B205,"!K16"))) -> 99.71839208 | T205: =IF(ISERROR(INDIRECT(CONCATENATE($B205,"!K23"))),"",INDIRECT(CONCATENATE($B205,"!K23"))) -> 98.75955716 | W205: =IF(ISERROR(INDIRECT(CONCATENATE($B205,"!K21"))),"",INDIRECT(CONCATENATE($B205,"!K21"))) -> 0.1287724361 | X205: =IF(ISERROR(INDIRECT(CONCATENATE($B205,"!L16"))),"",INDIRECT(CONCATENATE($B205,"!L16"))) -> 100 | Y205: =IF(ISERROR(INDIRECT(CONCATENATE($B205,"!L23"))),"",INDIRECT(CONCATENATE($B205,"!L23"))) -> 98.79393231 | AB205: =IF(ISERROR(INDIRECT(CONCATENATE($B205,"!L221"))),"",INDIRECT(CONCATENATE($B205,"!L21"))) -> 0
B206: DHS08 | C206: 2008 | D206: 90.30793832 | E206: 99.5 | H206: 0.6223597859 | I206: 95.91482529 | J206: 99.2 | M206: 0.4956130184 | N206: 97.51058619 | O206: 99.7 | R206: 0.2395775185 | S206: 99.6372532 | T206: 100 | W206: 0.1648835797 | X206: 100 | Y206: 100 | AB206: 0
B207: DHS13 | C207: 2013 | D207: 93.66576369 | E207: 98.3 | H207: 0.2124691172 | I207: 98.84358949 | J207: 99.6 | M207: 0 | N207: 99.70977031 | O207: 99.4 | R207: 0 | S207: 99.61033958 | T207: 99.5 | W207: 0 | X207: 99.94572345 | Y207: 99.5 | AB207: 0
B208: DHS17 | C208: 2017 | D208: 93.33441868 | E208: 96.90024624 | H208: 0.0479119982 | I208: 98.98463664 | J208: 99.60575919 | M208: 0 | N208: 99.88367187 | O208: 99.72428983 | R208: 0 | S208: 99.94483709 | T208: 99.79993945 | W208: 0 | X208: 99.97549777 | Y208: 99.94718058 | AB208: 0
B218: =CONCATENATE("Urban use of drinking water sources, ",C199,"–",C200) -> Urban use of drinking water sources, 2000–2020 | S218: Data points used for regression
E253: =IF(ISERROR(INDIRECT(CONCATENATE($B253,"!M18"))),"",INDIRECT(CONCATENATE($B253,"!M18"))) ->  | F253: =IF(ISERROR(INDIRECT(CONCATENATE($B253,"!M19"))),"",INDIRECT(CONCATENATE($B253,"!M19"))) ->  | G253: =IF(ISERROR(INDIRECT(CONCATENATE($B253,"!M20"))),"",INDIRECT(CONCATENATE($B253,"!M20"))) ->  | H253: =IF(ISERROR(INDIRECT(CONCATENATE($B253,"!M21"))),"",INDIRECT(CONCATENATE($B253,"!M21"))) ->  | J253: =IF(ISERROR(INDIRECT(CONCATENATE($B253,"!N18"))),"",INDIRECT(CONCATENATE($B253,"!N18"))) ->  | K253: =IF(ISERROR(INDIRECT(CONCATENATE($B253,"!N19"))),"",INDIRECT(CONCATENATE($B253,"!N19"))) ->  | L253: =IF(ISERROR(INDIRECT(CONCATENATE($B253,"!N20"))),"",INDIRECT(CONCATENATE($B253,"!N20"))) ->  | M253: =IF(ISERROR(INDIRECT(CONCATENATE($B253,"!N21"))),"",INDIRECT(CONCATENATE($B253,"!N21"))) ->  | O253: =IF(ISERROR(INDIRECT(CONCATENATE($B253,"!O18"))),"",INDIRECT(CONCATENATE($B253,"!O18"))) ->  | P253: =IF(ISERROR(INDIRECT(CONCATENATE($B253,"!O19"))),"",INDIRECT(CONCATENATE($B253,"!O19"))) ->  | Q253: =IF(ISERROR(INDIRECT(CONCATENATE($B253,"!O20"))),"",INDIRECT(CONCATENATE($B253,"!O20"))) ->  | R253: =IF(ISERROR(INDIRECT(CONCATENATE($B253,"!O21"))),"",INDIRECT(CONCATENATE($B253,"!O21"))) ->  | T253: =IF(ISERROR(INDIRECT(CONCATENATE($B253,"!P18"))),"",INDIRECT(CONCATENATE($B253,"!P18"))) ->  | U253: =IF(ISERROR(INDIRECT(CONCATENATE($B253,"!P19"))),"",INDIRECT(CONCATENATE($B253,"!P19"))) ->  | V253: =IF(ISERROR(INDIRECT(CONCATENATE($B253,"!P20"))),"",INDIRECT(CONCATENATE($B253,"!P20"))) ->  | W253: =IF(ISERROR(INDIRECT(CONCATENATE($B253,"!P21"))),"",INDIRECT(CONCATENATE($B253,"!P21"))) ->  | Y253: =IF(ISERROR(INDIRECT(CONCATENATE($B253,"!Q18"))),"",INDIRECT(CONCATENATE($B253,"!Q18"))) ->  | Z253: =IF(ISERROR(INDIRECT(CONCATENATE($B253,"!Q19"))),"",INDIRECT(CONCATENATE($B253,"!Q19"))) ->  | AA253: =IF(ISERROR(INDIRECT(CONCATENATE($B253,"!Q20"))),"",INDIRECT(CONCATENATE($B253,"!Q20"))) ->  | AB253: =IF(ISERROR(INDIRECT(CONCATENATE($B253,"!Q21"))),"",INDIRECT(CONCATENATE($B253,"!Q1"))) -> 
E254: =IF(ISERROR(INDIRECT(CONCATENATE($B254,"!M18"))),"",INDIRECT(CONCATENATE($B254,"!M18"))) ->  | F254: =IF(ISERROR(INDIRECT(CONCATENATE($B254,"!M19"))),"",INDIRECT(CONCATENATE($B254,"!M19"))) ->  | G254: =IF(ISERROR(INDIRECT(CONCATENATE($B254,"!M20"))),"",INDIRECT(CONCATENATE($B254,"!M20"))) ->  | H254: =IF(ISERROR(INDIRECT(CONCATENATE($B254,"!M21"))),"",INDIRECT(CONCATENATE($B254,"!M21"))) ->  | J254: =IF(ISERROR(INDIRECT(CONCATENATE($B254,"!N18"))),"",INDIRECT(CONCATENATE($B254,"!N18"))) ->  | K254: =IF(ISERROR(INDIRECT(CONCATENATE($B254,"!N19"))),"",INDIRECT(CONCATENATE($B254,"!N19"))) ->  | L254: =IF(ISERROR(INDIRECT(CONCATENATE($B254,"!N20"))),"",INDIRECT(CONCATENATE($B254,"!N20"))) ->  | M254: =IF(ISERROR(INDIRECT(CONCATENATE($B254,"!N21"))),"",INDIRECT(CONCATENATE($B254,"!N21"))) ->  | O254: =IF(ISERROR(INDIRECT(CONCATENATE($B254,"!O18"))),"",INDIRECT(CONCATENATE($B254,"!O18"))) ->  | P254: =IF(ISERROR(INDIRECT(CONCATENATE($B254,"!O19"))),"",INDIRECT(CONCATENATE($B254,"!O19"))) ->  | Q254: =IF(ISERROR(INDIRECT(CONCATENATE($B254,"!O20"))),"",INDIRECT(CONCATENATE($B254,"!O20"))) ->  | R254: =IF(ISERROR(INDIRECT(CONCATENATE($B254,"!O21"))),"",INDIRECT(CONCATENATE($B254,"!O21"))) ->  | T254: =IF(ISERROR(INDIRECT(CONCATENATE($B254,"!P18"))),"",INDIRECT(CONCATENATE($B254,"!P18"))) ->  | U254: =IF(ISERROR(INDIRECT(CONCATENATE($B254,"!P19"))),"",INDIRECT(CONCATENATE($B254,"!P19"))) ->  | V254: =IF(ISERROR(INDIRECT(CONCATENATE($B254,"!P20"))),"",INDIRECT(CONCATENATE($B254,"!P20"))) ->  | W254: =IF(ISERROR(INDIRECT(CONCATENATE($B254,"!P21"))),"",INDIRECT(CONCATENATE($B254,"!P21"))) ->  | Y254: =IF(ISERROR(INDIRECT(CONCATENATE($B254,"!Q18"))),"",INDIRECT(CONCATENATE($B254,"!Q18"))) ->  | Z254: =IF(ISERROR(INDIRECT(CONCATENATE($B254,"!Q19"))),"",INDIRECT(CONCATENATE($B254,"!Q19"))) ->  | AA254: =IF(ISERROR(INDIRECT(CONCATENATE($B254,"!Q20"))),"",INDIRECT(CONCATENATE($B254,"!Q20"))) ->  | AB254: =IF(ISERROR(INDIRECT(CONCATENATE($B254,"!Q21"))),"",INDIRECT(CONCATENATE($B254,"!Q1"))) -> 
E255: =IF(ISERROR(INDIRECT(CONCATENATE($B255,"!M18"))),"",INDIRECT(CONCATENATE($B255,"!M18"))) ->  | F255: =IF(ISERROR(INDIRECT(CONCATENATE($B255,"!M19"))),"",INDIRECT(CONCATENATE($B255,"!M19"))) ->  | G255: =IF(ISERROR(INDIRECT(CONCATENATE($B255,"!M20"))),"",INDIRECT(CONCATENATE($B255,"!M20"))) ->  | H255: =IF(ISERROR(INDIRECT(CONCATENATE($B255,"!M21"))),"",INDIRECT(CONCATENATE($B255,"!M21"))) ->  | J255: =IF(ISERROR(INDIRECT(CONCATENATE($B255,"!N18"))),"",INDIRECT(CONCATENATE($B255,"!N18"))) ->  | K255: =IF(ISERROR(INDIRECT(CONCATENATE($B255,"!N19"))),"",INDIRECT(CONCATENATE($B255,"!N19"))) ->  | L255: =IF(ISERROR(INDIRECT(CONCATENATE($B255,"!N20"))),"",INDIRECT(CONCATENATE($B255,"!N20"))) ->  | M255: =IF(ISERROR(INDIRECT(CONCATENATE($B255,"!N21"))),"",INDIRECT(CONCATENATE($B255,"!N21"))) ->  | O255: =IF(ISERROR(INDIRECT(CONCATENATE($B255,"!O18"))),"",INDIRECT(CONCATENATE($B255,"!O18"))) ->  | P255: =IF(ISERROR(INDIRECT(CONCATENATE($B255,"!O19"))),"",INDIRECT(CONCATENATE($B255,"!O19"))) ->  | Q255: =IF(ISERROR(INDIRECT(CONCATENATE($B255,"!O20"))),"",INDIRECT(CONCATENATE($B255,"!O20"))) ->  | R255: =IF(ISERROR(INDIRECT(CONCATENATE($B255,"!O21"))),"",INDIRECT(CONCATENATE($B255,"!O21"))) ->  | T255: =IF(ISERROR(INDIRECT(CONCATENATE($B255,"!P18"))),"",INDIRECT(CONCATENATE($B255,"!P18"))) ->  | U255: =IF(ISERROR(INDIRECT(CONCATENATE($B255,"!P19"))),"",INDIRECT(CONCATENATE($B255,"!P19"))) ->  | V255: =IF(ISERROR(INDIRECT(CONCATENATE($B255,"!P20"))),"",INDIRECT(CONCATENATE($B255,"!P20"))) ->  | W255: =IF(ISERROR(INDIRECT(CONCATENATE($B255,"!P21"))),"",INDIRECT(CONCATENATE($B255,"!P21"))) ->  | Y255: =IF(ISERROR(INDIRECT(CONCATENATE($B255,"!Q18"))),"",INDIRECT(CONCATENATE($B255,"!Q18"))) ->  | Z255: =IF(ISERROR(INDIRECT(CONCATENATE($B255,"!Q19"))),"",INDIRECT(CONCATENATE($B255,"!Q19"))) ->  | AA255: =IF(ISERROR(INDIRECT(CONCATENATE($B255,"!Q20"))),"",INDIRECT(CONCATENATE($B255,"!Q20"))) ->  | AB255: =IF(ISERROR(INDIRECT(CONCATENATE($B255,"!Q21"))),"",INDIRECT(CONCATENATE($B255,"!Q1"))) -> 
E256: =IF(ISERROR(INDIRECT(CONCATENATE($B256,"!M18"))),"",INDIRECT(CONCATENATE($B256,"!M18"))) ->  | F256: =IF(ISERROR(INDIRECT(CONCATENATE($B256,"!M19"))),"",INDIRECT(CONCATENATE($B256,"!M19"))) ->  | G256: =IF(ISERROR(INDIRECT(CONCATENATE($B256,"!M20"))),"",INDIRECT(CONCATENATE($B256,"!M20"))) ->  | H256: =IF(ISERROR(INDIRECT(CONCATENATE($B256,"!M21"))),"",INDIRECT(CONCATENATE($B256,"!M21"))) ->  | J256: =IF(ISERROR(INDIRECT(CONCATENATE($B256,"!N18"))),"",INDIRECT(CONCATENATE($B256,"!N18"))) ->  | K256: =IF(ISERROR(INDIRECT(CONCATENATE($B256,"!N19"))),"",INDIRECT(CONCATENATE($B256,"!N19"))) ->  | L256: =IF(ISERROR(INDIRECT(CONCATENATE($B256,"!N20"))),"",INDIRECT(CONCATENATE($B256,"!N20"))) ->  | M256: =IF(ISERROR(INDIRECT(CONCATENATE($B256,"!N21"))),"",INDIRECT(CONCATENATE($B256,"!N21"))) ->  | O256: =IF(ISERROR(INDIRECT(CONCATENATE($B256,"!O18"))),"",INDIRECT(CONCATENATE($B256,"!O18"))) ->  | P256: =IF(ISERROR(INDIRECT(CONCATENATE($B256,"!O19"))),"",INDIRECT(CONCATENATE($B256,"!O19"))) ->  | Q256: =IF(ISERROR(INDIRECT(CONCATENATE($B256,"!O20"))),"",INDIRECT(CONCATENATE($B256,"!O20"))) ->  | R256: =IF(ISERROR(INDIRECT(CONCATENATE($B256,"!O21"))),"",INDIRECT(CONCATENATE($B256,"!O21"))) ->  | T256: =IF(ISERROR(INDIRECT(CONCATENATE($B256,"!P18"))),"",INDIRECT(CONCATENATE($B256,"!P18"))) ->  | U256: =IF(ISERROR(INDIRECT(CONCATENATE($B256,"!P19"))),"",INDIRECT(CONCATENATE($B256,"!P19"))) ->  | V256: =IF(ISERROR(INDIRECT(CONCATENATE($B256,"!P20"))),"",INDIRECT(CONCATENATE($B256,"!P20"))) ->  | W256: =IF(ISERROR(INDIRECT(CONCATENATE($B256,"!P21"))),"",INDIRECT(CONCATENATE($B256,"!P21"))) ->  | Y256: =IF(ISERROR(INDIRECT(CONCATENATE($B256,"!Q18"))),"",INDIRECT(CONCATENATE($B256,"!Q18"))) ->  | Z256: =IF(ISERROR(INDIRECT(CONCATENATE($B256,"!Q19"))),"",INDIRECT(CONCATENATE($B256,"!Q19"))) ->  | AA256: =IF(ISERROR(INDIRECT(CONCATENATE($B256,"!Q20"))),"",INDIRECT(CONCATENATE($B256,"!Q20"))) ->  | AB256: =IF(ISERROR(INDIRECT(CONCATENATE($B256,"!Q21"))),"",INDIRECT(CONCATENATE($B256,"!Q1"))) -> 
E257: =IF(ISERROR(INDIRECT(CONCATENATE($B257,"!M18"))),"",INDIRECT(CONCATENATE($B257,"!M18"))) ->  | F257: =IF(ISERROR(INDIRECT(CONCATENATE($B257,"!M19"))),"",INDIRECT(CONCATENATE($B257,"!M19"))) ->  | G257: =IF(ISERROR(INDIRECT(CONCATENATE($B257,"!M20"))),"",INDIRECT(CONCATENATE($B257,"!M20"))) ->  | H257: =IF(ISERROR(INDIRECT(CONCATENATE($B257,"!M21"))),"",INDIRECT(CONCATENATE($B257,"!M21"))) ->  | J257: =IF(ISERROR(INDIRECT(CONCATENATE($B257,"!N18"))),"",INDIRECT(CONCATENATE($B257,"!N18"))) ->  | K257: =IF(ISERROR(INDIRECT(CONCATENATE($B257,"!N19"))),"",INDIRECT(CONCATENATE($B257,"!N19"))) ->  | L257: =IF(ISERROR(INDIRECT(CONCATENATE($B257,"!N20"))),"",INDIRECT(CONCATENATE($B257,"!N20"))) ->  | M257: =IF(ISERROR(INDIRECT(CONCATENATE($B257,"!N21"))),"",INDIRECT(CONCATENATE($B257,"!N21"))) ->  | O257: =IF(ISERROR(INDIRECT(CONCATENATE($B257,"!O18"))),"",INDIRECT(CONCATENATE($B257,"!O18"))) ->  | P257: =IF(ISERROR(INDIRECT(CONCATENATE($B257,"!O19"))),"",INDIRECT(CONCATENATE($B257,"!O19"))) ->  | Q257: =IF(ISERROR(INDIRECT(CONCATENATE($B257,"!O20"))),"",INDIRECT(CONCATENATE($B257,"!O20"))) ->  | R257: =IF(ISERROR(INDIRECT(CONCATENATE($B257,"!O21"))),"",INDIRECT(CONCATENATE($B257,"!O21"))) ->  | T257: =IF(ISERROR(INDIRECT(CONCATENATE($B257,"!P18"))),"",INDIRECT(CONCATENATE($B257,"!P18"))) ->  | U257: =IF(ISERROR(INDIRECT(CONCATENATE($B257,"!P19"))),"",INDIRECT(CONCATENATE($B257,"!P19"))) ->  | V257: =IF(ISERROR(INDIRECT(CONCATENATE($B257,"!P20"))),"",INDIRECT(CONCATENATE($B257,"!P20"))) ->  | W257: =IF(ISERROR(INDIRECT(CONCATENATE($B257,"!P21"))),"",INDIRECT(CONCATENATE($B257,"!P21"))) ->  | Y257: =IF(ISERROR(INDIRECT(CONCATENATE($B257,"!Q18"))),"",INDIRECT(CONCATENATE($B257,"!Q18"))) ->  | Z257: =IF(ISERROR(INDIRECT(CONCATENATE($B257,"!Q19"))),"",INDIRECT(CONCATENATE($B257,"!Q19"))) ->  | AA257: =IF(ISERROR(INDIRECT(CONCATENATE($B257,"!Q20"))),"",INDIRECT(CONCATENATE($B257,"!Q20"))) ->  | AB257: =IF(ISERROR(INDIRECT(CONCATENATE($B257,"!Q21"))),"",INDIRECT(CONCATENATE($B257,"!Q1"))) -> 
A297: RURAL | D297: Poorest | I297: Poor | N297: Middle | S297: Rich | X297: Richest
D298: Improved | E298: Basic | F298: Limited | G298: Unimproved | H298: Surface water | I298: Improved | J298: Basic | K298: Limited | L298: Unimproved | M298: Surface water | N298: Improved | O298: Basic | P298: Limited | Q298: Unimproved | R298: Surface water | S298: Improved | T298: Basic | U298: Limited | V298: Unimproved | W298: Surface water | X298: Improved | Y298: Basic | Z298: Limited | AA298: Unimproved | AB298: Surface water
A299: Forecast period: | C299: 2000 | D299: =IF((D301+H301)>100,D301*100/(D301+H301),D301) -> 59.88048686 | E299: =D299*AVERAGEIF(E305:E316,">0")/100 -> 56.67870983 | F299: =D299*(100-AVERAGEIF(E305:E316,">0"))/100 -> 3.201777032 | G299: =100-(E299+F299+H299) -> 37.35741686 | H299: =IF((D301+H301)>100,H301*100/(D301+H301),H301) -> 2.762096279 | I299: =IF((I301+M301)>100,I301*100/(I301+M301),I301) -> 69.71109743 | J299: =I299*AVERAGEIF(J305:J316,">0")/100 -> 67.65438268 | K299: =I299*(100-AVERAGEIF(J305:J316,">0"))/100 -> 2.056714752 | L299: =100-(J299+K299+M299) -> 28.25283415 | M299: =IF((I301+M301)>100,M301*100/(I301+M301),M301) -> 2.03606842 | N299: =IF((N301+R301)>100,N301*100/(N301+R301),N301) -> 85.53154813 | O299: =N299*AVERAGEIF(O305:O316,">0")/100 -> 83.82210895 | P299: =N299*(100-AVERAGEIF(O305:O316,">0"))/100 -> 1.709439175 | Q299: =100-(O299+P299+R299) -> 13.20141653 | R299: =IF((N301+R301)>100,R301*100/(N301+R301),R301) -> 1.267035341 | S299: =IF((S301+W301)>100,S301*100/(S301+W301),S301) -> 92.87866017 | T299: =S299*AVERAGEIF(T305:T316,">0")/100 -> 91.42359686 | U299: =S299*(100-AVERAGEIF(T305:T316,">0"))/100 -> 1.455063303 | V299: =100-(T299+U299+W299) -> 6.505551405 | W299: =IF((S301+W301)>100,W301*100/(S301+W301),W301) -> 0.61578843 | X299: =IF((X301+AB301)>100,X301*100/(X301+AB301),X301) -> 96.48840001 | Y299: =X299*AVERAGEIF(Y305:Y316,">0")/100 -> 95.64512964 | Z299: =X299*(100-AVERAGEIF(Y305:Y316,">0"))/100 -> 0.8432703693 | AA299: =100-(Y299+Z299+AB299) -> 2.580517423 | AB299: =IF((X301+AB301)>100,AB301*100/(X301+AB301),AB301) -> 0.9310825679
C300: 2020 | D300: =IF((D302+H302)>100,D302*100/(D302+H302),D302) -> 85.94359818 | E300: =D300*AVERAGEIF(E305:E316,">0")/100 -> 81.34824077 | F300: =D300*(100-AVERAGEIF(E305:E316,">0"))/100 -> 4.595357405 | G300: =100-(E300+F300+H300) -> 13.9382586 | H300: =IF((D302+H302)>100,H302*100/(D302+H302),H302) -> 0.1181432247 | I300: =IF((I302+M302)>100,I302*100/(I302+M302),I302) -> 97.23007206 | J300: =I300*AVERAGEIF(J305:J316,">0")/100 -> 94.36145385 | K300: =I300*(100-AVERAGEIF(J305:J316,">0"))/100 -> 2.86861821 | L300: =100-(J300+K300+M300) -> 2.769927941 | M300: =IF((I302+M302)>100,M302*100/(I302+M302),M302) -> 0 | N300: =IF((N302+R302)>100,N302*100/(N302+R302),N302) -> 97.63962979 | O300: =N300*AVERAGEIF(O305:O316,">0")/100 -> 95.6881977 | P300: =N300*(100-AVERAGEIF(O305:O316,">0"))/100 -> 1.951432096 | Q300: =100-(O300+P300+R300) -> 2.360370206 | R300: =IF((N302+R302)>100,R302*100/(N302+R302),R302) -> 0 | S300: =IF((S302+W302)>100,S302*100/(S302+W302),S302) -> 98.92580739 | T300: =S300*AVERAGEIF(T305:T316,">0")/100 -> 97.37600777 | U300: =S300*(100-AVERAGEIF(T305:T316,">0"))/100 -> 1.549799618 | V300: =100-(T300+U300+W300) -> 1.074192608 | W300: =IF((S302+W302)>100,W302*100/(S302+W302),W302) -> 0 | X300: =IF((X302+AB302)>100,X302*100/(X302+AB302),X302) -> 100 | Y300: =X300*AVERAGEIF(Y305:Y316,">0")/100 -> 99.12603964 | Z300: =X300*(100-AVERAGEIF(Y305:Y316,">0"))/100 -> 0.8739603613 | AA300: =100-(Y300+Z300+AB300) -> 0 | AB300: =IF((X302+AB302)>100,AB302*100/(X302+AB302),AB302) -> 0
A301: Regression period: | C301: =MinRegYear(C299,C305:C316) -> 2001 | D301: =IF(MAX(C305:C316)-MIN(C305:C316)<5,AVERAGEIF(C305:C316,">0",D305:D316), IF(FORECAST($C301,D$305:D$316,$C$305:$C$316)<0,0, IF(FORECAST($C301,D$305:D$316,$C$305:$C$316)>100,100, FORECAST($C301,D$305:D$316,$C$305:$C$316)))) -> 59.88048686 | H301: =IF(MAX(C305:C316)-MIN(C305:C316)<5,AVERAGEIF(C305:C316,">0",H305:H316), IF(FORECAST($C301,H$305:H$316,$C$305:$C$316)<0,0, IF(FORECAST($C301,H$305:H$316,$C$305:$C$316)>100,100, FORECAST($C301,H$305:H$316,$C$305:$C$316)))) -> 2.762096279 | I301: =IF(MAX(C305:C316)-MIN(C305:C316)<5,AVERAGEIF(C305:C316,">0",I305:I316), IF(FORECAST($C301,I$305:I$316,$C$305:$C$316)<0,0, IF(FORECAST($C301,I$305:I$316,$C$305:$C$316)>100,100, FORECAST($C301,I$305:I$316,$C$305:$C$316)))) -> 69.71109743 | M301: =IF(MAX(C305:C316)-MIN(C305:C316)<5,AVERAGEIF(C305:C316,">0",M305:M316), IF(FORECAST($C301,M$305:M$316,$C$305:$C$316)<0,0, IF(FORECAST($C301,M$305:M$316,$C$305:$C$316)>100,100, FORECAST($C301,M$305:M$316,$C$305:$C$316)))) -> 2.03606842 | N301: =IF(MAX(C305:C316)-MIN(C305:C316)<5,AVERAGEIF(C305:C316,">0",N305:N316), IF(FORECAST($C301,N$305:N$316,$C$305:$C$316)<0,0, IF(FORECAST($C301,N$305:N$316,$C$305:$C$316)>100,100, FORECAST($C301,N$305:N$316,$C$305:$C$316)))) -> 85.53154813 | R301: =IF(MAX(C305:C316)-MIN(C305:C316)<5,AVERAGEIF(C305:C316,">0",R305:R316), IF(FORECAST($C301,R$305:R$316,$C$305:$C$316)<0,0, IF(FORECAST($C301,R$305:R$316,$C$305:$C$316)>100,100, FORECAST($C301,R$305:R$316,$C$305:$C$316)))) -> 1.267035341 | S301: =IF(MAX(C305:C316)-MIN(C305:C316)<5,AVERAGEIF(C305:C316,">0",S305:S316), IF(FORECAST($C301,S$305:S$316,$C$305:$C$316)<0,0, IF(FORECAST($C301,S$305:S$316,$C$305:$C$316)>100,100, FORECAST($C301,S$305:S$316,$C$305:$C$316)))) -> 92.87866017 | W301: =IF(MAX(C305:C316)-MIN(C305:C316)<5,AVERAGEIF(C305:C316,">0",W305:W316), IF(FORECAST($C301,W$305:W$316,$C$305:$C$316)<0,0, IF(FORECAST($C301,W$305:W$316,$C$305:$C$316)>100,100, FORECAST($C301,W$305:W$316,$C$305:$C$316)))) -> 0.61578843 | X301: =IF(MAX(C305:C316)-MIN(C305:C316)<5,AVERAGEIF(C305:C316,">0",X305:X316), IF(FORECAST($C301,X$305:X$316,$C$305:$C$316)<0,0, IF(FORECAST($C301,X$305:X$316,$C$305:$C$316)>100,100, FORECAST($C301,X$305:X$316,$C$305:$C$316)))) -> 96.48840001 | AB301: =IF(MAX(C305:C316)-MIN(C305:C316)<5,AVERAGEIF(C305:C316,">0",AB305:AB316), IF(FORECAST($C301,AB$305:AB$316,$C$305:$C$316)<0,0, IF(FORECAST($C301,AB$305:AB$316,$C$305:$C$316)>100,100, FORECAST($C301,AB$305:AB$316,$C$305:$C$316)))) -> 0.9310825679
C302: =MaxRegYear(C300,C305:C316) -> 2019 | D302: =IF(MAX(C305:C316)-MIN(C305:C316)<5,AVERAGEIF(C305:C316,">0",D305:D316), IF(FORECAST($C302,D$305:D$316,$C$305:$C$316)<0,0, IF(FORECAST($C302,D$305:D$316,$C$305:$C$316)>100,100, FORECAST($C302,D$305:D$316,$C$305:$C$316)))) -> 85.94359818 | H302: =IF(MAX(C305:C316)-MIN(C305:C316)<5,AVERAGEIF(C305:C316,">0",H305:H316), IF(FORECAST($C302,H$305:H$316,$C$305:$C$316)<0,0, IF(FORECAST($C302,H$305:H$316,$C$305:$C$316)>100,100, FORECAST($C302,H$305:H$316,$C$305:$C$316)))) -> 0.1181432247 | I302: =IF(MAX(C305:C316)-MIN(C305:C316)<5,AVERAGEIF(C305:C316,">0",I305:I316), IF(FORECAST($C302,I$305:I$316,$C$305:$C$316)<0,0, IF(FORECAST($C302,I$305:I$316,$C$305:$C$316)>100,100, FORECAST($C302,I$305:I$316,$C$305:$C$316)))) -> 97.23007206 | M302: =IF(MAX(C305:C316)-MIN(C305:C316)<5,AVERAGEIF(C305:C316,">0",M305:M316), IF(FORECAST($C302,M$305:M$316,$C$305:$C$316)<0,0, IF(FORECAST($C302,M$305:M$316,$C$305:$C$316)>100,100, FORECAST($C302,M$305:M$316,$C$305:$C$316)))) -> 0 | N302: =IF(MAX(C305:C316)-MIN(C305:C316)<5,AVERAGEIF(C305:C316,">0",N305:N316), IF(FORECAST($C302,N$305:N$316,$C$305:$C$316)<0,0, IF(FORECAST($C302,N$305:N$316,$C$305:$C$316)>100,100, FORECAST($C302,N$305:N$316,$C$305:$C$316)))) -> 97.63962979 | R302: =IF(MAX(C305:C316)-MIN(C305:C316)<5,AVERAGEIF(C305:C316,">0",R305:R316), IF(FORECAST($C302,R$305:R$316,$C$305:$C$316)<0,0, IF(FORECAST($C302,R$305:R$316,$C$305:$C$316)>100,100, FORECAST($C302,R$305:R$316,$C$305:$C$316)))) -> 0 | S302: =IF(MAX(C305:C316)-MIN(C305:C316)<5,AVERAGEIF(C305:C316,">0",S305:S316), IF(FORECAST($C302,S$305:S$316,$C$305:$C$316)<0,0, IF(FORECAST($C302,S$305:S$316,$C$305:$C$316)>100,100, FORECAST($C302,S$305:S$316,$C$305:$C$316)))) -> 98.92580739 | W302: =IF(MAX(C305:C316)-MIN(C305:C316)<5,AVERAGEIF(C305:C316,">0",W305:W316), IF(FORECAST($C302,W$305:W$316,$C$305:$C$316)<0,0, IF(FORECAST($C302,W$305:W$316,$C$305:$C$316)>100,100, FORECAST($C302,W$305:W$316,$C$305:$C$316)))) -> 0 | X302: =IF(MAX(C305:C316)-MIN(C305:C316)<5,AVERAGEIF(C305:C316,">0",X305:X316), IF(FORECAST($C302,X$305:X$316,$C$305:$C$316)<0,0, IF(FORECAST($C302,X$305:X$316,$C$305:$C$316)>100,100, FORECAST($C302,X$305:X$316,$C$305:$C$316)))) -> 100 | AB302: =IF(MAX(C305:C316)-MIN(C305:C316)<5,AVERAGEIF(C305:C316,">0",AB305:AB316), IF(FORECAST($C302,AB$305:AB$316,$C$305:$C$316)<0,0, IF(FORECAST($C302,AB$305:AB$316,$C$305:$C$316)>100,100, FORECAST($C302,AB$305:AB$316,$C$305:$C$316)))) -> 0
B304: Survey | C304: Year | D304: Improved | E304: % Improved < = 30min | H304: Surface water | I304: Improved | J304: % Improved < = 30min | M304: Surface water | N304: Improved | O304: % Improved < = 30min | R304: Surface water | S304: Improved | T304: % Improved < = 30min | W304: Surface water | X304: Improved | Y304: % Improved < = 30min | AB304: Surface water
B305: DHS03 | C305: 2003 | D305: =IF(ISERROR(INDIRECT(CONCATENATE($B305,"!M16"))),"",INDIRECT(CONCATENATE($B305,"!M16"))) -> 65.33707502 | E305: =IF(ISERROR(INDIRECT(CONCATENATE($B305,"!M23"))),"",INDIRECT(CONCATENATE($B305,"!M23"))) -> 94.15976542 | H305: =IF(ISERROR(INDIRECT(CONCATENATE($B305,"!M21"))),"",INDIRECT(CONCATENATE($B305,"!M21"))) -> 3.284193657 | I305: =IF(ISERROR(INDIRECT(CONCATENATE($B305,"!N16"))),"",INDIRECT(CONCATENATE($B305,"!N16"))) -> 72.0846997 | J305: =IF(ISERROR(INDIRECT(CONCATENATE($B305,"!N23"))),"",INDIRECT(CONCATENATE($B305,"!N23"))) -> 96.08103388 | M305: =IF(ISERROR(INDIRECT(CONCATENATE($B305,"!N21"))),"",INDIRECT(CONCATENATE($B305,"!N21"))) -> 2.39664656 | N305: =IF(ISERROR(INDIRECT(CONCATENATE($B305,"!O16"))),"",INDIRECT(CONCATENATE($B305,"!O16"))) -> 87.39353125 | O305: =IF(ISERROR(INDIRECT(CONCATENATE($B305,"!O23"))),"",INDIRECT(CONCATENATE($B305,"!O23"))) -> 97.05336966 | R305: =IF(ISERROR(INDIRECT(CONCATENATE($B305,"!O21"))),"",INDIRECT(CONCATENATE($B305,"!O21"))) -> 1.242752288 | S305: =IF(ISERROR(INDIRECT(CONCATENATE($B305,"!P16"))),"",INDIRECT(CONCATENATE($B305,"!P16"))) -> 94.00835108 | T305: =IF(ISERROR(INDIRECT(CONCATENATE($B305,"!P23"))),"",INDIRECT(CONCATENATE($B305,"!P23"))) -> 98.42256985 | W305: =IF(ISERROR(INDIRECT(CONCATENATE($B305,"!P21"))),"",INDIRECT(CONCATENATE($B305,"!P21"))) -> 0.5873170702 | X305: =IF(ISERROR(INDIRECT(CONCATENATE($B305,"!Q16"))),"",INDIRECT(CONCATENATE($B305,"!Q16"))) -> 96.95858864 | Y305: =IF(ISERROR(INDIRECT(CONCATENATE($B305,"!Q23"))),"",INDIRECT(CONCATENATE($B305,"!Q23"))) -> 98.70256935 | AB305: =IF(ISERROR(INDIRECT(CONCATENATE($B305,"!Q221"))),"",INDIRECT(CONCATENATE($B305,"!Q21"))) -> 0.8623043378
B306: DHS08 | C306: 2008 | D306: 65.70460176 | E306: 93.5 | H306: 0.4536647259 | I306: 81.34465895 | J306: 97.1 | M306: 0.2231011059 | N306: 89.34176421 | O306: 99.2 | R306: 0.6007866802 | S306: 94.48161313 | T306: 99.3 | W306: 0.3457132145 | X306: 97.61139514 | Y306: 99.4 | AB306: 0.4361559898
B307: DHS13 | C307: 2013 | D307: 77.99445413 | E307: 95.5 | H307: 1.024428193 | I307: 88.35488542 | J307: 97.5 | M307: 0.2484802526 | N307: 93.81694536 | O307: 97.2 | R307: 0.3131789666 | S307: 96.99245148 | T307: 97 | W307: 0 | X307: 99.46668012 | Y307: 98.5 | AB307: 0.1157746154
B308: DHS17 | C308: 2017 | D308: 84.0599898 | E308: 95.45245235 | H308: 0.851306151 | I308: 93.62692683 | J308: 97.51760406 | M308: 0.3731559204 | N308: 96.46278624 | O308: 98.5522039 | R308: 0.2091919995 | S308: 98.46247205 | T308: 99.01091726 | W308: 0.1213471851 | X308: 99.53060913 | Y308: 99.9015892 | AB308: 0
B318: =CONCATENATE("Rural use of drinking water sources, ",C299,"–",C300) -> Rural use of drinking water sources, 2000–2020 | S318: Data points used for regression

Sheet Sanitation
B4: Summary of trends in use of sanitation facilities by wealth quintile (%)
B5: =IF(ISERROR(INDIRECT(CONCATENATE($B105,"!A2"))),"",INDIRECT(CONCATENATE($B105,"!A2"))) -> Philippines
B7: =B118 -> National use of sanitation facilities, 2000–2020 | J7: =B218 -> Urban use of sanitation facilities, 2000–2020 | R7: =B318 -> Rural use of sanitation facilities, 2000–2020
B31: =IF(ISERROR(INDIRECT(CONCATENATE($B105,"!A2"))),"",INDIRECT(CONCATENATE($B105,"!A2"))) -> Philippines | F31: Poorest | J31: Poor | N31: Middle | R31: Rich | V31: Richest
F32: Basic | G32: Limited | H32: Unimproved | I32: Open defecation | J32: Basic | K32: Limited | L32: Unimproved | M32: Open defecation | N32: Basic | O32: Limited | P32: Unimproved | Q32: Open defecation | R32: Basic | S32: Limited | T32: Unimproved | U32: Open defecation | V32: Basic | W32: Limited | X32: Unimproved | Y32: Open defecation
B33: NATIONAL | D33: Estimate | E33: =C99 -> 2000 | F33: =E99 -> 31.3285037 | G33: =F99 -> 14.89478484 | H33: 16.89458206 | I33: 36.8821294 | J33: =J99 -> 54.40654678 | K33: =K99 -> 23.54554592 | L33: 8.678631561 | M33: 13.36927574 | N33: =O99 -> 71.79543321 | O33: =P99 -> 21.92557503 | P33: 2.594663898 | Q33: 3.684327855 | R33: =T99 -> 85.59291406 | S33: =U99 -> 12.57396058 | T33: 0.9452510298 | U33: 0.8878743373 | V33: =Y99 -> 94.72382648 | W33: =Z99 -> 4.957380644 | X33: 0.2125967123 | Y33: 0.1061961644
E34: =C100 -> 2020 | F34: =E100 -> 52.09150936 | G34: 24.76632243 | H34: 7.262066912 | I34: 15.8801013 | J34: =J100 -> 65.25523956 | K34: 28.24053961 | L34: 2.924718002 | M34: 3.579502825 | N34: =O100 -> 74.10570144 | O34: 22.63110681 | P34: 1.88574016 | Q34: 1.377451594 | R34: =T100 -> 86.15502178 | S34: 12.65653658 | T34: 1.124754318 | U34: 0.06368732047 | V34: =Y100 -> 94.84105912 | W34: 4.963516026 | X34: 0.1954248553 | Y34: 0
B36: URBAN | D36: Estimate | E36: =C199 -> 2000 | F36: =E199 -> 44.77964182 | G36: =F199 -> 28.75417104 | H36: 8.295488026 | I36: 18.17069911 | J36: =J199 -> 67.22127043 | K36: =K199 -> 28.15961795 | L36: 1.845890691 | M36: 2.773220936 | N36: =O199 -> 82.19680842 | O36: =P199 -> 16.61968314 | P36: 0.7056699793 | Q36: 0.4778384665 | R36: =T199 -> 89.60640693 | S36: =U199 -> 10.02923282 | T36: 0.3048227443 | U36: 0.05953750343 | V36: =Y199 -> 96.09435512 | W36: =Z199 -> 3.763192566 | X36: 0.1424523105 | Y36: 0
E37: =C200 -> 2020 | F37: =E200 -> 50.73825446 | G37: 32.58035098 | H37: 5.71917087 | I37: 10.96222369 | J37: =J200 -> 66.52151667 | K37: 27.86648456 | L37: 3.468049274 | M37: 2.143949491 | N37: =O200 -> 81.43425879 | O37: 16.46550035 | P37: 1.729011218 | Q37: 0.3712296474 | R37: =T200 -> 89.16021201 | S37: 9.979292281 | T37: 0.8071129375 | U37: 0.05338276793 | V37: =Y200 -> 95.99450535 | W37: 3.759282306 | X37: 0.2462123422 | Y37: 0
B39: RURAL | D39: Estimate | E39: =C299 -> 2000 | F39: =E299 -> 27.27491646 | G39: =F299 -> 12.08364069 | H39: 18.43983301 | I39: 42.20160984 | J39: =J299 -> 38.00407197 | K39: =K299 -> 16.18049793 | L39: 17.51720298 | M39: 28.29822712 | N39: =O299 -> 59.0139553 | O39: =P299 -> 19.0665187 | P39: 8.108272305 | Q39: 13.81125369 | R39: =T299 -> 76.28298228 | S39: =U299 -> 14.83616395 | T39: 3.798783823 | U39: 5.082069949 | V39: =Y299 -> 91.0181637 | W39: =Z299 -> 6.89612573 | X39: 0.9656419455 | Y39: 1.120068624
E40: =C300 -> 2020 | F40: =E300 -> 49.56552353 | G40: 21.95907649 | H40: 8.651897588 | I40: 19.82350239 | J40: =J300 -> 64.5310552 | K40: 27.47454551 | L40: 2.610898905 | M40: 5.383500388 | N40: =O300 -> 73.52214998 | O40: 23.75389754 | P40: 1.753577726 | Q40: 0.9703747562 | R40: =T300 -> 83.50061147 | S40: 16.23990993 | T40: 0.2594786036 | U40: 0 | V40: =Y300 -> 92.9569772 | W40: 7.043022801 | X40: 0 | Y40: 0
A97: NATIONAL | D97: Poorest | I97: Poor | N97: Middle | S97: Rich | X97: Richest
D98: Improved | E98: Basic | F98: Limited | G98: Unimproved | H98: Open defecation | I98: Improved | J98: Basic | K98: Limited | L98: Unimproved | M98: Open defecation | N98: Improved | O98: Basic | P98: Limited | Q98: Unimproved | R98: Open defecation | S98: Improved | T98: Basic | U98: Limited | V98: Unimproved | W98: Open defecation | X98: Improved | Y98: Basic | Z98: Limited | AA98: Unimproved | AB98: Open defecation
A99: Forecast period: | C99: 2000 | D99: =IF((D101+H101)>100,D101*100/(D101+H101),D101) -> 46.22328854 | E99: =D99*AVERAGEIF(E105:E116,">0")/100 -> 31.3285037 | F99: =D99*(100-AVERAGEIF(E105:E116,">0"))/100 -> 14.89478484 | G99: =100-(E99+F99+H99) -> 16.89458206 | H99: =IF((D101+H101)>100,H101*100/(D101+H101),H101) -> 36.8821294 | I99: =IF((I101+M101)>100,I101*100/(I101+M101),I101) -> 77.9520927 | J99: =I99*AVERAGEIF(J105:J116,">0")/100 -> 54.40654678 | K99: =I99*(100-AVERAGEIF(J105:J116,">0"))/100 -> 23.54554592 | L99: =100-(J99+K99+M99) -> 8.678631561 | M99: =IF((I101+M101)>100,M101*100/(I101+M101),M101) -> 13.36927574 | N99: =IF((N101+R101)>100,N101*100/(N101+R101),N101) -> 93.72100825 | O99: =N99*AVERAGEIF(O105:O116,">0")/100 -> 71.79543321 | P99: =N99*(100-AVERAGEIF(O105:O116,">0"))/100 -> 21.92557503 | Q99: =100-(O99+P99+R99) -> 2.594663898 | R99: =IF((N101+R101)>100,R101*100/(N101+R101),R101) -> 3.684327855 | S99: =IF((S101+W101)>100,S101*100/(S101+W101),S101) -> 98.16687463 | T99: =S99*AVERAGEIF(T105:T116,">0")/100 -> 85.59291406 | U99: =S99*(100-AVERAGEIF(T105:T116,">0"))/100 -> 12.57396058 | V99: =100-(T99+U99+W99) -> 0.9452510298 | W99: =IF((S101+W101)>100,W101*100/(S101+W101),W101) -> 0.8878743373 | X99: =IF((X101+AB101)>100,X101*100/(X101+AB101),X101) -> 99.68120712 | Y99: =X99*AVERAGEIF(Y105:Y116,">0")/100 -> 94.72382648 | Z99: =X99*(100-AVERAGEIF(Y105:Y116,">0"))/100 -> 4.957380644 | AA99: =100-(Y99+Z99+AB99) -> 0.2125967123 | AB99: =IF((X101+AB101)>100,AB101*100/(X101+AB101),AB101) -> 0.1061961644
C100: 2020 | D100: =IF((D102+H102)>100,D102*100/(D102+H102),D102) -> 76.85783178 | E100: =D100*AVERAGEIF(E105:E116,">0")/100 -> 52.09150936 | F100: =D100*(100-AVERAGEIF(E105:E116,">0"))/100 -> 24.76632243 | G100: =100-(E100+F100+H100) -> 7.262066912 | H100: =IF((D102+H102)>100,H102*100/(D102+H102),H102) -> 15.8801013 | I100: =IF((I102+M102)>100,I102*100/(I102+M102),I102) -> 93.49577917 | J100: =I100*AVERAGEIF(J105:J116,">0")/100 -> 65.25523956 | K100: =I100*(100-AVERAGEIF(J105:J116,">0"))/100 -> 28.24053961 | L100: =100-(J100+K100+M100) -> 2.924718002 | M100: =IF((I102+M102)>100,M102*100/(I102+M102),M102) -> 3.579502825 | N100: =IF((N102+R102)>100,N102*100/(N102+R102),N102) -> 96.73680825 | O100: =N100*AVERAGEIF(O105:O116,">0")/100 -> 74.10570144 | P100: =N100*(100-AVERAGEIF(O105:O116,">0"))/100 -> 22.63110681 | Q100: =100-(O100+P100+R100) -> 1.88574016 | R100: =IF((N102+R102)>100,R102*100/(N102+R102),R102) -> 1.377451594 | S100: =IF((S102+W102)>100,S102*100/(S102+W102),S102) -> 98.81155836 | T100: =S100*AVERAGEIF(T105:T116,">0")/100 -> 86.15502178 | U100: =S100*(100-AVERAGEIF(T105:T116,">0"))/100 -> 12.65653658 | V100: =100-(T100+U100+W100) -> 1.124754318 | W100: =IF((S102+W102)>100,W102*100/(S102+W102),W102) -> 0.06368732047 | X100: =IF((X102+AB102)>100,X102*100/(X102+AB102),X102) -> 99.80457514 | Y100: =X100*AVERAGEIF(Y105:Y116,">0")/100 -> 94.84105912 | Z100: =X100*(100-AVERAGEIF(Y105:Y116,">0"))/100 -> 4.963516026 | AA100: =100-(Y100+Z100+AB100) -> 0.1954248553 | AB100: =IF((X102+AB102)>100,AB102*100/(X102+AB102),AB102) -> 0
A101: Regression period: | C101: =MinRegYear(C99,C105:C116) -> 2001 | D101: =IF(MAX(C105:C116)-MIN(C105:C116)<5,AVERAGEIF(C105:C116,">0",D105:D116), IF(FORECAST($C101,D$105:D$116,$C$105:$C$116)<0,0, IF(FORECAST($C101,D$105:D$116,$C$105:$C$116)>100,100, FORECAST($C101,D$105:D$116,$C$105:$C$116)))) -> 46.22328854 | H101: =IF(MAX(C105:C116)-MIN(C105:C116)<5,AVERAGEIF(C105:C116,">0",H105:H116), IF(FORECAST($C101,H$105:H$116,$C$105:$C$116)<0,0, IF(FORECAST($C101,H$105:H$116,$C$105:$C$116)>100,100, FORECAST($C101,H$105:H$116,$C$105:$C$116)))) -> 36.8821294 | I101: =IF(MAX(C105:C116)-MIN(C105:C116)<5,AVERAGEIF(C105:C116,">0",I105:I116), IF(FORECAST($C101,I$105:I$116,$C$105:$C$116)<0,0, IF(FORECAST($C101,I$105:I$116,$C$105:$C$116)>100,100, FORECAST($C101,I$105:I$116,$C$105:$C$116)))) -> 77.9520927 | M101: =IF(MAX(C105:C116)-MIN(C105:C116)<5,AVERAGEIF(C105:C116,">0",M105:M116), IF(FORECAST($C101,M$105:M$116,$C$105:$C$116)<0,0, IF(FORECAST($C101,M$105:M$116,$C$105:$C$116)>100,100, FORECAST($C101,M$105:M$116,$C$105:$C$116)))) -> 13.36927574 | N101: =IF(MAX(C105:C116)-MIN(C105:C116)<5,AVERAGEIF(C105:C116,">0",N105:N116), IF(FORECAST($C101,N$105:N$116,$C$105:$C$116)<0,0, IF(FORECAST($C101,N$105:N$116,$C$105:$C$116)>100,100, FORECAST($C101,N$105:N$116,$C$105:$C$116)))) -> 93.72100825 | R101: =IF(MAX(C105:C116)-MIN(C105:C116)<5,AVERAGEIF(C105:C116,">0",R105:R116), IF(FORECAST($C101,R$105:R$116,$C$105:$C$116)<0,0, IF(FORECAST($C101,R$105:R$116,$C$105:$C$116)>100,100, FORECAST($C101,R$105:R$116,$C$105:$C$116)))) -> 3.684327855 | S101: =IF(MAX(C105:C116)-MIN(C105:C116)<5,AVERAGEIF(C105:C116,">0",S105:S116), IF(FORECAST($C101,S$105:S$116,$C$105:$C$116)<0,0, IF(FORECAST($C101,S$105:S$116,$C$105:$C$116)>100,100, FORECAST($C101,S$105:S$116,$C$105:$C$116)))) -> 98.16687463 | W101: =IF(MAX(C105:C116)-MIN(C105:C116)<5,AVERAGEIF(C105:C116,">0",W105:W116), IF(FORECAST($C101,W$105:W$116,$C$105:$C$116)<0,0, IF(FORECAST($C101,W$105:W$116,$C$105:$C$116)>100,100, FORECAST($C101,W$105:W$116,$C$105:$C$116)))) -> 0.8878743373 | X101: =IF(MAX(C105:C116)-MIN(C105:C116)<5,AVERAGEIF(C105:C116,">0",X105:X116), IF(FORECAST($C101,X$105:X$116,$C$105:$C$116)<0,0, IF(FORECAST($C101,X$105:X$116,$C$105:$C$116)>100,100, FORECAST($C101,X$105:X$116,$C$105:$C$116)))) -> 99.68120712 | AB101: =IF(MAX(C105:C116)-MIN(C105:C116)<5,AVERAGEIF(C105:C116,">0",AB105:AB116), IF(FORECAST($C101,AB$105:AB$116,$C$105:$C$116)<0,0, IF(FORECAST($C101,AB$105:AB$116,$C$105:$C$116)>100,100, FORECAST($C101,AB$105:AB$116,$C$105:$C$116)))) -> 0.1061961644
C102: =MaxRegYear(C100,C105:C116) -> 2019 | D102: =IF(MAX(C105:C116)-MIN(C105:C116)<5,AVERAGEIF(C105:C116,">0",D105:D116), IF(FORECAST($C102,D$105:D$116,$C$105:$C$116)<0,0, IF(FORECAST($C102,D$105:D$116,$C$105:$C$116)>100,100, FORECAST($C102,D$105:D$116,$C$105:$C$116)))) -> 76.85783178 | H102: =IF(MAX(C105:C116)-MIN(C105:C116)<5,AVERAGEIF(C105:C116,">0",H105:H116), IF(FORECAST($C102,H$105:H$116,$C$105:$C$116)<0,0, IF(FORECAST($C102,H$105:H$116,$C$105:$C$116)>100,100, FORECAST($C102,H$105:H$116,$C$105:$C$116)))) -> 15.8801013 | I102: =IF(MAX(C105:C116)-MIN(C105:C116)<5,AVERAGEIF(C105:C116,">0",I105:I116), IF(FORECAST($C102,I$105:I$116,$C$105:$C$116)<0,0, IF(FORECAST($C102,I$105:I$116,$C$105:$C$116)>100,100, FORECAST($C102,I$105:I$116,$C$105:$C$116)))) -> 93.49577917 | M102: =IF(MAX(C105:C116)-MIN(C105:C116)<5,AVERAGEIF(C105:C116,">0",M105:M116), IF(FORECAST($C102,M$105:M$116,$C$105:$C$116)<0,0, IF(FORECAST($C102,M$105:M$116,$C$105:$C$116)>100,100, FORECAST($C102,M$105:M$116,$C$105:$C$116)))) -> 3.579502825 | N102: =IF(MAX(C105:C116)-MIN(C105:C116)<5,AVERAGEIF(C105:C116,">0",N105:N116), IF(FORECAST($C102,N$105:N$116,$C$105:$C$116)<0,0, IF(FORECAST($C102,N$105:N$116,$C$105:$C$116)>100,100, FORECAST($C102,N$105:N$116,$C$105:$C$116)))) -> 96.73680825 | R102: =IF(MAX(C105:C116)-MIN(C105:C116)<5,AVERAGEIF(C105:C116,">0",R105:R116), IF(FORECAST($C102,R$105:R$116,$C$105:$C$116)<0,0, IF(FORECAST($C102,R$105:R$116,$C$105:$C$116)>100,100, FORECAST($C102,R$105:R$116,$C$105:$C$116)))) -> 1.377451594 | S102: =IF(MAX(C105:C116)-MIN(C105:C116)<5,AVERAGEIF(C105:C116,">0",S105:S116), IF(FORECAST($C102,S$105:S$116,$C$105:$C$116)<0,0, IF(FORECAST($C102,S$105:S$116,$C$105:$C$116)>100,100, FORECAST($C102,S$105:S$116,$C$105:$C$116)))) -> 98.81155836 | W102: =IF(MAX(C105:C116)-MIN(C105:C116)<5,AVERAGEIF(C105:C116,">0",W105:W116), IF(FORECAST($C102,W$105:W$116,$C$105:$C$116)<0,0, IF(FORECAST($C102,W$105:W$116,$C$105:$C$116)>100,100, FORECAST($C102,W$105:W$116,$C$105:$C$116)))) -> 0.06368732047 | X102: =IF(MAX(C105:C116)-MIN(C105:C116)<5,AVERAGEIF(C105:C116,">0",X105:X116), IF(FORECAST($C102,X$105:X$116,$C$105:$C$116)<0,0, IF(FORECAST($C102,X$105:X$116,$C$105:$C$116)>100,100, FORECAST($C102,X$105:X$116,$C$105:$C$116)))) -> 99.80457514 | AB102: =IF(MAX(C105:C116)-MIN(C105:C116)<5,AVERAGEIF(C105:C116,">0",AB105:AB116), IF(FORECAST($C102,AB$105:AB$116,$C$105:$C$116)<0,0, IF(FORECAST($C102,AB$105:AB$116,$C$105:$C$116)>100,100, FORECAST($C102,AB$105:AB$116,$C$105:$C$116)))) -> 0
B104: Survey | C104: Year | D104: Improved | E104: Not shared | H104: Open defecation | I104: Improved | J104: Not shared | M104: Open defecation | N104: Improved | O104: Not shared | R104: Open defecation | S104: Improved | T104: Not shared | W104: Open defecation | X104: Improved | Y104: Not shared | AB104: Open defecation
B105: DHS03 | C105: 2003 | D105: =IF(ISERROR(INDIRECT(CONCATENATE($B105,"!C122"))),"",INDIRECT(CONCATENATE($B105,"!C122"))) -> 51.07873526 | E105: =IF(ISERROR(INDIRECT(CONCATENATE($B105,"!C129"))),"",INDIRECT(CONCATENATE($B105,"!C129"))) -> N/A | H105: =IF(ISERROR(INDIRECT(CONCATENATE($B105,"!C127"))),"",INDIRECT(CONCATENATE($B105,"!C127"))) -> 31.53613946 | I105: =IF(ISERROR(INDIRECT(CONCATENATE($B105,"!D122"))),"",INDIRECT(CONCATENATE($B105,"!D122"))) -> 79.29807697 | J105: =IF(ISERROR(INDIRECT(CONCATENATE($B105,"!D129"))),"",INDIRECT(CONCATENATE($B105,"!D129"))) -> N/A | M105: =IF(ISERROR(INDIRECT(CONCATENATE($B105,"!D127"))),"",INDIRECT(CONCATENATE($B105,"!D127"))) -> 11.63659167 | N105: =IF(ISERROR(INDIRECT(CONCATENATE($B105,"!E122"))),"",INDIRECT(CONCATENATE($B105,"!E122"))) -> 94.7927697 | O105: =IF(ISERROR(INDIRECT(CONCATENATE($B105,"!E129"))),"",INDIRECT(CONCATENATE($B105,"!E129"))) -> N/A | R105: =IF(ISERROR(INDIRECT(CONCATENATE($B105,"!E127"))),"",INDIRECT(CONCATENATE($B105,"!E127"))) -> 2.921071755 | S105: =IF(ISERROR(INDIRECT(CONCATENATE($B105,"!F122"))),"",INDIRECT(CONCATENATE($B105,"!F122"))) -> 98.61735956 | T105: =IF(ISERROR(INDIRECT(CONCATENATE($B105,"!F129"))),"",INDIRECT(CONCATENATE($B105,"!F129"))) -> N/A | W105: =IF(ISERROR(INDIRECT(CONCATENATE($B105,"!F127"))),"",INDIRECT(CONCATENATE($B105,"!F127"))) -> 0.6691653596 | X105: =IF(ISERROR(INDIRECT(CONCATENATE($B105,"!G122"))),"",INDIRECT(CONCATENATE($B105,"!G122"))) -> 99.75596971 | Y105: =IF(ISERROR(INDIRECT(CONCATENATE($B105,"!G129"))),"",INDIRECT(CONCATENATE($B105,"!G129"))) -> N/A | AB105: =IF(ISERROR(INDIRECT(CONCATENATE($B105,"!G2127"))),"",INDIRECT(CONCATENATE($B105,"!G127"))) -> 0.1112571977
B106: DHS08 | C106: 2008 | D106: 55.22668011 | E106: 64.84718647 | H106: 33.62900344 | I106: 84.47068918 | J106: 66.10497506 | M106: 10.48166651 | N106: 94.09875288 | O106: 75.83375458 | R106: 3.652436019 | S106: 98.04723535 | T106: 85.54122773 | W106: 0.8325750166 | X106: 99.72628554 | Y106: 94.09324754 | AB106: 0.02514650979
B107: DHS13 | C107: 2013 | D107: 68.11328165 | E107: 65.56588278 | H107: 22.36704558 | I107: 88.58225597 | J107: 67.99183931 | M107: 7.031090242 | N107: 94.94208717 | O107: 74.42972546 | R107: 1.973928053 | S107: 98.10396353 | T107: 84.87124989 | W107: 0.1866404064 | X107: 99.55628043 | Y107: 93.43095702 | AB107: 0
B108: DHS17 | C108: 2017 | D108: 73.4454627 | E108: 72.91627851 | H108: 16.82549359 | I108: 91.40825977 | J108: 75.28773798 | M108: 4.204332426 | N108: 97.24956768 | O108: 79.55297591 | R108: 1.447963278 | S108: 99.22412331 | T108: 91.16123869 | W108: 0.1689543652 | X108: 99.93988262 | Y108: 97.55609056 | AB108: 0
B118: =CONCATENATE("National use of sanitation facilities, ",C99,"–",C100) -> National use of sanitation facilities, 2000–2020 | S118: Data points used for regression
A197: URBAN | D197: Poorest | I197: Poor | N197: Middle | S197: Rich | X197: Richest
D198: Improved | E198: Basic | F198: Limited | G198: Unimproved | H198: Open defecation | I198: Improved | J198: Basic | K198: Limited | L198: Unimproved | M198: Open defecation | N198: Improved | O198: Basic | P198: Limited | Q198: Unimproved | R198: Open defecation | S198: Improved | T198: Basic | U198: Limited | V198: Unimproved | W198: Open defecation | X198: Improved | Y198: Basic | Z198: Limited | AA198: Unimproved | AB198: Open defecation
A199: Forecast period: | C199: 2000 | D199: =IF((D201+H201)>100,D201*100/(D201+H201),D201) -> 73.53381286 | E199: =D199*AVERAGEIF(E205:E216,">0")/100 -> 44.77964182 | F199: =D199*(100-AVERAGEIF(E205:E216,">0"))/100 -> 28.75417104 | G199: =100-(E199+F199+H199) -> 8.295488026 | H199: =IF((D201+H201)>100,H201*100/(D201+H201),H201) -> 18.17069911 | I199: =IF((I201+M201)>100,I201*100/(I201+M201),I201) -> 95.38088837 | J199: =I199*AVERAGEIF(J205:J216,">0")/100 -> 67.22127043 | K199: =I199*(100-AVERAGEIF(J205:J216,">0"))/100 -> 28.15961795 | L199: =100-(J199+K199+M199) -> 1.845890691 | M199: =IF((I201+M201)>100,M201*100/(I201+M201),M201) -> 2.773220936 | N199: =IF((N201+R201)>100,N201*100/(N201+R201),N201) -> 98.81649155 | O199: =N199*AVERAGEIF(O205:O216,">0")/100 -> 82.19680842 | P199: =N199*(100-AVERAGEIF(O205:O216,">0"))/100 -> 16.61968314 | Q199: =100-(O199+P199+R199) -> 0.7056699793 | R199: =IF((N201+R201)>100,R201*100/(N201+R201),R201) -> 0.4778384665 | S199: =IF((S201+W201)>100,S201*100/(S201+W201),S201) -> 99.63563975 | T199: =S199*AVERAGEIF(T205:T216,">0")/100 -> 89.60640693 | U199: =S199*(100-AVERAGEIF(T205:T216,">0"))/100 -> 10.02923282 | V199: =100-(T199+U199+W199) -> 0.3048227443 | W199: =IF((S201+W201)>100,W201*100/(S201+W201),W201) -> 0.05953750343 | X199: =IF((X201+AB201)>100,X201*100/(X201+AB201),X201) -> 99.85754769 | Y199: =X199*AVERAGEIF(Y205:Y216,">0")/100 -> 96.09435512 | Z199: =X199*(100-AVERAGEIF(Y205:Y216,">0"))/100 -> 3.763192566 | AA199: =100-(Y199+Z199+AB199) -> 0.1424523105 | AB199: =IF((X201+AB201)>100,AB201*100/(X201+AB201),AB201) -> 0
C200: 2020 | D200: =IF((D202+H202)>100,D202*100/(D202+H202),D202) -> 83.31860544 | E200: =D200*AVERAGEIF(E205:E216,">0")/100 -> 50.73825446 | F200: =D200*(100-AVERAGEIF(E205:E216,">0"))/100 -> 32.58035098 | G200: =100-(E200+F200+H200) -> 5.71917087 | H200: =IF((D202+H202)>100,H202*100/(D202+H202),H202) -> 10.96222369 | I200: =IF((I202+M202)>100,I202*100/(I202+M202),I202) -> 94.38800124 | J200: =I200*AVERAGEIF(J205:J216,">0")/100 -> 66.52151667 | K200: =I200*(100-AVERAGEIF(J205:J216,">0"))/100 -> 27.86648456 | L200: =100-(J200+K200+M200) -> 3.468049274 | M200: =IF((I202+M202)>100,M202*100/(I202+M202),M202) -> 2.143949491 | N200: =IF((N202+R202)>100,N202*100/(N202+R202),N202) -> 97.89975913 | O200: =N200*AVERAGEIF(O205:O216,">0")/100 -> 81.43425879 | P200: =N200*(100-AVERAGEIF(O205:O216,">0"))/100 -> 16.46550035 | Q200: =100-(O200+P200+R200) -> 1.729011218 | R200: =IF((N202+R202)>100,R202*100/(N202+R202),R202) -> 0.3712296474 | S200: =IF((S202+W202)>100,S202*100/(S202+W202),S202) -> 99.13950429 | T200: =S200*AVERAGEIF(T205:T216,">0")/100 -> 89.16021201 | U200: =S200*(100-AVERAGEIF(T205:T216,">0"))/100 -> 9.979292281 | V200: =100-(T200+U200+W200) -> 0.8071129375 | W200: =IF((S202+W202)>100,W202*100/(S202+W202),W202) -> 0.05338276793 | X200: =IF((X202+AB202)>100,X202*100/(X202+AB202),X202) -> 99.75378766 | Y200: =X200*AVERAGEIF(Y205:Y216,">0")/100 -> 95.99450535 | Z200: =X200*(100-AVERAGEIF(Y205:Y216,">0"))/100 -> 3.759282306 | AA200: =100-(Y200+Z200+AB200) -> 0.2462123422 | AB200: =IF((X202+AB202)>100,AB202*100/(X202+AB202),AB202) -> 0
A201: Regression period: | C201: =MinRegYear(C199,C205:C216) -> 2001 | D201: =IF(MAX(C205:C216)-MIN(C205:C216)<5,AVERAGEIF(C205:C216,">0",D205:D216), IF(FORECAST($C201,D$205:D$216,$C$205:$C$216)<0,0, IF(FORECAST($C201,D$205:D$216,$C$205:$C$216)>100,100, FORECAST($C201,D$205:D$216,$C$205:$C$216)))) -> 73.53381286 | H201: =IF(MAX(C205:C216)-MIN(C205:C216)<5,AVERAGEIF(C205:C216,">0",H205:H216), IF(FORECAST($C201,H$205:H$216,$C$205:$C$216)<0,0, IF(FORECAST($C201,H$205:H$216,$C$205:$C$216)>100,100, FORECAST($C201,H$205:H$216,$C$205:$C$216)))) -> 18.17069911 | I201: =IF(MAX(C205:C216)-MIN(C205:C216)<5,AVERAGEIF(C205:C216,">0",I205:I216), IF(FORECAST($C201,I$205:I$216,$C$205:$C$216)<0,0, IF(FORECAST($C201,I$205:I$216,$C$205:$C$216)>100,100, FORECAST($C201,I$205:I$216,$C$205:$C$216)))) -> 95.38088837 | M201: =IF(MAX(C205:C216)-MIN(C205:C216)<5,AVERAGEIF(C205:C216,">0",M205:M216), IF(FORECAST($C201,M$205:M$216,$C$205:$C$216)<0,0, IF(FORECAST($C201,M$205:M$216,$C$205:$C$216)>100,100, FORECAST($C201,M$205:M$216,$C$205:$C$216)))) -> 2.773220936 | N201: =IF(MAX(C205:C216)-MIN(C205:C216)<5,AVERAGEIF(C205:C216,">0",N205:N216), IF(FORECAST($C201,N$205:N$216,$C$205:$C$216)<0,0, IF(FORECAST($C201,N$205:N$216,$C$205:$C$216)>100,100, FORECAST($C201,N$205:N$216,$C$205:$C$216)))) -> 98.81649155 | R201: =IF(MAX(C205:C216)-MIN(C205:C216)<5,AVERAGEIF(C205:C216,">0",R205:R216), IF(FORECAST($C201,R$205:R$216,$C$205:$C$216)<0,0, IF(FORECAST($C201,R$205:R$216,$C$205:$C$216)>100,100, FORECAST($C201,R$205:R$216,$C$205:$C$216)))) -> 0.4778384665 | S201: =IF(MAX(C205:C216)-MIN(C205:C216)<5,AVERAGEIF(C205:C216,">0",S205:S216), IF(FORECAST($C201,S$205:S$216,$C$205:$C$216)<0,0, IF(FORECAST($C201,S$205:S$216,$C$205:$C$216)>100,100, FORECAST($C201,S$205:S$216,$C$205:$C$216)))) -> 99.63563975 | W201: =IF(MAX(C205:C216)-MIN(C205:C216)<5,AVERAGEIF(C205:C216,">0",W205:W216), IF(FORECAST($C201,W$205:W$216,$C$205:$C$216)<0,0, IF(FORECAST($C201,W$205:W$216,$C$205:$C$216)>100,100, FORECAST($C201,W$205:W$216,$C$205:$C$216)))) -> 0.05953750343 | X201: =IF(MAX(C205:C216)-MIN(C205:C216)<5,AVERAGEIF(C205:C216,">0",X205:X216), IF(FORECAST($C201,X$205:X$216,$C$205:$C$216)<0,0, IF(FORECAST($C201,X$205:X$216,$C$205:$C$216)>100,100, FORECAST($C201,X$205:X$216,$C$205:$C$216)))) -> 99.85754769 | AB201: =IF(MAX(C205:C216)-MIN(C205:C216)<5,AVERAGEIF(C205:C216,">0",AB205:AB216), IF(FORECAST($C201,AB$205:AB$216,$C$205:$C$216)<0,0, IF(FORECAST($C201,AB$205:AB$216,$C$205:$C$216)>100,100, FORECAST($C201,AB$205:AB$216,$C$205:$C$216)))) -> 0
C202: =MaxRegYear(C200,C205:C216) -> 2019 | D202: =IF(MAX(C205:C216)-MIN(C205:C216)<5,AVERAGEIF(C205:C216,">0",D205:D216), IF(FORECAST($C202,D$205:D$216,$C$205:$C$216)<0,0, IF(FORECAST($C202,D$205:D$216,$C$205:$C$216)>100,100, FORECAST($C202,D$205:D$216,$C$205:$C$216)))) -> 83.31860544 | H202: =IF(MAX(C205:C216)-MIN(C205:C216)<5,AVERAGEIF(C205:C216,">0",H205:H216), IF(FORECAST($C202,H$205:H$216,$C$205:$C$216)<0,0, IF(FORECAST($C202,H$205:H$216,$C$205:$C$216)>100,100, FORECAST($C202,H$205:H$216,$C$205:$C$216)))) -> 10.96222369 | I202: =IF(MAX(C205:C216)-MIN(C205:C216)<5,AVERAGEIF(C205:C216,">0",I205:I216), IF(FORECAST($C202,I$205:I$216,$C$205:$C$216)<0,0, IF(FORECAST($C202,I$205:I$216,$C$205:$C$216)>100,100, FORECAST($C202,I$205:I$216,$C$205:$C$216)))) -> 94.38800124 | M202: =IF(MAX(C205:C216)-MIN(C205:C216)<5,AVERAGEIF(C205:C216,">0",M205:M216), IF(FORECAST($C202,M$205:M$216,$C$205:$C$216)<0,0, IF(FORECAST($C202,M$205:M$216,$C$205:$C$216)>100,100, FORECAST($C202,M$205:M$216,$C$205:$C$216)))) -> 2.143949491 | N202: =IF(MAX(C205:C216)-MIN(C205:C216)<5,AVERAGEIF(C205:C216,">0",N205:N216), IF(FORECAST($C202,N$205:N$216,$C$205:$C$216)<0,0, IF(FORECAST($C202,N$205:N$216,$C$205:$C$216)>100,100, FORECAST($C202,N$205:N$216,$C$205:$C$216)))) -> 97.89975913 | R202: =IF(MAX(C205:C216)-MIN(C205:C216)<5,AVERAGEIF(C205:C216,">0",R205:R216), IF(FORECAST($C202,R$205:R$216,$C$205:$C$216)<0,0, IF(FORECAST($C202,R$205:R$216,$C$205:$C$216)>100,100, FORECAST($C202,R$205:R$216,$C$205:$C$216)))) -> 0.3712296474 | S202: =IF(MAX(C205:C216)-MIN(C205:C216)<5,AVERAGEIF(C205:C216,">0",S205:S216), IF(FORECAST($C202,S$205:S$216,$C$205:$C$216)<0,0, IF(FORECAST($C202,S$205:S$216,$C$205:$C$216)>100,100, FORECAST($C202,S$205:S$216,$C$205:$C$216)))) -> 99.13950429 | W202: =IF(MAX(C205:C216)-MIN(C205:C216)<5,AVERAGEIF(C205:C216,">0",W205:W216), IF(FORECAST($C202,W$205:W$216,$C$205:$C$216)<0,0, IF(FORECAST($C202,W$205:W$216,$C$205:$C$216)>100,100, FORECAST($C202,W$205:W$216,$C$205:$C$216)))) -> 0.05338276793 | X202: =IF(MAX(C205:C216)-MIN(C205:C216)<5,AVERAGEIF(C205:C216,">0",X205:X216), IF(FORECAST($C202,X$205:X$216,$C$205:$C$216)<0,0, IF(FORECAST($C202,X$205:X$216,$C$205:$C$216)>100,100, FORECAST($C202,X$205:X$216,$C$205:$C$216)))) -> 99.75378766 | AB202: =IF(MAX(C205:C216)-MIN(C205:C216)<5,AVERAGEIF(C205:C216,">0",AB205:AB216), IF(FORECAST($C202,AB$205:AB$216,$C$205:$C$216)<0,0, IF(FORECAST($C202,AB$205:AB$216,$C$205:$C$216)>100,100, FORECAST($C202,AB$205:AB$216,$C$205:$C$216)))) -> 0
B204: Survey | C204: Year | D204: Improved | E204: Not shared | H204: Open defecation | I204: Improved | J204: Not shared | M204: Open defecation | N204: Improved | O204: Not shared | R204: Open defecation | S204: Improved | T204: Not shared | W204: Open defecation | X204: Improved | Y204: Not shared | AB204: Open defecation
B205: DHS03 | C205: 2003 | D205: =IF(ISERROR(INDIRECT(CONCATENATE($B205,"!H122"))),"",INDIRECT(CONCATENATE($B205,"!H122"))) -> 73.86948834 | E205: =IF(ISERROR(INDIRECT(CONCATENATE($B205,"!H129"))),"",INDIRECT(CONCATENATE($B205,"!H129"))) -> N/A | H205: =IF(ISERROR(INDIRECT(CONCATENATE($B205,"!H127"))),"",INDIRECT(CONCATENATE($B205,"!H127"))) -> 17.57138531 | I205: =IF(ISERROR(INDIRECT(CONCATENATE($B205,"!I122"))),"",INDIRECT(CONCATENATE($B205,"!I122"))) -> 96.21327282 | J205: =IF(ISERROR(INDIRECT(CONCATENATE($B205,"!I129"))),"",INDIRECT(CONCATENATE($B205,"!I129"))) -> N/A | M205: =IF(ISERROR(INDIRECT(CONCATENATE($B205,"!I127"))),"",INDIRECT(CONCATENATE($B205,"!I127"))) -> 2.223336186 | N205: =IF(ISERROR(INDIRECT(CONCATENATE($B205,"!J122"))),"",INDIRECT(CONCATENATE($B205,"!J122"))) -> 99.21158105 | O205: =IF(ISERROR(INDIRECT(CONCATENATE($B205,"!J129"))),"",INDIRECT(CONCATENATE($B205,"!J129"))) -> N/A | R205: =IF(ISERROR(INDIRECT(CONCATENATE($B205,"!J127"))),"",INDIRECT(CONCATENATE($B205,"!J127"))) -> 0.2078024857 | S205: =IF(ISERROR(INDIRECT(CONCATENATE($B205,"!K122"))),"",INDIRECT(CONCATENATE($B205,"!K122"))) -> 99.98095016 | T205: =IF(ISERROR(INDIRECT(CONCATENATE($B205,"!K129"))),"",INDIRECT(CONCATENATE($B205,"!K129"))) -> N/A | W205: =IF(ISERROR(INDIRECT(CONCATENATE($B205,"!K127"))),"",INDIRECT(CONCATENATE($B205,"!K127"))) -> 0.01904984253 | X205: =IF(ISERROR(INDIRECT(CONCATENATE($B205,"!L122"))),"",INDIRECT(CONCATENATE($B205,"!L122"))) -> 99.84849046 | Y205: =IF(ISERROR(INDIRECT(CONCATENATE($B205,"!L129"))),"",INDIRECT(CONCATENATE($B205,"!L129"))) -> N/A | AB205: =IF(ISERROR(INDIRECT(CONCATENATE($B205,"!L2127"))),"",INDIRECT(CONCATENATE($B205,"!L127"))) -> 0
B206: DHS08 | C206: 2008 | D206: 77.9538256 | E206: 60.37155893 | H206: 15.29755217 | I206: 94.04305506 | J206: 72.00219495 | M206: 3.302795641 | N206: 98.22056573 | O206: 83.27618707 | R206: 0.8943880471 | S206: 98.93621788 | T206: 90.02301643 | W206: 0.1436985069 | X206: 100 | Y206: 95.93379259 | AB206: 0
B207: DHS13 | C207: 2013 | D207: 81.30400569 | E207: 58.44391586 | H207: 12.81651576 | I207: 93.56084397 | J207: 68.61532379 | M207: 2.291430992 | N207: 97.00470857 | O207: 80.86720888 | R207: 0.2799135947 | S207: 99.04293549 | T207: 86.54140379 | W207: 0 | X207: 99.36841579 | Y207: 94.65127699 | AB207: 0
B208: DHS17 | C208: 2017 | D208: 81.12111656 | E208: 63.87452895 | H208: 12.17992151 | I208: 95.66544696 | J208: 70.8124802 | M208: 1.981818511 | N208: 98.94471645 | O208: 85.40040122 | R208: 0.3101093879 | S208: 99.56262149 | T208: 93.2378528 | W208: 0.06275026356 | X208: 100 | Y208: 98.10924751 | AB208: 0
B218: =CONCATENATE("Urban use of sanitation facilities, ",C199,"–",C200) -> Urban use of sanitation facilities, 2000–2020 | S218: Data points used for regression
A297: RURAL | D297: Poorest | I297: Poor | N297: Middle | S297: Rich | X297: Richest
D298: Improved | E298: Basic | F298: Limited | G298: Unimproved | H298: Open defecation | I298: Improved | J298: Basic | K298: Limited | L298: Unimproved | M298: Open defecation | N298: Improved | O298: Basic | P298: Limited | Q298: Unimproved | R298: Open defecation | S298: Improved | T298: Basic | U298: Limited | V298: Unimproved | W298: Open defecation | X298: Improved | Y298: Basic | Z298: Limited | AA298: Unimproved | AB298: Open defecation
A299: Forecast period: | C299: 2000 | D299: =IF((D301+H301)>100,D301*100/(D301+H301),D301) -> 39.35855715 | E299: =D299*AVERAGEIF(E305:E316,">0")/100 -> 27.27491646 | F299: =D299*(100-AVERAGEIF(E305:E316,">0"))/100 -> 12.08364069 | G299: =100-(E299+F299+H299) -> 18.43983301 | H299: =IF((D301+H301)>100,H301*100/(D301+H301),H301) -> 42.20160984 | I299: =IF((I301+M301)>100,I301*100/(I301+M301),I301) -> 54.1845699 | J299: =I299*AVERAGEIF(J305:J316,">0")/100 -> 38.00407197 | K299: =I299*(100-AVERAGEIF(J305:J316,">0"))/100 -> 16.18049793 | L299: =100-(J299+K299+M299) -> 17.51720298 | M299: =IF((I301+M301)>100,M301*100/(I301+M301),M301) -> 28.29822712 | N299: =IF((N301+R301)>100,N301*100/(N301+R301),N301) -> 78.08047401 | O299: =N299*AVERAGEIF(O305:O316,">0")/100 -> 59.0139553 | P299: =N299*(100-AVERAGEIF(O305:O316,">0"))/100 -> 19.0665187 | Q299: =100-(O299+P299+R299) -> 8.108272305 | R299: =IF((N301+R301)>100,R301*100/(N301+R301),R301) -> 13.81125369 | S299: =IF((S301+W301)>100,S301*100/(S301+W301),S301) -> 91.11914623 | T299: =S299*AVERAGEIF(T305:T316,">0")/100 -> 76.28298228 | U299: =S299*(100-AVERAGEIF(T305:T316,">0"))/100 -> 14.83616395 | V299: =100-(T299+U299+W299) -> 3.798783823 | W299: =IF((S301+W301)>100,W301*100/(S301+W301),W301) -> 5.082069949 | X299: =IF((X301+AB301)>100,X301*100/(X301+AB301),X301) -> 97.91428943 | Y299: =X299*AVERAGEIF(Y305:Y316,">0")/100 -> 91.0181637 | Z299: =X299*(100-AVERAGEIF(Y305:Y316,">0"))/100 -> 6.89612573 | AA299: =100-(Y299+Z299+AB299) -> 0.9656419455 | AB299: =IF((X301+AB301)>100,AB301*100/(X301+AB301),AB301) -> 1.120068624
C300: 2020 | D300: =IF((D302+H302)>100,D302*100/(D302+H302),D302) -> 71.52460003 | E300: =D300*AVERAGEIF(E305:E316,">0")/100 -> 49.56552353 | F300: =D300*(100-AVERAGEIF(E305:E316,">0"))/100 -> 21.95907649 | G300: =100-(E300+F300+H300) -> 8.651897588 | H300: =IF((D302+H302)>100,H302*100/(D302+H302),H302) -> 19.82350239 | I300: =IF((I302+M302)>100,I302*100/(I302+M302),I302) -> 92.00560071 | J300: =I300*AVERAGEIF(J305:J316,">0")/100 -> 64.5310552 | K300: =I300*(100-AVERAGEIF(J305:J316,">0"))/100 -> 27.47454551 | L300: =100-(J300+K300+M300) -> 2.610898905 | M300: =IF((I302+M302)>100,M302*100/(I302+M302),M302) -> 5.383500388 | N300: =IF((N302+R302)>100,N302*100/(N302+R302),N302) -> 97.27604752 | O300: =N300*AVERAGEIF(O305:O316,">0")/100 -> 73.52214998 | P300: =N300*(100-AVERAGEIF(O305:O316,">0"))/100 -> 23.75389754 | Q300: =100-(O300+P300+R300) -> 1.753577726 | R300: =IF((N302+R302)>100,R302*100/(N302+R302),R302) -> 0.9703747562 | S300: =IF((S302+W302)>100,S302*100/(S302+W302),S302) -> 99.7405214 | T300: =S300*AVERAGEIF(T305:T316,">0")/100 -> 83.50061147 | U300: =S300*(100-AVERAGEIF(T305:T316,">0"))/100 -> 16.23990993 | V300: =100-(T300+U300+W300) -> 0.2594786036 | W300: =IF((S302+W302)>100,W302*100/(S302+W302),W302) -> 0 | X300: =IF((X302+AB302)>100,X302*100/(X302+AB302),X302) -> 100 | Y300: =X300*AVERAGEIF(Y305:Y316,">0")/100 -> 92.9569772 | Z300: =X300*(100-AVERAGEIF(Y305:Y316,">0"))/100 -> 7.043022801 | AA300: =100-(Y300+Z300+AB300) -> 0 | AB300: =IF((X302+AB302)>100,AB302*100/(X302+AB302),AB302) -> 0
A301: Regression period: | C301: =MinRegYear(C299,C305:C316) -> 2001 | D301: =IF(MAX(C305:C316)-MIN(C305:C316)<5,AVERAGEIF(C305:C316,">0",D305:D316), IF(FORECAST($C301,D$305:D$316,$C$305:$C$316)<0,0, IF(FORECAST($C301,D$305:D$316,$C$305:$C$316)>100,100, FORECAST($C301,D$305:D$316,$C$305:$C$316)))) -> 39.35855715 | H301: =IF(MAX(C305:C316)-MIN(C305:C316)<5,AVERAGEIF(C305:C316,">0",H305:H316), IF(FORECAST($C301,H$305:H$316,$C$305:$C$316)<0,0, IF(FORECAST($C301,H$305:H$316,$C$305:$C$316)>100,100, FORECAST($C301,H$305:H$316,$C$305:$C$316)))) -> 42.20160984 | I301: =IF(MAX(C305:C316)-MIN(C305:C316)<5,AVERAGEIF(C305:C316,">0",I305:I316), IF(FORECAST($C301,I$305:I$316,$C$305:$C$316)<0,0, IF(FORECAST($C301,I$305:I$316,$C$305:$C$316)>100,100, FORECAST($C301,I$305:I$316,$C$305:$C$316)))) -> 54.1845699 | M301: =IF(MAX(C305:C316)-MIN(C305:C316)<5,AVERAGEIF(C305:C316,">0",M305:M316), IF(FORECAST($C301,M$305:M$316,$C$305:$C$316)<0,0, IF(FORECAST($C301,M$305:M$316,$C$305:$C$316)>100,100, FORECAST($C301,M$305:M$316,$C$305:$C$316)))) -> 28.29822712 | N301: =IF(MAX(C305:C316)-MIN(C305:C316)<5,AVERAGEIF(C305:C316,">0",N305:N316), IF(FORECAST($C301,N$305:N$316,$C$305:$C$316)<0,0, IF(FORECAST($C301,N$305:N$316,$C$305:$C$316)>100,100, FORECAST($C301,N$305:N$316,$C$305:$C$316)))) -> 78.08047401 | R301: =IF(MAX(C305:C316)-MIN(C305:C316)<5,AVERAGEIF(C305:C316,">0",R305:R316), IF(FORECAST($C301,R$305:R$316,$C$305:$C$316)<0,0, IF(FORECAST($C301,R$305:R$316,$C$305:$C$316)>100,100, FORECAST($C301,R$305:R$316,$C$305:$C$316)))) -> 13.81125369 | S301: =IF(MAX(C305:C316)-MIN(C305:C316)<5,AVERAGEIF(C305:C316,">0",S305:S316), IF(FORECAST($C301,S$305:S$316,$C$305:$C$316)<0,0, IF(FORECAST($C301,S$305:S$316,$C$305:$C$316)>100,100, FORECAST($C301,S$305:S$316,$C$305:$C$316)))) -> 91.11914623 | W301: =IF(MAX(C305:C316)-MIN(C305:C316)<5,AVERAGEIF(C305:C316,">0",W305:W316), IF(FORECAST($C301,W$305:W$316,$C$305:$C$316)<0,0, IF(FORECAST($C301,W$305:W$316,$C$305:$C$316)>100,100, FORECAST($C301,W$305:W$316,$C$305:$C$316)))) -> 5.082069949 | X301: =IF(MAX(C305:C316)-MIN(C305:C316)<5,AVERAGEIF(C305:C316,">0",X305:X316), IF(FORECAST($C301,X$305:X$316,$C$305:$C$316)<0,0, IF(FORECAST($C301,X$305:X$316,$C$305:$C$316)>100,100, FORECAST($C301,X$305:X$316,$C$305:$C$316)))) -> 97.91428943 | AB301: =IF(MAX(C305:C316)-MIN(C305:C316)<5,AVERAGEIF(C305:C316,">0",AB305:AB316), IF(FORECAST($C301,AB$305:AB$316,$C$305:$C$316)<0,0, IF(FORECAST($C301,AB$305:AB$316,$C$305:$C$316)>100,100, FORECAST($C301,AB$305:AB$316,$C$305:$C$316)))) -> 1.120068624
C302: =MaxRegYear(C300,C305:C316) -> 2019 | D302: =IF(MAX(C305:C316)-MIN(C305:C316)<5,AVERAGEIF(C305:C316,">0",D305:D316), IF(FORECAST($C302,D$305:D$316,$C$305:$C$316)<0,0, IF(FORECAST($C302,D$305:D$316,$C$305:$C$316)>100,100, FORECAST($C302,D$305:D$316,$C$305:$C$316)))) -> 71.52460003 | H302: =IF(MAX(C305:C316)-MIN(C305:C316)<5,AVERAGEIF(C305:C316,">0",H305:H316), IF(FORECAST($C302,H$305:H$316,$C$305:$C$316)<0,0, IF(FORECAST($C302,H$305:H$316,$C$305:$C$316)>100,100, FORECAST($C302,H$305:H$316,$C$305:$C$316)))) -> 19.82350239 | I302: =IF(MAX(C305:C316)-MIN(C305:C316)<5,AVERAGEIF(C305:C316,">0",I305:I316), IF(FORECAST($C302,I$305:I$316,$C$305:$C$316)<0,0, IF(FORECAST($C302,I$305:I$316,$C$305:$C$316)>100,100, FORECAST($C302,I$305:I$316,$C$305:$C$316)))) -> 92.00560071 | M302: =IF(MAX(C305:C316)-MIN(C305:C316)<5,AVERAGEIF(C305:C316,">0",M305:M316), IF(FORECAST($C302,M$305:M$316,$C$305:$C$316)<0,0, IF(FORECAST($C302,M$305:M$316,$C$305:$C$316)>100,100, FORECAST($C302,M$305:M$316,$C$305:$C$316)))) -> 5.383500388 | N302: =IF(MAX(C305:C316)-MIN(C305:C316)<5,AVERAGEIF(C305:C316,">0",N305:N316), IF(FORECAST($C302,N$305:N$316,$C$305:$C$316)<0,0, IF(FORECAST($C302,N$305:N$316,$C$305:$C$316)>100,100, FORECAST($C302,N$305:N$316,$C$305:$C$316)))) -> 97.27604752 | R302: =IF(MAX(C305:C316)-MIN(C305:C316)<5,AVERAGEIF(C305:C316,">0",R305:R316), IF(FORECAST($C302,R$305:R$316,$C$305:$C$316)<0,0, IF(FORECAST($C302,R$305:R$316,$C$305:$C$316)>100,100, FORECAST($C302,R$305:R$316,$C$305:$C$316)))) -> 0.9703747562 | S302: =IF(MAX(C305:C316)-MIN(C305:C316)<5,AVERAGEIF(C305:C316,">0",S305:S316), IF(FORECAST($C302,S$305:S$316,$C$305:$C$316)<0,0, IF(FORECAST($C302,S$305:S$316,$C$305:$C$316)>100,100, FORECAST($C302,S$305:S$316,$C$305:$C$316)))) -> 99.7405214 | W302: =IF(MAX(C305:C316)-MIN(C305:C316)<5,AVERAGEIF(C305:C316,">0",W305:W316), IF(FORECAST($C302,W$305:W$316,$C$305:$C$316)<0,0, IF(FORECAST($C302,W$305:W$316,$C$305:$C$316)>100,100, FORECAST($C302,W$305:W$316,$C$305:$C$316)))) -> 0 | X302: =IF(MAX(C305:C316)-MIN(C305:C316)<5,AVERAGEIF(C305:C316,">0",X305:X316), IF(FORECAST($C302,X$305:X$316,$C$305:$C$316)<0,0, IF(FORECAST($C302,X$305:X$316,$C$305:$C$316)>100,100, FORECAST($C302,X$305:X$316,$C$305:$C$316)))) -> 100 | AB302: =IF(MAX(C305:C316)-MIN(C305:C316)<5,AVERAGEIF(C305:C316,">0",AB305:AB316), IF(FORECAST($C302,AB$305:AB$316,$C$305:$C$316)<0,0, IF(FORECAST($C302,AB$305:AB$316,$C$305:$C$316)>100,100, FORECAST($C302,AB$305:AB$316,$C$305:$C$316)))) -> 0
B304: Survey | C304: Year | D304: Improved | E304: Not shared | H304: Open defecation | I304: Improved | J304: Not shared | M304: Open defecation | N304: Improved | O304: Not shared | R304: Open defecation | S304: Improved | T304: Not shared | W304: Open defecation | X304: Improved | Y304: Not shared | AB304: Open defecation
B305: DHS03 | C305: 2003 | D305: =IF(ISERROR(INDIRECT(CONCATENATE($B305,"!M122"))),"",INDIRECT(CONCATENATE($B305,"!M122"))) -> 46.52945899 | E305: =IF(ISERROR(INDIRECT(CONCATENATE($B305,"!M129"))),"",INDIRECT(CONCATENATE($B305,"!M129"))) -> N/A | H305: =IF(ISERROR(INDIRECT(CONCATENATE($B305,"!M127"))),"",INDIRECT(CONCATENATE($B305,"!M127"))) -> 34.2217465 | I305: =IF(ISERROR(INDIRECT(CONCATENATE($B305,"!N122"))),"",INDIRECT(CONCATENATE($B305,"!N122"))) -> 57.62747975 | J305: =IF(ISERROR(INDIRECT(CONCATENATE($B305,"!N129"))),"",INDIRECT(CONCATENATE($B305,"!N129"))) -> N/A | M305: =IF(ISERROR(INDIRECT(CONCATENATE($B305,"!N127"))),"",INDIRECT(CONCATENATE($B305,"!N127"))) -> 24.37151 | N305: =IF(ISERROR(INDIRECT(CONCATENATE($B305,"!O122"))),"",INDIRECT(CONCATENATE($B305,"!O122"))) -> 80.23816469 | O305: =IF(ISERROR(INDIRECT(CONCATENATE($B305,"!O129"))),"",INDIRECT(CONCATENATE($B305,"!O129"))) -> N/A | R305: =IF(ISERROR(INDIRECT(CONCATENATE($B305,"!O127"))),"",INDIRECT(CONCATENATE($B305,"!O127"))) -> 11.75562541 | S305: =IF(ISERROR(INDIRECT(CONCATENATE($B305,"!P122"))),"",INDIRECT(CONCATENATE($B305,"!P122"))) -> 92.25154598 | T305: =IF(ISERROR(INDIRECT(CONCATENATE($B305,"!P129"))),"",INDIRECT(CONCATENATE($B305,"!P129"))) -> N/A | W305: =IF(ISERROR(INDIRECT(CONCATENATE($B305,"!P127"))),"",INDIRECT(CONCATENATE($B305,"!P127"))) -> 4.220252604 | X305: =IF(ISERROR(INDIRECT(CONCATENATE($B305,"!Q122"))),"",INDIRECT(CONCATENATE($B305,"!Q122"))) -> 98.15594017 | Y305: =IF(ISERROR(INDIRECT(CONCATENATE($B305,"!Q129"))),"",INDIRECT(CONCATENATE($B305,"!Q129"))) -> N/A | AB305: =IF(ISERROR(INDIRECT(CONCATENATE($B305,"!Q2127"))),"",INDIRECT(CONCATENATE($B305,"!Q127"))) -> 1.03067066
B306: DHS08 | C306: 2008 | D306: 45.73420796 | E306: 66.01671735 | H306: 41.85989747 | I306: 69.90349849 | J306: 65.80586411 | M306: 21.53558219 | N306: 85.28825568 | O306: 69.46912083 | R306: 10.12754653 | S306: 94.12657251 | T306: 80.34768447 | W306: 3.705142354 | X306: 98.70253689 | Y306: 89.82777615 | AB306: 0.5459249788
B307: DHS13 | C307: 2013 | D307: 62.01351915 | E307: 68.52107096 | H307: 27.6978047 | I307: 79.7823972 | J307: 67.80644187 | M307: 13.01953514 | N307: 91.36916893 | O307: 74.08416584 | R307: 4.504263612 | S307: 97.03308167 | T307: 81.19674301 | W307: 1.238149068 | X307: 99.75661181 | Y307: 92.30585889 | AB307: 0
B308: DHS17 | C308: 2017 | D308: 69.27613063 | E308: 73.35791547 | H308: 19.02754759 | I308: 87.16813413 | J308: 76.80223846 | M308: 7.163787317 | N308: 94.88387449 | O308: 83.18952985 | R308: 2.462439177 | S308: 98.78710037 | T308: 89.60909657 | W308: 0.5615806327 | X308: 99.79260985 | Y308: 96.73729655 | AB308: 0.002469248612
B318: =CONCATENATE("Rural use of sanitation facilities, ",C299,"–",C300) -> Rural use of sanitation facilities, 2000–2020 | S318: Data points used for regression

Sheet Hygiene
B4: Access to hygiene facilities by wealth quintile (%)
B5: =IF(ISERROR(INDIRECT(CONCATENATE($E$32,"!A2"))),"",INDIRECT(CONCATENATE($E$32,"!A2"))) -> Philippines
B7: =CONCATENATE("National ",IF(ISERROR(INDIRECT(CONCATENATE($E$32,"!A2"))),"",INDIRECT(CONCATENATE($E$32,"!A210")))) -> National Access to hygiene facilities | K7: =CONCATENATE("Urban ",IF(ISERROR(INDIRECT(CONCATENATE($E$32,"!A2"))),"",INDIRECT(CONCATENATE($E$32,"!A210")))) -> Urban Access to hygiene facilities | S7: =CONCATENATE("Rural ",IF(ISERROR(INDIRECT(CONCATENATE($E$32,"!A2"))),"",INDIRECT(CONCATENATE($E$32,"!A210")))) -> Rural Access to hygiene facilities
E32: =INDEX(B88:B100,A88) -> DHS17 | G32: =IF(ISERROR(INDIRECT(CONCATENATE($E$32,"!A2"))),"",INDIRECT(CONCATENATE($E$32,"!A2"))) -> Philippines | K32: Poorest | N32: Poor | Q32: Middle | T32: Rich | W32: Richest
K33: Basic | L33: Limited | M33: No facility | N33: Basic | O33: Limited | P33: No facility | Q33: Basic | R33: Limited | S33: No facility | T33: Basic | U33: Limited | V33: No facility | W33: Basic | X33: Limited | Y33: No facility
B34: >>> Select Survey : | G34: NATIONAL | J34: =IF(ISERROR(INDIRECT(CONCATENATE(#REF!,"!A2"))),"",INDIRECT(CONCATENATE(#REF!,"!A210"))) ->  | K34: =IF(ISERROR(INDIRECT(CONCATENATE($E$32,"!C222"))),"",INDIRECT(CONCATENATE($E$32,"!C222"))) -> 69.66190175 | L34: =IF(ISERROR(INDIRECT(CONCATENATE($E$32,"!C223"))),"",INDIRECT(CONCATENATE($E$32,"!C223"))) -> 21.255176 | M34: =IF(ISERROR(INDIRECT(CONCATENATE($E$32,"!C224"))),"",INDIRECT(CONCATENATE($E$32,"!C224"))) -> 9.082922255 | N34: =IF(ISERROR(INDIRECT(CONCATENATE($E$32,"!D222"))),"",INDIRECT(CONCATENATE($E$32,"!D222"))) -> 81.48892755 | O34: =IF(ISERROR(INDIRECT(CONCATENATE($E$32,"!D223"))),"",INDIRECT(CONCATENATE($E$32,"!D223"))) -> 13.92345713 | P34: =IF(ISERROR(INDIRECT(CONCATENATE($E$32,"!D224"))),"",INDIRECT(CONCATENATE($E$32,"!D224"))) -> 4.587615319 | Q34: =IF(ISERROR(INDIRECT(CONCATENATE($E$32,"!E222"))),"",INDIRECT(CONCATENATE($E$32,"!E222"))) -> 88.08338287 | R34: =IF(ISERROR(INDIRECT(CONCATENATE($E$32,"!E223"))),"",INDIRECT(CONCATENATE($E$32,"!E223"))) -> 9.113045719 | S34: =IF(ISERROR(INDIRECT(CONCATENATE($E$32,"!E224"))),"",INDIRECT(CONCATENATE($E$32,"!E224"))) -> 2.803571408 | T34: =IF(ISERROR(INDIRECT(CONCATENATE($E$32,"!F222"))),"",INDIRECT(CONCATENATE($E$32,"!F222"))) -> 92.66877059 | U34: =IF(ISERROR(INDIRECT(CONCATENATE($E$32,"!F223"))),"",INDIRECT(CONCATENATE($E$32,"!F223"))) -> 4.857870663 | V34: =IF(ISERROR(INDIRECT(CONCATENATE($E$32,"!F224"))),"",INDIRECT(CONCATENATE($E$32,"!F224"))) -> 2.473358747 | W34: =IF(ISERROR(INDIRECT(CONCATENATE($E$32,"!G222"))),"",INDIRECT(CONCATENATE($E$32,"!G222"))) -> 94.2445613 | X34: =IF(ISERROR(INDIRECT(CONCATENATE($E$32,"!G223"))),"",INDIRECT(CONCATENATE($E$32,"!G223"))) -> 2.931714004 | Y34: =IF(ISERROR(INDIRECT(CONCATENATE($E$32,"!G224"))),"",INDIRECT(CONCATENATE($E$32,"!G224"))) -> 2.823724697
G37: URBAN | J37: =IF(ISERROR(INDIRECT(CONCATENATE(#REF!,"!A2"))),"",INDIRECT(CONCATENATE(#REF!,"!A210"))) ->  | K37: =IF(ISERROR(INDIRECT(CONCATENATE($E$32,"!H222"))),"",INDIRECT(CONCATENATE($E$32,"!H222"))) -> 76.31337476 | L37: =IF(ISERROR(INDIRECT(CONCATENATE($E$32,"!H223"))),"",INDIRECT(CONCATENATE($E$32,"!H223"))) -> 16.51967519 | M37: =IF(ISERROR(INDIRECT(CONCATENATE($E$32,"!H224"))),"",INDIRECT(CONCATENATE($E$32,"!H224"))) -> 7.16695005 | N37: =IF(ISERROR(INDIRECT(CONCATENATE($E$32,"!I222"))),"",INDIRECT(CONCATENATE($E$32,"!I222"))) -> 86.5101199 | O37: =IF(ISERROR(INDIRECT(CONCATENATE($E$32,"!I223"))),"",INDIRECT(CONCATENATE($E$32,"!I223"))) -> 11.23813388 | P37: =IF(ISERROR(INDIRECT(CONCATENATE($E$32,"!I224"))),"",INDIRECT(CONCATENATE($E$32,"!I224"))) -> 2.251746225 | Q37: =IF(ISERROR(INDIRECT(CONCATENATE($E$32,"!J222"))),"",INDIRECT(CONCATENATE($E$32,"!J222"))) -> 92.27806315 | R37: =IF(ISERROR(INDIRECT(CONCATENATE($E$32,"!J223"))),"",INDIRECT(CONCATENATE($E$32,"!J223"))) -> 6.229181226 | S37: =IF(ISERROR(INDIRECT(CONCATENATE($E$32,"!J224"))),"",INDIRECT(CONCATENATE($E$32,"!J224"))) -> 1.492755622 | T37: =IF(ISERROR(INDIRECT(CONCATENATE($E$32,"!K222"))),"",INDIRECT(CONCATENATE($E$32,"!K222"))) -> 94.13055286 | U37: =IF(ISERROR(INDIRECT(CONCATENATE($E$32,"!K223"))),"",INDIRECT(CONCATENATE($E$32,"!K223"))) -> 4.317878301 | V37: =IF(ISERROR(INDIRECT(CONCATENATE($E$32,"!K224"))),"",INDIRECT(CONCATENATE($E$32,"!K224"))) -> 1.551568842 | W37: =IF(ISERROR(INDIRECT(CONCATENATE($E$32,"!L222"))),"",INDIRECT(CONCATENATE($E$32,"!L222"))) -> 97.59536107 | X37: =IF(ISERROR(INDIRECT(CONCATENATE($E$32,"!L223"))),"",INDIRECT(CONCATENATE($E$32,"!L223"))) -> 0.711174998 | Y37: =IF(ISERROR(INDIRECT(CONCATENATE($E$32,"!L224"))),"",INDIRECT(CONCATENATE($E$32,"!L224"))) -> 1.69346393
G40: RURAL | J40: =IF(ISERROR(INDIRECT(CONCATENATE(#REF!,"!A2"))),"",INDIRECT(CONCATENATE(#REF!,"!A210"))) ->  | K40: =IF(ISERROR(INDIRECT(CONCATENATE($E$32,"!M222"))),"",INDIRECT(CONCATENATE($E$32,"!M222"))) -> 65.96232237 | L40: =IF(ISERROR(INDIRECT(CONCATENATE($E$32,"!M223"))),"",INDIRECT(CONCATENATE($E$32,"!M223"))) -> 24.46802058 | M40: =IF(ISERROR(INDIRECT(CONCATENATE($E$32,"!M224"))),"",INDIRECT(CONCATENATE($E$32,"!M224"))) -> 9.569657042 | N40: =IF(ISERROR(INDIRECT(CONCATENATE($E$32,"!N222"))),"",INDIRECT(CONCATENATE($E$32,"!N222"))) -> 77.4450977 | O40: =IF(ISERROR(INDIRECT(CONCATENATE($E$32,"!N223"))),"",INDIRECT(CONCATENATE($E$32,"!N223"))) -> 16.25506896 | P40: =IF(ISERROR(INDIRECT(CONCATENATE($E$32,"!N224"))),"",INDIRECT(CONCATENATE($E$32,"!N224"))) -> 6.299833333 | Q40: =IF(ISERROR(INDIRECT(CONCATENATE($E$32,"!O222"))),"",INDIRECT(CONCATENATE($E$32,"!O222"))) -> 85.73445807 | R40: =IF(ISERROR(INDIRECT(CONCATENATE($E$32,"!O223"))),"",INDIRECT(CONCATENATE($E$32,"!O223"))) -> 10.49586669 | S40: =IF(ISERROR(INDIRECT(CONCATENATE($E$32,"!O224"))),"",INDIRECT(CONCATENATE($E$32,"!O224"))) -> 3.769675239 | T40: =IF(ISERROR(INDIRECT(CONCATENATE($E$32,"!P222"))),"",INDIRECT(CONCATENATE($E$32,"!P222"))) -> 88.19373147 | U40: =IF(ISERROR(INDIRECT(CONCATENATE($E$32,"!P223"))),"",INDIRECT(CONCATENATE($E$32,"!P223"))) -> 7.475915639 | V40: =IF(ISERROR(INDIRECT(CONCATENATE($E$32,"!P224"))),"",INDIRECT(CONCATENATE($E$32,"!P224"))) -> 4.330352891 | W40: =IF(ISERROR(INDIRECT(CONCATENATE($E$32,"!Q222"))),"",INDIRECT(CONCATENATE($E$32,"!Q222"))) -> 91.97232746 | X40: =IF(ISERROR(INDIRECT(CONCATENATE($E$32,"!Q223"))),"",INDIRECT(CONCATENATE($E$32,"!Q223"))) -> 3.984518943 | Y40: =IF(ISERROR(INDIRECT(CONCATENATE($E$32,"!Q224"))),"",INDIRECT(CONCATENATE($E$32,"!Q224"))) -> 4.043153595
A88: 4 | B88: DHS03
B89: DHS08
B90: DHS13
B91: DHS17
B92: Input
B93: Template

Sheet DHS03
A2: =A1026 -> Philippines
A3: =A1034 -> 2003
A4: Use of drinking water sources
A5: by wealth quintile and sub-national region
A6: Notes:
A7: WHO/UNICEF JMP customised wealth index excludes water,
A8: sanitation and hygiene assets.
A9: Survey used for analysis: | B9: =A1025 -> DHS03
A10: =B1028 -> 
A11: =B1027 -> 
A14: Use of drinking water sources | C14: NATIONAL wealth index quintile | H14: URBAN wealth index quintile | M14: RURAL wealth index quintile | R14: SUB-REGIONS: | BA14: Raw numbers of respondents: | BB14: Use of drinking water sources | BC14: NATIONAL wealth index quintile | BH14: URBAN wealth index quintile | BM14: RURAL wealth index quintile | BR14: SUB-REGIONS:
A15: Weighted percentage (used in graphs) | C15: Poorest | D15: Poor | E15: Middle | F15: Rich | G15: Richest | H15: Poorest | I15: Poor | J15: Middle | K15: Rich | L15: Richest | M15: Poorest | N15: Poor | O15: Middle | P15: Rich | Q15: Richest | R15: ARMM | S15: Bicol | T15: Cagayan Valley | U15: CALABARZON | V15: Caraga | W15: Central Luzon | X15: Central Visayas | Y15: Cordillera Admin Region | Z15: Davao | AA15: Eastern Visayas | AB15: Ilocos | AC15: MIMAROPA | AD15: National Capital Region | AE15: Northern Mindanao | AF15: SOCCSKSARGEN | AG15: Western Visayas | AH15: Zamboanga Peninsula | BA15: Water data, raw numbers (weighted) | BC15: Poorest | BD15: Poor | BE15: Middle | BF15: Rich | BG15: Richest | BH15: Poorest | BI15: Poor | BJ15: Middle | BK15: Rich | BL15: Richest | BM15: Poorest | BN15: Poor | BO15: Middle | BP15: Rich | BQ15: Richest | BR15: ARMM | BS15: Bicol | BT15: Cagayan Valley | BU15: CALABARZON | BV15: Caraga | BW15: Central Luzon | BX15: Central Visayas | BY15: Cordillera Admin Region | BZ15: Davao | CA15: Eastern Visayas | CB15: Ilocos | CC15: MIMAROPA | CD15: National Capital Region | CE15: Northern Mindanao | CF15: SOCCSKSARGEN | CG15: Western Visayas | CH15: Zamboanga Peninsula
A16: Water | B16: Improved | C16: 71.17139797 | D16: 89.57124036 | E16: 96.71453465 | F16: 98.21872012 | G16: 99.53671286 | H16: 94.53564629 | I16: 98.70346243 | J16: 99.12142207 | K16: 99.71839208 | L16: 100 | M16: 65.33707502 | N16: 72.0846997 | O16: 87.39353125 | P16: 94.00835108 | Q16: 96.95858864 | R16: 62.07466353 | S16: 85.69294414 | T16: 95.20310995 | U16: 96.17417813 | V16: 97.37902347 | W16: 95.13244162 | X16: 91.90160945 | Y16: 92.29632563 | Z16: 87.3544965 | AA16: 84.58386735 | AB16: 99.6504707 | AC16: 82.78675972 | AD16: 99.79874821 | AE16: 91.25481984 | AF16: 89.32847216 | AG16: 83.92458336 | AH16: 77.48265773 | BA16: Water | BB16: Improved | BC16: N/A | BD16: N/A | BE16: N/A | BF16: N/A | BG16: N/A | BH16: N/A | BI16: N/A | BJ16: N/A | BK16: N/A | BL16: N/A | BM16: N/A | BN16: N/A | BO16: N/A | BP16: N/A | BQ16: N/A | BR16: N/A | BS16: N/A | BT16: N/A | BU16: N/A | BV16: N/A | BW16: N/A | BX16: N/A | BY16: N/A | BZ16: N/A | CA16: N/A | CB16: N/A | CC16: N/A | CD16: N/A | CE16: N/A | CF16: N/A | CG16: N/A | CH16: N/A
B17: Not Improved | C17: 28.82860203 | D17: 10.42875964 | E17: 3.285465351 | F17: 1.78127988 | G17: 0.4632871409 | H17: 5.464353708 | I17: 1.296537568 | J17: 0.8785779304 | K17: 0.2816079195 | L17: 0 | M17: 34.66292498 | N17: 27.9153003 | O17: 12.60646875 | P17: 5.991648922 | Q17: 3.041411357 | R17: 37.92533647 | S17: 14.30705586 | T17: 4.796890047 | U17: 3.82582187 | V17: 2.620976525 | W17: 4.867558382 | X17: 8.098390551 | Y17: 7.703674369 | Z17: 12.6455035 | AA17: 15.41613265 | AB17: 0.3495293033 | AC17: 17.21324028 | AD17: 0.201251792 | AE17: 8.745180157 | AF17: 10.67152784 | AG17: 16.07541664 | AH17: 22.51734227 | BB17: Not Improved | BC17: N/A | BD17: N/A | BE17: N/A | BF17: N/A | BG17: N/A | BH17: N/A | BI17: N/A | BJ17: N/A | BK17: N/A | BL17: N/A | BM17: N/A | BN17: N/A | BO17: N/A | BP17: N/A | BQ17: N/A | BR17: N/A | BS17: N/A | BT17: N/A | BU17: N/A | BV17: N/A | BW17: N/A | BX17: N/A | BY17: N/A | BZ17: N/A | CA17: N/A | CB17: N/A | CC17: N/A | CD17: N/A | CE17: N/A | CF17: N/A | CG17: N/A | CH17: N/A
A18: Water ladder | B18: Basic | C18: =C16*C23/100 -> 67.940735 | D18: =D16*D23/100 -> 87.22603234 | E18: =E16*E23/100 -> 95.90351173 | F18: 97.09721748 | G18: 98.26832209 | H18: 92.52568157 | I18: 98.36934732 | J18: 98.10933242 | K18: 98.48144243 | L18: 98.79393231 | M18: 61.52123657 | N18: 69.25972474 | O18: 84.81836694 | P18: 92.525435 | Q18: 95.7006182 | R18: 59.22145104 | S18: 83.38501958 | T18: 95.16119106 | U18: 95.57956296 | V18: 93.84387547 | W18: 94.02238613 | X18: 89.54308799 | Y18: 92.01265389 | Z18: 85.34382051 | AA18: 79.51024761 | AB18: 99.20517867 | AC18: 80.61504255 | AD18: 98.77999276 | AE18: 89.6420488 | AF18: 88.85041792 | AG18: 81.04130871 | AH18: 73.3977898 | BA18: Water ladder | BB18: Basic | BC18: N/A | BD18: N/A | BE18: N/A | BF18: N/A | BG18: N/A | BH18: N/A | BI18: N/A | BJ18: N/A | BK18: N/A | BL18: N/A | BM18: N/A | BN18: N/A | BO18: N/A | BP18: N/A | BQ18: N/A | BR18: N/A | BS18: N/A | BT18: N/A | BU18: N/A | BV18: N/A | BW18: N/A | BX18: N/A | BY18: N/A | BZ18: N/A | CA18: N/A | CB18: N/A | CC18: N/A | CD18: N/A | CE18: N/A | CF18: N/A | CG18: N/A | CH18: N/A
B19: Limited | C19: =C16*C22/100 -> 3.230662971 | D19: =D16*D22/100 -> 2.345208022 | E19: =E16*E22/100 -> 0.8110229174 | F19: 1.121502642 | G19: 1.268390772 | H19: 2.00996472 | I19: 0.3341151112 | J19: 1.01208965 | K19: 1.236949654 | L19: 1.20606769 | M19: 3.815838447 | N19: 2.824974961 | O19: 2.575164306 | P19: 1.482916077 | Q19: 1.257970447 | R19: 2.853212492 | S19: 2.307924555 | T19: 0.041918891 | U19: 0.5946151721 | V19: 3.535148004 | W19: 1.110055483 | X19: 2.358521464 | Y19: 0.2836717405 | Z19: 2.010675995 | AA19: 5.073619736 | AB19: 0.4452920299 | AC19: 2.171717164 | AD19: 1.018755445 | AE19: 1.612771042 | AF19: 0.4780542417 | AG19: 2.88327465 | AH19: 4.084867932 | BB19: Limited | BC19: N/A | BD19: N/A | BE19: N/A | BF19: N/A | BG19: N/A | BH19: N/A | BI19: N/A | BJ19: N/A | BK19: N/A | BL19: N/A | BM19: N/A | BN19: N/A | BO19: N/A | BP19: N/A | BQ19: N/A | BR19: N/A | BS19: N/A | BT19: N/A | BU19: N/A | BV19: N/A | BW19: N/A | BX19: N/A | BY19: N/A | BZ19: N/A | CA19: N/A | CB19: N/A | CC19: N/A | CD19: N/A | CE19: N/A | CF19: N/A | CG19: N/A | CH19: N/A
B20: Unimproved | C20: =100-C18-C19-C21 -> 26.15781013 | D20: =100-D18-D19-D21 -> 9.438310287 | E20: =100-E18-E19-E21 -> 2.851847608 | F20: 1.444836037 | G20: 0.2269667099 | H20: 4.896541236 | I20: 0.9735117047 | J20: 0.7059019191 | K20: 0.1528354834 | L20: -1.132427485e-14 | M20: 31.37873132 | N20: 25.51865374 | O20: 11.36371646 | P20: 5.404331852 | Q20: 2.17910702 | R20: 30.0143108 | S20: 13.98869041 | T20: 4.680588247 | U20: 2.854352218 | V20: 2.620976525 | W20: 2.932211177 | X20: 7.680417344 | Y20: 7.439216552 | Z20: 11.18383468 | AA20: 14.73130398 | AB20: 0.3495293033 | AC20: 14.7598731 | AD20: 0.201251792 | AE20: 8.677444428 | AF20: 9.935528185 | AG20: 15.17635004 | AH20: 22.06159819 | BB20: Unimproved | BC20: N/A | BD20: N/A | BE20: N/A | BF20: N/A | BG20: N/A | BH20: N/A | BI20: N/A | BJ20: N/A | BK20: N/A | BL20: N/A | BM20: N/A | BN20: N/A | BO20: N/A | BP20: N/A | BQ20: N/A | BR20: N/A | BS20: N/A | BT20: N/A | BU20: N/A | BV20: N/A | BW20: N/A | BX20: N/A | BY20: N/A | BZ20: N/A | CA20: N/A | CB20: N/A | CC20: N/A | CD20: N/A | CE20: N/A | CF20: N/A | CG20: N/A | CH20: N/A
B21: Surface water | C21: 2.670791895 | D21: 0.9904493509 | E21: 0.4336177432 | F21: 0.3364438428 | G21: 0.236320431 | H21: 0.5678124726 | I21: 0.3230258628 | J21: 0.1726760114 | K21: 0.1287724361 | L21: 0 | M21: 3.284193657 | N21: 2.39664656 | O21: 1.242752288 | P21: 0.5873170702 | Q21: 0.8623043378 | R21: 7.911025673 | S21: 0.3183654486 | T21: 0.1163018001 | U21: 0.971469652 | V21: 0 | W21: 1.935347205 | X21: 0.4179732064 | Y21: 0.2644578169 | Z21: 1.461668817 | AA21: 0.684828668 | AB21: 0 | AC21: 2.453367184 | AD21: 0 | AE21: 0.06773572905 | AF21: 0.7359996566 | AG21: 0.8990665981 | AH21: 0.4557440796 | BB21: Surface water | BC21: N/A | BD21: N/A | BE21: N/A | BF21: N/A | BG21: N/A | BH21: N/A | BI21: N/A | BJ21: N/A | BK21: N/A | BL21: N/A | BM21: N/A | BN21: N/A | BO21: N/A | BP21: N/A | BQ21: N/A | BR21: N/A | BS21: N/A | BT21: N/A | BU21: N/A | BV21: N/A | BW21: N/A | BX21: N/A | BY21: N/A | BZ21: N/A | CA21: N/A | CB21: N/A | CC21: N/A | CD21: N/A | CE21: N/A | CF21: N/A | CG21: N/A | CH21: N/A
A22: Improved water point at more than 30 minutes | B22: Yes | C22: 4.53927148 | D22: 2.618260072 | E22: 0.8385739748 | F22: 1.141842045 | G22: 1.274294414 | H22: 2.126144792 | I22: 0.338503942 | J22: 1.021060462 | K22: 1.240442839 | L22: 1.20606769 | M22: 5.840234577 | N22: 3.918966123 | O22: 2.946630339 | P22: 1.577430153 | Q22: 1.29743065 | R22: 4.596420391 | S22: 2.693249227 | T22: 0.04403101015 | U22: 0.6182690444 | V22: 3.630297242 | W22: 1.16685272 | X22: 2.566354907 | Y22: 0.3073488989 | Z22: 2.301742984 | AA22: 5.998330291 | AB22: 0.4468539153 | AC22: 2.623266295 | AD22: 1.020809843 | AE22: 1.76732697 | AF22: 0.5351644668 | AG22: 3.435554321 | AH22: 5.271977048 | BA22: Improved water point at more than 30 minutes | BB22: Yes | BC22: N/A | BD22: N/A | BE22: N/A | BF22: N/A | BG22: N/A | BH22: N/A | BI22: N/A | BJ22: N/A | BK22: N/A | BL22: N/A | BM22: N/A | BN22: N/A | BO22: N/A | BP22: N/A | BQ22: N/A | BR22: N/A | BS22: N/A | BT22: N/A | BU22: N/A | BV22: N/A | BW22: N/A | BX22: N/A | BY22: N/A | BZ22: N/A | CA22: N/A | CB22: N/A | CC22: N/A | CD22: N/A | CE22: N/A | CF22: N/A | CG22: N/A | CH22: N/A
B23: No | C23: 95.46072852 | D23: 97.38173993 | E23: 99.16142603 | F23: 98.85815796 | G23: 98.72570559 | H23: 97.87385521 | I23: 99.66149606 | J23: 98.97893954 | K23: 98.75955716 | L23: 98.79393231 | M23: 94.15976542 | N23: 96.08103388 | O23: 97.05336966 | P23: 98.42256985 | Q23: 98.70256935 | R23: 95.40357961 | S23: 97.30675077 | T23: 99.95596899 | U23: 99.38173096 | V23: 96.36970276 | W23: 98.83314728 | X23: 97.43364509 | Y23: 99.6926511 | Z23: 97.69825702 | AA23: 94.00166971 | AB23: 99.55314608 | AC23: 97.37673371 | AD23: 98.97919016 | AE23: 98.23267303 | AF23: 99.46483553 | AG23: 96.56444568 | AH23: 94.72802295 | BB23: No | BC23: N/A | BD23: N/A | BE23: N/A | BF23: N/A | BG23: N/A | BH23: N/A | BI23: N/A | BJ23: N/A | BK23: N/A | BL23: N/A | BM23: N/A | BN23: N/A | BO23: N/A | BP23: N/A | BQ23: N/A | BR23: N/A | BS23: N/A | BT23: N/A | BU23: N/A | BV23: N/A | BW23: N/A | BX23: N/A | BY23: N/A | BZ23: N/A | CA23: N/A | CB23: N/A | CC23: N/A | CD23: N/A | CE23: N/A | CF23: N/A | CG23: N/A | CH23: N/A
A24: Manually calculated ratios | B24: Improved wells
B25: Improved springs
B26: Other
C27: NATIONAL wealth index quintile | H27: URBAN wealth index quintile | M27: RURAL wealth index quintile | R27: SUB-REGIONS: | BA27: Raw numbers of respondents: | BB27: Use of drinking water sources | BC27: NATIONAL wealth index quintile | BH27: URBAN wealth index quintile | BM27: RURAL wealth index quintile | BR27: SUB-REGIONS:
A28: Percentage based on weighted population | C28: Poorest | D28: Poor | E28: Middle | F28: Rich | G28: Richest | H28: Poorest | I28: Poor | J28: Middle | K28: Rich | L28: Richest | M28: Poorest | N28: Poor | O28: Middle | P28: Rich | Q28: Richest | R28: ARMM | S28: Bicol | T28: Cagayan Valley | U28: CALABARZON | V28: Caraga | W28: Central Luzon | X28: Central Visayas | Y28: Cordillera Admin Region | Z28: Davao | AA28: Eastern Visayas | AB28: Ilocos | AC28: MIMAROPA | AD28: National Capital Region | AE28: Northern Mindanao | AF28: SOCCSKSARGEN | AG28: Western Visayas | AH28: Zamboanga Peninsula | BA28: Water data, raw numbers (weighted) | BC28: Poorest | BD28: Poor | BE28: Middle | BF28: Rich | BG28: Richest | BH28: Poorest | BI28: Poor | BJ28: Middle | BK28: Rich | BL28: Richest | BM28: Poorest | BN28: Poor | BO28: Middle | BP28: Rich | BQ28: Richest | BR28: ARMM | BS28: Bicol | BT28: Cagayan Valley | BU28: CALABARZON | BV28: Caraga | BW28: Central Luzon | BX28: Central Visayas | BY28: Cordillera Admin Region | BZ28: Davao | CA28: Eastern Visayas | CB28: Ilocos | CC28: MIMAROPA | CD28: National Capital Region | CE28: Northern Mindanao | CF28: SOCCSKSARGEN | CG28: Western Visayas | CH28: Zamboanga Peninsula
A29: Piped water | B29: Yes | C29: 30.93320046 | D29: 45.34710776 | E29: 57.09400322 | F29: 62.11784689 | G29: 66.46355968 | H29: 56.02154246 | I29: 66.5159879 | J29: 69.73902534 | K29: 73.4979789 | L29: 67.81600846 | M29: 26.3771769 | N29: 30.16390316 | O29: 38.24999658 | P29: 42.58575913 | Q29: 48.0254873 | R29: 24.65999924 | S29: 39.23760603 | T29: 17.59375086 | U29: 61.43635867 | V29: 59.56660205 | W29: 54.94985693 | X29: 55.90988052 | Y29: 54.45407058 | Z29: 40.60185654 | AA29: 64.02778491 | AB29: 46.91688993 | AC29: 45.22759543 | AD29: 75.28723266 | AE29: 72.29767422 | AF29: 22.6370465 | AG29: 30.21982522 | AH29: 58.89250968 | BA29: Piped water | BB29: Yes | BC29: N/A | BD29: N/A | BE29: N/A | BF29: N/A | BG29: N/A | BH29: N/A | BI29: N/A | BJ29: N/A | BK29: N/A | BL29: N/A | BM29: N/A | BN29: N/A | BO29: N/A | BP29: N/A | BQ29: N/A | BR29: N/A | BS29: N/A | BT29: N/A | BU29: N/A | BV29: N/A | BW29: N/A | BX29: N/A | BY29: N/A | BZ29: N/A | CA29: N/A | CB29: N/A | CC29: N/A | CD29: N/A | CE29: N/A | CF29: N/A | CG29: N/A | CH29: N/A
B30: No | C30: 69.06679954 | D30: 54.65289224 | E30: 42.90599678 | F30: 37.88215311 | G30: 33.53644032 | H30: 43.97845754 | I30: 33.4840121 | J30: 30.26097466 | K30: 26.5020211 | L30: 32.18399154 | M30: 73.6228231 | N30: 69.83609684 | O30: 61.75000342 | P30: 57.41424087 | Q30: 51.9745127 | R30: 75.34000076 | S30: 60.76239397 | T30: 82.40624914 | U30: 38.56364133 | V30: 40.43339795 | W30: 45.05014307 | X30: 44.09011948 | Y30: 45.54592942 | Z30: 59.39814346 | AA30: 35.97221509 | AB30: 53.08311007 | AC30: 54.77240457 | AD30: 24.71276734 | AE30: 27.70232578 | AF30: 77.3629535 | AG30: 69.78017478 | AH30: 41.10749032 | BB30: No | BC30: N/A | BD30: N/A | BE30: N/A | BF30: N/A | BG30: N/A | BH30: N/A | BI30: N/A | BJ30: N/A | BK30: N/A | BL30: N/A | BM30: N/A | BN30: N/A | BO30: N/A | BP30: N/A | BQ30: N/A | BR30: N/A | BS30: N/A | BT30: N/A | BU30: N/A | BV30: N/A | BW30: N/A | BX30: N/A | BY30: N/A | BZ30: N/A | CA30: N/A | CB30: N/A | CC30: N/A | CD30: N/A | CE30: N/A | CF30: N/A | CG30: N/A | CH30: N/A
A31: Piped water on premises | B31: Yes | C31: 10.02580771 | D31: 25.94113963 | E31: 43.17122984 | F31: 53.53328058 | G31: 61.93263879 | H31: 32.10148711 | I31: 52.54387538 | J31: 60.93385785 | K31: 66.51431414 | L31: 64.42072359 | M31: 7.280637242 | N31: 11.13286955 | O31: 19.87886734 | P31: 28.17566615 | Q31: 40.64073481 | R31: 12.3556146 | S31: 22.11306406 | T31: 17.42557833 | U31: 57.01643148 | V31: 29.91813157 | W31: 44.86732956 | X31: 39.66005206 | Y31: 50.80919973 | Z31: 34.81646941 | AA31: 23.68245152 | AB31: 41.47897535 | AC31: 31.49329932 | AD31: 63.54475149 | AE31: 41.72094109 | AF31: 14.2809248 | AG31: 17.07161269 | AH31: 33.67064122 | BA31: Piped water on premises | BB31: Yes | BC31: N/A | BD31: N/A | BE31: N/A | BF31: N/A | BG31: N/A | BH31: N/A | BI31: N/A | BJ31: N/A | BK31: N/A | BL31: N/A | BM31: N/A | BN31: N/A | BO31: N/A | BP31: N/A | BQ31: N/A | BR31: N/A | BS31: N/A | BT31: N/A | BU31: N/A | BV31: N/A | BW31: N/A | BX31: N/A | BY31: N/A | BZ31: N/A | CA31: N/A | CB31: N/A | CC31: N/A | CD31: N/A | CE31: N/A | CF31: N/A | CG31: N/A | CH31: N/A
B32: No | C32: 89.97419229 | D32: 74.05886037 | E32: 56.82877016 | F32: 46.46671942 | G32: 38.06736121 | H32: 67.89851289 | I32: 47.45612462 | J32: 39.06614215 | K32: 33.48568586 | L32: 35.57927641 | M32: 92.71936276 | N32: 88.86713045 | O32: 80.12113266 | P32: 71.82433385 | Q32: 59.35926519 | R32: 87.6443854 | S32: 77.88693594 | T32: 82.57442167 | U32: 42.98356852 | V32: 70.08186843 | W32: 55.13267044 | X32: 60.33994794 | Y32: 49.19080027 | Z32: 65.18353059 | AA32: 76.31754848 | AB32: 58.52102465 | AC32: 68.50670068 | AD32: 36.45524851 | AE32: 58.27905891 | AF32: 85.7190752 | AG32: 82.92838731 | AH32: 66.32935878 | BB32: No | BC32: N/A | BD32: N/A | BE32: N/A | BF32: N/A | BG32: N/A | BH32: N/A | BI32: N/A | BJ32: N/A | BK32: N/A | BL32: N/A | BM32: N/A | BN32: N/A | BO32: N/A | BP32: N/A | BQ32: N/A | BR32: N/A | BS32: N/A | BT32: N/A | BU32: N/A | BV32: N/A | BW32: N/A | BX32: N/A | BY32: N/A | BZ32: N/A | CA32: N/A | CB32: N/A | CC32: N/A | CD32: N/A | CE32: N/A | CF32: N/A | CG32: N/A | CH32: N/A
A33: Piped water into dwelling | B33: Yes | C33: N/A | D33: N/A | E33: N/A | F33: N/A | G33: N/A | H33: N/A | I33: N/A | J33: N/A | K33: N/A | L33: N/A | M33: N/A | N33: N/A | O33: N/A | P33: N/A | Q33: N/A | R33: N/A | S33: N/A | T33: N/A | U33: N/A | V33: N/A | W33: N/A | X33: N/A | Y33: N/A | Z33: N/A | AA33: N/A | AB33: N/A | AC33: N/A | AD33: N/A | AE33: N/A | AF33: N/A | AG33: N/A | AH33: N/A | BA33: Piped water into dwelling | BB33: Yes | BC33: N/A | BD33: N/A | BE33: N/A | BF33: N/A | BG33: N/A | BH33: N/A | BI33: N/A | BJ33: N/A | BK33: N/A | BL33: N/A | BM33: N/A | BN33: N/A | BO33: N/A | BP33: N/A | BQ33: N/A | BR33: N/A | BS33: N/A | BT33: N/A | BU33: N/A | BV33: N/A | BW33: N/A | BX33: N/A | BY33: N/A | BZ33: N/A | CA33: N/A | CB33: N/A | CC33: N/A | CD33: N/A | CE33: N/A | CF33: N/A | CG33: N/A | CH33: N/A
B34: No | C34: N/A | D34: N/A | E34: N/A | F34: N/A | G34: N/A | H34: N/A | I34: N/A | J34: N/A | K34: N/A | L34: N/A | M34: N/A | N34: N/A | O34: N/A | P34: N/A | Q34: N/A | R34: N/A | S34: N/A | T34: N/A | U34: N/A | V34: N/A | W34: N/A | X34: N/A | Y34: N/A | Z34: N/A | AA34: N/A | AB34: N/A | AC34: N/A | AD34: N/A | AE34: N/A | AF34: N/A | AG34: N/A | AH34: N/A | BB34: No | BC34: N/A | BD34: N/A | BE34: N/A | BF34: N/A | BG34: N/A | BH34: N/A | BI34: N/A | BJ34: N/A | BK34: N/A | BL34: N/A | BM34: N/A | BN34: N/A | BO34: N/A | BP34: N/A | BQ34: N/A | BR34: N/A | BS34: N/A | BT34: N/A | BU34: N/A | BV34: N/A | BW34: N/A | BX34: N/A | BY34: N/A | BZ34: N/A | CA34: N/A | CB34: N/A | CC34: N/A | CD34: N/A | CE34: N/A | CF34: N/A | CG34: N/A | CH34: N/A
A35: Water source on premises | B35: Yes | C35: 17.70970978 | D35: 39.6033553 | E35: 59.02306874 | F35: 71.17765726 | G35: 77.66511419 | H35: 43.11391213 | I35: 64.51270932 | J35: 75.76170342 | K35: 78.37430599 | L35: 78.52348382 | M35: 14.63938825 | N35: 19.90869317 | O35: 35.36089461 | P35: 49.51728257 | Q35: 65.53967725 | R35: 18.29443896 | S35: 42.33572927 | T35: 67.71734649 | U35: 73.90940644 | V35: 33.32004841 | W35: 65.54653519 | X35: 46.62426893 | Y35: 71.70391838 | Z35: 39.17553861 | AA35: 27.83394962 | AB35: 66.56854456 | AC35: 48.47340719 | AD35: 74.34008113 | AE35: 47.80296359 | AF35: 38.79886868 | AG35: 26.77388053 | AH35: 34.05672588 | BA35: Water source on premises | BB35: Yes | BC35: N/A | BD35: N/A | BE35: N/A | BF35: N/A | BG35: N/A | BH35: N/A | BI35: N/A | BJ35: N/A | BK35: N/A | BL35: N/A | BM35: N/A | BN35: N/A | BO35: N/A | BP35: N/A | BQ35: N/A | BR35: N/A | BS35: N/A | BT35: N/A | BU35: N/A | BV35: N/A | BW35: N/A | BX35: N/A | BY35: N/A | BZ35: N/A | CA35: N/A | CB35: N/A | CC35: N/A | CD35: N/A | CE35: N/A | CF35: N/A | CG35: N/A | CH35: N/A
B36: No | C36: 82.29029022 | D36: 60.3966447 | E36: 40.97693126 | F36: 28.82234274 | G36: 22.33488581 | H36: 56.88608787 | I36: 35.48729068 | J36: 24.23829658 | K36: 21.62569401 | L36: 21.47651618 | M36: 85.36061175 | N36: 80.09130683 | O36: 64.63910539 | P36: 50.48271743 | Q36: 34.46032275 | R36: 81.70556104 | S36: 57.66427073 | T36: 32.28265351 | U36: 26.09059356 | V36: 66.67995159 | W36: 34.45346481 | X36: 53.37573107 | Y36: 28.29608162 | Z36: 60.82446139 | AA36: 72.16605038 | AB36: 33.43145544 | AC36: 51.52659281 | AD36: 25.65991887 | AE36: 52.19703641 | AF36: 61.20113132 | AG36: 73.22611947 | AH36: 65.94327412 | BB36: No | BC36: N/A | BD36: N/A | BE36: N/A | BF36: N/A | BG36: N/A | BH36: N/A | BI36: N/A | BJ36: N/A | BK36: N/A | BL36: N/A | BM36: N/A | BN36: N/A | BO36: N/A | BP36: N/A | BQ36: N/A | BR36: N/A | BS36: N/A | BT36: N/A | BU36: N/A | BV36: N/A | BW36: N/A | BX36: N/A | BY36: N/A | BZ36: N/A | CA36: N/A | CB36: N/A | CC36: N/A | CD36: N/A | CE36: N/A | CF36: N/A | CG36: N/A | CH36: N/A
A37: Improved Water source on premises | B37: Yes | C37: 22.13533933 | D37: 42.88583046 | E37: 60.52386033 | F37: 72.16119504 | G37: 77.95788889 | H37: 44.99702554 | I37: 65.02045081 | J37: 76.19564648 | K37: 78.59563753 | L37: 78.52348382 | M37: 19.25625838 | N37: 24.86736255 | O37: 38.34120277 | P37: 52.08095783 | Q37: 66.96980023 | R37: 25.245085 | S37: 47.2685178 | T37: 68.95042691 | U37: 76.12770823 | V37: 34.2168644 | W37: 67.49206036 | X37: 50.73281003 | Y37: 76.85666922 | Z37: 44.59277031 | AA37: 31.41962472 | AB37: 66.80203726 | AC37: 54.48740513 | AD37: 74.48999358 | AE37: 51.69031956 | AF37: 42.47014752 | AG37: 30.93779387 | AH37: 43.95399806 | BA37: Improved water source on premises | BB37: Yes | BC37: N/A | BD37: N/A | BE37: N/A | BF37: N/A | BG37: N/A | BH37: N/A | BI37: N/A | BJ37: N/A | BK37: N/A | BL37: N/A | BM37: N/A | BN37: N/A | BO37: N/A | BP37: N/A | BQ37: N/A | BR37: N/A | BS37: N/A | BT37: N/A | BU37: N/A | BV37: N/A | BW37: N/A | BX37: N/A | BY37: N/A | BZ37: N/A | CA37: N/A | CB37: N/A | CC37: N/A | CD37: N/A | CE37: N/A | CF37: N/A | CG37: N/A | CH37: N/A
B38: No | C38: 77.86466067 | D38: 57.11416954 | E38: 39.47613967 | F38: 27.83880496 | G38: 22.04211111 | H38: 55.00297446 | I38: 34.97954919 | J38: 23.80435352 | K38: 21.40436247 | L38: 21.47651618 | M38: 80.74374162 | N38: 75.13263745 | O38: 61.65879723 | P38: 47.91904217 | Q38: 33.03019977 | R38: 74.754915 | S38: 52.7314822 | T38: 31.04957309 | U38: 23.87229177 | V38: 65.7831356 | W38: 32.50793964 | X38: 49.26718997 | Y38: 23.14333078 | Z38: 55.40722969 | AA38: 68.58037528 | AB38: 33.19796274 | AC38: 45.51259487 | AD38: 25.51000642 | AE38: 48.30968044 | AF38: 57.52985248 | AG38: 69.06220613 | AH38: 56.04600194 | BB38: No | BC38: N/A | BD38: N/A | BE38: N/A | BF38: N/A | BG38: N/A | BH38: N/A | BI38: N/A | BJ38: N/A | BK38: N/A | BL38: N/A | BM38: N/A | BN38: N/A | BO38: N/A | BP38: N/A | BQ38: N/A | BR38: N/A | BS38: N/A | BT38: N/A | BU38: N/A | BV38: N/A | BW38: N/A | BX38: N/A | BY38: N/A | BZ38: N/A | CA38: N/A | CB38: N/A | CC38: N/A | CD38: N/A | CE38: N/A | CF38: N/A | CG38: N/A | CH38: N/A
A39: Piped water on premises available when needed | B39: Yes | C39: N/A | D39: N/A | E39: N/A | F39: N/A | G39: N/A | H39: N/A | I39: N/A | J39: N/A | K39: N/A | L39: N/A | M39: N/A | N39: N/A | O39: N/A | P39: N/A | Q39: N/A | R39: N/A | S39: N/A | T39: N/A | U39: N/A | V39: N/A | W39: N/A | X39: N/A | Y39: N/A | Z39: N/A | AA39: N/A | AB39: N/A | AC39: N/A | AD39: N/A | AE39: N/A | AF39: N/A | AG39: N/A | AH39: N/A | BA39: Piped water on premises available when needed | BB39: Yes | BC39: N/A | BD39: N/A | BE39: N/A | BF39: N/A | BG39: N/A | BH39: N/A | BI39: N/A | BJ39: N/A | BK39: N/A | BL39: N/A | BM39: N/A | BN39: N/A | BO39: N/A | BP39: N/A | BQ39: N/A | BR39: N/A | BS39: N/A | BT39: N/A | BU39: N/A | BV39: N/A | BW39: N/A | BX39: N/A | BY39: N/A | BZ39: N/A | CA39: N/A | CB39: N/A | CC39: N/A | CD39: N/A | CE39: N/A | CF39: N/A | CG39: N/A | CH39: N/A
B40: No | C40: N/A | D40: N/A | E40: N/A | F40: N/A | G40: N/A | H40: N/A | I40: N/A | J40: N/A | K40: N/A | L40: N/A | M40: N/A | N40: N/A | O40: N/A | P40: N/A | Q40: N/A | R40: N/A | S40: N/A | T40: N/A | U40: N/A | V40: N/A | W40: N/A | X40: N/A | Y40: N/A | Z40: N/A | AA40: N/A | AB40: N/A | AC40: N/A | AD40: N/A | AE40: N/A | AF40: N/A | AG40: N/A | AH40: N/A | BB40: No | BC40: N/A | BD40: N/A | BE40: N/A | BF40: N/A | BG40: N/A | BH40: N/A | BI40: N/A | BJ40: N/A | BK40: N/A | BL40: N/A | BM40: N/A | BN40: N/A | BO40: N/A | BP40: N/A | BQ40: N/A | BR40: N/A | BS40: N/A | BT40: N/A | BU40: N/A | BV40: N/A | BW40: N/A | BX40: N/A | BY40: N/A | BZ40: N/A | CA40: N/A | CB40: N/A | CC40: N/A | CD40: N/A | CE40: N/A | CF40: N/A | CG40: N/A | CH40: N/A
A41: Water point at more than 30 minutes | B41: Yes | C41: 5.378876659 | D41: 3.370309194 | E41: 0.9718265218 | F41: 1.260989955 | G41: 1.307114206 | H41: 2.459511361 | I41: 0.3358861272 | J41: 1.013597782 | K41: 1.365620341 | L41: 1.20606769 | M41: 6.711101599 | N41: 4.818938661 | O41: 3.735370412 | P41: 1.836585288 | Q41: 1.490795914 | R41: 5.205161312 | S41: 3.649675989 | T41: 0.1189955807 | U41: 1.249712734 | V41: 3.800027362 | W41: 1.125929942 | X41: 2.678273957 | Y41: 0.2833162804 | Z41: 3.618544415 | AA41: 7.04663283 | AB41: 0.4452910482 | AC41: 2.714505472 | AD41: 1.019982705 | AE41: 2.521015178 | AF41: 0.8071295701 | AG41: 3.774605525 | AH41: 7.01500737 | BA41: Water point at more than 30 minutes | BB41: Yes | BC41: N/A | BD41: N/A | BE41: N/A | BF41: N/A | BG41: N/A | BH41: N/A | BI41: N/A | BJ41: N/A | BK41: N/A | BL41: N/A | BM41: N/A | BN41: N/A | BO41: N/A | BP41: N/A | BQ41: N/A | BR41: N/A | BS41: N/A | BT41: N/A | BU41: N/A | BV41: N/A | BW41: N/A | BX41: N/A | BY41: N/A | BZ41: N/A | CA41: N/A | CB41: N/A | CC41: N/A | CD41: N/A | CE41: N/A | CF41: N/A | CG41: N/A | CH41: N/A
B42: No | C42: 94.62112334 | D42: 96.62969081 | E42: 99.02817348 | F42: 98.73901004 | G42: 98.69288579 | H42: 97.54048864 | I42: 99.66411387 | J42: 98.98640222 | K42: 98.63437966 | L42: 98.79393231 | M42: 93.2888984 | N42: 95.18106134 | O42: 96.26462959 | P42: 98.16341471 | Q42: 98.50920409 | R42: 94.79483869 | S42: 96.35032401 | T42: 99.88100442 | U42: 98.75028727 | V42: 96.19997264 | W42: 98.87407006 | X42: 97.32172604 | Y42: 99.71668372 | Z42: 96.38145558 | AA42: 92.95336717 | AB42: 99.55470895 | AC42: 97.28549453 | AD42: 98.98001729 | AE42: 97.47898482 | AF42: 99.19287043 | AG42: 96.22539448 | AH42: 92.98499263 | BB42: No | BC42: N/A | BD42: N/A | BE42: N/A | BF42: N/A | BG42: N/A | BH42: N/A | BI42: N/A | BJ42: N/A | BK42: N/A | BL42: N/A | BM42: N/A | BN42: N/A | BO42: N/A | BP42: N/A | BQ42: N/A | BR42: N/A | BS42: N/A | BT42: N/A | BU42: N/A | BV42: N/A | BW42: N/A | BX42: N/A | BY42: N/A | BZ42: N/A | CA42: N/A | CB42: N/A | CC42: N/A | CD42: N/A | CE42: N/A | CF42: N/A | CG42: N/A | CH42: N/A
A43: Water source available when needed | B43: Yes | C43: N/A | D43: N/A | E43: N/A | F43: N/A | G43: N/A | H43: N/A | I43: N/A | J43: N/A | K43: N/A | L43: N/A | M43: N/A | N43: N/A | O43: N/A | P43: N/A | Q43: N/A | R43: N/A | S43: N/A | T43: N/A | U43: N/A | V43: N/A | W43: N/A | X43: N/A | Y43: N/A | Z43: N/A | AA43: N/A | AB43: N/A | AC43: N/A | AD43: N/A | AE43: N/A | AF43: N/A | AG43: N/A | AH43: N/A | BA43: Water source available when needed | BB43: Yes | BC43: N/A | BD43: N/A | BE43: N/A | BF43: N/A | BG43: N/A | BH43: N/A | BI43: N/A | BJ43: N/A | BK43: N/A | BL43: N/A | BM43: N/A | BN43: N/A | BO43: N/A | BP43: N/A | BQ43: N/A | BR43: N/A | BS43: N/A | BT43: N/A | BU43: N/A | BV43: N/A | BW43: N/A | BX43: N/A | BY43: N/A | BZ43: N/A | CA43: N/A | CB43: N/A | CC43: N/A | CD43: N/A | CE43: N/A | CF43: N/A | CG43: N/A | CH43: N/A
B44: No | C44: N/A | D44: N/A | E44: N/A | F44: N/A | G44: N/A | H44: N/A | I44: N/A | J44: N/A | K44: N/A | L44: N/A | M44: N/A | N44: N/A | O44: N/A | P44: N/A | Q44: N/A | R44: N/A | S44: N/A | T44: N/A | U44: N/A | V44: N/A | W44: N/A | X44: N/A | Y44: N/A | Z44: N/A | AA44: N/A | AB44: N/A | AC44: N/A | AD44: N/A | AE44: N/A | AF44: N/A | AG44: N/A | AH44: N/A | BB44: No | BC44: N/A | BD44: N/A | BE44: N/A | BF44: N/A | BG44: N/A | BH44: N/A | BI44: N/A | BJ44: N/A | BK44: N/A | BL44: N/A | BM44: N/A | BN44: N/A | BO44: N/A | BP44: N/A | BQ44: N/A | BR44: N/A | BS44: N/A | BT44: N/A | BU44: N/A | BV44: N/A | BW44: N/A | BX44: N/A | BY44: N/A | BZ44: N/A | CA44: N/A | CB44: N/A | CC44: N/A | CD44: N/A | CE44: N/A | CF44: N/A | CG44: N/A | CH44: N/A
A45: Improved water source available when needed | B45: Yes | C45: N/A | D45: N/A | E45: N/A | F45: N/A | G45: N/A | H45: N/A | I45: N/A | J45: N/A | K45: N/A | L45: N/A | M45: N/A | N45: N/A | O45: N/A | P45: N/A | Q45: N/A | R45: N/A | S45: N/A | T45: N/A | U45: N/A | V45: N/A | W45: N/A | X45: N/A | Y45: N/A | Z45: N/A | AA45: N/A | AB45: N/A | AC45: N/A | AD45: N/A | AE45: N/A | AF45: N/A | AG45: N/A | AH45: N/A | BA45: Improved water source available when needed | BB45: Yes | BC45: N/A | BD45: N/A | BE45: N/A | BF45: N/A | BG45: N/A | BH45: N/A | BI45: N/A | BJ45: N/A | BK45: N/A | BL45: N/A | BM45: N/A | BN45: N/A | BO45: N/A | BP45: N/A | BQ45: N/A | BR45: N/A | BS45: N/A | BT45: N/A | BU45: N/A | BV45: N/A | BW45: N/A | BX45: N/A | BY45: N/A | BZ45: N/A | CA45: N/A | CB45: N/A | CC45: N/A | CD45: N/A | CE45: N/A | CF45: N/A | CG45: N/A | CH45: N/A
B46: No | C46: N/A | D46: N/A | E46: N/A | F46: N/A | G46: N/A | H46: N/A | I46: N/A | J46: N/A | K46: N/A | L46: N/A | M46: N/A | N46: N/A | O46: N/A | P46: N/A | Q46: N/A | R46: N/A | S46: N/A | T46: N/A | U46: N/A | V46: N/A | W46: N/A | X46: N/A | Y46: N/A | Z46: N/A | AA46: N/A | AB46: N/A | AC46: N/A | AD46: N/A | AE46: N/A | AF46: N/A | AG46: N/A | AH46: N/A | BB46: No | BC46: N/A | BD46: N/A | BE46: N/A | BF46: N/A | BG46: N/A | BH46: N/A | BI46: N/A | BJ46: N/A | BK46: N/A | BL46: N/A | BM46: N/A | BN46: N/A | BO46: N/A | BP46: N/A | BQ46: N/A | BR46: N/A | BS46: N/A | BT46: N/A | BU46: N/A | BV46: N/A | BW46: N/A | BX46: N/A | BY46: N/A | BZ46: N/A | CA46: N/A | CB46: N/A | CC46: N/A | CD46: N/A | CE46: N/A | CF46: N/A | CG46: N/A | CH46: N/A
A47: Microbiological quality at point of collection | B47: Not contaminated (No E. coli in 100 mL) | C47: N/A | D47: N/A | E47: N/A | F47: N/A | G47: N/A | H47: N/A | I47: N/A | J47: N/A | K47: N/A | L47: N/A | M47: N/A | N47: N/A | O47: N/A | P47: N/A | Q47: N/A | R47: N/A | S47: N/A | T47: N/A | U47: N/A | V47: N/A | W47: N/A | X47: N/A | Y47: N/A | Z47: N/A | AA47: N/A | AB47: N/A | AC47: N/A | AD47: N/A | AE47: N/A | AF47: N/A | AG47: N/A | AH47: N/A | BA47: Microbiological quality at point of collection | BB47: Not contaminated (No E. coli in 100 mL) | BC47: N/A | BD47: N/A | BE47: N/A | BF47: N/A | BG47: N/A | BH47: N/A | BI47: N/A | BJ47: N/A | BK47: N/A | BL47: N/A | BM47: N/A | BN47: N/A | BO47: N/A | BP47: N/A | BQ47: N/A | BR47: N/A | BS47: N/A | BT47: N/A | BU47: N/A | BV47: N/A | BW47: N/A | BX47: N/A | BY47: N/A | BZ47: N/A | CA47: N/A | CB47: N/A | CC47: N/A | CD47: N/A | CE47: N/A | CF47: N/A | CG47: N/A | CH47: N/A
B48: Contaminated (E. coli detected in 100 mL) | C48: N/A | D48: N/A | E48: N/A | F48: N/A | G48: N/A | H48: N/A | I48: N/A | J48: N/A | K48: N/A | L48: N/A | M48: N/A | N48: N/A | O48: N/A | P48: N/A | Q48: N/A | R48: N/A | S48: N/A | T48: N/A | U48: N/A | V48: N/A | W48: N/A | X48: N/A | Y48: N/A | Z48: N/A | AA48: N/A | AB48: N/A | AC48: N/A | AD48: N/A | AE48: N/A | AF48: N/A | AG48: N/A | AH48: N/A | BB48: Contaminated (E. coli detected in 100 mL) | BC48: N/A | BD48: N/A | BE48: N/A | BF48: N/A | BG48: N/A | BH48: N/A | BI48: N/A | BJ48: N/A | BK48: N/A | BL48: N/A | BM48: N/A | BN48: N/A | BO48: N/A | BP48: N/A | BQ48: N/A | BR48: N/A | BS48: N/A | BT48: N/A | BU48: N/A | BV48: N/A | BW48: N/A | BX48: N/A | BY48: N/A | BZ48: N/A | CA48: N/A | CB48: N/A | CC48: N/A | CD48: N/A | CE48: N/A | CF48: N/A | CG48: N/A | CH48: N/A
B49: Highly contaminated (>100 CFU/100 mL) | C49: N/A | D49: N/A | E49: N/A | F49: N/A | G49: N/A | H49: N/A | I49: N/A | J49: N/A | K49: N/A | L49: N/A | M49: N/A | N49: N/A | O49: N/A | P49: N/A | Q49: N/A | R49: N/A | S49: N/A | T49: N/A | U49: N/A | V49: N/A | W49: N/A | X49: N/A | Y49: N/A | Z49: N/A | AA49: N/A | AB49: N/A | AC49: N/A | AD49: N/A | AE49: N/A | AF49: N/A | AG49: N/A | AH49: N/A | BB49: Highly contaminated (>100 CFU/100 mL) | BC49: N/A | BD49: N/A | BE49: N/A | BF49: N/A | BG49: N/A | BH49: N/A | BI49: N/A | BJ49: N/A | BK49: N/A | BL49: N/A | BM49: N/A | BN49: N/A | BO49: N/A | BP49: N/A | BQ49: N/A | BR49: N/A | BS49: N/A | BT49: N/A | BU49: N/A | BV49: N/A | BW49: N/A | BX49: N/A | BY49: N/A | BZ49: N/A | CA49: N/A | CB49: N/A | CC49: N/A | CD49: N/A | CE49: N/A | CF49: N/A | CG49: N/A | CH49: N/A
A50: Microbiological quality of improved water sources at point of collection | B50: Not contaminated (No E. coli in 100 mL) | C50: N/A | D50: N/A | E50: N/A | F50: N/A | G50: N/A | H50: N/A | I50: N/A | J50: N/A | K50: N/A | L50: N/A | M50: N/A | N50: N/A | O50: N/A | P50: N/A | Q50: N/A | R50: N/A | S50: N/A | T50: N/A | U50: N/A | V50: N/A | W50: N/A | X50: N/A | Y50: N/A | Z50: N/A | AA50: N/A | AB50: N/A | AC50: N/A | AD50: N/A | AE50: N/A | AF50: N/A | AG50: N/A | AH50: N/A | BA50: Microbiological quality of improved water sources at point of collection | BB50: Not contaminated (No E. coli in 100 mL) | BC50: N/A | BD50: N/A | BE50: N/A | BF50: N/A | BG50: N/A | BH50: N/A | BI50: N/A | BJ50: N/A | BK50: N/A | BL50: N/A | BM50: N/A | BN50: N/A | BO50: N/A | BP50: N/A | BQ50: N/A | BR50: N/A | BS50: N/A | BT50: N/A | BU50: N/A | BV50: N/A | BW50: N/A | BX50: N/A | BY50: N/A | BZ50: N/A | CA50: N/A | CB50: N/A | CC50: N/A | CD50: N/A | CE50: N/A | CF50: N/A | CG50: N/A | CH50: N/A
B51: Contaminated (E. coli detected in 100 mL) | C51: N/A | D51: N/A | E51: N/A | F51: N/A | G51: N/A | H51: N/A | I51: N/A | J51: N/A | K51: N/A | L51: N/A | M51: N/A | N51: N/A | O51: N/A | P51: N/A | Q51: N/A | R51: N/A | S51: N/A | T51: N/A | U51: N/A | V51: N/A | W51: N/A | X51: N/A | Y51: N/A | Z51: N/A | AA51: N/A | AB51: N/A | AC51: N/A | AD51: N/A | AE51: N/A | AF51: N/A | AG51: N/A | AH51: N/A | BB51: Contaminated (E. coli detected in 100 mL) | BC51: N/A | BD51: N/A | BE51: N/A | BF51: N/A | BG51: N/A | BH51: N/A | BI51: N/A | BJ51: N/A | BK51: N/A | BL51: N/A | BM51: N/A | BN51: N/A | BO51: N/A | BP51: N/A | BQ51: N/A | BR51: N/A | BS51: N/A | BT51: N/A | BU51: N/A | BV51: N/A | BW51: N/A | BX51: N/A | BY51: N/A | BZ51: N/A | CA51: N/A | CB51: N/A | CC51: N/A | CD51: N/A | CE51: N/A | CF51: N/A | CG51: N/A | CH51: N/A
B52: Highly contaminated (>100 CFU/100 mL) | C52: N/A | D52: N/A | E52: N/A | F52: N/A | G52: N/A | H52: N/A | I52: N/A | J52: N/A | K52: N/A | L52: N/A | M52: N/A | N52: N/A | O52: N/A | P52: N/A | Q52: N/A | R52: N/A | S52: N/A | T52: N/A | U52: N/A | V52: N/A | W52: N/A | X52: N/A | Y52: N/A | Z52: N/A | AA52: N/A | AB52: N/A | AC52: N/A | AD52: N/A | AE52: N/A | AF52: N/A | AG52: N/A | AH52: N/A | BB52: Highly contaminated (>100 CFU/100 mL) | BC52: N/A | BD52: N/A | BE52: N/A | BF52: N/A | BG52: N/A | BH52: N/A | BI52: N/A | BJ52: N/A | BK52: N/A | BL52: N/A | BM52: N/A | BN52: N/A | BO52: N/A | BP52: N/A | BQ52: N/A | BR52: N/A | BS52: N/A | BT52: N/A | BU52: N/A | BV52: N/A | BW52: N/A | BX52: N/A | BY52: N/A | BZ52: N/A | CA52: N/A | CB52: N/A | CC52: N/A | CD52: N/A | CE52: N/A | CF52: N/A | CG52: N/A | CH52: N/A
A53: Microbiological quality of piped on premises at point of collection | B53: Not contaminated (No E. coli in 100 mL) | C53: N/A | D53: N/A | E53: N/A | F53: N/A | G53: N/A | H53: N/A | I53: N/A | J53: N/A | K53: N/A | L53: N/A | M53: N/A | N53: N/A | O53: N/A | P53: N/A | Q53: N/A | R53: N/A | S53: N/A | T53: N/A | U53: N/A | V53: N/A | W53: N/A | X53: N/A | Y53: N/A | Z53: N/A | AA53: N/A | AB53: N/A | AC53: N/A | AD53: N/A | AE53: N/A | AF53: N/A | AG53: N/A | AH53: N/A | BA53: Microbiological quality of piped on premises at point of collection | BB53: Not contaminated (No E. coli in 100 mL) | BC53: N/A | BD53: N/A | BE53: N/A | BF53: N/A | BG53: N/A | BH53: N/A | BI53: N/A | BJ53: N/A | BK53: N/A | BL53: N/A | BM53: N/A | BN53: N/A | BO53: N/A | BP53: N/A | BQ53: N/A | BR53: N/A | BS53: N/A | BT53: N/A | BU53: N/A | BV53: N/A | BW53: N/A | BX53: N/A | BY53: N/A | BZ53: N/A | CA53: N/A | CB53: N/A | CC53: N/A | CD53: N/A | CE53: N/A | CF53: N/A | CG53: N/A | CH53: N/A
B54: Contaminated (E. coli detected in 100 mL) | C54: N/A | D54: N/A | E54: N/A | F54: N/A | G54: N/A | H54: N/A | I54: N/A | J54: N/A | K54: N/A | L54: N/A | M54: N/A | N54: N/A | O54: N/A | P54: N/A | Q54: N/A | R54: N/A | S54: N/A | T54: N/A | U54: N/A | V54: N/A | W54: N/A | X54: N/A | Y54: N/A | Z54: N/A | AA54: N/A | AB54: N/A | AC54: N/A | AD54: N/A | AE54: N/A | AF54: N/A | AG54: N/A | AH54: N/A | BB54: Contaminated (E. coli detected in 100 mL) | BC54: N/A | BD54: N/A | BE54: N/A | BF54: N/A | BG54: N/A | BH54: N/A | BI54: N/A | BJ54: N/A | BK54: N/A | BL54: N/A | BM54: N/A | BN54: N/A | BO54: N/A | BP54: N/A | BQ54: N/A | BR54: N/A | BS54: N/A | BT54: N/A | BU54: N/A | BV54: N/A | BW54: N/A | BX54: N/A | BY54: N/A | BZ54: N/A | CA54: N/A | CB54: N/A | CC54: N/A | CD54: N/A | CE54: N/A | CF54: N/A | CG54: N/A | CH54: N/A
B55: Highly contaminated (>100 CFU/100 mL) | C55: N/A | D55: N/A | E55: N/A | F55: N/A | G55: N/A | H55: N/A | I55: N/A | J55: N/A | K55: N/A | L55: N/A | M55: N/A | N55: N/A | O55: N/A | P55: N/A | Q55: N/A | R55: N/A | S55: N/A | T55: N/A | U55: N/A | V55: N/A | W55: N/A | X55: N/A | Y55: N/A | Z55: N/A | AA55: N/A | AB55: N/A | AC55: N/A | AD55: N/A | AE55: N/A | AF55: N/A | AG55: N/A | AH55: N/A | BB55: Highly contaminated (>100 CFU/100 mL) | BC55: N/A | BD55: N/A | BE55: N/A | BF55: N/A | BG55: N/A | BH55: N/A | BI55: N/A | BJ55: N/A | BK55: N/A | BL55: N/A | BM55: N/A | BN55: N/A | BO55: N/A | BP55: N/A | BQ55: N/A | BR55: N/A | BS55: N/A | BT55: N/A | BU55: N/A | BV55: N/A | BW55: N/A | BX55: N/A | BY55: N/A | BZ55: N/A | CA55: N/A | CB55: N/A | CC55: N/A | CD55: N/A | CE55: N/A | CF55: N/A | CG55: N/A | CH55: N/A
C56: NATIONAL wealth index quintile | H56: URBAN wealth index quintile | M56: RURAL wealth index quintile | R56: SUB-REGIONS: | BA56: Raw numbers of respondents: | BB56: Use of drinking water sources | BC56: NATIONAL wealth index quintile | BH56: URBAN wealth index quintile | BM56: RURAL wealth index quintile | BR56: SUB-REGIONS:
A57: Percentage based on weighted population | C57: Poorest | D57: Poor | E57: Middle | F57: Rich | G57: Richest | H57: Poorest | I57: Poor | J57: Middle | K57: Rich | L57: Richest | M57: Poorest | N57: Poor | O57: Middle | P57: Rich | Q57: Richest | R57: ARMM | S57: Bicol | T57: Cagayan Valley | U57: CALABARZON | V57: Caraga | W57: Central Luzon | X57: Central Visayas | Y57: Cordillera Admin Region | Z57: Davao | AA57: Eastern Visayas | AB57: Ilocos | AC57: MIMAROPA | AD57: National Capital Region | AE57: Northern Mindanao | AF57: SOCCSKSARGEN | AG57: Western Visayas | AH57: Zamboanga Peninsula | BA57: Water data, raw numbers (weighted) | BC57: Poorest | BD57: Poor | BE57: Middle | BF57: Rich | BG57: Richest | BH57: Poorest | BI57: Poor | BJ57: Middle | BK57: Rich | BL57: Richest | BM57: Poorest | BN57: Poor | BO57: Middle | BP57: Rich | BQ57: Richest | BR57: ARMM | BS57: Bicol | BT57: Cagayan Valley | BU57: CALABARZON | BV57: Caraga | BW57: Central Luzon | BX57: Central Visayas | BY57: Cordillera Admin Region | BZ57: Davao | CA57: Eastern Visayas | CB57: Ilocos | CC57: MIMAROPA | CD57: National Capital Region | CE57: Northern Mindanao | CF57: SOCCSKSARGEN | CG57: Western Visayas | CH57: Zamboanga Peninsula
A58: Source of drinking water | B58: Piped into dwelling | C58: 5.46333994 | D58: 18.08183496 | E58: 36.48679856 | F58: 48.54730495 | G58: 60.30193854 | H58: 24.37319278 | I58: 46.42227421 | J58: 56.31691683 | K58: 63.24887265 | L58: 63.28385554 | M58: 3.183773792 | N58: 6.201259166 | O58: 11.96248524 | P58: 20.99324036 | Q58: 35.99960032 | R58: 9.480167327 | S58: 18.85631841 | T58: 12.53512511 | U58: 55.5874285 | V58: 25.14099717 | W58: 38.79786119 | X58: 30.93546509 | Y58: 45.66520818 | Z58: 30.92630264 | AA58: 14.71567622 | AB58: 25.35457285 | AC58: 26.95800026 | AD58: 60.91540992 | AE58: 30.62526337 | AF58: 12.31376833 | AG58: 15.34783388 | AH58: 25.90496916
B59: Piped into yard/plot | C59: 4.564987404 | D59: 7.903282374 | E59: 6.725055319 | F59: 4.98597563 | G59: 1.630700255 | H59: 7.741725069 | I59: 6.18817055 | J59: 4.616941018 | K59: 3.265441487 | L59: 1.136868047 | M59: 4.096863451 | N59: 4.937373592 | O59: 7.977329766 | P59: 7.198872134 | Q59: 4.641134485 | R59: 2.893562658 | S59: 3.256745655 | T59: 4.890453219 | U59: 1.523212836 | V59: 4.777134396 | W59: 6.155434821 | X59: 8.724586964 | Y59: 5.143991556 | Z59: 3.890166766 | AA59: 8.966775302 | AB59: 16.1244025 | AC59: 4.597088317 | AD59: 2.658521986 | AE59: 11.09567772 | AF59: 1.967156462 | AG59: 1.723778804 | AH59: 7.765672056
B60: Public tap | C60: 20.91264711 | D60: 19.43886683 | E60: 13.93587468 | F60: 8.584566311 | G60: 4.530920884 | H60: 23.93006311 | I60: 13.9898142 | J60: 8.805167484 | K60: 6.983664764 | L60: 3.395284876 | M60: 19.09653966 | N60: 19.04088548 | O60: 18.42745425 | P60: 14.41850426 | Q60: 7.384752489 | R60: 12.32242491 | S60: 17.12454197 | T60: 0.1681725269 | U60: 4.427230366 | V60: 29.64847048 | W60: 10.10184564 | X60: 16.24982846 | Y60: 3.644870852 | Z60: 5.78538713 | AA60: 40.34533339 | AB60: 5.437914577 | AC60: 13.76124253 | AD60: 11.74787344 | AE60: 30.57673313 | AF60: 8.3561217 | AG60: 13.14821254 | AH60: 25.22186847
B61: Open dug well | C61: 15.15885766 | D61: 5.583996184 | E61: 1.398328494 | F61: 0.7458128279 | G61: 0.1077354128 | H61: 2.626194725 | I61: 0.5661680296 | J61: 0.4337749633 | K61: 0.04887790406 | L61: 0 | M61: 17.76335729 | N61: 15.58036255 | O61: 6.781561742 | P61: 2.416985932 | Q61: 1.113798092 | R61: 21.14377097 | S61: 11.36760232 | T61: 4.044390498 | U61: 1.69359677 | V61: 0.8035073332 | W61: 1.278556405 | X61: 2.983313429 | Y61: 0.9363424738 | Z61: 3.014971445 | AA61: 4.954889023 | AB61: 0.3495293033 | AC61: 11.67994841 | AD61: 0.1280617883 | AE61: 4.8002003 | AF61: 4.176078945 | AG61: 9.450062239 | AH61: 14.93611183
B62: Protected well | C62: 29.07480437 | D62: 33.67914077 | E62: 32.44151942 | F62: 25.39805648 | G62: 13.35376057 | H62: 30.80130861 | I62: 24.8297567 | J62: 19.51467874 | K62: 11.81198525 | L62: 7.292561002 | M62: 27.03949967 | N62: 28.477276 | O62: 38.59105904 | P62: 44.26241519 | Q62: 37.95708927 | R62: 23.78161264 | S62: 37.06201264 | T62: 72.46808677 | U62: 24.45486243 | V62: 27.28715522 | W62: 30.94748119 | X62: 21.88611088 | Y62: 20.76751208 | Z62: 23.10563328 | AA62: 14.96573231 | AB62: 46.9879811 | AC62: 31.88675377 | AD62: 7.486691096 | AE62: 10.77508091 | AF62: 47.65338866 | AG62: 39.70730309 | AH62: 13.36644621
B63: Developed spring | C63: 9.29615986 | D63: 7.533647468 | E63: 2.397178526 | F63: 2.385163319 | G63: 0.3951463826 | H63: 2.978864941 | I63: 0.8366560869 | J63: 0.7109703198 | K63: 0.4237305931 | L63: 0.1254767617 | M63: 10.67880703 | N63: 11.44036026 | O63: 9.20603431 | P63: 4.873216865 | Q63: 3.910378768 | R63: 8.642689413 | S63: 6.209701256 | T63: 3.890071134 | U63: 0.9722000842 | V63: 6.177325482 | W63: 1.110723744 | X63: 6.66104323 | Y63: 7.858438986 | Z63: 9.434412594 | AA63: 4.873638384 | AB63: 1.119152141 | AC63: 3.404062651 | AD63: 0.1743680813 | AE63: 5.052499025 | AF63: 15.46802809 | AG63: 8.007470322 | AH63: 4.95539464
B64: Undeveloped spring | C64: 10.97307395 | D64: 3.664178164 | E64: 1.377346283 | F64: 0.68744442 | G64: 0.1257749007 | H64: 2.124926547 | I64: 0.2917127833 | J64: 0.276664744 | K64: 0.107602276 | L64: 0 | M64: 13.51378585 | N64: 9.967976504 | O64: 4.342061328 | P64: 2.958653476 | Q64: 1.050511419 | R64: 9.175203937 | S64: 2.629813077 | T64: 0.6361977487 | U64: 1.044087538 | V64: 1.817469192 | W64: 1.512739022 | X64: 4.512204682 | Y64: 6.506785604 | Z64: 8.087323898 | AA64: 9.77951061 | AB64: 0 | AC64: 2.957228118 | AD64: 0 | AE64: 3.877645485 | AF64: 5.774478406 | AG64: 5.759830808 | AH64: 7.126709157
B65: River/stream/pond/lake/dam | C65: 2.603695062 | D65: 0.9640045164 | E65: 0.4187823905 | F65: 0.3260298766 | G65: 0.2297768274 | H65: 0.5484786442 | I65: 0.3136064307 | J65: 0.1681382231 | K65: 0.1251277394 | L65: 0 | M65: 3.229770215 | N65: 2.329644833 | O65: 1.214901262 | P65: 0.5611361298 | Q65: 0.8314538818 | R65: 7.515349782 | S65: 0.3096404706 | T65: 0.1163018001 | U65: 0.9292262529 | V65: 0 | W65: 1.893987829 | X65: 0.4105867357 | Y65: 0.2605462913 | Z65: 1.357734509 | AA65: 0.6817330163 | AB65: 0 | AC65: 2.260655104 | AD65: 0 | AE65: 0.06733437216 | AF65: 0.7209704905 | AG65: 0.8655235925 | AH65: 0.4545212854
B66: Rainwater | C66: 0.6990528195 | D66: 0.6686195678 | E66: 0.4304722925 | F66: 0.1951702616 | G66: 0.02911185219 | H66: 0.159935441 | I66: 0 | J66: 0.08485378264 | K66: 0 | L66: 0.05634100876 | M66: 0.4144400082 | N66: 1.3068474 | O66: 0.8033342458 | P66: 1.017767197 | Q66: 0.3145686759 | R66: 3.501093183 | S66: 0 | T66: 0 | U66: 0 | V66: 1.131942611 | W66: 0 | X66: 0.6994377228 | Y66: 0 | Z66: 2.357728026 | AA66: 0.3013418751 | AB66: 0 | AC66: 0.5425880338 | AD66: 0 | AE66: 0 | AF66: 0 | AG66: 0.7102657822 | AH66: 0
B67: Tanker truck/peddler | C67: 1.087082973 | D67: 1.22303569 | E67: 1.447621117 | F67: 1.821196741 | G67: 1.723214352 | H67: 2.741809366 | I67: 2.11694704 | J67: 2.216682016 | K67: 1.985777183 | L67: 1.238963064 | M67: 0.7775661169 | N67: 0.7180142109 | O67: 0.352144806 | P67: 0.4960347902 | Q67: 1.755887718 | R67: 1.54412517 | S67: 2.569404281 | T67: 0 | U67: 1.071460782 | V67: 2.367625191 | W67: 2.08407839 | X67: 0.1486166531 | Y67: 0.6962763606 | Z67: 3.945934698 | AA67: 0.1506911398 | AB67: 0.0628151531 | AC67: 1.762854624 | AD67: 2.330939794 | AE67: 0.2905455459 | AF67: 1.746320557 | AG67: 1.720144378 | AH67: 0.2683071989
B68: Bottled water/refilling station | C68: 0.09120996634 | D68: 1.194661747 | E68: 2.94102291 | F68: 6.301286429 | G68: 17.57192003 | H68: 1.84829916 | I68: 4.444893964 | J68: 6.855211876 | K68: 11.99892016 | L68: 23.4706497 | M68: 0.04958529936 | N68: 0 | O68: 0.3416340127 | P68: 0.8031736685 | Q68: 4.995176918 | R68: 0 | S68: 0.6142199295 | T68: 1.251201188 | U68: 8.296694442 | V68: 0.8483729179 | W68: 6.117291772 | X68: 6.596520443 | Y68: 8.52002762 | Z68: 7.908931365 | AA68: 0.2646787231 | AB68: 4.563632373 | AC68: 0.03659556963 | AD68: 14.53077251 | AE68: 2.839020138 | AF68: 1.823688359 | AG68: 3.559574559 | AH68: 0
B69: Other | C69: 0.07508888354 | D69: 0.06473172834 | E69: 0 | F69: 0.02199275581 | G69: 0 | H69: 0.1252016078 | I69: 0 | J69: 0 | K69: 0 | L69: 0 | M69: 0.1560116195 | N69: 0 | O69: 0 | P69: 0 | Q69: 0.04564796531 | R69: 0 | S69: 0 | T69: 0 | U69: 0 | V69: 0 | W69: 0 | X69: 0.1922857048 | Y69: 0 | Z69: 0.185473644 | AA69: 0 | AB69: 0 | AC69: 0.1529826113 | AD69: 0.02736138487 | AE69: 0 | AF69: 0 | AG69: 0 | AH69: 0
A108: =A1026 -> Philippines
A109: =A1034 -> 2003
A110: Use of sanitation facilities
A111: by wealth quintile and sub-national region
A112: Notes:
A113: WHO/UNICEF JMP customised wealth index excludes water,
A114: sanitation and hygiene assets.
A115: Survey used for analysis: | B115: =A1025 -> DHS03
A116: Ratio of shared facilities based on: | B116: DHS17
A117: =B1029 -> 
A120: Use of sanitation facilities | C120: NATIONAL wealth index quintile | H120: URBAN wealth index quintile | M120: RURAL wealth index quintile | R120: SUB-REGIONS: | BA120: Raw numbers of respondents: | BB120: Use of sanitation facilities | BC120: NATIONAL wealth index quintile | BH120: URBAN wealth index quintile | BM120: RURAL wealth index quintile | BR120: SUB-REGIONS:
A121: Weighted percentage (used in graphs) | C121: Poorest | D121: Poor | E121: Middle | F121: Rich | G121: Richest | H121: Poorest | I121: Poor | J121: Middle | K121: Rich | L121: Richest | M121: Poorest | N121: Poor | O121: Middle | P121: Rich | Q121: Richest | R121: ARMM | S121: Bicol | T121: Cagayan Valley | U121: CALABARZON | V121: Caraga | W121: Central Luzon | X121: Central Visayas | Y121: Cordillera Admin Region | Z121: Davao | AA121: Eastern Visayas | AB121: Ilocos | AC121: MIMAROPA | AD121: National Capital Region | AE121: Northern Mindanao | AF121: SOCCSKSARGEN | AG121: Western Visayas | AH121: Zamboanga Peninsula | BA121: Sanitation data, raw numbers (weighted) | BC121: Poorest | BD121: Poor | BE121: Middle | BF121: Rich | BG121: Richest | BH121: Poorest | BI121: Poor | BJ121: Middle | BK121: Rich | BL121: Richest | BM121: Poorest | BN121: Poor | BO121: Middle | BP121: Rich | BQ121: Richest | BR121: ARMM | BS121: Bicol | BT121: Cagayan Valley | BU121: CALABARZON | BV121: Caraga | BW121: Central Luzon | BX121: Central Visayas | BY121: Cordillera Admin Region | BZ121: Davao | CA121: Eastern Visayas | CB121: Ilocos | CC121: MIMAROPA | CD121: National Capital Region | CE121: Northern Mindanao | CF121: SOCCSKSARGEN | CG121: Western Visayas | CH121: Zamboanga Peninsula
A122: Sanitation | B122: Improved | C122: =C153+C154+C155 -> 51.07873526 | D122: =D153+D154+D155 -> 79.29807697 | E122: 94.7927697 | F122: 98.61735956 | G122: 99.75596971 | H122: 73.86948834 | I122: 96.21327282 | J122: 99.21158105 | K122: 99.98095016 | L122: 99.84849046 | M122: 46.52945899 | N122: 57.62747975 | O122: 80.23816469 | P122: 92.25154598 | Q122: 98.15594017 | R122: N/A | S122: N/A | T122: N/A | U122: N/A | V122: N/A | W122: N/A | X122: N/A | Y122: N/A | Z122: N/A | AA122: N/A | AB122: N/A | AC122: N/A | AD122: N/A | AE122: N/A | AF122: N/A | AG122: N/A | AH122: N/A | BA122: Sanitation | BB122: Improved | BC122: 6280.19189 | BD122: 9754.756019 | BE122: 11640.46841 | BF122: 12162.55709 | BG122: 12275.43278 | BH122: 4697.003873 | BI122: 6131.187805 | BJ122: 6289.110653 | BK122: 6359.607257 | BL122: 6347.414368 | BM122: 2753.300186 | BN122: 3439.879912 | BO122: 4762.591208 | BP122: 5500.923886 | BQ122: 5832.387048 | BR122: 787.399694 | BS122: 3006.718909 | BT122: 1908.363836 | BU122: 7286.837591 | BV122: 1479.578849 | BW122: 5950.408977 | BX122: 3768.99767 | BY122: 880.443678 | BZ122: 2491.38888 | CA122: 2027.856211 | CB122: 3088.186109 | CC122: 1226.463772 | CD122: 8688.752529 | CE122: 2483.351847 | CF122: 1974.396848 | CG122: 3367.26633 | CH122: 1696.994466
B123: Not Improved | C123: =100-C122 -> 48.92126474 | D123: =100-D122 -> 20.70192303 | E123: 5.207230296 | F123: 1.38264044 | G123: 0.2440302883 | H123: 26.13051166 | I123: 3.786727176 | J123: 0.7884189535 | K123: 0.01904984253 | L123: 0.15150954 | M123: 53.47054101 | N123: 42.37252025 | O123: 19.76183531 | P123: 7.748454017 | Q123: 1.844059831 | R123: N/A | S123: N/A | T123: N/A | U123: N/A | V123: N/A | W123: N/A | X123: N/A | Y123: N/A | Z123: N/A | AA123: N/A | AB123: N/A | AC123: N/A | AD123: N/A | AE123: N/A | AF123: N/A | AG123: N/A | AH123: N/A | BB123: Not Improved | BC123: 6020.900254 | BD123: 2559.338922 | BE123: 647.516786 | BF123: 170.522141 | BG123: 32.688242 | BH123: 1661.51299 | BI123: 249.382575 | BJ123: 49.978581 | BK123: 1.211726 | BL123: 12.290719 | BM123: 3165.76663 | BN123: 2533.518085 | BO123: 1185.694429 | BP123: 462.037306 | BQ123: 109.573304 | BR123: 1323.68926 | BS123: 712.537485 | BT123: 111.102757 | BU123: 411.89327 | BV123: 210.201871 | BW123: 401.433091 | BX123: 1033.456059 | BY123: 117.638462 | BZ123: 492.422663 | CA123: 942.109379 | CB123: 125.809082 | CC123: 550.016327 | CD123: 172.512667 | CE123: 244.856557 | CF123: 608.900006 | CG123: 1310.473867 | CH123: 661.913542
A124: Sanitation ladder | B124: Basic | C124: =C122*'DHS17'!C129/100 -> 37.24471286 | D124: =D122*'DHS17'!D129/100 -> 59.70172841 | E124: =E122*'DHS17'!E129/100 -> 75.41046925 | F124: =F122*'DHS17'!F129/100 -> 89.90080654 | G124: =G122*'DHS17'!G129/100 -> 97.31802415 | H124: =H122*'DHS17'!H129/100 -> 47.18378772 | I124: =I122*'DHS17'!I129/100 -> 68.13100477 | J124: =J122*'DHS17'!J129/100 -> 84.72708827 | K124: =K122*'DHS17'!K129/100 -> 93.22009114 | L124: =L122*'DHS17'!L129/100 -> 97.96060264 | M124: =M122*'DHS17'!M129/100 -> 34.1330412 | N124: =N122*'DHS17'!N129/100 -> 44.25919442 | O124: =O122*'DHS17'!O129/100 -> 66.74975196 | P124: =P122*'DHS17'!P129/100 -> 82.66577693 | Q124: =Q122*'DHS17'!Q129/100 -> 94.95340292 | R124: N/A | S124: N/A | T124: N/A | U124: N/A | V124: N/A | W124: N/A | X124: N/A | Y124: N/A | Z124: N/A | AA124: N/A | AB124: N/A | AC124: N/A | AD124: N/A | AE124: N/A | AF124: N/A | AG124: N/A | AH124: N/A | BA124: Sanitation ladder | BB124: Basic | BC124: 2143.494005 | BD124: 1127.87782 | BE124: 288.811754 | BF124: 87.993447 | BG124: 18.99753 | BH124: 544.233492 | BI124: 107.700546 | BJ124: 36.805796 | BK124: 0 | BL124: 12.290719 | BM124: 1140.754024 | BN124: 1078.742203 | BO124: 487.931233 | BP124: 210.385281 | BQ124: 48.331262 | BR124: 739.282163 | BS124: 94.453474 | BT124: 84.464474 | BU124: 125.229083 | BV124: 80.396309 | BW124: 116.098035 | BX124: 276.081714 | BY124: 90.042377 | BZ124: 324.03281 | CA124: 110.488706 | CB124: 73.929709 | CC124: 193.124893 | CD124: 121.786038 | CE124: 160.049469 | CF124: 319.993814 | CG124: 507.724373 | CH124: 249.997115
B125: Limited | C125: =C122*'DHS17'!C128/100 -> 13.8340224 | D125: =D122*'DHS17'!D128/100 -> 19.59634855 | E125: =E122*'DHS17'!E128/100 -> 19.38230046 | F125: =F122*'DHS17'!F128/100 -> 8.716553022 | G125: =G122*'DHS17'!G128/100 -> 2.437945562 | H125: =H122*'DHS17'!H128/100 -> 26.68570063 | I125: =I122*'DHS17'!I128/100 -> 28.08226806 | J125: =J122*'DHS17'!J128/100 -> 14.48449277 | K125: =K122*'DHS17'!K128/100 -> 6.760859021 | L125: =L122*'DHS17'!L128/100 -> 1.887887819 | M125: =M122*'DHS17'!M128/100 -> 12.3964178 | N125: =N122*'DHS17'!N128/100 -> 13.36828533 | O125: =O122*'DHS17'!O128/100 -> 13.48841272 | P125: =P122*'DHS17'!P128/100 -> 9.585769054 | Q125: =Q122*'DHS17'!Q128/100 -> 3.202537245 | R125: N/A | S125: N/A | T125: N/A | U125: N/A | V125: N/A | W125: N/A | X125: N/A | Y125: N/A | Z125: N/A | AA125: N/A | AB125: N/A | AC125: N/A | AD125: N/A | AE125: N/A | AF125: N/A | AG125: N/A | AH125: N/A | BB125: Limited | BC125: 3877.406249 | BD125: 1431.461102 | BE125: 358.705032 | BF125: 82.528694 | BG125: 13.690712 | BH125: 1117.279498 | BI125: 141.682029 | BJ125: 13.172785 | BK125: 1.211726 | BL125: 0 | BM125: 2025.012606 | BN125: 1454.775882 | BO125: 697.763196 | BP125: 251.652025 | BQ125: 61.242042 | BR125: 584.407097 | BS125: 618.084011 | BT125: 26.638283 | BU125: 286.664187 | BV125: 129.805562 | BW125: 285.335056 | BX125: 757.374345 | BY125: 27.596085 | BZ125: 168.389853 | CA125: 831.620673 | CB125: 51.879373 | CC125: 356.891434 | CD125: 50.726629 | CE125: 84.807088 | CF125: 288.906192 | CG125: 802.749494 | CH125: 411.916427
B126: Unimproved | C126: =100-(C124+C125+C127) -> 17.38512528 | D126: =100-(D124+D125+D127) -> 9.065331364 | E126: 2.286158541 | F126: 0.7134750806 | G126: 0.1327730906 | H126: 8.559126345 | I126: 1.56339099 | J126: 0.5806164678 | K126: 0 | L126: 0.15150954 | M126: 19.2487945 | N126: 18.00101024 | O126: 8.006209902 | P126: 3.528201412 | Q126: 0.8133891702 | R126: N/A | S126: N/A | T126: N/A | U126: N/A | V126: N/A | W126: N/A | X126: N/A | Y126: N/A | Z126: N/A | AA126: N/A | AB126: N/A | AC126: N/A | AD126: N/A | AE126: N/A | AF126: N/A | AG126: N/A | AH126: N/A | BB126: Unimproved | BC126: 3068.00136 | BD126: 6212.050328 | BE126: 8992.697996 | BF126: 10792.14353 | BG126: 11931.17476 | BH126: 2720.853078 | BI126: 4624.2282 | BJ126: 5454.885208 | BK126: 5873.663573 | BL126: 6246.290616 | BM126: 1221.643681 | BN126: 1902.307245 | BO126: 3180.091244 | BP126: 4318.54434 | BQ126: 5453.56079 | BR126: 414.009191 | BS126: 2316.097129 | BT126: 1655.574382 | BU126: 6275.199629 | BV126: 1216.926848 | BW126: 5154.077249 | BX126: 3015.424596 | BY126: 618.971536 | BZ126: 1831.037064 | CA126: 1678.308671 | CB126: 2554.879443 | CC126: 851.561956 | CD126: 7152.023945 | CE126: 1647.626656 | CF126: 1316.397603 | CG126: 2280.340796 | CH126: 1017.611281
B127: Open defecation | C127: =C158 -> 31.53613946 | D127: =D158 -> 11.63659167 | E127: 2.921071755 | F127: 0.6691653596 | G127: 0.1112571977 | H127: 17.57138531 | I127: 2.223336186 | J127: 0.2078024857 | K127: 0.01904984253 | L127: 0 | M127: 34.2217465 | N127: 24.37151 | O127: 11.75562541 | P127: 4.220252604 | Q127: 1.03067066 | R127: N/A | S127: N/A | T127: N/A | U127: N/A | V127: N/A | W127: N/A | X127: N/A | Y127: N/A | Z127: N/A | AA127: N/A | AB127: N/A | AC127: N/A | AD127: N/A | AE127: N/A | AF127: N/A | AG127: N/A | AH127: N/A | BB127: Open defecation | BC127: 1448.137998 | BD127: 2338.584726 | BE127: 2096.023091 | BF127: 1152.103824 | BG127: 281.869161 | BH127: 1719.734345 | BI127: 1373.985802 | BJ127: 771.938898 | BK127: 452.870388 | BL127: 94.170192 | BM127: 546.510295 | BN127: 597.370734 | BO127: 830.452666 | BP127: 724.174023 | BQ127: 205.511457 | BR127: 70.964038 | BS127: 370.319494 | BT127: 183.242556 | BU127: 894.344551 | BV127: 167.383253 | BW127: 661.620874 | BX127: 570.787422 | BY127: 145.131102 | BZ127: 442.084141 | CA127: 306.236861 | CB127: 376.78307 | CC127: 196.205058 | CD127: 1521.89925 | CE127: 459.032927 | CF127: 403.674593 | CG127: 385.000478 | CH127: 162.009132
A128: Shared among Improved Sanitation | B128: Yes | C128: N/A | D128: N/A | E128: N/A | F128: N/A | G128: N/A | H128: N/A | I128: N/A | J128: N/A | K128: N/A | L128: N/A | M128: N/A | N128: N/A | O128: N/A | P128: N/A | Q128: N/A | R128: N/A | S128: N/A | T128: N/A | U128: N/A | V128: N/A | W128: N/A | X128: N/A | Y128: N/A | Z128: N/A | AA128: N/A | AB128: N/A | AC128: N/A | AD128: N/A | AE128: N/A | AF128: N/A | AG128: N/A | AH128: N/A | BA128: Shared among improved sanitation facilities | BB128: Yes | BC128: N/A | BD128: N/A | BE128: N/A | BF128: N/A | BG128: N/A | BH128: N/A | BI128: N/A | BJ128: N/A | BK128: N/A | BL128: N/A | BM128: N/A | BN128: N/A | BO128: N/A | BP128: N/A | BQ128: N/A | BR128: N/A | BS128: N/A | BT128: N/A | BU128: N/A | BV128: N/A | BW128: N/A | BX128: N/A | BY128: N/A | BZ128: N/A | CA128: N/A | CB128: N/A | CC128: N/A | CD128: N/A | CE128: N/A | CF128: N/A | CG128: N/A | CH128: N/A
B129: No | C129: N/A | D129: N/A | E129: N/A | F129: N/A | G129: N/A | H129: N/A | I129: N/A | J129: N/A | K129: N/A | L129: N/A | M129: N/A | N129: N/A | O129: N/A | P129: N/A | Q129: N/A | R129: N/A | S129: N/A | T129: N/A | U129: N/A | V129: N/A | W129: N/A | X129: N/A | Y129: N/A | Z129: N/A | AA129: N/A | AB129: N/A | AC129: N/A | AD129: N/A | AE129: N/A | AF129: N/A | AG129: N/A | AH129: N/A | BB129: No | BC129: N/A | BD129: N/A | BE129: N/A | BF129: N/A | BG129: N/A | BH129: N/A | BI129: N/A | BJ129: N/A | BK129: N/A | BL129: N/A | BM129: N/A | BN129: N/A | BO129: N/A | BP129: N/A | BQ129: N/A | BR129: N/A | BS129: N/A | BT129: N/A | BU129: N/A | BV129: N/A | BW129: N/A | BX129: N/A | BY129: N/A | BZ129: N/A | CA129: N/A | CB129: N/A | CC129: N/A | CD129: N/A | CE129: N/A | CF129: N/A | CG129: N/A | CH129: N/A
A130: Manually calculated ratios | B130: Improved latrines
B131: Other
B132: Other
C133: NATIONAL wealth index quintile | H133: URBAN wealth index quintile | M133: RURAL wealth index quintile | R133: SUB-REGIONS: | BA133: Raw numbers of respondents: | BB133: Use of sanitation facilities | BC133: NATIONAL wealth index quintile | BH133: URBAN wealth index quintile | BM133: RURAL wealth index quintile | BR133: SUB-REGIONS:
A134: Percentage based on weighted population | C134: Poorest | D134: Poor | E134: Middle | F134: Rich | G134: Richest | H134: Poorest | I134: Poor | J134: Middle | K134: Rich | L134: Richest | M134: Poorest | N134: Poor | O134: Middle | P134: Rich | Q134: Richest | R134: ARMM | S134: Bicol | T134: Cagayan Valley | U134: CALABARZON | V134: Caraga | W134: Central Luzon | X134: Central Visayas | Y134: Cordillera Admin Region | Z134: Davao | AA134: Eastern Visayas | AB134: Ilocos | AC134: MIMAROPA | AD134: National Capital Region | AE134: Northern Mindanao | AF134: SOCCSKSARGEN | AG134: Western Visayas | AH134: Zamboanga Peninsula | BA134: Sanitation data, raw numbers (weighted) | BC134: Poorest | BD134: Poor | BE134: Middle | BF134: Rich | BG134: Richest | BH134: Poorest | BI134: Poor | BJ134: Middle | BK134: Rich | BL134: Richest | BM134: Poorest | BN134: Poor | BO134: Middle | BP134: Rich | BQ134: Richest | BR134: ARMM | BS134: Bicol | BT134: Cagayan Valley | BU134: CALABARZON | BV134: Caraga | BW134: Central Luzon | BX134: Central Visayas | BY134: Cordillera Admin Region | BZ134: Davao | CA134: Eastern Visayas | CB134: Ilocos | CC134: MIMAROPA | CD134: National Capital Region | CE134: Northern Mindanao | CF134: SOCCSKSARGEN | CG134: Western Visayas | CH134: Zamboanga Peninsula
A135: Sanitation type | B135: Sewer connection | C135: N/A | D135: N/A | E135: N/A | F135: N/A | G135: N/A | H135: N/A | I135: N/A | J135: N/A | K135: N/A | L135: N/A | M135: N/A | N135: N/A | O135: N/A | P135: N/A | Q135: N/A | R135: N/A | S135: N/A | T135: N/A | U135: N/A | V135: N/A | W135: N/A | X135: N/A | Y135: N/A | Z135: N/A | AA135: N/A | AB135: N/A | AC135: N/A | AD135: N/A | AE135: N/A | AF135: N/A | AG135: N/A | AH135: N/A | BA135: Sanitation type | BB135: Sewer connection | BC135: N/A | BD135: N/A | BE135: N/A | BF135: N/A | BG135: N/A | BH135: N/A | BI135: N/A | BJ135: N/A | BK135: N/A | BL135: N/A | BM135: N/A | BN135: N/A | BO135: N/A | BP135: N/A | BQ135: N/A | BR135: N/A | BS135: N/A | BT135: N/A | BU135: N/A | BV135: N/A | BW135: N/A | BX135: N/A | BY135: N/A | BZ135: N/A | CA135: N/A | CB135: N/A | CC135: N/A | CD135: N/A | CE135: N/A | CF135: N/A | CG135: N/A | CH135: N/A
B136: Septic tank connection | C136: N/A | D136: N/A | E136: N/A | F136: N/A | G136: N/A | H136: N/A | I136: N/A | J136: N/A | K136: N/A | L136: N/A | M136: N/A | N136: N/A | O136: N/A | P136: N/A | Q136: N/A | R136: N/A | S136: N/A | T136: N/A | U136: N/A | V136: N/A | W136: N/A | X136: N/A | Y136: N/A | Z136: N/A | AA136: N/A | AB136: N/A | AC136: N/A | AD136: N/A | AE136: N/A | AF136: N/A | AG136: N/A | AH136: N/A | BB136: Septic tank connection | BC136: N/A | BD136: N/A | BE136: N/A | BF136: N/A | BG136: N/A | BH136: N/A | BI136: N/A | BJ136: N/A | BK136: N/A | BL136: N/A | BM136: N/A | BN136: N/A | BO136: N/A | BP136: N/A | BQ136: N/A | BR136: N/A | BS136: N/A | BT136: N/A | BU136: N/A | BV136: N/A | BW136: N/A | BX136: N/A | BY136: N/A | BZ136: N/A | CA136: N/A | CB136: N/A | CC136: N/A | CD136: N/A | CE136: N/A | CF136: N/A | CG136: N/A | CH136: N/A
B137: Improved latrines | C137: 14.34061717 | D137: 9.778395983 | E137: 4.490136627 | F137: 1.770115394 | G137: 0.5068918795 | H137: 4.032645592 | I137: 2.084042571 | J137: 0.9825788012 | K137: 0.5199534225 | L137: 0.1093377744 | M137: 16.64360685 | N137: 15.73981733 | O137: 12.64309322 | P137: 7.684194283 | Q137: 2.916794976 | R137: 14.32561449 | S137: 8.611997993 | T137: 3.443825129 | U137: 1.523542167 | V137: 5.637935554 | W137: 2.120815545 | X137: 3.806088769 | Y137: 11.65645946 | Z137: 7.315062357 | AA137: 1.458288916 | AB137: 4.870063167 | AC137: 10.05903517 | AD137: 0.1673500755 | AE137: 13.80731265 | AF137: 9.84496426 | AG137: 15.00564432 | AH137: 21.93277785 | BB137: Improved latrines | BC137: N/A | BD137: N/A | BE137: N/A | BF137: N/A | BG137: N/A | BH137: N/A | BI137: N/A | BJ137: N/A | BK137: N/A | BL137: N/A | BM137: N/A | BN137: N/A | BO137: N/A | BP137: N/A | BQ137: N/A | BR137: N/A | BS137: N/A | BT137: N/A | BU137: N/A | BV137: N/A | BW137: N/A | BX137: N/A | BY137: N/A | BZ137: N/A | CA137: N/A | CB137: N/A | CC137: N/A | CD137: N/A | CE137: N/A | CF137: N/A | CG137: N/A | CH137: N/A
B138: Unimproved facilities | C138: 17.4252333 | D138: 9.159242522 | E138: 2.350358902 | F138: 0.7134750806 | G138: 0.1543495547 | H138: 8.559126345 | I138: 1.687945428 | J138: 0.5806164678 | K138: 0 | L138: 0.1932592602 | M138: 19.27253162 | N138: 18.05910478 | O138: 8.202888408 | P138: 3.528201412 | Q138: 0.8133891702 | R138: 35.01899631 | S138: 2.539579529 | T138: 4.182514051 | U138: 1.626619832 | V138: 4.757795378 | W138: 1.827785291 | X138: 5.748763644 | Y138: 9.02153975 | Z138: 10.85969423 | AA138: 3.720201553 | AB138: 2.300243299 | AC138: 10.87121061 | AD138: 1.374363991 | AE138: 5.866467854 | AF138: 12.38703223 | AG138: 10.85405242 | AH138: 10.59800188 | BB138: Unimproved facilities | BC138: N/A | BD138: N/A | BE138: N/A | BF138: N/A | BG138: N/A | BH138: N/A | BI138: N/A | BJ138: N/A | BK138: N/A | BL138: N/A | BM138: N/A | BN138: N/A | BO138: N/A | BP138: N/A | BQ138: N/A | BR138: N/A | BS138: N/A | BT138: N/A | BU138: N/A | BV138: N/A | BW138: N/A | BX138: N/A | BY138: N/A | BZ138: N/A | CA138: N/A | CB138: N/A | CC138: N/A | CD138: N/A | CE138: N/A | CF138: N/A | CG138: N/A | CH138: N/A
B139: Open defecation | C139: 31.52082924 | D139: 11.62457419 | E139: 2.91915254 | F139: 0.6691653596 | G139: 0.1112331604 | H139: 17.57138531 | I139: 2.22052294 | J139: 0.2078024857 | K139: 0.01904984253 | L139: 0 | M139: 34.21168689 | N139: 24.35424331 | O139: 11.73049242 | P139: 4.220252604 | Q139: 1.03067066 | R139: 27.68273198 | S139: 16.61848352 | T139: 1.3190752 | U139: 3.723525243 | V139: 7.68179921 | W139: 4.49216232 | X139: 15.77057037 | Y139: 2.764911213 | Z139: 5.643448005 | AA139: 28.00102048 | AB139: 1.614170835 | AC139: 20.0898076 | AD139: 0.5724535704 | AE139: 3.108526749 | AF139: 11.18362342 | AG139: 17.16105342 | AH139: 17.46216578 | BB139: Open defecation | BC139: N/A | BD139: N/A | BE139: N/A | BF139: N/A | BG139: N/A | BH139: N/A | BI139: N/A | BJ139: N/A | BK139: N/A | BL139: N/A | BM139: N/A | BN139: N/A | BO139: N/A | BP139: N/A | BQ139: N/A | BR139: N/A | BS139: N/A | BT139: N/A | BU139: N/A | BV139: N/A | BW139: N/A | BX139: N/A | BY139: N/A | BZ139: N/A | CA139: N/A | CB139: N/A | CC139: N/A | CD139: N/A | CE139: N/A | CF139: N/A | CG139: N/A | CH139: N/A
A140: Septic tank emptying practices | B140: Not emptied/treated and disposed in situ | C140: N/A | D140: N/A | E140: N/A | F140: N/A | G140: N/A | H140: N/A | I140: N/A | J140: N/A | K140: N/A | L140: N/A | M140: N/A | N140: N/A | O140: N/A | P140: N/A | Q140: N/A | R140: N/A | S140: N/A | T140: N/A | U140: N/A | V140: N/A | W140: N/A | X140: N/A | Y140: N/A | Z140: N/A | AA140: N/A | AB140: N/A | AC140: N/A | AD140: N/A | AE140: N/A | AF140: N/A | AG140: N/A | AH140: N/A | BA140: Septic tank emptying practices | BB140: Not emptied/treated and disposed in situ | BC140: N/A | BD140: N/A | BE140: N/A | BF140: N/A | BG140: N/A | BH140: N/A | BI140: N/A | BJ140: N/A | BK140: N/A | BL140: N/A | BM140: N/A | BN140: N/A | BO140: N/A | BP140: N/A | BQ140: N/A | BR140: N/A | BS140: N/A | BT140: N/A | BU140: N/A | BV140: N/A | BW140: N/A | BX140: N/A | BY140: N/A | BZ140: N/A | CA140: N/A | CB140: N/A | CC140: N/A | CD140: N/A | CE140: N/A | CF140: N/A | CG140: N/A | CH140: N/A
B141: Emptied and buried on site | C141: N/A | D141: N/A | E141: N/A | F141: N/A | G141: N/A | H141: N/A | I141: N/A | J141: N/A | K141: N/A | L141: N/A | M141: N/A | N141: N/A | O141: N/A | P141: N/A | Q141: N/A | R141: N/A | S141: N/A | T141: N/A | U141: N/A | V141: N/A | W141: N/A | X141: N/A | Y141: N/A | Z141: N/A | AA141: N/A | AB141: N/A | AC141: N/A | AD141: N/A | AE141: N/A | AF141: N/A | AG141: N/A | AH141: N/A | BB141: Emptied and buried on site | BC141: N/A | BD141: N/A | BE141: N/A | BF141: N/A | BG141: N/A | BH141: N/A | BI141: N/A | BJ141: N/A | BK141: N/A | BL141: N/A | BM141: N/A | BN141: N/A | BO141: N/A | BP141: N/A | BQ141: N/A | BR141: N/A | BS141: N/A | BT141: N/A | BU141: N/A | BV141: N/A | BW141: N/A | BX141: N/A | BY141: N/A | BZ141: N/A | CA141: N/A | CB141: N/A | CC141: N/A | CD141: N/A | CE141: N/A | CF141: N/A | CG141: N/A | CH141: N/A
B142: Emptied and discharged locally | C142: N/A | D142: N/A | E142: N/A | F142: N/A | G142: N/A | H142: N/A | I142: N/A | J142: N/A | K142: N/A | L142: N/A | M142: N/A | N142: N/A | O142: N/A | P142: N/A | Q142: N/A | R142: N/A | S142: N/A | T142: N/A | U142: N/A | V142: N/A | W142: N/A | X142: N/A | Y142: N/A | Z142: N/A | AA142: N/A | AB142: N/A | AC142: N/A | AD142: N/A | AE142: N/A | AF142: N/A | AG142: N/A | AH142: N/A | BB142: Emptied and discharged locally | BC142: N/A | BD142: N/A | BE142: N/A | BF142: N/A | BG142: N/A | BH142: N/A | BI142: N/A | BJ142: N/A | BK142: N/A | BL142: N/A | BM142: N/A | BN142: N/A | BO142: N/A | BP142: N/A | BQ142: N/A | BR142: N/A | BS142: N/A | BT142: N/A | BU142: N/A | BV142: N/A | BW142: N/A | BX142: N/A | BY142: N/A | BZ142: N/A | CA142: N/A | CB142: N/A | CC142: N/A | CD142: N/A | CE142: N/A | CF142: N/A | CG142: N/A | CH142: N/A
B143: Emptied and removed offsite | C143: N/A | D143: N/A | E143: N/A | F143: N/A | G143: N/A | H143: N/A | I143: N/A | J143: N/A | K143: N/A | L143: N/A | M143: N/A | N143: N/A | O143: N/A | P143: N/A | Q143: N/A | R143: N/A | S143: N/A | T143: N/A | U143: N/A | V143: N/A | W143: N/A | X143: N/A | Y143: N/A | Z143: N/A | AA143: N/A | AB143: N/A | AC143: N/A | AD143: N/A | AE143: N/A | AF143: N/A | AG143: N/A | AH143: N/A | BB143: Emptied and removed offsite | BC143: N/A | BD143: N/A | BE143: N/A | BF143: N/A | BG143: N/A | BH143: N/A | BI143: N/A | BJ143: N/A | BK143: N/A | BL143: N/A | BM143: N/A | BN143: N/A | BO143: N/A | BP143: N/A | BQ143: N/A | BR143: N/A | BS143: N/A | BT143: N/A | BU143: N/A | BV143: N/A | BW143: N/A | BX143: N/A | BY143: N/A | BZ143: N/A | CA143: N/A | CB143: N/A | CC143: N/A | CD143: N/A | CE143: N/A | CF143: N/A | CG143: N/A | CH143: N/A
A144: Latrine emptying practices | B144: Not emptied/treated and disposed in situ | C144: N/A | D144: N/A | E144: N/A | F144: N/A | G144: N/A | H144: N/A | I144: N/A | J144: N/A | K144: N/A | L144: N/A | M144: N/A | N144: N/A | O144: N/A | P144: N/A | Q144: N/A | R144: N/A | S144: N/A | T144: N/A | U144: N/A | V144: N/A | W144: N/A | X144: N/A | Y144: N/A | Z144: N/A | AA144: N/A | AB144: N/A | AC144: N/A | AD144: N/A | AE144: N/A | AF144: N/A | AG144: N/A | AH144: N/A | BA144: Latrine emptying practices | BB144: Not emptied/treated and disposed in situ | BC144: N/A | BD144: N/A | BE144: N/A | BF144: N/A | BG144: N/A | BH144: N/A | BI144: N/A | BJ144: N/A | BK144: N/A | BL144: N/A | BM144: N/A | BN144: N/A | BO144: N/A | BP144: N/A | BQ144: N/A | BR144: N/A | BS144: N/A | BT144: N/A | BU144: N/A | BV144: N/A | BW144: N/A | BX144: N/A | BY144: N/A | BZ144: N/A | CA144: N/A | CB144: N/A | CC144: N/A | CD144: N/A | CE144: N/A | CF144: N/A | CG144: N/A | CH144: N/A
B145: Emptied and buried on site | C145: N/A | D145: N/A | E145: N/A | F145: N/A | G145: N/A | H145: N/A | I145: N/A | J145: N/A | K145: N/A | L145: N/A | M145: N/A | N145: N/A | O145: N/A | P145: N/A | Q145: N/A | R145: N/A | S145: N/A | T145: N/A | U145: N/A | V145: N/A | W145: N/A | X145: N/A | Y145: N/A | Z145: N/A | AA145: N/A | AB145: N/A | AC145: N/A | AD145: N/A | AE145: N/A | AF145: N/A | AG145: N/A | AH145: N/A | BB145: Emptied and buried on site | BC145: N/A | BD145: N/A | BE145: N/A | BF145: N/A | BG145: N/A | BH145: N/A | BI145: N/A | BJ145: N/A | BK145: N/A | BL145: N/A | BM145: N/A | BN145: N/A | BO145: N/A | BP145: N/A | BQ145: N/A | BR145: N/A | BS145: N/A | BT145: N/A | BU145: N/A | BV145: N/A | BW145: N/A | BX145: N/A | BY145: N/A | BZ145: N/A | CA145: N/A | CB145: N/A | CC145: N/A | CD145: N/A | CE145: N/A | CF145: N/A | CG145: N/A | CH145: N/A
B146: Emptied and discharged locally | C146: N/A | D146: N/A | E146: N/A | F146: N/A | G146: N/A | H146: N/A | I146: N/A | J146: N/A | K146: N/A | L146: N/A | M146: N/A | N146: N/A | O146: N/A | P146: N/A | Q146: N/A | R146: N/A | S146: N/A | T146: N/A | U146: N/A | V146: N/A | W146: N/A | X146: N/A | Y146: N/A | Z146: N/A | AA146: N/A | AB146: N/A | AC146: N/A | AD146: N/A | AE146: N/A | AF146: N/A | AG146: N/A | AH146: N/A | BB146: Emptied and discharged locally | BC146: N/A | BD146: N/A | BE146: N/A | BF146: N/A | BG146: N/A | BH146: N/A | BI146: N/A | BJ146: N/A | BK146: N/A | BL146: N/A | BM146: N/A | BN146: N/A | BO146: N/A | BP146: N/A | BQ146: N/A | BR146: N/A | BS146: N/A | BT146: N/A | BU146: N/A | BV146: N/A | BW146: N/A | BX146: N/A | BY146: N/A | BZ146: N/A | CA146: N/A | CB146: N/A | CC146: N/A | CD146: N/A | CE146: N/A | CF146: N/A | CG146: N/A | CH146: N/A
B147: Emptied and removed offsite | C147: N/A | D147: N/A | E147: N/A | F147: N/A | G147: N/A | H147: N/A | I147: N/A | J147: N/A | K147: N/A | L147: N/A | M147: N/A | N147: N/A | O147: N/A | P147: N/A | Q147: N/A | R147: N/A | S147: N/A | T147: N/A | U147: N/A | V147: N/A | W147: N/A | X147: N/A | Y147: N/A | Z147: N/A | AA147: N/A | AB147: N/A | AC147: N/A | AD147: N/A | AE147: N/A | AF147: N/A | AG147: N/A | AH147: N/A | BB147: Emptied and removed offsite | BC147: N/A | BD147: N/A | BE147: N/A | BF147: N/A | BG147: N/A | BH147: N/A | BI147: N/A | BJ147: N/A | BK147: N/A | BL147: N/A | BM147: N/A | BN147: N/A | BO147: N/A | BP147: N/A | BQ147: N/A | BR147: N/A | BS147: N/A | BT147: N/A | BU147: N/A | BV147: N/A | BW147: N/A | BX147: N/A | BY147: N/A | BZ147: N/A | CA147: N/A | CB147: N/A | CC147: N/A | CD147: N/A | CE147: N/A | CF147: N/A | CG147: N/A | CH147: N/A
A148: Shared among improved sanitation facilities | B148: Yes | C148: N/A | D148: N/A | E148: N/A | F148: N/A | G148: N/A | H148: N/A | I148: N/A | J148: N/A | K148: N/A | L148: N/A | M148: N/A | N148: N/A | O148: N/A | P148: N/A | Q148: N/A | R148: N/A | S148: N/A | T148: N/A | U148: N/A | V148: N/A | W148: N/A | X148: N/A | Y148: N/A | Z148: N/A | AA148: N/A | AB148: N/A | AC148: N/A | AD148: N/A | AE148: N/A | AF148: N/A | AG148: N/A | AH148: N/A | BA148: Shared among improved sanitation facilities | BB148: Yes | BC148: N/A | BD148: N/A | BE148: N/A | BF148: N/A | BG148: N/A | BH148: N/A | BI148: N/A | BJ148: N/A | BK148: N/A | BL148: N/A | BM148: N/A | BN148: N/A | BO148: N/A | BP148: N/A | BQ148: N/A | BR148: N/A | BS148: N/A | BT148: N/A | BU148: N/A | BV148: N/A | BW148: N/A | BX148: N/A | BY148: N/A | BZ148: N/A | CA148: N/A | CB148: N/A | CC148: N/A | CD148: N/A | CE148: N/A | CF148: N/A | CG148: N/A | CH148: N/A
B149: No | C149: N/A | D149: N/A | E149: N/A | F149: N/A | G149: N/A | H149: N/A | I149: N/A | J149: N/A | K149: N/A | L149: N/A | M149: N/A | N149: N/A | O149: N/A | P149: N/A | Q149: N/A | R149: N/A | S149: N/A | T149: N/A | U149: N/A | V149: N/A | W149: N/A | X149: N/A | Y149: N/A | Z149: N/A | AA149: N/A | AB149: N/A | AC149: N/A | AD149: N/A | AE149: N/A | AF149: N/A | AG149: N/A | AH149: N/A | BB149: No | BC149: N/A | BD149: N/A | BE149: N/A | BF149: N/A | BG149: N/A | BH149: N/A | BI149: N/A | BJ149: N/A | BK149: N/A | BL149: N/A | BM149: N/A | BN149: N/A | BO149: N/A | BP149: N/A | BQ149: N/A | BR149: N/A | BS149: N/A | BT149: N/A | BU149: N/A | BV149: N/A | BW149: N/A | BX149: N/A | BY149: N/A | BZ149: N/A | CA149: N/A | CB149: N/A | CC149: N/A | CD149: N/A | CE149: N/A | CF149: N/A | CG149: N/A | CH149: N/A
B150: DK/missing | C150: N/A | D150: N/A | E150: N/A | F150: N/A | G150: N/A | H150: N/A | I150: N/A | J150: N/A | K150: N/A | L150: N/A | M150: N/A | N150: N/A | O150: N/A | P150: N/A | Q150: N/A | R150: N/A | S150: N/A | T150: N/A | U150: N/A | V150: N/A | W150: N/A | X150: N/A | Y150: N/A | Z150: N/A | AA150: N/A | AB150: N/A | AC150: N/A | AD150: N/A | AE150: N/A | AF150: N/A | AG150: N/A | AH150: N/A | BB150: DK/missing | BC150: N/A | BD150: N/A | BE150: N/A | BF150: N/A | BG150: N/A | BH150: N/A | BI150: N/A | BJ150: N/A | BK150: N/A | BL150: N/A | BM150: N/A | BN150: N/A | BO150: N/A | BP150: N/A | BQ150: N/A | BR150: N/A | BS150: N/A | BT150: N/A | BU150: N/A | BV150: N/A | BW150: N/A | BX150: N/A | BY150: N/A | BZ150: N/A | CA150: N/A | CB150: N/A | CC150: N/A | CD150: N/A | CE150: N/A | CF150: N/A | CG150: N/A | CH150: N/A
A151: Shared among all sanitation facilities | B151: Yes | C151: N/A | D151: N/A | E151: N/A | F151: N/A | G151: N/A | H151: N/A | I151: N/A | J151: N/A | K151: N/A | L151: N/A | M151: N/A | N151: N/A | O151: N/A | P151: N/A | Q151: N/A | R151: N/A | S151: N/A | T151: N/A | U151: N/A | V151: N/A | W151: N/A | X151: N/A | Y151: N/A | Z151: N/A | AA151: N/A | AB151: N/A | AC151: N/A | AD151: N/A | AE151: N/A | AF151: N/A | AG151: N/A | AH151: N/A | BA151: Shared among all sanitation facilities | BB151: Yes | BC151: N/A | BD151: N/A | BE151: N/A | BF151: N/A | BG151: N/A | BH151: N/A | BI151: N/A | BJ151: N/A | BK151: N/A | BL151: N/A | BM151: N/A | BN151: N/A | BO151: N/A | BP151: N/A | BQ151: N/A | BR151: N/A | BS151: N/A | BT151: N/A | BU151: N/A | BV151: N/A | BW151: N/A | BX151: N/A | BY151: N/A | BZ151: N/A | CA151: N/A | CB151: N/A | CC151: N/A | CD151: N/A | CE151: N/A | CF151: N/A | CG151: N/A | CH151: N/A
B152: No | C152: N/A | D152: N/A | E152: N/A | F152: N/A | G152: N/A | H152: N/A | I152: N/A | J152: N/A | K152: N/A | L152: N/A | M152: N/A | N152: N/A | O152: N/A | P152: N/A | Q152: N/A | R152: N/A | S152: N/A | T152: N/A | U152: N/A | V152: N/A | W152: N/A | X152: N/A | Y152: N/A | Z152: N/A | AA152: N/A | AB152: N/A | AC152: N/A | AD152: N/A | AE152: N/A | AF152: N/A | AG152: N/A | AH152: N/A | BB152: No | BC152: N/A | BD152: N/A | BE152: N/A | BF152: N/A | BG152: N/A | BH152: N/A | BI152: N/A | BJ152: N/A | BK152: N/A | BL152: N/A | BM152: N/A | BN152: N/A | BO152: N/A | BP152: N/A | BQ152: N/A | BR152: N/A | BS152: N/A | BT152: N/A | BU152: N/A | BV152: N/A | BW152: N/A | BX152: N/A | BY152: N/A | BZ152: N/A | CA152: N/A | CB152: N/A | CC152: N/A | CD152: N/A | CE152: N/A | CF152: N/A | CG152: N/A | CH152: N/A
A153: Type of toilet facility | B153: Flush toilet: own | C153: 24.95300016 | D153: 50.49881761 | E153: 73.23096632 | F153: 87.50566935 | G153: 96.95836624 | H153: 42.79068746 | I153: 72.56540552 | J153: 86.05156051 | K153: 92.34130996 | L153: 98.25775549 | M153: 20.64519512 | N153: 31.86889515 | O153: 53.57686054 | P153: 72.42281479 | Q153: 91.7804978 | R153: 19.6786144 | S153: 62.27312354 | T153: 81.9807759 | U153: 81.50953374 | V153: 72.01685009 | W153: 81.3528099 | X153: 62.78924829 | Y153: 62.01609178 | Z153: 61.36570751 | AA153: 56.50936417 | AB153: 79.49232314 | AC153: 47.93535016 | AD153: 80.74815582 | AE153: 60.39225792 | AF153: 50.95804615 | AG153: 48.7487697 | AH153: 43.1709258 | BA153: Type of toilet facility | BB153: Flush toilet: own | BC153: 3068.00136 | BD153: 6212.050328 | BE153: 8992.697996 | BF153: 10792.14353 | BG153: 11931.17476 | BH153: 2720.853078 | BI153: 4624.2282 | BJ153: 5454.885208 | BK153: 5873.663573 | BL153: 6246.290616 | BM153: 1221.643681 | BN153: 1902.307245 | BO153: 3180.091244 | BP153: 4318.54434 | BQ153: 5453.56079 | BR153: 414.009191 | BS153: 2316.097129 | BT153: 1655.574382 | BU153: 6275.199629 | BV153: 1216.926848 | BW153: 5154.077249 | BX153: 3015.424596 | BY153: 618.971536 | BZ153: 1831.037064 | CA153: 1678.308671 | CB153: 2554.879443 | CC153: 851.561956 | CD153: 7152.023945 | CE153: 1647.626656 | CF153: 1316.397603 | CG153: 2280.340796 | CH153: 1017.611281
B154: Flush toilet: shared | C154: 11.77815244 | D154: 19.01075447 | E154: 17.06871469 | F154: 9.341574819 | G154: 2.290602049 | H154: 27.04615529 | I154: 21.5611844 | J154: 12.17744173 | K154: 7.119686776 | L154: 1.481351456 | M154: 9.235763136 | N154: 10.00760804 | O154: 13.99112266 | P154: 12.14453691 | Q154: 3.458647396 | R154: 3.373050575 | S154: 9.956815416 | T154: 9.07380972 | U154: 11.61677901 | V154: 9.905619766 | W154: 10.44313358 | X154: 11.88532892 | Y154: 14.5409978 | Z154: 14.8160879 | AA154: 10.31112488 | AB154: 11.72319956 | AC154: 11.04459645 | AD154: 17.18262673 | AE154: 16.82543483 | AF154: 15.62633394 | AG154: 8.230480142 | AH154: 6.873041157 | BB154: Flush toilet: shared | BC154: 1448.137998 | BD154: 2338.584726 | BE154: 2096.023091 | BF154: 1152.103824 | BG154: 281.869161 | BH154: 1719.734345 | BI154: 1373.985802 | BJ154: 771.938898 | BK154: 452.870388 | BL154: 94.170192 | BM154: 546.510295 | BN154: 597.370734 | BO154: 830.452666 | BP154: 724.174023 | BQ154: 205.511457 | BR154: 70.964038 | BS154: 370.319494 | BT154: 183.242556 | BU154: 894.344551 | BV154: 167.383253 | BW154: 661.620874 | BX154: 570.787422 | BY154: 145.131102 | BZ154: 442.084141 | CA154: 306.236861 | CB154: 376.78307 | CC154: 196.205058 | CD154: 1521.89925 | CE154: 459.032927 | CF154: 403.674593 | CG154: 385.000478 | CH154: 162.009132
B155: Close pit | C155: 14.34758266 | D155: 9.788504886 | E155: 4.493088695 | F155: 1.770115394 | G155: 0.5070014179 | H155: 4.032645592 | I155: 2.086682906 | J155: 0.9825788012 | K155: 0.5199534225 | L155: 0.109383511 | M155: 16.64850074 | N155: 15.75097656 | O155: 12.67018149 | P155: 7.684194283 | Q155: 2.916794976 | R155: 14.37488326 | S155: 8.611997993 | T155: 3.443825129 | U155: 1.523542167 | V155: 5.637935554 | W155: 2.126298456 | X155: 3.806088769 | Y155: 11.65645946 | Z155: 7.315062357 | AA155: 1.458288916 | AB155: 4.870063167 | AC155: 10.05903517 | AD155: 0.1674269244 | AE155: 13.80731265 | AF155: 9.84496426 | AG155: 15.00564432 | AH155: 21.94896742 | BB155: Close pit | BC155: 1764.052532 | BD155: 1204.120965 | BE155: 551.747324 | BF155: 218.309734 | BG155: 62.388866 | BH155: 256.41645 | BI155: 132.973803 | BJ155: 62.286547 | BK155: 33.073296 | BL155: 6.95356 | BM155: 985.14621 | BN155: 940.201933 | BO155: 752.047298 | BP155: 458.205523 | BQ155: 173.314801 | BR155: 302.426465 | BS155: 320.302286 | BT155: 69.546898 | BU155: 117.293411 | BV155: 95.268748 | BW155: 134.710854 | BX155: 182.785652 | BY155: 116.34104 | BZ155: 218.267675 | CA155: 43.310679 | CB155: 156.523596 | CC155: 178.696758 | CD155: 14.829334 | CE155: 376.692264 | CF155: 254.324652 | CG155: 701.925056 | CH155: 517.374053
B156: Open pit | C156: 11.95253741 | D156: 5.352872636 | E156: 1.39593306 | F156: 0.2058047023 | G156: 0.1327730906 | H156: 3.379394765 | I156: 0.8620414897 | J156: 0.1460633801 | K156: 0 | L156: 0.15150954 | M156: 14.18871059 | N156: 12.64303708 | O156: 5.15430386 | P156: 2.177963193 | Q156: 0.3771063702 | R156: 12.8763118 | S156: 0.9417744379 | T156: 4.027444984 | U156: 0.9316825759 | V156: 2.201740886 | W156: 0.4254431853 | X156: 4.832328745 | Y156: 9.02153975 | Z156: 10.25906357 | AA156: 1.079457927 | AB156: 2.015849034 | AC156: 4.549029682 | AD156: 0.1994346208 | AE156: 4.69046092 | AF156: 10.51071237 | AG156: 8.714903262 | AH156: 7.948195842 | BB156: Open pit | BC156: 1469.57884 | BD156: 658.477085 | BE156: 171.419347 | BF156: 25.382057 | BG156: 16.338342 | BH156: 214.879386 | BI156: 54.933567 | BJ156: 9.259088 | BK156: 0 | BL156: 9.631531 | BM156: 839.592386 | BN156: 754.683867 | BO156: 305.937235 | BP156: 129.8711 | BQ156: 22.407511 | BR156: 270.898719 | BS156: 35.027006 | BT156: 81.332906 | BU156: 71.727734 | BV156: 37.204593 | BW156: 26.953796 | BX156: 232.070352 | BY156: 90.042377 | BZ156: 306.111123 | CA156: 32.059529 | CB156: 64.789291 | CC156: 80.812607 | CD156: 17.664319 | CE156: 127.965549 | CF156: 271.522902 | CG156: 407.660533 | CH156: 187.352335
B157: Drop/overhang | C157: 5.296460613 | D157: 3.556340037 | E157: 0.8902254815 | F157: 0.4446847779 | G157: 0 | H157: 4.945903153 | I157: 0.7013495004 | J157: 0.4345530877 | K157: 0 | L157: 0 | M157: 4.815938271 | N157: 5.357973166 | O157: 2.740259719 | P157: 1.350238219 | Q157: 0.3055504568 | R157: 21.71350817 | S157: 1.597805091 | T157: 0.1550690668 | U157: 0.6949372561 | V157: 2.556054492 | W157: 1.14853904 | X157: 0.9164348994 | Y157: 0 | Z157: 0.6006306612 | AA157: 2.154310515 | AB157: 0.284394265 | AC157: 6.322180928 | AD157: 1.026415671 | AE157: 0.8912756065 | AF157: 1.876319863 | AG157: 1.967599506 | AH157: 2.583814392 | BB157: Drop/overhang | BC157: 651.206198 | BD157: 437.478823 | BE157: 109.318903 | BF157: 54.843326 | BG157: 0 | BH157: 314.486086 | BI157: 44.693475 | BJ157: 27.546708 | BK157: 0 | BL157: 0 | BM157: 284.97481 | BN157: 319.826311 | BO157: 162.649992 | BP157: 80.514181 | BQ157: 18.155687 | BR157: 456.820372 | BS157: 59.426468 | BT157: 3.131568 | BU157: 53.501349 | BV157: 43.191716 | BW157: 72.765267 | BX157: 44.011362 | BY157: 0 | BZ157: 17.921687 | CA157: 63.982281 | CB157: 9.140418 | CC157: 112.312286 | CD157: 90.911667 | CE157: 24.315856 | CF157: 48.470912 | CG157: 92.039193 | CH157: 60.904848
B158: No toilet/field/bush | C158: 31.53613946 | D158: 11.63659167 | E158: 2.921071755 | F158: 0.6691653596 | G158: 0.1112571977 | H158: 17.57138531 | I158: 2.223336186 | J158: 0.2078024857 | K158: 0.01904984253 | L158: 0 | M158: 34.2217465 | N158: 24.37151 | O158: 11.75562541 | P158: 4.220252604 | Q158: 1.03067066 | R158: 27.77793866 | S158: 16.61848352 | T158: 1.3190752 | U158: 3.723525243 | V158: 7.68179921 | W158: 4.503775836 | X158: 15.77057037 | Y158: 2.764911213 | Z158: 5.643448005 | AA158: 28.00102048 | AB158: 1.614170835 | AC158: 20.0898076 | AD158: 0.572716447 | AE158: 3.108526749 | AF158: 11.18362342 | AG158: 17.16105342 | AH158: 17.47505539 | BB158: No toilet/field/bush | BC158: 3877.406249 | BD158: 1431.461102 | BE158: 358.705032 | BF158: 82.528694 | BG158: 13.690712 | BH158: 1117.279498 | BI158: 141.682029 | BJ158: 13.172785 | BK158: 1.211726 | BL158: 0 | BM158: 2025.012606 | BN158: 1454.775882 | BO158: 697.763196 | BP158: 251.652025 | BQ158: 61.242042 | BR158: 584.407097 | BS158: 618.084011 | BT158: 26.638283 | BU158: 286.664187 | BV158: 129.805562 | BW158: 285.335056 | BX158: 757.374345 | BY158: 27.596085 | BZ158: 168.389853 | CA158: 831.620673 | CB158: 51.879373 | CC158: 356.891434 | CD158: 50.726629 | CE158: 84.807088 | CF158: 288.906192 | CG158: 802.749494 | CH158: 411.916427
B159: OTHER | C159: 0.1361272582 | D159: 0.1561186913 | E159: 0 | F159: 0.06298560038 | G159: 0 | H159: 0.2338284276 | I159: 0 | J159: 0 | K159: 0 | L159: 0 | M159: 0.2441456469 | N159: 0 | O159: 0.1116463238 | P159: 0 | Q159: 0.1307323432 | R159: 0.2056931378 | S159: 0 | T159: 0 | U159: 0 | V159: 0 | W159: 0 | X159: 0 | Y159: 0 | Z159: 0 | AA159: 0.4864331105 | AB159: 0 | AC159: 0 | AD159: 0.1032237862 | AE159: 0.2847313273 | AF159: 0 | AG159: 0.1715496514 | AH159: 0 | BB159: OTHER | BC159: 16.73701 | BD159: 19.20475 | BE159: 0 | BF159: 7.768064 | BG159: 0 | BH159: 14.86802 | BI159: 0 | BJ159: 0 | BK159: 0 | BL159: 0 | BM159: 14.446896 | BN159: 0 | BO159: 6.626844 | BP159: 0 | BQ159: 7.768064 | BR159: 4.327482 | BS159: 0 | BT159: 0 | BU159: 0 | BV159: 0 | BW159: 0 | BX159: 0 | BY159: 0 | BZ159: 0 | CA159: 14.446896 | CB159: 0 | CC159: 0 | CD159: 9.142735 | CE159: 7.768064 | CF159: 0 | CG159: 8.024647 | CH159: 0
BB160: Total | BC160: 12295.12019 | BD160: 12301.37778 | BE160: 12279.91169 | BF160: 12333.07923 | BG160: 12305.46184 | BH160: 6358.516863 | BI160: 6372.496876 | BJ160: 6339.089234 | BK160: 6360.818983 | BL160: 6357.045899 | BM160: 5917.326884 | BN160: 5969.165972 | BO160: 5935.568475 | BP160: 5962.961192 | BQ160: 5941.960352 | BR160: 2103.853364 | BS160: 3719.256394 | BT160: 2019.466593 | BU160: 7698.730861 | BV160: 1689.78072 | BW160: 6335.463096 | BX160: 4802.453729 | BY160: 998.08214 | BZ160: 2983.811543 | CA160: 2969.96559 | CB160: 3213.995191 | CC160: 1776.480099 | CD160: 8857.197879 | CE160: 2728.208404 | CF160: 2583.296854 | CG160: 4677.740197 | CH160: 2357.168076
A208: =A1026 -> Philippines
A209: =A1034 -> 2003
A210: Access to hygiene facilities
A211: by wealth quintile and sub-national region
A212: Notes:
A213: WHO/UNICEF JMP customised wealth index excludes water,
A214: sanitation and hygiene assets.
A215: Survey used for analysis: | B215: =A1025 -> DHS03
A220: Access to handwashing | C220: NATIONAL wealth index quintile | H220: URBAN wealth index quintile | M220: RURAL wealth index quintile | R220: SUB-REGIONS: | BA220: Raw numbers of respondents: | BB220: Access to handwashing | BC220: NATIONAL wealth index quintile | BH220: URBAN wealth index quintile | BM220: RURAL wealth index quintile | BR220: SUB-REGIONS:
A221: Weighted percentage (used in graphs) | C221: Poorest | D221: Poor | E221: Middle | F221: Rich | G221: Richest | H221: Poorest | I221: Poor | J221: Middle | K221: Rich | L221: Richest | M221: Poorest | N221: Poor | O221: Middle | P221: Rich | Q221: Richest | R221: ARMM | S221: Bicol | T221: Cagayan Valley | U221: CALABARZON | V221: Caraga | W221: Central Luzon | X221: Central Visayas | Y221: Cordillera Admin Region | Z221: Davao | AA221: Eastern Visayas | AB221: Ilocos | AC221: MIMAROPA | AD221: National Capital Region | AE221: Northern Mindanao | AF221: SOCCSKSARGEN | AG221: Western Visayas | AH221: Zamboanga Peninsula | BA221: Hygiene data, raw numbers (weighted) | BC221: Poorest | BD221: Poor | BE221: Middle | BF221: Rich | BG221: Richest | BH221: Poorest | BI221: Poor | BJ221: Middle | BK221: Rich | BL221: Richest | BM221: Poorest | BN221: Poor | BO221: Middle | BP221: Rich | BQ221: Richest | BR221: ARMM | BS221: Bicol | BT221: Cagayan Valley | BU221: CALABARZON | BV221: Caraga | BW221: Central Luzon | BX221: Central Visayas | BY221: Cordillera Admin Region | BZ221: Davao | CA221: Eastern Visayas | CB221: Ilocos | CC221: MIMAROPA | CD221: National Capital Region | CE221: Northern Mindanao | CF221: SOCCSKSARGEN | CG221: Western Visayas | CH221: Zamboanga Peninsula
A222: Hygiene ladder | B222: Basic | C222: N/A | D222: N/A | E222: N/A | F222: N/A | G222: N/A | H222: N/A | I222: N/A | J222: N/A | K222: N/A | L222: N/A | M222: N/A | N222: N/A | O222: N/A | P222: N/A | Q222: N/A | R222: N/A | S222: N/A | T222: N/A | U222: N/A | V222: N/A | W222: N/A | X222: N/A | Y222: N/A | Z222: N/A | AA222: N/A | AB222: N/A | AC222: N/A | AD222: N/A | AE222: N/A | AF222: N/A | AG222: N/A | AH222: N/A | BA222: Hygiene ladder | BB222: Basic | BC222: N/A | BD222: N/A | BE222: N/A | BF222: N/A | BG222: N/A | BH222: N/A | BI222: N/A | BJ222: N/A | BK222: N/A | BL222: N/A | BM222: N/A | BN222: N/A | BO222: N/A | BP222: N/A | BQ222: N/A | BR222: N/A | BS222: N/A | BT222: N/A | BU222: N/A | BV222: N/A | BW222: N/A | BX222: N/A | BY222: N/A | BZ222: N/A | CA222: N/A | CB222: N/A | CC222: N/A | CD222: N/A | CE222: N/A | CF222: N/A | CG222: N/A | CH222: N/A
B223: Limited | C223: N/A | D223: N/A | E223: N/A | F223: N/A | G223: N/A | H223: N/A | I223: N/A | J223: N/A | K223: N/A | L223: N/A | M223: N/A | N223: N/A | O223: N/A | P223: N/A | Q223: N/A | R223: N/A | S223: N/A | T223: N/A | U223: N/A | V223: N/A | W223: N/A | X223: N/A | Y223: N/A | Z223: N/A | AA223: N/A | AB223: N/A | AC223: N/A | AD223: N/A | AE223: N/A | AF223: N/A | AG223: N/A | AH223: N/A | BB223: Limited | BC223: N/A | BD223: N/A | BE223: N/A | BF223: N/A | BG223: N/A | BH223: N/A | BI223: N/A | BJ223: N/A | BK223: N/A | BL223: N/A | BM223: N/A | BN223: N/A | BO223: N/A | BP223: N/A | BQ223: N/A | BR223: N/A | BS223: N/A | BT223: N/A | BU223: N/A | BV223: N/A | BW223: N/A | BX223: N/A | BY223: N/A | BZ223: N/A | CA223: N/A | CB223: N/A | CC223: N/A | CD223: N/A | CE223: N/A | CF223: N/A | CG223: N/A | CH223: N/A
B224: No facility | C224: N/A | D224: N/A | E224: N/A | F224: N/A | G224: N/A | H224: N/A | I224: N/A | J224: N/A | K224: N/A | L224: N/A | M224: N/A | N224: N/A | O224: N/A | P224: N/A | Q224: N/A | R224: N/A | S224: N/A | T224: N/A | U224: N/A | V224: N/A | W224: N/A | X224: N/A | Y224: N/A | Z224: N/A | AA224: N/A | AB224: N/A | AC224: N/A | AD224: N/A | AE224: N/A | AF224: N/A | AG224: N/A | AH224: N/A | BB224: No facility | BC224: N/A | BD224: N/A | BE224: N/A | BF224: N/A | BG224: N/A | BH224: N/A | BI224: N/A | BJ224: N/A | BK224: N/A | BL224: N/A | BM224: N/A | BN224: N/A | BO224: N/A | BP224: N/A | BQ224: N/A | BR224: N/A | BS224: N/A | BT224: N/A | BU224: N/A | BV224: N/A | BW224: N/A | BX224: N/A | BY224: N/A | BZ224: N/A | CA224: N/A | CB224: N/A | CC224: N/A | CD224: N/A | CE224: N/A | CF224: N/A | CG224: N/A | CH224: N/A
BA225: Observed handwashing place | BB225: Fixed | BC225: N/A | BD225: N/A | BE225: N/A | BF225: N/A | BG225: N/A | BH225: N/A | BI225: N/A | BJ225: N/A | BK225: N/A | BL225: N/A | BM225: N/A | BN225: N/A | BO225: N/A | BP225: N/A | BQ225: N/A | BR225: N/A | BS225: N/A | BT225: N/A | BU225: N/A | BV225: N/A | BW225: N/A | BX225: N/A | BY225: N/A | BZ225: N/A | CA225: N/A | CB225: N/A | CC225: N/A | CD225: N/A | CE225: N/A | CF225: N/A | CG225: N/A | CH225: N/A
BB226: Mobile | BC226: N/A | BD226: N/A | BE226: N/A | BF226: N/A | BG226: N/A | BH226: N/A | BI226: N/A | BJ226: N/A | BK226: N/A | BL226: N/A | BM226: N/A | BN226: N/A | BO226: N/A | BP226: N/A | BQ226: N/A | BR226: N/A | BS226: N/A | BT226: N/A | BU226: N/A | BV226: N/A | BW226: N/A | BX226: N/A | BY226: N/A | BZ226: N/A | CA226: N/A | CB226: N/A | CC226: N/A | CD226: N/A | CE226: N/A | CF226: N/A | CG226: N/A | CH226: N/A
BA227: Water / Soap | BB227: Water and soap | BC227: N/A | BD227: N/A | BE227: N/A | BF227: N/A | BG227: N/A | BH227: N/A | BI227: N/A | BJ227: N/A | BK227: N/A | BL227: N/A | BM227: N/A | BN227: N/A | BO227: N/A | BP227: N/A | BQ227: N/A | BR227: N/A | BS227: N/A | BT227: N/A | BU227: N/A | BV227: N/A | BW227: N/A | BX227: N/A | BY227: N/A | BZ227: N/A | CA227: N/A | CB227: N/A | CC227: N/A | CD227: N/A | CE227: N/A | CF227: N/A | CG227: N/A | CH227: N/A
BB228: Water only | BC228: N/A | BD228: N/A | BE228: N/A | BF228: N/A | BG228: N/A | BH228: N/A | BI228: N/A | BJ228: N/A | BK228: N/A | BL228: N/A | BM228: N/A | BN228: N/A | BO228: N/A | BP228: N/A | BQ228: N/A | BR228: N/A | BS228: N/A | BT228: N/A | BU228: N/A | BV228: N/A | BW228: N/A | BX228: N/A | BY228: N/A | BZ228: N/A | CA228: N/A | CB228: N/A | CC228: N/A | CD228: N/A | CE228: N/A | CF228: N/A | CG228: N/A | CH228: N/A
BB229: Soap only | BC229: N/A | BD229: N/A | BE229: N/A | BF229: N/A | BG229: N/A | BH229: N/A | BI229: N/A | BJ229: N/A | BK229: N/A | BL229: N/A | BM229: N/A | BN229: N/A | BO229: N/A | BP229: N/A | BQ229: N/A | BR229: N/A | BS229: N/A | BT229: N/A | BU229: N/A | BV229: N/A | BW229: N/A | BX229: N/A | BY229: N/A | BZ229: N/A | CA229: N/A | CB229: N/A | CC229: N/A | CD229: N/A | CE229: N/A | CF229: N/A | CG229: N/A | CH229: N/A
BB230: Neither | BC230: N/A | BD230: N/A | BE230: N/A | BF230: N/A | BG230: N/A | BH230: N/A | BI230: N/A | BJ230: N/A | BK230: N/A | BL230: N/A | BM230: N/A | BN230: N/A | BO230: N/A | BP230: N/A | BQ230: N/A | BR230: N/A | BS230: N/A | BT230: N/A | BU230: N/A | BV230: N/A | BW230: N/A | BX230: N/A | BY230: N/A | BZ230: N/A | CA230: N/A | CB230: N/A | CC230: N/A | CD230: N/A | CE230: N/A | CF230: N/A | CG230: N/A | CH230: N/A
BA259: Raw numbers of respondents: | BB259: Menstrual health and hygiene | BC259: NATIONAL wealth index quintile | BH259: URBAN wealth index quintile | BM259: RURAL wealth index quintile | BR259: SUB-REGIONS:
BA260: MHH data, raw numbers (weighted) | BC260: Poorest | BD260: Poor | BE260: Middle | BF260: Rich | BG260: Richest | BH260: Poorest | BI260: Poor | BJ260: Middle | BK260: Rich | BL260: Richest | BM260: Poorest | BN260: Poor | BO260: Middle | BP260: Rich | BQ260: Richest | BR260: ARMM | BS260: Bicol | BT260: Cagayan Valley | BU260: CALABARZON | BV260: Caraga | BW260: Central Luzon | BX260: Central Visayas | BY260: Cordillera Admin Region | BZ260: Davao | CA260: Eastern Visayas | CB260: Ilocos | CC260: MIMAROPA | CD260: National Capital Region | CE260: Northern Mindanao | CF260: SOCCSKSARGEN | CG260: Western Visayas | CH260: Zamboanga Peninsula
BA261: Private place to wash and change | BB261: Yes | BC261: N/A | BD261: N/A | BE261: N/A | BF261: N/A | BG261: N/A | BH261: N/A | BI261: N/A | BJ261: N/A | BK261: N/A | BL261: N/A | BM261: N/A | BN261: N/A | BO261: N/A | BP261: N/A | BQ261: N/A | BR261: N/A | BS261: N/A | BT261: N/A | BU261: N/A | BV261: N/A | BW261: N/A | BX261: N/A | BY261: N/A | BZ261: N/A | CA261: N/A | CB261: N/A | CC261: N/A | CD261: N/A | CE261: N/A | CF261: N/A | CG261: N/A | CH261: N/A
BB262: No | BC262: N/A | BD262: N/A | BE262: N/A | BF262: N/A | BG262: N/A | BH262: N/A | BI262: N/A | BJ262: N/A | BK262: N/A | BL262: N/A | BM262: N/A | BN262: N/A | BO262: N/A | BP262: N/A | BQ262: N/A | BR262: N/A | BS262: N/A | BT262: N/A | BU262: N/A | BV262: N/A | BW262: N/A | BX262: N/A | BY262: N/A | BZ262: N/A | CA262: N/A | CB262: N/A | CC262: N/A | CD262: N/A | CE262: N/A | CF262: N/A | CG262: N/A | CH262: N/A
BB263: DK/not sure/missing | BC263: N/A | BD263: N/A | BE263: N/A | BF263: N/A | BG263: N/A | BH263: N/A | BI263: N/A | BJ263: N/A | BK263: N/A | BL263: N/A | BM263: N/A | BN263: N/A | BO263: N/A | BP263: N/A | BQ263: N/A | BR263: N/A | BS263: N/A | BT263: N/A | BU263: N/A | BV263: N/A | BW263: N/A | BX263: N/A | BY263: N/A | BZ263: N/A | CA263: N/A | CB263: N/A | CC263: N/A | CD263: N/A | CE263: N/A | CF263: N/A | CG263: N/A | CH263: N/A
BA264: Use of menstrual materials | BB264: Materials reusable | BC264: N/A | BD264: N/A | BE264: N/A | BF264: N/A | BG264: N/A | BH264: N/A | BI264: N/A | BJ264: N/A | BK264: N/A | BL264: N/A | BM264: N/A | BN264: N/A | BO264: N/A | BP264: N/A | BQ264: N/A | BR264: N/A | BS264: N/A | BT264: N/A | BU264: N/A | BV264: N/A | BW264: N/A | BX264: N/A | BY264: N/A | BZ264: N/A | CA264: N/A | CB264: N/A | CC264: N/A | CD264: N/A | CE264: N/A | CF264: N/A | CG264: N/A | CH264: N/A
BB265: Materials not reusable | BC265: N/A | BD265: N/A | BE265: N/A | BF265: N/A | BG265: N/A | BH265: N/A | BI265: N/A | BJ265: N/A | BK265: N/A | BL265: N/A | BM265: N/A | BN265: N/A | BO265: N/A | BP265: N/A | BQ265: N/A | BR265: N/A | BS265: N/A | BT265: N/A | BU265: N/A | BV265: N/A | BW265: N/A | BX265: N/A | BY265: N/A | BZ265: N/A | CA265: N/A | CB265: N/A | CC265: N/A | CD265: N/A | CE265: N/A | CF265: N/A | CG265: N/A | CH265: N/A
BB266: No materials used | BC266: N/A | BD266: N/A | BE266: N/A | BF266: N/A | BG266: N/A | BH266: N/A | BI266: N/A | BJ266: N/A | BK266: N/A | BL266: N/A | BM266: N/A | BN266: N/A | BO266: N/A | BP266: N/A | BQ266: N/A | BR266: N/A | BS266: N/A | BT266: N/A | BU266: N/A | BV266: N/A | BW266: N/A | BX266: N/A | BY266: N/A | BZ266: N/A | CA266: N/A | CB266: N/A | CC266: N/A | CD266: N/A | CE266: N/A | CF266: N/A | CG266: N/A | CH266: N/A
BB267: DK/not sure/missing | BC267: N/A | BD267: N/A | BE267: N/A | BF267: N/A | BG267: N/A | BH267: N/A | BI267: N/A | BJ267: N/A | BK267: N/A | BL267: N/A | BM267: N/A | BN267: N/A | BO267: N/A | BP267: N/A | BQ267: N/A | BR267: N/A | BS267: N/A | BT267: N/A | BU267: N/A | BV267: N/A | BW267: N/A | BX267: N/A | BY267: N/A | BZ267: N/A | CA267: N/A | CB267: N/A | CC267: N/A | CD267: N/A | CE267: N/A | CF267: N/A | CG267: N/A | CH267: N/A
BA268: Use of menstrual materials with private place to wash and change | BB268: Materials reusable | BC268: N/A | BD268: N/A | BE268: N/A | BF268: N/A | BG268: N/A | BH268: N/A | BI268: N/A | BJ268: N/A | BK268: N/A | BL268: N/A | BM268: N/A | BN268: N/A | BO268: N/A | BP268: N/A | BQ268: N/A | BR268: N/A | BS268: N/A | BT268: N/A | BU268: N/A | BV268: N/A | BW268: N/A | BX268: N/A | BY268: N/A | BZ268: N/A | CA268: N/A | CB268: N/A | CC268: N/A | CD268: N/A | CE268: N/A | CF268: N/A | CG268: N/A | CH268: N/A
BB269: Materials not reusable | BC269: N/A | BD269: N/A | BE269: N/A | BF269: N/A | BG269: N/A | BH269: N/A | BI269: N/A | BJ269: N/A | BK269: N/A | BL269: N/A | BM269: N/A | BN269: N/A | BO269: N/A | BP269: N/A | BQ269: N/A | BR269: N/A | BS269: N/A | BT269: N/A | BU269: N/A | BV269: N/A | BW269: N/A | BX269: N/A | BY269: N/A | BZ269: N/A | CA269: N/A | CB269: N/A | CC269: N/A | CD269: N/A | CE269: N/A | CF269: N/A | CG269: N/A | CH269: N/A
BB270: No materials used | BC270: N/A | BD270: N/A | BE270: N/A | BF270: N/A | BG270: N/A | BH270: N/A | BI270: N/A | BJ270: N/A | BK270: N/A | BL270: N/A | BM270: N/A | BN270: N/A | BO270: N/A | BP270: N/A | BQ270: N/A | BR270: N/A | BS270: N/A | BT270: N/A | BU270: N/A | BV270: N/A | BW270: N/A | BX270: N/A | BY270: N/A | BZ270: N/A | CA270: N/A | CB270: N/A | CC270: N/A | CD270: N/A | CE270: N/A | CF270: N/A | CG270: N/A | CH270: N/A
BA271: Awareness of menstruation before menarche | BB271: Yes | BC271: N/A | BD271: N/A | BE271: N/A | BF271: N/A | BG271: N/A | BH271: N/A | BI271: N/A | BJ271: N/A | BK271: N/A | BL271: N/A | BM271: N/A | BN271: N/A | BO271: N/A | BP271: N/A | BQ271: N/A | BR271: N/A | BS271: N/A | BT271: N/A | BU271: N/A | BV271: N/A | BW271: N/A | BX271: N/A | BY271: N/A | BZ271: N/A | CA271: N/A | CB271: N/A | CC271: N/A | CD271: N/A | CE271: N/A | CF271: N/A | CG271: N/A | CH271: N/A
BB272: No | BC272: N/A | BD272: N/A | BE272: N/A | BF272: N/A | BG272: N/A | BH272: N/A | BI272: N/A | BJ272: N/A | BK272: N/A | BL272: N/A | BM272: N/A | BN272: N/A | BO272: N/A | BP272: N/A | BQ272: N/A | BR272: N/A | BS272: N/A | BT272: N/A | BU272: N/A | BV272: N/A | BW272: N/A | BX272: N/A | BY272: N/A | BZ272: N/A | CA272: N/A | CB272: N/A | CC272: N/A | CD272: N/A | CE272: N/A | CF272: N/A | CG272: N/A | CH272: N/A
BB273: DK/not sure/missing | BC273: N/A | BD273: N/A | BE273: N/A | BF273: N/A | BG273: N/A | BH273: N/A | BI273: N/A | BJ273: N/A | BK273: N/A | BL273: N/A | BM273: N/A | BN273: N/A | BO273: N/A | BP273: N/A | BQ273: N/A | BR273: N/A | BS273: N/A | BT273: N/A | BU273: N/A | BV273: N/A | BW273: N/A | BX273: N/A | BY273: N/A | BZ273: N/A | CA273: N/A | CB273: N/A | CC273: N/A | CD273: N/A | CE273: N/A | CF273: N/A | CG273: N/A | CH273: N/A
BA274: Participation in (all) activities during menstruation | BB274: Yes | BC274: N/A | BD274: N/A | BE274: N/A | BF274: N/A | BG274: N/A | BH274: N/A | BI274: N/A | BJ274: N/A | BK274: N/A | BL274: N/A | BM274: N/A | BN274: N/A | BO274: N/A | BP274: N/A | BQ274: N/A | BR274: N/A | BS274: N/A | BT274: N/A | BU274: N/A | BV274: N/A | BW274: N/A | BX274: N/A | BY274: N/A | BZ274: N/A | CA274: N/A | CB274: N/A | CC274: N/A | CD274: N/A | CE274: N/A | CF274: N/A | CG274: N/A | CH274: N/A
BB275: No | BC275: N/A | BD275: N/A | BE275: N/A | BF275: N/A | BG275: N/A | BH275: N/A | BI275: N/A | BJ275: N/A | BK275: N/A | BL275: N/A | BM275: N/A | BN275: N/A | BO275: N/A | BP275: N/A | BQ275: N/A | BR275: N/A | BS275: N/A | BT275: N/A | BU275: N/A | BV275: N/A | BW275: N/A | BX275: N/A | BY275: N/A | BZ275: N/A | CA275: N/A | CB275: N/A | CC275: N/A | CD275: N/A | CE275: N/A | CF275: N/A | CG275: N/A | CH275: N/A
BB276: DK/not sure/missing/no such activity | BC276: N/A | BD276: N/A | BE276: N/A | BF276: N/A | BG276: N/A | BH276: N/A | BI276: N/A | BJ276: N/A | BK276: N/A | BL276: N/A | BM276: N/A | BN276: N/A | BO276: N/A | BP276: N/A | BQ276: N/A | BR276: N/A | BS276: N/A | BT276: N/A | BU276: N/A | BV276: N/A | BW276: N/A | BX276: N/A | BY276: N/A | BZ276: N/A | CA276: N/A | CB276: N/A | CC276: N/A | CD276: N/A | CE276: N/A | CF276: N/A | CG276: N/A | CH276: N/A
BA277: Participation in specific activities during menstruation | BB277: Did not go to school (amongst those usually attending school) | BC277: N/A | BD277: N/A | BE277: N/A | BF277: N/A | BG277: N/A | BH277: N/A | BI277: N/A | BJ277: N/A | BK277: N/A | BL277: N/A | BM277: N/A | BN277: N/A | BO277: N/A | BP277: N/A | BQ277: N/A | BR277: N/A | BS277: N/A | BT277: N/A | BU277: N/A | BV277: N/A | BW277: N/A | BX277: N/A | BY277: N/A | BZ277: N/A | CA277: N/A | CB277: N/A | CC277: N/A | CD277: N/A | CE277: N/A | CF277: N/A | CG277: N/A | CH277: N/A
BB278: Did not go to work (amongst those who usually work) | BC278: N/A | BD278: N/A | BE278: N/A | BF278: N/A | BG278: N/A | BH278: N/A | BI278: N/A | BJ278: N/A | BK278: N/A | BL278: N/A | BM278: N/A | BN278: N/A | BO278: N/A | BP278: N/A | BQ278: N/A | BR278: N/A | BS278: N/A | BT278: N/A | BU278: N/A | BV278: N/A | BW278: N/A | BX278: N/A | BY278: N/A | BZ278: N/A | CA278: N/A | CB278: N/A | CC278: N/A | CD278: N/A | CE278: N/A | CF278: N/A | CG278: N/A | CH278: N/A
BB279: Did not participate in social activities | BC279: N/A | BD279: N/A | BE279: N/A | BF279: N/A | BG279: N/A | BH279: N/A | BI279: N/A | BJ279: N/A | BK279: N/A | BL279: N/A | BM279: N/A | BN279: N/A | BO279: N/A | BP279: N/A | BQ279: N/A | BR279: N/A | BS279: N/A | BT279: N/A | BU279: N/A | BV279: N/A | BW279: N/A | BX279: N/A | BY279: N/A | BZ279: N/A | CA279: N/A | CB279: N/A | CC279: N/A | CD279: N/A | CE279: N/A | CF279: N/A | CG279: N/A | CH279: N/A
BB280: Did not cook food | BC280: N/A | BD280: N/A | BE280: N/A | BF280: N/A | BG280: N/A | BH280: N/A | BI280: N/A | BJ280: N/A | BK280: N/A | BL280: N/A | BM280: N/A | BN280: N/A | BO280: N/A | BP280: N/A | BQ280: N/A | BR280: N/A | BS280: N/A | BT280: N/A | BU280: N/A | BV280: N/A | BW280: N/A | BX280: N/A | BY280: N/A | BZ280: N/A | CA280: N/A | CB280: N/A | CC280: N/A | CD280: N/A | CE280: N/A | CF280: N/A | CG280: N/A | CH280: N/A
BB281: Did not eat with others | BC281: N/A | BD281: N/A | BE281: N/A | BF281: N/A | BG281: N/A | BH281: N/A | BI281: N/A | BJ281: N/A | BK281: N/A | BL281: N/A | BM281: N/A | BN281: N/A | BO281: N/A | BP281: N/A | BQ281: N/A | BR281: N/A | BS281: N/A | BT281: N/A | BU281: N/A | BV281: N/A | BW281: N/A | BX281: N/A | BY281: N/A | BZ281: N/A | CA281: N/A | CB281: N/A | CC281: N/A | CD281: N/A | CE281: N/A | CF281: N/A | CG281: N/A | CH281: N/A
BB282: Did not bathe in regular place | BC282: N/A | BD282: N/A | BE282: N/A | BF282: N/A | BG282: N/A | BH282: N/A | BI282: N/A | BJ282: N/A | BK282: N/A | BL282: N/A | BM282: N/A | BN282: N/A | BO282: N/A | BP282: N/A | BQ282: N/A | BR282: N/A | BS282: N/A | BT282: N/A | BU282: N/A | BV282: N/A | BW282: N/A | BX282: N/A | BY282: N/A | BZ282: N/A | CA282: N/A | CB282: N/A | CC282: N/A | CD282: N/A | CE282: N/A | CF282: N/A | CG282: N/A | CH282: N/A
BB283: Did not participate in other activities | BC283: N/A | BD283: N/A | BE283: N/A | BF283: N/A | BG283: N/A | BH283: N/A | BI283: N/A | BJ283: N/A | BK283: N/A | BL283: N/A | BM283: N/A | BN283: N/A | BO283: N/A | BP283: N/A | BQ283: N/A | BR283: N/A | BS283: N/A | BT283: N/A | BU283: N/A | BV283: N/A | BW283: N/A | BX283: N/A | BY283: N/A | BZ283: N/A | CA283: N/A | CB283: N/A | CC283: N/A | CD283: N/A | CE283: N/A | CF283: N/A | CG283: N/A | CH283: N/A
BB284: DK/not sure/missing/no such activity | BC284: N/A | BD284: N/A | BE284: N/A | BF284: N/A | BG284: N/A | BH284: N/A | BI284: N/A | BJ284: N/A | BK284: N/A | BL284: N/A | BM284: N/A | BN284: N/A | BO284: N/A | BP284: N/A | BQ284: N/A | BR284: N/A | BS284: N/A | BT284: N/A | BU284: N/A | BV284: N/A | BW284: N/A | BX284: N/A | BY284: N/A | BZ284: N/A | CA284: N/A | CB284: N/A | CC284: N/A | CD284: N/A | CE284: N/A | CF284: N/A | CG284: N/A | CH284: N/A
BA339: Raw numbers of respondents: | BB339: Basic water, sanitation and hygiene | BC339: NATIONAL wealth index quintile | BH339: URBAN wealth index quintile | BM339: RURAL wealth index quintile | BR339: SUB-REGIONS:
BA340: WatSan data, raw numbers (weighted) | BC340: Poorest | BD340: Poor | BE340: Middle | BF340: Rich | BG340: Richest | BH340: Poorest | BI340: Poor | BJ340: Middle | BK340: Rich | BL340: Richest | BM340: Poorest | BN340: Poor | BO340: Middle | BP340: Rich | BQ340: Richest | BR340: ARMM | BS340: Bicol | BT340: Cagayan Valley | BU340: CALABARZON | BV340: Caraga | BW340: Central Luzon | BX340: Central Visayas | BY340: Cordillera Admin Region | BZ340: Davao | CA340: Eastern Visayas | CB340: Ilocos | CC340: MIMAROPA | CD340: National Capital Region | CE340: Northern Mindanao | CF340: SOCCSKSARGEN | CG340: Western Visayas | CH340: Zamboanga Peninsula
BA341: Use of Basic Water Sanitation and Hygiene | BB341: Yes | BC341: N/A | BD341: N/A | BE341: N/A | BF341: N/A | BG341: N/A | BH341: N/A | BI341: N/A | BJ341: N/A | BK341: N/A | BL341: N/A | BM341: N/A | BN341: N/A | BO341: N/A | BP341: N/A | BQ341: N/A | BR341: N/A | BS341: N/A | BT341: N/A | BU341: N/A | BV341: N/A | BW341: N/A | BX341: N/A | BY341: N/A | BZ341: N/A | CA341: N/A | CB341: N/A | CC341: N/A | CD341: N/A | CE341: N/A | CF341: N/A | CG341: N/A | CH341: N/A
BB342: No | BC342: N/A | BD342: N/A | BE342: N/A | BF342: N/A | BG342: N/A | BH342: N/A | BI342: N/A | BJ342: N/A | BK342: N/A | BL342: N/A | BM342: N/A | BN342: N/A | BO342: N/A | BP342: N/A | BQ342: N/A | BR342: N/A | BS342: N/A | BT342: N/A | BU342: N/A | BV342: N/A | BW342: N/A | BX342: N/A | BY342: N/A | BZ342: N/A | CA342: N/A | CB342: N/A | CC342: N/A | CD342: N/A | CE342: N/A | CF342: N/A | CG342: N/A | CH342: N/A
BA343: Use of Basic Water and Sanitation | BB343: Yes | BC343: N/A | BD343: N/A | BE343: N/A | BF343: N/A | BG343: N/A | BH343: N/A | BI343: N/A | BJ343: N/A | BK343: N/A | BL343: N/A | BM343: N/A | BN343: N/A | BO343: N/A | BP343: N/A | BQ343: N/A | BR343: N/A | BS343: N/A | BT343: N/A | BU343: N/A | BV343: N/A | BW343: N/A | BX343: N/A | BY343: N/A | BZ343: N/A | CA343: N/A | CB343: N/A | CC343: N/A | CD343: N/A | CE343: N/A | CF343: N/A | CG343: N/A | CH343: N/A
BB344: No | BC344: N/A | BD344: N/A | BE344: N/A | BF344: N/A | BG344: N/A | BH344: N/A | BI344: N/A | BJ344: N/A | BK344: N/A | BL344: N/A | BM344: N/A | BN344: N/A | BO344: N/A | BP344: N/A | BQ344: N/A | BR344: N/A | BS344: N/A | BT344: N/A | BU344: N/A | BV344: N/A | BW344: N/A | BX344: N/A | BY344: N/A | BZ344: N/A | CA344: N/A | CB344: N/A | CC344: N/A | CD344: N/A | CE344: N/A | CF344: N/A | CG344: N/A | CH344: N/A
BA345: Use of Basic Water and Hygiene | BB345: Yes | BC345: N/A | BD345: N/A | BE345: N/A | BF345: N/A | BG345: N/A | BH345: N/A | BI345: N/A | BJ345: N/A | BK345: N/A | BL345: N/A | BM345: N/A | BN345: N/A | BO345: N/A | BP345: N/A | BQ345: N/A | BR345: N/A | BS345: N/A | BT345: N/A | BU345: N/A | BV345: N/A | BW345: N/A | BX345: N/A | BY345: N/A | BZ345: N/A | CA345: N/A | CB345: N/A | CC345: N/A | CD345: N/A | CE345: N/A | CF345: N/A | CG345: N/A | CH345: N/A
BB346: No | BC346: N/A | BD346: N/A | BE346: N/A | BF346: N/A | BG346: N/A | BH346: N/A | BI346: N/A | BJ346: N/A | BK346: N/A | BL346: N/A | BM346: N/A | BN346: N/A | BO346: N/A | BP346: N/A | BQ346: N/A | BR346: N/A | BS346: N/A | BT346: N/A | BU346: N/A | BV346: N/A | BW346: N/A | BX346: N/A | BY346: N/A | BZ346: N/A | CA346: N/A | CB346: N/A | CC346: N/A | CD346: N/A | CE346: N/A | CF346: N/A | CG346: N/A | CH346: N/A
BA347: Use of Basic Sanitation and Hygiene | BB347: Yes | BC347: N/A | BD347: N/A | BE347: N/A | BF347: N/A | BG347: N/A | BH347: N/A | BI347: N/A | BJ347: N/A | BK347: N/A | BL347: N/A | BM347: N/A | BN347: N/A | BO347: N/A | BP347: N/A | BQ347: N/A | BR347: N/A | BS347: N/A | BT347: N/A | BU347: N/A | BV347: N/A | BW347: N/A | BX347: N/A | BY347: N/A | BZ347: N/A | CA347: N/A | CB347: N/A | CC347: N/A | CD347: N/A | CE347: N/A | CF347: N/A | CG347: N/A | CH347: N/A
BB348: No | BC348: N/A | BD348: N/A | BE348: N/A | BF348: N/A | BG348: N/A | BH348: N/A | BI348: N/A | BJ348: N/A | BK348: N/A | BL348: N/A | BM348: N/A | BN348: N/A | BO348: N/A | BP348: N/A | BQ348: N/A | BR348: N/A | BS348: N/A | BT348: N/A | BU348: N/A | BV348: N/A | BW348: N/A | BX348: N/A | BY348: N/A | BZ348: N/A | CA348: N/A | CB348: N/A | CC348: N/A | CD348: N/A | CE348: N/A | CF348: N/A | CG348: N/A | CH348: N/A
BA349: Use of Basic Water | BB349: Yes | BC349: N/A | BD349: N/A | BE349: N/A | BF349: N/A | BG349: N/A | BH349: N/A | BI349: N/A | BJ349: N/A | BK349: N/A | BL349: N/A | BM349: N/A | BN349: N/A | BO349: N/A | BP349: N/A | BQ349: N/A | BR349: N/A | BS349: N/A | BT349: N/A | BU349: N/A | BV349: N/A | BW349: N/A | BX349: N/A | BY349: N/A | BZ349: N/A | CA349: N/A | CB349: N/A | CC349: N/A | CD349: N/A | CE349: N/A | CF349: N/A | CG349: N/A | CH349: N/A
BB350: No | BC350: N/A | BD350: N/A | BE350: N/A | BF350: N/A | BG350: N/A | BH350: N/A | BI350: N/A | BJ350: N/A | BK350: N/A | BL350: N/A | BM350: N/A | BN350: N/A | BO350: N/A | BP350: N/A | BQ350: N/A | BR350: N/A | BS350: N/A | BT350: N/A | BU350: N/A | BV350: N/A | BW350: N/A | BX350: N/A | BY350: N/A | BZ350: N/A | CA350: N/A | CB350: N/A | CC350: N/A | CD350: N/A | CE350: N/A | CF350: N/A | CG350: N/A | CH350: N/A
BA351: Use of Basic Sanitation | BB351: Yes | BC351: N/A | BD351: N/A | BE351: N/A | BF351: N/A | BG351: N/A | BH351: N/A | BI351: N/A | BJ351: N/A | BK351: N/A | BL351: N/A | BM351: N/A | BN351: N/A | BO351: N/A | BP351: N/A | BQ351: N/A | BR351: N/A | BS351: N/A | BT351: N/A | BU351: N/A | BV351: N/A | BW351: N/A | BX351: N/A | BY351: N/A | BZ351: N/A | CA351: N/A | CB351: N/A | CC351: N/A | CD351: N/A | CE351: N/A | CF351: N/A | CG351: N/A | CH351: N/A
BB352: No | BC352: N/A | BD352: N/A | BE352: N/A | BF352: N/A | BG352: N/A | BH352: N/A | BI352: N/A | BJ352: N/A | BK352: N/A | BL352: N/A | BM352: N/A | BN352: N/A | BO352: N/A | BP352: N/A | BQ352: N/A | BR352: N/A | BS352: N/A | BT352: N/A | BU352: N/A | BV352: N/A | BW352: N/A | BX352: N/A | BY352: N/A | BZ352: N/A | CA352: N/A | CB352: N/A | CC352: N/A | CD352: N/A | CE352: N/A | CF352: N/A | CG352: N/A | CH352: N/A
BA353: Access to Basic Hygiene | BB353: Yes | BC353: N/A | BD353: N/A | BE353: N/A | BF353: N/A | BG353: N/A | BH353: N/A | BI353: N/A | BJ353: N/A | BK353: N/A | BL353: N/A | BM353: N/A | BN353: N/A | BO353: N/A | BP353: N/A | BQ353: N/A | BR353: N/A | BS353: N/A | BT353: N/A | BU353: N/A | BV353: N/A | BW353: N/A | BX353: N/A | BY353: N/A | BZ353: N/A | CA353: N/A | CB353: N/A | CC353: N/A | CD353: N/A | CE353: N/A | CF353: N/A | CG353: N/A | CH353: N/A
BB354: No | BC354: N/A | BD354: N/A | BE354: N/A | BF354: N/A | BG354: N/A | BH354: N/A | BI354: N/A | BJ354: N/A | BK354: N/A | BL354: N/A | BM354: N/A | BN354: N/A | BO354: N/A | BP354: N/A | BQ354: N/A | BR354: N/A | BS354: N/A | BT354: N/A | BU354: N/A | BV354: N/A | BW354: N/A | BX354: N/A | BY354: N/A | BZ354: N/A | CA354: N/A | CB354: N/A | CC354: N/A | CD354: N/A | CE354: N/A | CF354: N/A | CG354: N/A | CH354: N/A
C399: INITIAL (national) Wealth Index | H399: URBAN Wealth Index | M399: RURAL Wealth Index
C400: Component Matrix | H400: Component Matrix | M400: Component Matrix
E401: Component | J401: Component | O401: Component
B402: Note: The INITIAL (national) Wealth Index is based on the first component of the Principal Component Analysis (PCA) which has been obtained at national level. The final national-level (NATIONAL) Wealth Index is based on the URBAN and RURAL specific wealth indexes. Regression procedures are used to establish the relationships between the two sets of scores (urban and rural) and the initial (national) wealth factors. This allows best use of the available information for each area and a better precision of the FINAL (NATIONAL) Wealth Index. For dependency reasons, all WASH variables (contained in the generic MICS and DHS scripts) have been excluded from the sets of asset variables used in the PCAs. The PCA can extracts as many components as there are asset variables in the input. Only the first of the components is used to represent the Wealth Index. The scores represent the weights of the asset variables on the Wealth Index (correlations between the variables and the component). The communalities are the proportion of each variable's variance that can be explained by the component. Proportion of explained variance is the part of the model's total variance that is explained by the component. For more information on the procedure used: The DHS Wealth Index, DHS Comparative Reports No. 6, Shea Oscar Rutstein, Kiersten Johnson, ORC Macro International Inc., 2004. The DHS Wealth Index: Approaches for Rural and Urban Areas, Shea O. Rutstein, ORC Macro International Inc., 2008. MICS Methodological Paper No. 4, Review of options for reporting water, sanitation and hygiene coverage by wealth quintile, UNICEF, 2016. | E402: 1 | J402: 1 | O402: 1
C403: Has telephone | E403: 0.7894321456 | H403: Has telephone | J403: 0.7590981175 | M403: Has telephone | O403: 0.7604720454
C404: Has refrigerator | E404: 0.7729116213 | H404: Has refrigerator | J404: 0.7399349822 | M404: Has refrigerator | O404: 0.7589597686
C405: Cellular phone | E405: 0.7664929399 | H405: Cellular phone | J405: 0.7259858103 | M405: Cellular phone | O405: 0.7532778537
C406: Has television | E406: 0.7353698624 | H406: Washing machine | J406: 0.6899050602 | M406: Has television | O406: 0.7428543552
C407: CD/VCD/DVD player | E407: 0.7309004984 | H407: CD/VCD/DVD player | J407: 0.688363409 | M407: CD/VCD/DVD player | O407: 0.7141749959
C408: Washing machine | E408: 0.7127245651 | H408: Has television | J408: 0.6357019443 | M408: Washing machine | O408: 0.6545231694
C409: Has electricity | E409: 0.6416925965 | H409: Landline telephone | J409: 0.5952885187 | M409: Has electricity | O409: 0.6481683839
C410: Has cement wall | E410: 0.6392092622 | H410: Component/karaoke | J410: 0.5930148205 | M410: Has cement wall | O410: 0.6394207321
C411: Component/karaoke | E411: 0.6105060199 | H411: Has cement wall | J411: 0.5824261878 | M411: Has cement floor | O411: 0.6136750887
C412: Landline telephone | E412: 0.5554313453 | H412: Has car/truck | J412: 0.5177680235 | M412: Component/karaoke | O412: 0.5706615824
C413: Has bamboo with mud wall | E413: -0.536863638 | H413: Has electricity | J413: 0.5129897639 | M413: Has bamboo with mud wall | O413: -0.5018792637
C414: Has car/truck | E414: 0.5024004939 | H414: Personal computer | J414: 0.4873122669 | M414: Has motorcycle/scooter | O414: 0.4727019958
C415: Has cement floor | E415: 0.4859519744 | H415: Has bamboo with mud wall | J415: -0.4605891417 | M415: Has car/truck | O415: 0.4390362349
C416: Personal computer | E416: 0.4548052885 | H416: Has radio | J416: 0.4188374068 | M416: Has palm/bamboo floor | O416: -0.4160632598
C417: Has palm/bamboo floor | E417: -0.4466847798 | H417: Has palm/bamboo floor | J417: -0.3984395275 | M417: Landline telephone | O417: 0.3506195022
C418: Has radio | E418: 0.3847372422 | H418: Dwelling ownership | J418: -0.3530357975 | M418: Dwelling ownership | O418: 0.3494561883
C419: Dwelling ownership | E419: -0.3711899408 | H419: Dwelling ownership | J419: 0.3372753249 | M419: Dwelling ownership | O419: -0.3383594177
C420: Has motorcycle/scooter | E420: 0.3409626486 | H420: Has reused wood wall | J420: -0.3344422596 | M420: Has radio | O420: 0.334983322
... 158 more rows

Sheet DHS08
A2: =A1026 -> Philippines
A3: =A1034 -> 2008
A4: Use of drinking water sources
A5: by wealth quintile and sub-national region
A6: Notes:
A7: WHO/UNICEF JMP customised wealth index excludes water,
A8: sanitation and hygiene assets.
A9: Survey used for analysis: | B9: =A1025 -> DHS08
A10: =B1028 -> 
A11: =B1027 -> 
A14: Use of drinking water sources | C14: NATIONAL wealth index quintile | H14: URBAN wealth index quintile | M14: RURAL wealth index quintile | R14: SUB-REGIONS: | BA14: Raw numbers of respondents: | BB14: Use of drinking water sources | BC14: NATIONAL wealth index quintile | BH14: URBAN wealth index quintile | BM14: RURAL wealth index quintile | BR14: SUB-REGIONS:
A15: Weighted percentage (used in graphs) | C15: Poorest | D15: Poor | E15: Middle | F15: Rich | G15: Richest | H15: Poorest | I15: Poor | J15: Middle | K15: Rich | L15: Richest | M15: Poorest | N15: Poor | O15: Middle | P15: Rich | Q15: Richest | R15: ARMM | S15: Cordillera Admin Region | T15: I - Ilocos Region | U15: II - Cagayan Valley | V15: III - Central Luzon | W15: IVA - CALABARZON | X15: IVB - MIMAROPA | Y15: IX - Zamboanga Peninsula | Z15: National Capital Region | AA15: V - Bicol Region | AB15: VI - Western Visayas | AC15: VII - Central Visayas | AD15: VIII - Eastern Visayas | AE15: X - Northern Mindanao | AF15: XI - Davao Peninsula | AG15: XII - SOCCSKSARGEN | AH15: XIII - Caraga | BA15: Water data, raw numbers (weighted) | BC15: Poorest | BD15: Poor | BE15: Middle | BF15: Rich | BG15: Richest | BH15: Poorest | BI15: Poor | BJ15: Middle | BK15: Rich | BL15: Richest | BM15: Poorest | BN15: Poor | BO15: Middle | BP15: Rich | BQ15: Richest | BR15: ARMM | BS15: Cordillera Admin Region | BT15: I - Ilocos Region | BU15: II - Cagayan Valley | BV15: III - Central Luzon | BW15: IVA - CALABARZON | BX15: IVB - MIMAROPA | BY15: IX - Zamboanga Peninsula | BZ15: National Capital Region | CA15: V - Bicol Region | CB15: VI - Western Visayas | CC15: VII - Central Visayas | CD15: VIII - Eastern Visayas | CE15: X - Northern Mindanao | CF15: XI - Davao Peninsula | CG15: XII - SOCCSKSARGEN | CH15: XIII - Caraga
A16: Water | B16: Improved | C16: 73.6252848 | D16: 89.93226733 | E16: 95.17256018 | F16: 97.47465758 | G16: 99.80920186 | H16: 90.30793832 | I16: 95.91482529 | J16: 97.51058619 | K16: 99.6372532 | L16: 100 | M16: 65.70460176 | N16: 81.34465895 | O16: 89.34176421 | P16: 94.48161313 | Q16: 97.61139514 | R16: 67.90743105 | S16: 95.86679455 | T16: 99.13686123 | U16: 94.80252541 | V16: 98.77822257 | W16: 95.33389113 | X16: 88.50198243 | Y16: 85.70286927 | Z16: 99.17607082 | AA16: 81.35571286 | AB16: 81.71479464 | AC16: 88.42629153 | AD16: 89.92251888 | AE16: 87.02553362 | AF16: 88.09348538 | AG16: 89.82575435 | AH16: 94.33229455 | BA16: Water | BB16: Improved | BC16: N/A | BD16: N/A | BE16: N/A | BF16: N/A | BG16: N/A | BH16: N/A | BI16: N/A | BJ16: N/A | BK16: N/A | BL16: N/A | BM16: N/A | BN16: N/A | BO16: N/A | BP16: N/A | BQ16: N/A | BR16: N/A | BS16: N/A | BT16: N/A | BU16: N/A | BV16: N/A | BW16: N/A | BX16: N/A | BY16: N/A | BZ16: N/A | CA16: N/A | CB16: N/A | CC16: N/A | CD16: N/A | CE16: N/A | CF16: N/A | CG16: N/A | CH16: N/A
B17: Not Improved | C17: 26.3747152 | D17: 10.06773267 | E17: 4.827439818 | F17: 2.525342419 | G17: 0.1907981429 | H17: 9.692061678 | I17: 4.085174711 | J17: 2.489413809 | K17: 0.3627468025 | L17: 0 | M17: 34.29539824 | N17: 18.65534105 | O17: 10.65823579 | P17: 5.518386872 | Q17: 2.388604861 | R17: 32.09256895 | S17: 4.133205448 | T17: 0.8631387665 | U17: 5.197474586 | V17: 1.221777425 | W17: 4.66610887 | X17: 11.49801757 | Y17: 14.29713073 | Z17: 0.8239291783 | AA17: 18.64428714 | AB17: 18.28520536 | AC17: 11.57370847 | AD17: 10.07748112 | AE17: 12.97446638 | AF17: 11.90651462 | AG17: 10.17424565 | AH17: 5.667705448 | BB17: Not Improved | BC17: N/A | BD17: N/A | BE17: N/A | BF17: N/A | BG17: N/A | BH17: N/A | BI17: N/A | BJ17: N/A | BK17: N/A | BL17: N/A | BM17: N/A | BN17: N/A | BO17: N/A | BP17: N/A | BQ17: N/A | BR17: N/A | BS17: N/A | BT17: N/A | BU17: N/A | BV17: N/A | BW17: N/A | BX17: N/A | BY17: N/A | BZ17: N/A | CA17: N/A | CB17: N/A | CC17: N/A | CD17: N/A | CE17: N/A | CF17: N/A | CG17: N/A | CH17: N/A
A18: Water ladder | B18: Basic | C18: =C16*C23/100 -> 70.45939756 | D18: =D16*D23/100 -> 89.21280919 | E18: =E16*E23/100 -> 94.31600714 | F18: 97.27970827 | G18: 99.80920186 | H18: 89.85639863 | I18: 95.14750669 | J18: 97.21805443 | K18: 99.6372532 | L18: 100 | M18: 61.43380265 | N18: 78.98566384 | O18: 88.62703009 | P18: 93.82024184 | Q18: 97.02572677 | R18: 61.11668795 | S18: 95.86679455 | T18: 99.13686123 | U18: 94.80252541 | V18: 98.58066613 | W18: 95.04788946 | X18: 87.6169626 | Y18: 85.36005779 | Z18: 98.97771868 | AA18: 79.56588717 | AB18: 79.50849519 | AC18: 87.01147087 | AD18: 89.20313873 | AE18: 85.89420168 | AF18: 86.24352219 | AG18: 89.19697407 | AH18: 93.29463931 | BA18: Water ladder | BB18: Basic | BC18: N/A | BD18: N/A | BE18: N/A | BF18: N/A | BG18: N/A | BH18: N/A | BI18: N/A | BJ18: N/A | BK18: N/A | BL18: N/A | BM18: N/A | BN18: N/A | BO18: N/A | BP18: N/A | BQ18: N/A | BR18: N/A | BS18: N/A | BT18: N/A | BU18: N/A | BV18: N/A | BW18: N/A | BX18: N/A | BY18: N/A | BZ18: N/A | CA18: N/A | CB18: N/A | CC18: N/A | CD18: N/A | CE18: N/A | CF18: N/A | CG18: N/A | CH18: N/A
B19: Limited | C19: =C16*C22/100 -> 3.165887247 | D19: =D16*D22/100 -> 0.7194581387 | E19: =E16*E22/100 -> 0.8565530416 | F19: 0.1949493152 | G19: 0 | H19: 0.4515396916 | I19: 0.7673186023 | J19: 0.2925317586 | K19: 0 | L19: 0 | M19: 4.270799115 | N19: 2.35899511 | O19: 0.7147341137 | P19: 0.6613712919 | Q19: 0.5856683708 | R19: 6.790743105 | S19: 0 | T19: 0 | U19: 0 | V19: 0.1975564451 | W19: 0.2860016734 | X19: 0.8850198243 | Y19: 0.3428114771 | Z19: 0.1983521416 | AA19: 1.789825683 | AB19: 2.206299455 | AC19: 1.414820664 | AD19: 0.719380151 | AE19: 1.131331937 | AF19: 1.849963193 | AG19: 0.6287802804 | AH19: 1.03765524 | BB19: Limited | BC19: N/A | BD19: N/A | BE19: N/A | BF19: N/A | BG19: N/A | BH19: N/A | BI19: N/A | BJ19: N/A | BK19: N/A | BL19: N/A | BM19: N/A | BN19: N/A | BO19: N/A | BP19: N/A | BQ19: N/A | BR19: N/A | BS19: N/A | BT19: N/A | BU19: N/A | BV19: N/A | BW19: N/A | BX19: N/A | BY19: N/A | BZ19: N/A | CA19: N/A | CB19: N/A | CC19: N/A | CD19: N/A | CE19: N/A | CF19: N/A | CG19: N/A | CH19: N/A
B20: Unimproved | C20: =100-C18-C19-C21 -> 25.97941015 | D20: =100-D18-D19-D21 -> 9.514052803 | E20: =100-E18-E19-E21 -> 4.42041877 | F20: 2.130073837 | G20: 0.152513949 | H20: 9.069701892 | I20: 3.589561692 | J20: 2.24983629 | K20: 0.1978632228 | L20: 0 | M20: 33.84173351 | N20: 18.43223994 | O20: 10.05744911 | P20: 5.172673657 | Q20: 1.952448872 | R20: 25.60057003 | S20: 4.133205448 | T20: 0.8631387665 | U20: 4.934277759 | V20: 1.124606995 | W20: 4.599601437 | X20: 10.46804611 | Y20: 14.29713073 | Z20: 0.8239291783 | AA20: 18.64428714 | AB20: 18.28520536 | AC20: 11.37244512 | AD20: 9.795461214 | AE20: 12.97446638 | AF20: 11.90651462 | AG20: 10.0167707 | AH20: 5.457879718 | BB20: Unimproved | BC20: N/A | BD20: N/A | BE20: N/A | BF20: N/A | BG20: N/A | BH20: N/A | BI20: N/A | BJ20: N/A | BK20: N/A | BL20: N/A | BM20: N/A | BN20: N/A | BO20: N/A | BP20: N/A | BQ20: N/A | BR20: N/A | BS20: N/A | BT20: N/A | BU20: N/A | BV20: N/A | BW20: N/A | BX20: N/A | BY20: N/A | BZ20: N/A | CA20: N/A | CB20: N/A | CC20: N/A | CD20: N/A | CE20: N/A | CF20: N/A | CG20: N/A | CH20: N/A
B21: Surface water | C21: 0.3953050466 | D21: 0.5536798646 | E21: 0.407021048 | F21: 0.3952685813 | G21: 0.03828419383 | H21: 0.6223597859 | I21: 0.4956130184 | J21: 0.2395775185 | K21: 0.1648835797 | L21: 0 | M21: 0.4536647259 | N21: 0.2231011059 | O21: 0.6007866802 | P21: 0.3457132145 | Q21: 0.4361559898 | R21: 6.491998911 | S21: 0 | T21: 0 | U21: 0.2631968267 | V21: 0.09717043032 | W21: 0.06650743313 | X21: 1.02997146 | Y21: 0 | Z21: 0 | AA21: 0 | AB21: 0 | AC21: 0.2012633444 | AD21: 0.2820199061 | AE21: 0 | AF21: 0 | AG21: 0.1574749481 | AH21: 0.2098257303 | BB21: Surface water | BC21: N/A | BD21: N/A | BE21: N/A | BF21: N/A | BG21: N/A | BH21: N/A | BI21: N/A | BJ21: N/A | BK21: N/A | BL21: N/A | BM21: N/A | BN21: N/A | BO21: N/A | BP21: N/A | BQ21: N/A | BR21: N/A | BS21: N/A | BT21: N/A | BU21: N/A | BV21: N/A | BW21: N/A | BX21: N/A | BY21: N/A | BZ21: N/A | CA21: N/A | CB21: N/A | CC21: N/A | CD21: N/A | CE21: N/A | CF21: N/A | CG21: N/A | CH21: N/A
A22: Improved water point at more than 30 minutes | B22: Yes | C22: 4.3 | D22: 0.8 | E22: 0.9 | F22: 0.2 | G22: 0 | H22: 0.5 | I22: 0.8 | J22: 0.3 | K22: 0 | L22: 0 | M22: 6.5 | N22: 2.9 | O22: 0.8 | P22: 0.7 | Q22: 0.6 | R22: 10 | S22: 0 | T22: 0 | U22: 0 | V22: 0.2 | W22: 0.3 | X22: 1 | Y22: 0.4 | Z22: 0.2 | AA22: 2.2 | AB22: 2.7 | AC22: 1.6 | AD22: 0.8 | AE22: 1.3 | AF22: 2.1 | AG22: 0.7 | AH22: 1.1 | BA22: Improved water point at more than 30 minutes | BB22: Yes | BC22: N/A | BD22: N/A | BE22: N/A | BF22: N/A | BG22: N/A | BH22: N/A | BI22: N/A | BJ22: N/A | BK22: N/A | BL22: N/A | BM22: N/A | BN22: N/A | BO22: N/A | BP22: N/A | BQ22: N/A | BR22: N/A | BS22: N/A | BT22: N/A | BU22: N/A | BV22: N/A | BW22: N/A | BX22: N/A | BY22: N/A | BZ22: N/A | CA22: N/A | CB22: N/A | CC22: N/A | CD22: N/A | CE22: N/A | CF22: N/A | CG22: N/A | CH22: N/A
B23: No | C23: 95.7 | D23: 99.2 | E23: 99.1 | F23: 99.8 | G23: 100 | H23: 99.5 | I23: 99.2 | J23: 99.7 | K23: 100 | L23: 100 | M23: 93.5 | N23: 97.1 | O23: 99.2 | P23: 99.3 | Q23: 99.4 | R23: 90 | S23: 100 | T23: 100 | U23: 100 | V23: 99.8 | W23: 99.7 | X23: 99 | Y23: 99.6 | Z23: 99.8 | AA23: 97.8 | AB23: 97.3 | AC23: 98.4 | AD23: 99.2 | AE23: 98.7 | AF23: 97.9 | AG23: 99.3 | AH23: 98.9 | BB23: No | BC23: N/A | BD23: N/A | BE23: N/A | BF23: N/A | BG23: N/A | BH23: N/A | BI23: N/A | BJ23: N/A | BK23: N/A | BL23: N/A | BM23: N/A | BN23: N/A | BO23: N/A | BP23: N/A | BQ23: N/A | BR23: N/A | BS23: N/A | BT23: N/A | BU23: N/A | BV23: N/A | BW23: N/A | BX23: N/A | BY23: N/A | BZ23: N/A | CA23: N/A | CB23: N/A | CC23: N/A | CD23: N/A | CE23: N/A | CF23: N/A | CG23: N/A | CH23: N/A
A24: Manually calculated ratios | B24: Improved wells
B25: Improved springs
B26: Other
C27: NATIONAL wealth index quintile | H27: URBAN wealth index quintile | M27: RURAL wealth index quintile | R27: SUB-REGIONS: | BA27: Raw numbers of respondents: | BB27: Use of drinking water sources | BC27: NATIONAL wealth index quintile | BH27: URBAN wealth index quintile | BM27: RURAL wealth index quintile | BR27: SUB-REGIONS:
A28: Percentage based on weighted population | C28: Poorest | D28: Poor | E28: Middle | F28: Rich | G28: Richest | H28: Poorest | I28: Poor | J28: Middle | K28: Rich | L28: Richest | M28: Poorest | N28: Poor | O28: Middle | P28: Rich | Q28: Richest | R28: ARMM | S28: Cordillera Admin Region | T28: I - Ilocos Region | U28: II - Cagayan Valley | V28: III - Central Luzon | W28: IVA - CALABARZON | X28: IVB - MIMAROPA | Y28: IX - Zamboanga Peninsula | Z28: National Capital Region | AA28: V - Bicol Region | AB28: VI - Western Visayas | AC28: VII - Central Visayas | AD28: VIII - Eastern Visayas | AE28: X - Northern Mindanao | AF28: XI - Davao Peninsula | AG28: XII - SOCCSKSARGEN | AH28: XIII - Caraga | BA28: Water data, raw numbers (weighted) | BC28: Poorest | BD28: Poor | BE28: Middle | BF28: Rich | BG28: Richest | BH28: Poorest | BI28: Poor | BJ28: Middle | BK28: Rich | BL28: Richest | BM28: Poorest | BN28: Poor | BO28: Middle | BP28: Rich | BQ28: Richest | BR28: ARMM | BS28: Cordillera Admin Region | BT28: I - Ilocos Region | BU28: II - Cagayan Valley | BV28: III - Central Luzon | BW28: IVA - CALABARZON | BX28: IVB - MIMAROPA | BY28: IX - Zamboanga Peninsula | BZ28: National Capital Region | CA28: V - Bicol Region | CB28: VI - Western Visayas | CC28: VII - Central Visayas | CD28: VIII - Eastern Visayas | CE28: X - Northern Mindanao | CF28: XI - Davao Peninsula | CG28: XII - SOCCSKSARGEN | CH28: XIII - Caraga
A29: Piped water | B29: Yes | C29: 22.1 | D29: 37.9 | E29: 50.1 | F29: 63.6 | G29: 77.3 | H29: 44.8 | I29: 61.5 | J29: 71.3 | K29: 78 | L29: 84.6 | M29: 16.4 | N29: 25.3 | O29: 29.3 | P29: 38.9 | Q29: 51 | R29: 7.2 | S29: 67.8 | T29: 20.5 | U29: 20.1 | V29: 41.8 | W29: 68.4 | X29: 28 | Y29: 53 | Z29: 91.2 | AA29: 36.7 | AB29: 27 | AC29: 55.6 | AD29: 53.1 | AE29: 56.6 | AF29: 41 | AG29: 26.6 | AH29: 50.6 | BA29: Piped water | BB29: Yes | BC29: N/A | BD29: N/A | BE29: N/A | BF29: N/A | BG29: N/A | BH29: N/A | BI29: N/A | BJ29: N/A | BK29: N/A | BL29: N/A | BM29: N/A | BN29: N/A | BO29: N/A | BP29: N/A | BQ29: N/A | BR29: N/A | BS29: N/A | BT29: N/A | BU29: N/A | BV29: N/A | BW29: N/A | BX29: N/A | BY29: N/A | BZ29: N/A | CA29: N/A | CB29: N/A | CC29: N/A | CD29: N/A | CE29: N/A | CF29: N/A | CG29: N/A | CH29: N/A
B30: No | C30: 77.9 | D30: 62.1 | E30: 49.9 | F30: 36.4 | G30: 22.7 | H30: 55.2 | I30: 38.5 | J30: 28.7 | K30: 22 | L30: 15.4 | M30: 83.6 | N30: 74.7 | O30: 70.7 | P30: 61.1 | Q30: 49 | R30: 92.8 | S30: 32.2 | T30: 79.5 | U30: 79.9 | V30: 58.2 | W30: 31.6 | X30: 72 | Y30: 47 | Z30: 8.8 | AA30: 63.3 | AB30: 73 | AC30: 44.4 | AD30: 46.9 | AE30: 43.4 | AF30: 59 | AG30: 73.4 | AH30: 49.4 | BB30: No | BC30: N/A | BD30: N/A | BE30: N/A | BF30: N/A | BG30: N/A | BH30: N/A | BI30: N/A | BJ30: N/A | BK30: N/A | BL30: N/A | BM30: N/A | BN30: N/A | BO30: N/A | BP30: N/A | BQ30: N/A | BR30: N/A | BS30: N/A | BT30: N/A | BU30: N/A | BV30: N/A | BW30: N/A | BX30: N/A | BY30: N/A | BZ30: N/A | CA30: N/A | CB30: N/A | CC30: N/A | CD30: N/A | CE30: N/A | CF30: N/A | CG30: N/A | CH30: N/A
A31: Piped water on premises | B31: Yes | C31: 11.7 | D31: 30 | E31: 44.9 | F31: 59.7 | G31: 75.8 | H31: 35.2 | I31: 56.4 | J31: 67.1 | K31: 77 | L31: 83.7 | M31: 6.8 | N31: 14.5 | O31: 22.9 | P31: 33.1 | Q31: 47 | R31: 5.3 | S31: 63.5 | T31: 20.3 | U31: 17.4 | V31: 37.6 | W31: 67.8 | X31: 21.5 | Y31: 44.1 | Z31: 86.5 | AA31: 28.6 | AB31: 25 | AC31: 47.9 | AD31: 25.3 | AE31: 47.4 | AF31: 34.8 | AG31: 21.4 | AH31: 33.4 | BA31: Piped water on premises | BB31: Yes | BC31: N/A | BD31: N/A | BE31: N/A | BF31: N/A | BG31: N/A | BH31: N/A | BI31: N/A | BJ31: N/A | BK31: N/A | BL31: N/A | BM31: N/A | BN31: N/A | BO31: N/A | BP31: N/A | BQ31: N/A | BR31: N/A | BS31: N/A | BT31: N/A | BU31: N/A | BV31: N/A | BW31: N/A | BX31: N/A | BY31: N/A | BZ31: N/A | CA31: N/A | CB31: N/A | CC31: N/A | CD31: N/A | CE31: N/A | CF31: N/A | CG31: N/A | CH31: N/A
B32: No | C32: 88.3 | D32: 70 | E32: 55.1 | F32: 40.3 | G32: 24.2 | H32: 64.8 | I32: 43.6 | J32: 32.9 | K32: 23 | L32: 16.3 | M32: 93.2 | N32: 85.5 | O32: 77.1 | P32: 66.9 | Q32: 53 | R32: 94.7 | S32: 36.5 | T32: 79.7 | U32: 82.6 | V32: 62.4 | W32: 32.2 | X32: 78.5 | Y32: 55.9 | Z32: 13.5 | AA32: 71.4 | AB32: 75 | AC32: 52.1 | AD32: 74.7 | AE32: 52.6 | AF32: 65.2 | AG32: 78.6 | AH32: 66.6 | BB32: No | BC32: N/A | BD32: N/A | BE32: N/A | BF32: N/A | BG32: N/A | BH32: N/A | BI32: N/A | BJ32: N/A | BK32: N/A | BL32: N/A | BM32: N/A | BN32: N/A | BO32: N/A | BP32: N/A | BQ32: N/A | BR32: N/A | BS32: N/A | BT32: N/A | BU32: N/A | BV32: N/A | BW32: N/A | BX32: N/A | BY32: N/A | BZ32: N/A | CA32: N/A | CB32: N/A | CC32: N/A | CD32: N/A | CE32: N/A | CF32: N/A | CG32: N/A | CH32: N/A
A33: Piped water into dwelling | B33: Yes | C33: N/A | D33: N/A | E33: N/A | F33: N/A | G33: N/A | H33: N/A | I33: N/A | J33: N/A | K33: N/A | L33: N/A | M33: N/A | N33: N/A | O33: N/A | P33: N/A | Q33: N/A | R33: N/A | S33: N/A | T33: N/A | U33: N/A | V33: N/A | W33: N/A | X33: N/A | Y33: N/A | Z33: N/A | AA33: N/A | AB33: N/A | AC33: N/A | AD33: N/A | AE33: N/A | AF33: N/A | AG33: N/A | AH33: N/A | BA33: Piped water into dwelling | BB33: Yes | BC33: N/A | BD33: N/A | BE33: N/A | BF33: N/A | BG33: N/A | BH33: N/A | BI33: N/A | BJ33: N/A | BK33: N/A | BL33: N/A | BM33: N/A | BN33: N/A | BO33: N/A | BP33: N/A | BQ33: N/A | BR33: N/A | BS33: N/A | BT33: N/A | BU33: N/A | BV33: N/A | BW33: N/A | BX33: N/A | BY33: N/A | BZ33: N/A | CA33: N/A | CB33: N/A | CC33: N/A | CD33: N/A | CE33: N/A | CF33: N/A | CG33: N/A | CH33: N/A
B34: No | C34: N/A | D34: N/A | E34: N/A | F34: N/A | G34: N/A | H34: N/A | I34: N/A | J34: N/A | K34: N/A | L34: N/A | M34: N/A | N34: N/A | O34: N/A | P34: N/A | Q34: N/A | R34: N/A | S34: N/A | T34: N/A | U34: N/A | V34: N/A | W34: N/A | X34: N/A | Y34: N/A | Z34: N/A | AA34: N/A | AB34: N/A | AC34: N/A | AD34: N/A | AE34: N/A | AF34: N/A | AG34: N/A | AH34: N/A | BB34: No | BC34: N/A | BD34: N/A | BE34: N/A | BF34: N/A | BG34: N/A | BH34: N/A | BI34: N/A | BJ34: N/A | BK34: N/A | BL34: N/A | BM34: N/A | BN34: N/A | BO34: N/A | BP34: N/A | BQ34: N/A | BR34: N/A | BS34: N/A | BT34: N/A | BU34: N/A | BV34: N/A | BW34: N/A | BX34: N/A | BY34: N/A | BZ34: N/A | CA34: N/A | CB34: N/A | CC34: N/A | CD34: N/A | CE34: N/A | CF34: N/A | CG34: N/A | CH34: N/A
A35: Water source on premises | B35: Yes | C35: 36.8 | D35: 62.3 | E35: 78.5 | F35: 89.1 | G35: 97.7 | H35: 60.2 | I35: 83.6 | J35: 90.3 | K35: 97.3 | L35: 98.9 | M35: 30.3 | N35: 44.4 | O35: 61.1 | P35: 73.9 | Q35: 88.6 | R35: 53.1 | S35: 88.2 | T35: 85 | U35: 77.5 | V35: 78.4 | W35: 89.1 | X35: 57.3 | Y35: 74.4 | Z35: 95.7 | AA35: 55 | AB35: 57.2 | AC35: 66.8 | AD35: 43.6 | AE35: 66 | AF35: 58.8 | AG35: 61.1 | AH35: 53.3 | BA35: Water source on premises | BB35: Yes | BC35: N/A | BD35: N/A | BE35: N/A | BF35: N/A | BG35: N/A | BH35: N/A | BI35: N/A | BJ35: N/A | BK35: N/A | BL35: N/A | BM35: N/A | BN35: N/A | BO35: N/A | BP35: N/A | BQ35: N/A | BR35: N/A | BS35: N/A | BT35: N/A | BU35: N/A | BV35: N/A | BW35: N/A | BX35: N/A | BY35: N/A | BZ35: N/A | CA35: N/A | CB35: N/A | CC35: N/A | CD35: N/A | CE35: N/A | CF35: N/A | CG35: N/A | CH35: N/A
B36: No | C36: 63.2 | D36: 37.7 | E36: 21.5 | F36: 10.9 | G36: 2.3 | H36: 39.8 | I36: 16.4 | J36: 9.7 | K36: 2.7 | L36: 1.1 | M36: 69.7 | N36: 55.6 | O36: 38.9 | P36: 26.1 | Q36: 11.4 | R36: 46.9 | S36: 11.8 | T36: 15 | U36: 22.5 | V36: 21.6 | W36: 10.9 | X36: 42.7 | Y36: 25.6 | Z36: 4.3 | AA36: 45 | AB36: 42.8 | AC36: 33.2 | AD36: 56.4 | AE36: 34 | AF36: 41.2 | AG36: 38.9 | AH36: 46.7 | BB36: No | BC36: N/A | BD36: N/A | BE36: N/A | BF36: N/A | BG36: N/A | BH36: N/A | BI36: N/A | BJ36: N/A | BK36: N/A | BL36: N/A | BM36: N/A | BN36: N/A | BO36: N/A | BP36: N/A | BQ36: N/A | BR36: N/A | BS36: N/A | BT36: N/A | BU36: N/A | BV36: N/A | BW36: N/A | BX36: N/A | BY36: N/A | BZ36: N/A | CA36: N/A | CB36: N/A | CC36: N/A | CD36: N/A | CE36: N/A | CF36: N/A | CG36: N/A | CH36: N/A
A37: Improved Water source on premises | B37: Yes | C37: 31.2 | D37: 58.9 | E37: 76.3 | F37: 87.6 | G37: 97.5 | H37: 57.7 | I37: 81.7 | J37: 88.9 | K37: 97 | L37: 98.9 | M37: 23.2 | N37: 39.7 | O37: 57.1 | P37: 71.4 | Q37: 86.9 | R37: 42.3 | S37: 86 | T37: 84.6 | U37: 74.8 | V37: 78 | W37: 87.7 | X37: 54.2 | Y37: 70.3 | Z37: 95.1 | AA37: 50.2 | AB37: 51.4 | AC37: 63.6 | AD37: 41.6 | AE37: 63.1 | AF37: 56.7 | AG37: 57.7 | AH37: 51.6 | BA37: Improved water source on premises | BB37: Yes | BC37: N/A | BD37: N/A | BE37: N/A | BF37: N/A | BG37: N/A | BH37: N/A | BI37: N/A | BJ37: N/A | BK37: N/A | BL37: N/A | BM37: N/A | BN37: N/A | BO37: N/A | BP37: N/A | BQ37: N/A | BR37: N/A | BS37: N/A | BT37: N/A | BU37: N/A | BV37: N/A | BW37: N/A | BX37: N/A | BY37: N/A | BZ37: N/A | CA37: N/A | CB37: N/A | CC37: N/A | CD37: N/A | CE37: N/A | CF37: N/A | CG37: N/A | CH37: N/A
B38: No | C38: 68.8 | D38: 41.1 | E38: 23.7 | F38: 12.4 | G38: 2.5 | H38: 42.3 | I38: 18.3 | J38: 11.1 | K38: 3 | L38: 1.1 | M38: 76.8 | N38: 60.3 | O38: 42.9 | P38: 28.6 | Q38: 13.1 | R38: 57.7 | S38: 14 | T38: 15.4 | U38: 25.2 | V38: 22 | W38: 12.3 | X38: 45.8 | Y38: 29.7 | Z38: 4.9 | AA38: 49.8 | AB38: 48.6 | AC38: 36.4 | AD38: 58.4 | AE38: 36.9 | AF38: 43.3 | AG38: 42.3 | AH38: 48.4 | BB38: No | BC38: N/A | BD38: N/A | BE38: N/A | BF38: N/A | BG38: N/A | BH38: N/A | BI38: N/A | BJ38: N/A | BK38: N/A | BL38: N/A | BM38: N/A | BN38: N/A | BO38: N/A | BP38: N/A | BQ38: N/A | BR38: N/A | BS38: N/A | BT38: N/A | BU38: N/A | BV38: N/A | BW38: N/A | BX38: N/A | BY38: N/A | BZ38: N/A | CA38: N/A | CB38: N/A | CC38: N/A | CD38: N/A | CE38: N/A | CF38: N/A | CG38: N/A | CH38: N/A
A39: Piped water on premises available when needed | B39: Yes | C39: N/A | D39: N/A | E39: N/A | F39: N/A | G39: N/A | H39: N/A | I39: N/A | J39: N/A | K39: N/A | L39: N/A | M39: N/A | N39: N/A | O39: N/A | P39: N/A | Q39: N/A | R39: N/A | S39: N/A | T39: N/A | U39: N/A | V39: N/A | W39: N/A | X39: N/A | Y39: N/A | Z39: N/A | AA39: N/A | AB39: N/A | AC39: N/A | AD39: N/A | AE39: N/A | AF39: N/A | AG39: N/A | AH39: N/A | BA39: Piped water on premises available when needed | BB39: Yes | BC39: N/A | BD39: N/A | BE39: N/A | BF39: N/A | BG39: N/A | BH39: N/A | BI39: N/A | BJ39: N/A | BK39: N/A | BL39: N/A | BM39: N/A | BN39: N/A | BO39: N/A | BP39: N/A | BQ39: N/A | BR39: N/A | BS39: N/A | BT39: N/A | BU39: N/A | BV39: N/A | BW39: N/A | BX39: N/A | BY39: N/A | BZ39: N/A | CA39: N/A | CB39: N/A | CC39: N/A | CD39: N/A | CE39: N/A | CF39: N/A | CG39: N/A | CH39: N/A
B40: No | C40: N/A | D40: N/A | E40: N/A | F40: N/A | G40: N/A | H40: N/A | I40: N/A | J40: N/A | K40: N/A | L40: N/A | M40: N/A | N40: N/A | O40: N/A | P40: N/A | Q40: N/A | R40: N/A | S40: N/A | T40: N/A | U40: N/A | V40: N/A | W40: N/A | X40: N/A | Y40: N/A | Z40: N/A | AA40: N/A | AB40: N/A | AC40: N/A | AD40: N/A | AE40: N/A | AF40: N/A | AG40: N/A | AH40: N/A | BB40: No | BC40: N/A | BD40: N/A | BE40: N/A | BF40: N/A | BG40: N/A | BH40: N/A | BI40: N/A | BJ40: N/A | BK40: N/A | BL40: N/A | BM40: N/A | BN40: N/A | BO40: N/A | BP40: N/A | BQ40: N/A | BR40: N/A | BS40: N/A | BT40: N/A | BU40: N/A | BV40: N/A | BW40: N/A | BX40: N/A | BY40: N/A | BZ40: N/A | CA40: N/A | CB40: N/A | CC40: N/A | CD40: N/A | CE40: N/A | CF40: N/A | CG40: N/A | CH40: N/A
A41: Water point at more than 30 minutes | B41: Yes | C41: 5.9 | D41: 1.4 | E41: 1 | F41: 0.3 | G41: 0 | H41: 1.3 | I41: 1 | J41: 0.4 | K41: 0 | L41: 0 | M41: 8.3 | N41: 3.7 | O41: 1.1 | P41: 0.8 | Q41: 0.6 | R41: 12.4 | S41: 0 | T41: 0 | U41: 0 | V41: 0.2 | W41: 0.6 | X41: 1.4 | Y41: 0.4 | Z41: 0.2 | AA41: 3.3 | AB41: 3.7 | AC41: 1.9 | AD41: 0.8 | AE41: 3.2 | AF41: 3.3 | AG41: 1.3 | AH41: 1.2 | BA41: Water point at more than 30 minutes | BB41: Yes | BC41: N/A | BD41: N/A | BE41: N/A | BF41: N/A | BG41: N/A | BH41: N/A | BI41: N/A | BJ41: N/A | BK41: N/A | BL41: N/A | BM41: N/A | BN41: N/A | BO41: N/A | BP41: N/A | BQ41: N/A | BR41: N/A | BS41: N/A | BT41: N/A | BU41: N/A | BV41: N/A | BW41: N/A | BX41: N/A | BY41: N/A | BZ41: N/A | CA41: N/A | CB41: N/A | CC41: N/A | CD41: N/A | CE41: N/A | CF41: N/A | CG41: N/A | CH41: N/A
B42: No | C42: 94.1 | D42: 98.6 | E42: 99 | F42: 99.7 | G42: 100 | H42: 98.7 | I42: 99 | J42: 99.6 | K42: 100 | L42: 100 | M42: 91.7 | N42: 96.3 | O42: 98.9 | P42: 99.2 | Q42: 99.4 | R42: 87.6 | S42: 100 | T42: 100 | U42: 100 | V42: 99.8 | W42: 99.4 | X42: 98.6 | Y42: 99.6 | Z42: 99.8 | AA42: 96.7 | AB42: 96.3 | AC42: 98.1 | AD42: 99.2 | AE42: 96.8 | AF42: 96.7 | AG42: 98.7 | AH42: 98.8 | BB42: No | BC42: N/A | BD42: N/A | BE42: N/A | BF42: N/A | BG42: N/A | BH42: N/A | BI42: N/A | BJ42: N/A | BK42: N/A | BL42: N/A | BM42: N/A | BN42: N/A | BO42: N/A | BP42: N/A | BQ42: N/A | BR42: N/A | BS42: N/A | BT42: N/A | BU42: N/A | BV42: N/A | BW42: N/A | BX42: N/A | BY42: N/A | BZ42: N/A | CA42: N/A | CB42: N/A | CC42: N/A | CD42: N/A | CE42: N/A | CF42: N/A | CG42: N/A | CH42: N/A
A43: Water source available when needed | B43: Yes | C43: N/A | D43: N/A | E43: N/A | F43: N/A | G43: N/A | H43: N/A | I43: N/A | J43: N/A | K43: N/A | L43: N/A | M43: N/A | N43: N/A | O43: N/A | P43: N/A | Q43: N/A | R43: N/A | S43: N/A | T43: N/A | U43: N/A | V43: N/A | W43: N/A | X43: N/A | Y43: N/A | Z43: N/A | AA43: N/A | AB43: N/A | AC43: N/A | AD43: N/A | AE43: N/A | AF43: N/A | AG43: N/A | AH43: N/A | BA43: Water source available when needed | BB43: Yes | BC43: N/A | BD43: N/A | BE43: N/A | BF43: N/A | BG43: N/A | BH43: N/A | BI43: N/A | BJ43: N/A | BK43: N/A | BL43: N/A | BM43: N/A | BN43: N/A | BO43: N/A | BP43: N/A | BQ43: N/A | BR43: N/A | BS43: N/A | BT43: N/A | BU43: N/A | BV43: N/A | BW43: N/A | BX43: N/A | BY43: N/A | BZ43: N/A | CA43: N/A | CB43: N/A | CC43: N/A | CD43: N/A | CE43: N/A | CF43: N/A | CG43: N/A | CH43: N/A
B44: No | C44: N/A | D44: N/A | E44: N/A | F44: N/A | G44: N/A | H44: N/A | I44: N/A | J44: N/A | K44: N/A | L44: N/A | M44: N/A | N44: N/A | O44: N/A | P44: N/A | Q44: N/A | R44: N/A | S44: N/A | T44: N/A | U44: N/A | V44: N/A | W44: N/A | X44: N/A | Y44: N/A | Z44: N/A | AA44: N/A | AB44: N/A | AC44: N/A | AD44: N/A | AE44: N/A | AF44: N/A | AG44: N/A | AH44: N/A | BB44: No | BC44: N/A | BD44: N/A | BE44: N/A | BF44: N/A | BG44: N/A | BH44: N/A | BI44: N/A | BJ44: N/A | BK44: N/A | BL44: N/A | BM44: N/A | BN44: N/A | BO44: N/A | BP44: N/A | BQ44: N/A | BR44: N/A | BS44: N/A | BT44: N/A | BU44: N/A | BV44: N/A | BW44: N/A | BX44: N/A | BY44: N/A | BZ44: N/A | CA44: N/A | CB44: N/A | CC44: N/A | CD44: N/A | CE44: N/A | CF44: N/A | CG44: N/A | CH44: N/A
A45: Improved water source available when needed | B45: Yes | C45: N/A | D45: N/A | E45: N/A | F45: N/A | G45: N/A | H45: N/A | I45: N/A | J45: N/A | K45: N/A | L45: N/A | M45: N/A | N45: N/A | O45: N/A | P45: N/A | Q45: N/A | R45: N/A | S45: N/A | T45: N/A | U45: N/A | V45: N/A | W45: N/A | X45: N/A | Y45: N/A | Z45: N/A | AA45: N/A | AB45: N/A | AC45: N/A | AD45: N/A | AE45: N/A | AF45: N/A | AG45: N/A | AH45: N/A | BA45: Improved water source available when needed | BB45: Yes | BC45: N/A | BD45: N/A | BE45: N/A | BF45: N/A | BG45: N/A | BH45: N/A | BI45: N/A | BJ45: N/A | BK45: N/A | BL45: N/A | BM45: N/A | BN45: N/A | BO45: N/A | BP45: N/A | BQ45: N/A | BR45: N/A | BS45: N/A | BT45: N/A | BU45: N/A | BV45: N/A | BW45: N/A | BX45: N/A | BY45: N/A | BZ45: N/A | CA45: N/A | CB45: N/A | CC45: N/A | CD45: N/A | CE45: N/A | CF45: N/A | CG45: N/A | CH45: N/A
B46: No | C46: N/A | D46: N/A | E46: N/A | F46: N/A | G46: N/A | H46: N/A | I46: N/A | J46: N/A | K46: N/A | L46: N/A | M46: N/A | N46: N/A | O46: N/A | P46: N/A | Q46: N/A | R46: N/A | S46: N/A | T46: N/A | U46: N/A | V46: N/A | W46: N/A | X46: N/A | Y46: N/A | Z46: N/A | AA46: N/A | AB46: N/A | AC46: N/A | AD46: N/A | AE46: N/A | AF46: N/A | AG46: N/A | AH46: N/A | BB46: No | BC46: N/A | BD46: N/A | BE46: N/A | BF46: N/A | BG46: N/A | BH46: N/A | BI46: N/A | BJ46: N/A | BK46: N/A | BL46: N/A | BM46: N/A | BN46: N/A | BO46: N/A | BP46: N/A | BQ46: N/A | BR46: N/A | BS46: N/A | BT46: N/A | BU46: N/A | BV46: N/A | BW46: N/A | BX46: N/A | BY46: N/A | BZ46: N/A | CA46: N/A | CB46: N/A | CC46: N/A | CD46: N/A | CE46: N/A | CF46: N/A | CG46: N/A | CH46: N/A
A47: Microbiological quality at point of collection | B47: Not contaminated (No E. coli in 100 mL) | C47: N/A | D47: N/A | E47: N/A | F47: N/A | G47: N/A | H47: N/A | I47: N/A | J47: N/A | K47: N/A | L47: N/A | M47: N/A | N47: N/A | O47: N/A | P47: N/A | Q47: N/A | R47: N/A | S47: N/A | T47: N/A | U47: N/A | V47: N/A | W47: N/A | X47: N/A | Y47: N/A | Z47: N/A | AA47: N/A | AB47: N/A | AC47: N/A | AD47: N/A | AE47: N/A | AF47: N/A | AG47: N/A | AH47: N/A | BA47: Microbiological quality at point of collection | BB47: Not contaminated (No E. coli in 100 mL) | BC47: N/A | BD47: N/A | BE47: N/A | BF47: N/A | BG47: N/A | BH47: N/A | BI47: N/A | BJ47: N/A | BK47: N/A | BL47: N/A | BM47: N/A | BN47: N/A | BO47: N/A | BP47: N/A | BQ47: N/A | BR47: N/A | BS47: N/A | BT47: N/A | BU47: N/A | BV47: N/A | BW47: N/A | BX47: N/A | BY47: N/A | BZ47: N/A | CA47: N/A | CB47: N/A | CC47: N/A | CD47: N/A | CE47: N/A | CF47: N/A | CG47: N/A | CH47: N/A
B48: Contaminated (E. coli detected in 100 mL) | C48: N/A | D48: N/A | E48: N/A | F48: N/A | G48: N/A | H48: N/A | I48: N/A | J48: N/A | K48: N/A | L48: N/A | M48: N/A | N48: N/A | O48: N/A | P48: N/A | Q48: N/A | R48: N/A | S48: N/A | T48: N/A | U48: N/A | V48: N/A | W48: N/A | X48: N/A | Y48: N/A | Z48: N/A | AA48: N/A | AB48: N/A | AC48: N/A | AD48: N/A | AE48: N/A | AF48: N/A | AG48: N/A | AH48: N/A | BB48: Contaminated (E. coli detected in 100 mL) | BC48: N/A | BD48: N/A | BE48: N/A | BF48: N/A | BG48: N/A | BH48: N/A | BI48: N/A | BJ48: N/A | BK48: N/A | BL48: N/A | BM48: N/A | BN48: N/A | BO48: N/A | BP48: N/A | BQ48: N/A | BR48: N/A | BS48: N/A | BT48: N/A | BU48: N/A | BV48: N/A | BW48: N/A | BX48: N/A | BY48: N/A | BZ48: N/A | CA48: N/A | CB48: N/A | CC48: N/A | CD48: N/A | CE48: N/A | CF48: N/A | CG48: N/A | CH48: N/A
B49: Highly contaminated (>100 CFU/100 mL) | C49: N/A | D49: N/A | E49: N/A | F49: N/A | G49: N/A | H49: N/A | I49: N/A | J49: N/A | K49: N/A | L49: N/A | M49: N/A | N49: N/A | O49: N/A | P49: N/A | Q49: N/A | R49: N/A | S49: N/A | T49: N/A | U49: N/A | V49: N/A | W49: N/A | X49: N/A | Y49: N/A | Z49: N/A | AA49: N/A | AB49: N/A | AC49: N/A | AD49: N/A | AE49: N/A | AF49: N/A | AG49: N/A | AH49: N/A | BB49: Highly contaminated (>100 CFU/100 mL) | BC49: N/A | BD49: N/A | BE49: N/A | BF49: N/A | BG49: N/A | BH49: N/A | BI49: N/A | BJ49: N/A | BK49: N/A | BL49: N/A | BM49: N/A | BN49: N/A | BO49: N/A | BP49: N/A | BQ49: N/A | BR49: N/A | BS49: N/A | BT49: N/A | BU49: N/A | BV49: N/A | BW49: N/A | BX49: N/A | BY49: N/A | BZ49: N/A | CA49: N/A | CB49: N/A | CC49: N/A | CD49: N/A | CE49: N/A | CF49: N/A | CG49: N/A | CH49: N/A
A50: Microbiological quality of improved water sources at point of collection | B50: Not contaminated (No E. coli in 100 mL) | C50: N/A | D50: N/A | E50: N/A | F50: N/A | G50: N/A | H50: N/A | I50: N/A | J50: N/A | K50: N/A | L50: N/A | M50: N/A | N50: N/A | O50: N/A | P50: N/A | Q50: N/A | R50: N/A | S50: N/A | T50: N/A | U50: N/A | V50: N/A | W50: N/A | X50: N/A | Y50: N/A | Z50: N/A | AA50: N/A | AB50: N/A | AC50: N/A | AD50: N/A | AE50: N/A | AF50: N/A | AG50: N/A | AH50: N/A | BA50: Microbiological quality of improved water sources at point of collection | BB50: Not contaminated (No E. coli in 100 mL) | BC50: N/A | BD50: N/A | BE50: N/A | BF50: N/A | BG50: N/A | BH50: N/A | BI50: N/A | BJ50: N/A | BK50: N/A | BL50: N/A | BM50: N/A | BN50: N/A | BO50: N/A | BP50: N/A | BQ50: N/A | BR50: N/A | BS50: N/A | BT50: N/A | BU50: N/A | BV50: N/A | BW50: N/A | BX50: N/A | BY50: N/A | BZ50: N/A | CA50: N/A | CB50: N/A | CC50: N/A | CD50: N/A | CE50: N/A | CF50: N/A | CG50: N/A | CH50: N/A
B51: Contaminated (E. coli detected in 100 mL) | C51: N/A | D51: N/A | E51: N/A | F51: N/A | G51: N/A | H51: N/A | I51: N/A | J51: N/A | K51: N/A | L51: N/A | M51: N/A | N51: N/A | O51: N/A | P51: N/A | Q51: N/A | R51: N/A | S51: N/A | T51: N/A | U51: N/A | V51: N/A | W51: N/A | X51: N/A | Y51: N/A | Z51: N/A | AA51: N/A | AB51: N/A | AC51: N/A | AD51: N/A | AE51: N/A | AF51: N/A | AG51: N/A | AH51: N/A | BB51: Contaminated (E. coli detected in 100 mL) | BC51: N/A | BD51: N/A | BE51: N/A | BF51: N/A | BG51: N/A | BH51: N/A | BI51: N/A | BJ51: N/A | BK51: N/A | BL51: N/A | BM51: N/A | BN51: N/A | BO51: N/A | BP51: N/A | BQ51: N/A | BR51: N/A | BS51: N/A | BT51: N/A | BU51: N/A | BV51: N/A | BW51: N/A | BX51: N/A | BY51: N/A | BZ51: N/A | CA51: N/A | CB51: N/A | CC51: N/A | CD51: N/A | CE51: N/A | CF51: N/A | CG51: N/A | CH51: N/A
B52: Highly contaminated (>100 CFU/100 mL) | C52: N/A | D52: N/A | E52: N/A | F52: N/A | G52: N/A | H52: N/A | I52: N/A | J52: N/A | K52: N/A | L52: N/A | M52: N/A | N52: N/A | O52: N/A | P52: N/A | Q52: N/A | R52: N/A | S52: N/A | T52: N/A | U52: N/A | V52: N/A | W52: N/A | X52: N/A | Y52: N/A | Z52: N/A | AA52: N/A | AB52: N/A | AC52: N/A | AD52: N/A | AE52: N/A | AF52: N/A | AG52: N/A | AH52: N/A | BB52: Highly contaminated (>100 CFU/100 mL) | BC52: N/A | BD52: N/A | BE52: N/A | BF52: N/A | BG52: N/A | BH52: N/A | BI52: N/A | BJ52: N/A | BK52: N/A | BL52: N/A | BM52: N/A | BN52: N/A | BO52: N/A | BP52: N/A | BQ52: N/A | BR52: N/A | BS52: N/A | BT52: N/A | BU52: N/A | BV52: N/A | BW52: N/A | BX52: N/A | BY52: N/A | BZ52: N/A | CA52: N/A | CB52: N/A | CC52: N/A | CD52: N/A | CE52: N/A | CF52: N/A | CG52: N/A | CH52: N/A
A53: Microbiological quality of piped on premises at point of collection | B53: Not contaminated (No E. coli in 100 mL) | C53: N/A | D53: N/A | E53: N/A | F53: N/A | G53: N/A | H53: N/A | I53: N/A | J53: N/A | K53: N/A | L53: N/A | M53: N/A | N53: N/A | O53: N/A | P53: N/A | Q53: N/A | R53: N/A | S53: N/A | T53: N/A | U53: N/A | V53: N/A | W53: N/A | X53: N/A | Y53: N/A | Z53: N/A | AA53: N/A | AB53: N/A | AC53: N/A | AD53: N/A | AE53: N/A | AF53: N/A | AG53: N/A | AH53: N/A | BA53: Microbiological quality of piped on premises at point of collection | BB53: Not contaminated (No E. coli in 100 mL) | BC53: N/A | BD53: N/A | BE53: N/A | BF53: N/A | BG53: N/A | BH53: N/A | BI53: N/A | BJ53: N/A | BK53: N/A | BL53: N/A | BM53: N/A | BN53: N/A | BO53: N/A | BP53: N/A | BQ53: N/A | BR53: N/A | BS53: N/A | BT53: N/A | BU53: N/A | BV53: N/A | BW53: N/A | BX53: N/A | BY53: N/A | BZ53: N/A | CA53: N/A | CB53: N/A | CC53: N/A | CD53: N/A | CE53: N/A | CF53: N/A | CG53: N/A | CH53: N/A
B54: Contaminated (E. coli detected in 100 mL) | C54: N/A | D54: N/A | E54: N/A | F54: N/A | G54: N/A | H54: N/A | I54: N/A | J54: N/A | K54: N/A | L54: N/A | M54: N/A | N54: N/A | O54: N/A | P54: N/A | Q54: N/A | R54: N/A | S54: N/A | T54: N/A | U54: N/A | V54: N/A | W54: N/A | X54: N/A | Y54: N/A | Z54: N/A | AA54: N/A | AB54: N/A | AC54: N/A | AD54: N/A | AE54: N/A | AF54: N/A | AG54: N/A | AH54: N/A | BB54: Contaminated (E. coli detected in 100 mL) | BC54: N/A | BD54: N/A | BE54: N/A | BF54: N/A | BG54: N/A | BH54: N/A | BI54: N/A | BJ54: N/A | BK54: N/A | BL54: N/A | BM54: N/A | BN54: N/A | BO54: N/A | BP54: N/A | BQ54: N/A | BR54: N/A | BS54: N/A | BT54: N/A | BU54: N/A | BV54: N/A | BW54: N/A | BX54: N/A | BY54: N/A | BZ54: N/A | CA54: N/A | CB54: N/A | CC54: N/A | CD54: N/A | CE54: N/A | CF54: N/A | CG54: N/A | CH54: N/A
B55: Highly contaminated (>100 CFU/100 mL) | C55: N/A | D55: N/A | E55: N/A | F55: N/A | G55: N/A | H55: N/A | I55: N/A | J55: N/A | K55: N/A | L55: N/A | M55: N/A | N55: N/A | O55: N/A | P55: N/A | Q55: N/A | R55: N/A | S55: N/A | T55: N/A | U55: N/A | V55: N/A | W55: N/A | X55: N/A | Y55: N/A | Z55: N/A | AA55: N/A | AB55: N/A | AC55: N/A | AD55: N/A | AE55: N/A | AF55: N/A | AG55: N/A | AH55: N/A | BB55: Highly contaminated (>100 CFU/100 mL) | BC55: N/A | BD55: N/A | BE55: N/A | BF55: N/A | BG55: N/A | BH55: N/A | BI55: N/A | BJ55: N/A | BK55: N/A | BL55: N/A | BM55: N/A | BN55: N/A | BO55: N/A | BP55: N/A | BQ55: N/A | BR55: N/A | BS55: N/A | BT55: N/A | BU55: N/A | BV55: N/A | BW55: N/A | BX55: N/A | BY55: N/A | BZ55: N/A | CA55: N/A | CB55: N/A | CC55: N/A | CD55: N/A | CE55: N/A | CF55: N/A | CG55: N/A | CH55: N/A
C56: NATIONAL wealth index quintile | H56: URBAN wealth index quintile | M56: RURAL wealth index quintile | R56: SUB-REGIONS: | BA56: Raw numbers of respondents: | BB56: Use of drinking water sources | BC56: NATIONAL wealth index quintile | BH56: URBAN wealth index quintile | BM56: RURAL wealth index quintile | BR56: SUB-REGIONS:
A57: Percentage based on weighted population | C57: Poorest | D57: Poor | E57: Middle | F57: Rich | G57: Richest | H57: Poorest | I57: Poor | J57: Middle | K57: Rich | L57: Richest | M57: Poorest | N57: Poor | O57: Middle | P57: Rich | Q57: Richest | R57: ARMM | S57: Cordillera Admin Region | T57: I - Ilocos Region | U57: II - Cagayan Valley | V57: III - Central Luzon | W57: IVA - CALABARZON | X57: IVB - MIMAROPA | Y57: IX - Zamboanga Peninsula | Z57: National Capital Region | AA57: V - Bicol Region | AB57: VI - Western Visayas | AC57: VII - Central Visayas | AD57: VIII - Eastern Visayas | AE57: X - Northern Mindanao | AF57: XI - Davao Peninsula | AG57: XII - SOCCSKSARGEN | AH57: XIII - Caraga | BA57: Water data, raw numbers (weighted) | BC57: Poorest | BD57: Poor | BE57: Middle | BF57: Rich | BG57: Richest | BH57: Poorest | BI57: Poor | BJ57: Middle | BK57: Rich | BL57: Richest | BM57: Poorest | BN57: Poor | BO57: Middle | BP57: Rich | BQ57: Richest | BR57: ARMM | BS57: Cordillera Admin Region | BT57: I - Ilocos Region | BU57: II - Cagayan Valley | BV57: III - Central Luzon | BW57: IVA - CALABARZON | BX57: IVB - MIMAROPA | BY57: IX - Zamboanga Peninsula | BZ57: National Capital Region | CA57: V - Bicol Region | CB57: VI - Western Visayas | CC57: VII - Central Visayas | CD57: VIII - Eastern Visayas | CE57: X - Northern Mindanao | CF57: XI - Davao Peninsula | CG57: XII - SOCCSKSARGEN | CH57: XIII - Caraga
A58: Source of drinking water | B58: Piped into dwelling | C58: 5.222066114 | D58: 18.62579873 | E58: 30.57269217 | F58: 35.92461965 | G58: 29.6291989 | H58: 19.7776405 | I58: 37.32878863 | J58: 39.78478766 | K58: 36.54408839 | L58: 25.6922258 | M58: 1.941944658 | N58: 7.744736509 | O58: 15.52234564 | P58: 23.9406213 | Q58: 31.47180173 | R58: 3.870230683 | S58: 32.8028329 | T58: 13.10303933 | U58: 7.203134682 | V58: 18.32979352 | W58: 43.50423025 | X58: 10.8224356 | Y58: 27.65162749 | Z58: 37.74304447 | AA58: 20.05231011 | AB58: 15.43186307 | AC58: 17.76905837 | AD58: 16.14661204 | AE58: 28.33543047 | AF58: 23.92214569 | AG58: 12.86245422 | AH58: 23.26128839
B59: Piped to yard/plot | C59: 6.211796269 | D59: 9.190448952 | E59: 6.488277505 | F59: 4.853166619 | G59: 2.865663451 | H59: 12.07574723 | I59: 7.670951992 | J59: 5.438765148 | K59: 4.801288785 | L59: 1.049484913 | M59: 4.806665078 | N59: 6.565863714 | O59: 6.357478647 | P59: 6.251707481 | Q59: 4.188852752 | R59: 0.5696877703 | S59: 18.32598352 | T59: 1.38250027 | U59: 4.574124053 | V59: 7.766775031 | W59: 4.386836171 | X59: 7.735900519 | Y59: 9.03793815 | Z59: 7.50902102 | AA59: 3.197613133 | AB59: 1.518007487 | AC59: 8.744134736 | AD59: 4.455578181 | AE59: 9.656064845 | AF59: 7.16905951 | AG59: 6.636742439 | AH59: 5.126360771
B60: Public tap/standpipe | C60: 10.30678934 | D60: 7.368697278 | E60: 4.553255288 | F60: 3.016650075 | G60: 0.9256856213 | H60: 8.925904406 | I60: 3.907644291 | J60: 3.077394613 | K60: 0.3644688577 | L60: 0.5954469783 | M60: 9.620593531 | N60: 10.72691186 | O60: 6.072317963 | P60: 5.55451392 | Q60: 3.537045327 | R60: 1.940393733 | S60: 4.246279335 | T60: 0.1856184686 | U60: 2.697992294 | V60: 4.057940182 | W60: 0.6016385952 | X60: 6.540817881 | Y60: 8.7494926 | Z60: 2.835279485 | AA60: 8.07444758 | AB60: 1.99121113 | AC60: 6.265166415 | AD60: 26.36424017 | AE60: 9.224660795 | AF60: 5.943283973 | AG60: 4.827231868 | AH60: 17.15306583
B61: Tube well or borehole | C61: 25.33358028 | D61: 29.82613896 | E61: 28.02518845 | F61: 17.33277197 | G61: 9.141529842 | H61: 26.84984066 | I61: 19.66434542 | J61: 12.72516277 | K61: 8.678648202 | L61: 4.120949739 | M61: 21.2907082 | N61: 29.28932227 | O61: 35.7891814 | P61: 35.33578206 | Q61: 25.78236446 | R61: 15.3668686 | S61: 13.22847831 | T61: 59.29568162 | U61: 41.10108413 | V61: 46.04865665 | W61: 15.72563175 | X61: 38.96451977 | Y61: 8.680208309 | Z61: 1.632000346 | AA61: 20.23071819 | AB61: 21.18675958 | AC61: 7.097941243 | AD61: 16.94712515 | AE61: 17.42716158 | AF61: 18.47071244 | AG61: 42.71536573 | AH61: 28.29888707
B62: Protected well | C62: 9.41431114 | D62: 6.647114248 | E62: 4.303203476 | F62: 2.965775858 | G62: 1.523349905 | H62: 5.247500523 | I62: 2.207334518 | J62: 1.865247208 | K62: 0.9574355702 | L62: 0.6828063218 | M62: 11.01862971 | N62: 9.214695729 | O62: 7.519014681 | P62: 5.826690534 | Q62: 5.246097893 | R62: 9.855199682 | S62: 2.747597696 | T62: 3.798484392 | U62: 22.95535221 | V62: 0.3474442324 | W62: 2.378149511 | X62: 2.859543858 | Y62: 5.460275497 | Z62: 0.2066159707 | AA62: 4.398098939 | AB62: 13.27508633 | AC62: 8.394068408 | AD62: 10.82473907 | AE62: 2.206683486 | AF62: 2.637160345 | AG62: 7.254933133 | AH62: 3.397218369
B63: Unprotected well | C63: 11.05080331 | D63: 2.546889314 | E63: 1.03906426 | F63: 0.3096912908 | G63: 0 | H63: 2.219971665 | I63: 0.4499770232 | J63: 0.3076169349 | K63: 0.1455762019 | L63: 0 | M63: 15.64922559 | N63: 5.948111955 | O63: 3.486247103 | P63: 1.50025723 | Q63: 0.2657191577 | R63: 16.87562618 | S63: 0.5005793042 | T63: 0.120468396 | U63: 0.8119775833 | V63: 0.1916469719 | W63: 1.624733839 | X63: 1.882831612 | Y63: 5.490933569 | Z63: 0 | AA63: 7.628834918 | AB63: 6.203191423 | AC63: 2.381260719 | AD63: 2.942644068 | AE63: 5.257617355 | AF63: 2.605367029 | AG63: 2.909194527 | AH63: 2.132247833
B64: Semi-protected well | C64: 3.255190104 | D64: 1.439714499 | E64: 0.5918029812 | F64: 0.3101946786 | G64: 0.03503675077 | H64: 1.007705379 | I64: 0.3180837059 | J64: 0.1117860373 | K64: 0 | L64: 0 | M64: 3.915698864 | N64: 2.857653606 | O64: 1.687511294 | P64: 1.144080645 | Q64: 0.2461489245 | R64: 1.764169169 | S64: 0.7354395282 | T64: 0.249967212 | U64: 2.923204072 | V64: 0 | W64: 0.4191013214 | X64: 3.452464709 | Y64: 0.9156269685 | Z64: 0 | AA64: 3.610154536 | AB64: 2.741168497 | AC64: 1.294895507 | AD64: 2.69687272 | AE64: 0.4371456851 | AF64: 0.5283472942 | AG64: 1.369621405 | AH64: 0.4523190209
B65: Protected spring | C65: 13.16535774 | D65: 9.183177008 | E65: 4.475981315 | F65: 3.482395103 | G65: 0.9497330567 | H65: 4.725754042 | I65: 2.006375849 | J65: 0.8534202434 | K65: 0.9598588336 | L65: 0.4300630702 | M65: 13.50960545 | N65: 14.62301717 | O65: 12.34208884 | P65: 7.707777984 | Q65: 5.483677482 | R65: 18.49481245 | S65: 4.308258303 | T65: 1.895515672 | U65: 2.609516229 | V65: 1.625770714 | W65: 1.986438773 | X65: 11.55156202 | Y65: 16.64860335 | Z65: 0 | AA65: 12.51692821 | AB65: 7.742782249 | AC65: 3.961760708 | AD65: 4.628200863 | AE65: 9.648205163 | AF65: 20.85506247 | AG65: 8.829158939 | AH65: 10.00836375
B66: Unprotected spring | C66: 9.829394463 | D66: 2.96674183 | E66: 1.22961541 | F66: 0.3374893732 | G66: 0.09120488352 | H66: 2.236243105 | I66: 0.5570295446 | J66: 0.04519661231 | K66: 0 | L66: 0 | M66: 12.23420693 | N66: 7.989322712 | O66: 3.612378931 | P66: 1.487337682 | Q66: 0.8181056906 | R66: 6.72051146 | S66: 2.751505896 | T66: 0.4927031585 | U66: 1.199603234 | V66: 0.5506098856 | W66: 2.555832559 | X66: 5.137263266 | Y66: 7.890570192 | Z66: 0 | AA66: 3.627455872 | AB66: 3.170757168 | AC66: 3.657536903 | AD66: 3.219871201 | AE66: 4.2922286 | AF66: 7.643547831 | AG66: 5.190415779 | AH66: 2.387453356
B67: River/dam/lake/ponds/stream/canal/irrigation channel | C67: 0.3948969092 | D67: 0.5525282681 | E67: 0.4066630379 | F67: 0.3946408428 | G67: 0.03828419383 | H67: 0.6200152429 | I67: 0.4953430387 | J67: 0.2395775185 | K67: 0.1646778386 | L67: 0 | M67: 0.4536022223 | N67: 0.2229210549 | O67: 0.5999587999 | P67: 0.3452495972 | Q67: 0.4353127025 | R67: 6.475824767 | S67: 0 | T67: 0 | U67: 0.2626896957 | V67: 0.09705904762 | W67: 0.06644115067 | X67: 1.025457986 | Y67: 0 | Z67: 0 | AA67: 0 | AB67: 0 | AC67: 0.2012633444 | AD67: 0.2818432719 | AE67: 0 | AF67: 0 | AG67: 0.1570829741 | AH67: 0.2092955817
B68: Rainwater | C68: 0.9263602982 | D68: 0.9268589781 | E68: 1.093838715 | F68: 0.1931390746 | G68: 0.2024810362 | H68: 0.9073365606 | I68: 0.7569293999 | J68: 0.1920171569 | K68: 0.1720108427 | L68: 0.1604850026 | M68: 1.480632407 | N68: 0.4668170524 | O68: 0.8091110917 | P68: 1.545260483 | Q68: 0.2028915529 | R68: 8.842271363 | S68: 0.4604661304 | T68: 0 | U68: 0.649376534 | V68: 0 | W68: 0 | X68: 0.108605179 | Y68: 0 | Z68: 0 | AA68: 0 | AB68: 0.5510596019 | AC68: 2.113893278 | AD68: 0.2187687678 | AE68: 0.1904671521 | AF68: 0.6443418203 | AG68: 0.8473301587 | AH68: 0.2161116573
B69: Tanker truck | C69: 0.7440531116 | D69: 1.129830095 | E69: 0.8686569794 | F69: 0.9739532034 | G69: 0.7007851194 | H69: 2.0349142 | I69: 1.322408661 | J69: 1.661940055 | K69: 1.095690134 | L69: 0.3807839923 | M69: 0.2597535739 | N69: 0.6535510707 | O69: 0.7524589932 | P69: 0.3200348279 | Q69: 0.3389150808 | R69: 0 | S69: 0.2237460162 | T69: 0 | U69: 0 | V69: 0.4701627865 | W69: 0.8493867979 | X69: 1.763201016 | Y69: 0 | Z69: 0.4263058843 | AA69: 3.791665394 | AB69: 1.788701611 | AC69: 0.2928482575 | AD69: 0.7942457998 | AE69: 0 | AF69: 2.659572392 | AG69: 1.484766799 | AH69: 0
B70: Cart with small tank | C70: 1.183432296 | D70: 0.558889018 | E70: 0.4614054025 | F70: 0.5260739752 | G70: 0.06583887063 | H70: 0.5604574689 | I70: 0.5394869292 | J70: 0.4576052841 | K70: 0.3167128248 | L70: 0 | M70: 1.519657137 | N70: 0.9819625815 | O70: 0.5340972985 | P70: 0.2798269309 | Q70: 0.4079276907 | R70: 5.766981908 | S70: 0 | T70: 0 | U70: 0 | V70: 0 | W70: 0 | X70: 4.092263109 | Y70: 0 | Z70: 0.08560481917 | AA70: 1.371486771 | AB70: 0.3759106162 | AC70: 0.1038516906 | AD70: 0.5017170259 | AE70: 0.2534170646 | AF70: 0.8341322029 | AG70: 0 | AH70: 0.1397098115
B71: Bottled water | C71: 1.117538216 | D71: 6.475314073 | E71: 14.38936409 | F71: 28.20611205 | G71: 53.80493605 | H71: 9.20284272 | I71: 20.63019878 | J71: 31.45424605 | K71: 45.74705076 | L71: 66.88775419 | M71: 0.2564120125 | N71: 1.077780999 | O71: 3.64366965 | P71: 7.719397606 | Q71: 20.95182116 | R71: 3.200984871 | S71: 19.52315234 | T71: 19.47602148 | U71: 13.01194529 | V71: 20.24689777 | W71: 25.90157928 | X71: 4.063133473 | Y71: 9.474723877 | Z71: 48.73819883 | AA71: 7.722444528 | AB71: 17.85341297 | AC71: 33.68356843 | AD71: 9.041291822 | AE71: 10.08344307 | AF71: 4.958014541 | AG71: 4.367771063 | AH71: 6.7312889
B72: Neighbor's Tap, Source Unknown (others recode) | C72: 1.363158901 | D72: 2.166088209 | E72: 1.260243454 | F72: 0.8077005263 | G72: 0 | H72: 3.036416644 | I72: 1.745655981 | J72: 1.311699331 | K72: 0 | L72: 0 | M72: 1.42180288 | N72: 1.365941737 | O72: 0.9806132093 | P72: 0.9589033912 | Q72: 0.3674472511 | R72: 0.2564373644 | S72: 0.1456807188 | T72: 0 | U72: 0 | V72: 0.1162344251 | W72: 0 | X72: 0 | Y72: 0 | Z72: 0.5930865367 | AA72: 2.602377832 | AB72: 4.398474776 | AC72: 3.661439719 | AD72: 0.9362498593 | AE72: 2.842296407 | AF72: 1.129252464 | AG72: 0.3840032037 | AH72: 0.486389656
B73: Neighbor's Tap, NAWASA (others recode) | C73: 0.4638381571 | D73: 0.3628557703 | E73: 0.2407474685 | F73: 0.3107220408 | G73: 0 | H73: 0.5717096434 | I73: 0.3994462392 | J73: 0.3643461009 | K73: 0 | L73: 0 | M73: 0.5858432638 | N73: 0.2054937563 | O73: 0.2915264555 | P73: 0.08255832725 | Q73: 0.2558711351 | R73: 0 | S73: 0 | T73: 0 | U73: 0 | V73: 0.1510087794 | W73: 0 | X73: 0 | Y73: 0 | Z73: 0.15850595 | AA73: 1.175463984 | AB73: 1.771613491 | AC73: 0.3017693178 | AD73: 0 | AE73: 0.06547644303 | AF73: 0 | AG73: 0 | AH73: 0
B74: Other | C74: 0.01743335161 | D74: 0.03291477623 | E74: 0 | F74: 0.05490366599 | G74: 0.02627231475 | H74: 0 | I74: 0 | J74: 0.1091912737 | K74: 0.052492762 | L74: 0 | M74: 0.03501848766 | N74: 0.06589622638 | O74: 0 | P74: 0 | Q74: 0 | R74: 0 | S74: 0 | T74: 0 | U74: 0 | V74: 0 | W74: 0 | X74: 0 | Y74: 0 | Z74: 0.07233669168 | AA74: 0 | AB74: 0 | AC74: 0.07554295947 | AD74: 0 | AE74: 0.07970189305 | AF74: 0 | AG74: 0.1639277616 | AH74: 0
A108: =A1026 -> Philippines
A109: =A1034 -> 2008
A110: Use of sanitation facilities
A111: by wealth quintile and sub-national region
A112: Notes:
A113: WHO/UNICEF JMP customised wealth index excludes water,
A114: sanitation and hygiene assets.
A115: Survey used for analysis: | B115: =A1025 -> DHS08
A116: =B1030 -> 
A117: =B1029 -> 
A120: Use of sanitation facilities | C120: NATIONAL wealth index quintile | H120: URBAN wealth index quintile | M120: RURAL wealth index quintile | R120: SUB-REGIONS: | BA120: Raw numbers of respondents: | BB120: Use of sanitation facilities | BC120: NATIONAL wealth index quintile | BH120: URBAN wealth index quintile | BM120: RURAL wealth index quintile | BR120: SUB-REGIONS:
A121: Weighted percentage (used in graphs) | C121: Poorest | D121: Poor | E121: Middle | F121: Rich | G121: Richest | H121: Poorest | I121: Poor | J121: Middle | K121: Rich | L121: Richest | M121: Poorest | N121: Poor | O121: Middle | P121: Rich | Q121: Richest | R121: ARMM | S121: Cordillera Admin Region | T121: I - Ilocos Region | U121: II - Cagayan Valley | V121: III - Central Luzon | W121: IVA - CALABARZON | X121: IVB - MIMAROPA | Y121: IX - Zamboanga Peninsula | Z121: National Capital Region | AA121: V - Bicol Region | AB121: VI - Western Visayas | AC121: VII - Central Visayas | AD121: VIII - Eastern Visayas | AE121: X - Northern Mindanao | AF121: XI - Davao Peninsula | AG121: XII - SOCCSKSARGEN | AH121: XIII - Caraga | BA121: Sanitation data, raw numbers (weighted) | BC121: Poorest | BD121: Poor | BE121: Middle | BF121: Rich | BG121: Richest | BH121: Poorest | BI121: Poor | BJ121: Middle | BK121: Rich | BL121: Richest | BM121: Poorest | BN121: Poor | BO121: Middle | BP121: Rich | BQ121: Richest | BR121: ARMM | BS121: Cordillera Admin Region | BT121: I - Ilocos Region | BU121: II - Cagayan Valley | BV121: III - Central Luzon | BW121: IVA - CALABARZON | BX121: IVB - MIMAROPA | BY121: IX - Zamboanga Peninsula | BZ121: National Capital Region | CA121: V - Bicol Region | CB121: VI - Western Visayas | CC121: VII - Central Visayas | CD121: VIII - Eastern Visayas | CE121: X - Northern Mindanao | CF121: XI - Davao Peninsula | CG121: XII - SOCCSKSARGEN | CH121: XIII - Caraga
A122: Sanitation | B122: Improved | C122: 55.22668011 | D122: 84.47068918 | E122: 94.09875288 | F122: 98.04723535 | G122: 99.72628554 | H122: 77.9538256 | I122: 94.04305506 | J122: 98.22056573 | K122: 98.93621788 | L122: 100 | M122: 45.73420796 | N122: 69.90349849 | O122: 85.28825568 | P122: 94.12657251 | Q122: 98.70253689 | R122: 30.94775522 | S122: 92.79761521 | T122: 97.74473224 | U122: 94.86799075 | V122: 96.12783694 | W122: 95.54773562 | X122: 77.85540698 | Y122: 80.47411636 | Z122: 97.06934414 | AA122: 82.79080896 | AB122: 78.93114047 | AC122: 77.57079219 | AD122: 68.43353653 | AE122: 84.79048961 | AF122: 89.05273456 | AG122: 85.42269066 | AH122: 88.58143565 | BA122: Sanitation | BB122: Improved | BC122: 6707.652355 | BD122: 10258.6455 | BE122: 11428.36576 | BF122: 11909.11317 | BG122: 12113.47833 | BH122: 4756.578347 | BI122: 5709.217575 | BJ122: 5998.73826 | BK122: 6014.69267 | BL122: 6097.423335 | BM122: 2765.325602 | BN122: 4240.46281 | BO122: 5157.940261 | BP122: 5701.938686 | BQ122: 5974.937563 | BR122: 765.290314 | BS122: 1011.603674 | BT122: 3038.355983 | BU122: 1782.035281 | BV122: 6240.096477 | BW122: 7272.667404 | BX122: 1345.78482 | BY122: 1932.949183 | BZ122: 8948.883751 | CA122: 3086.112133 | CB122: 3771.776244 | CC122: 3276.889476 | CD122: 1753.097089 | CE122: 2252.584051 | CF122: 2455.966147 | CG122: 2083.030505 | CH122: 1400.132577
B123: Not Improved | C123: 44.77331989 | D123: 15.52931082 | E123: 5.901247121 | F123: 1.952764651 | G123: 0.2737144552 | H123: 22.0461744 | I123: 5.956944943 | J123: 1.779434268 | K123: 1.063782125 | L123: 0 | M123: 54.26579204 | N123: 30.09650151 | O123: 14.71174432 | P123: 5.873427488 | Q123: 1.297463113 | R123: 69.05224478 | S123: 7.202384791 | T123: 2.255267759 | U123: 5.132009249 | V123: 3.872163062 | W123: 4.452264375 | X123: 22.14459302 | Y123: 19.52588364 | Z123: 2.930655862 | AA123: 17.20919104 | AB123: 21.06885953 | AC123: 22.42920781 | AD123: 31.56646347 | AE123: 15.20951039 | AF123: 10.94726544 | AG123: 14.57730934 | AH123: 11.41856435 | BB123: Not Improved | BC123: 5438.021333 | BD123: 1885.976025 | BE123: 716.710992 | BF123: 237.188689 | BG123: 33.247344 | BH123: 1345.211155 | BI123: 361.637494 | BJ123: 108.677448 | BK123: 64.671186 | BL123: 0 | BM123: 3281.189087 | BN123: 1825.703979 | BO123: 889.715679 | BP123: 355.796695 | BQ123: 78.54166 | BR123: 1707.555644 | BS123: 78.514506 | BT123: 70.104098 | BU123: 96.401552 | BV123: 251.359771 | BW123: 338.886503 | BX123: 382.784681 | BY123: 469.00224 | BZ123: 270.179003 | CA123: 641.490208 | CB123: 1006.789252 | CC123: 947.496254 | CD123: 808.654324 | CE123: 404.063011 | CF123: 301.912271 | CG123: 355.46738 | CH123: 180.483685
A124: Sanitation ladder | B124: Basic | C124: =C122*C129/100 -> 35.81294823 | D124: =D122*D129/100 -> 55.83932802 | E124: =E122*E129/100 -> 71.35861732 | F124: 83.87080888 | G124: 93.83570072 | H124: 47.06193976 | I124: 67.71306384 | J124: 81.79434206 | K124: 89.06536767 | L124: 95.93379259 | M124: 30.1922228 | N124: 46.00060123 | O124: 59.24900139 | P124: 75.62852149 | Q124: 88.66229389 | R124: 21.29558426 | S124: 63.57198883 | T124: 73.39258064 | U124: 70.78433339 | V124: 76.74993854 | W124: 81.23724934 | X124: 54.42415094 | Y124: 60.80195811 | Z124: 78.79297683 | AA124: 64.17252858 | AB124: 70.39753751 | AC124: 58.95742583 | AD124: 54.87271207 | AE124: 65.76760541 | AF124: 65.02066062 | AG124: 57.3800192 | AH124: 71.60883772 | BA124: Sanitation ladder | BB124: Basic | BC124: 4229.63017 | BD124: 6672.264072 | BE124: 8541.710403 | BF124: 10048.79033 | BG124: 11217.00953 | BH124: 2857.434002 | BI124: 4053.464283 | BJ124: 4925.800051 | BK124: 5360.832029 | BL124: 5723.779276 | BM124: 1768.068066 | BN124: 2701.994272 | BO124: 3510.086587 | BP124: 4518.143784 | BQ124: 5289.802156 | BR124: 497.027556 | BS124: 685.136096 | BT124: 2249.256026 | BU124: 1278.805148 | BV124: 4899.351068 | BW124: 6113.576268 | BX124: 926.978567 | BY124: 1436.618915 | BZ124: 7173.438219 | CA124: 2367.976165 | CB124: 3325.862605 | CC124: 2444.907497 | CD124: 1347.357975 | CE124: 1718.77178 | CF124: 1748.172202 | CG124: 1371.939502 | CH124: 1124.228917
B125: Limited | C125: =C122*C128/100 -> 19.41373188 | D125: =D122*D128/100 -> 28.63136116 | E125: =E122*E128/100 -> 22.74013556 | F125: 14.17642647 | G125: 5.890584829 | H125: 30.89188584 | I125: 26.32999122 | J125: 16.42622367 | K125: 9.870850206 | L125: 4.066207406 | M125: 15.54198516 | N125: 23.90289726 | O125: 26.03925429 | P125: 18.49805102 | Q125: 10.04024299 | R125: 9.65217096 | S125: 29.22562637 | T125: 24.3521516 | U125: 24.08365736 | V125: 19.3778984 | W125: 14.31048628 | X125: 23.43125604 | Y125: 19.67215824 | Z125: 18.27636731 | AA125: 18.61828038 | AB125: 8.533602959 | AC125: 18.61336637 | AD125: 13.56082446 | AE125: 19.0228842 | AF125: 24.03207394 | AG125: 28.04267146 | AH125: 16.97259793 | BB125: Limited | BC125: 2292.827319 | BD125: 3421.173019 | BE125: 2722.020966 | BF125: 1698.516315 | BG125: 704.153597 | BH125: 1875.645701 | BI125: 1576.175599 | BJ125: 989.216263 | BK125: 594.125094 | BL125: 242.605583 | BM125: 910.14457 | BN125: 1404.014073 | BO125: 1542.642662 | BP125: 1105.097027 | BQ125: 599.024644 | BR125: 225.276512 | BS125: 314.974125 | BT125: 746.318269 | BU125: 435.100587 | BV125: 1236.992876 | BW125: 1076.94746 | BX125: 399.092531 | BY125: 464.8106 | BZ125: 1663.909615 | CA125: 687.017407 | CB125: 403.161701 | CC125: 771.878323 | CD125: 332.975796 | CE125: 497.144397 | CF125: 646.136216 | CG125: 670.492085 | CH125: 266.462716
B126: Unimproved | C126: =100-C124-C125-C127 -> 11.14431644 | D126: =100-D124-D125-D127 -> 5.047644306 | E126: =100-E124-E125-E127 -> 2.248811102 | F126: 1.120189634 | G126: 0.2485679455 | H126: 6.748622229 | I126: 2.654149302 | J126: 0.885046221 | K126: 0.9200836179 | L126: 2.398081733e-14 | M126: 12.40589457 | N126: 8.560919313 | O126: 4.584197788 | P126: 2.168285134 | Q126: 0.7515381347 | R126: 32.25179048 | S126: 2.437494861 | T126: 0.8515414873 | U126: 5.091241584 | V126: 0.9175313439 | W126: 1.497399543 | X126: 1.312089924 | Y126: 5.671664456 | Z126: 1.141227613 | AA126: 2.868483205 | AB126: 3.691306701 | AC126: 0.9347002774 | AD126: 2.959094017 | AE126: 8.788865459 | AF126: 8.552283672 | AG126: 3.650043323 | AH126: 4.08501693 | BB126: Unimproved | BC126: 1415.831498 | BD126: 630.333892 | BE126: 279.133 | BF126: 137.408775 | BG126: 30.241227 | BH126: 415.38144 | BI126: 163.757846 | BJ126: 54.802251 | BK126: 56.02107 | BL126: 0 | BM126: 786.589636 | BN126: 548.275196 | BO126: 287.891804 | BP126: 134.264844 | BQ126: 45.964305 | BR126: 813.356231 | BS126: 27.119225 | BT126: 27.070365 | BU126: 95.663532 | BV126: 62.626651 | BW126: 116.402608 | BX126: 26.787248 | BY126: 140.597429 | BZ126: 107.206345 | CA126: 111.388269 | CB126: 183.820749 | CC126: 52.40433 | CD126: 96.620304 | CE126: 235.84345 | CF126: 237.338277 | CG126: 93.442581 | CH126: 65.260798
B127: Open defecation | C127: 33.62900344 | D127: 10.48166651 | E127: 3.652436019 | F127: 0.8325750166 | G127: 0.02514650979 | H127: 15.29755217 | I127: 3.302795641 | J127: 0.8943880471 | K127: 0.1436985069 | L127: 0 | M127: 41.85989747 | N127: 21.53558219 | O127: 10.12754653 | P127: 3.705142354 | Q127: 0.5459249788 | R127: 36.80045431 | S127: 4.76488993 | T127: 1.403726271 | U127: 0.04076766443 | V127: 2.954631718 | W127: 2.954864832 | X127: 20.83250309 | Y127: 13.85421919 | Z127: 1.789428249 | AA127: 14.34070783 | AB127: 17.37755283 | AC127: 21.49450753 | AD127: 28.60736945 | AE127: 6.420644934 | AF127: 2.394981771 | AG127: 10.92726602 | AH127: 7.33354742 | BB127: Open defecation | BC127: 4022.189835 | BD127: 1255.642133 | BE127: 437.577992 | BF127: 99.779914 | BG127: 3.006117 | BH127: 929.829715 | BI127: 197.879648 | BJ127: 53.875197 | BK127: 8.650116 | BL127: 0 | BM127: 2494.599451 | BN127: 1277.428783 | BO127: 601.823875 | BP127: 221.531851 | BQ127: 32.577355 | BR127: 894.199413 | BS127: 51.395281 | BT127: 43.033733 | BU127: 0.73802 | BV127: 188.73312 | BW127: 222.483895 | BX127: 355.997433 | BY127: 328.404811 | BZ127: 162.972658 | CA127: 530.101939 | CB127: 822.968503 | CC127: 895.091924 | CD127: 712.03402 | CE127: 168.219561 | CF127: 64.573994 | CG127: 262.024799 | CH127: 115.222887
A128: Shared among Improved Sanitation | B128: Yes | C128: 35.15281353 | D128: 33.89502494 | E128: 24.16624542 | F128: 14.45877227 | G128: 5.906752465 | H128: 39.62844107 | I128: 27.99780505 | J128: 16.72381293 | K128: 9.976983574 | L128: 4.066207406 | M128: 33.98328265 | N128: 34.19413589 | O128: 30.53087917 | P128: 19.65231553 | Q128: 10.17222385 | R128: 31.18859799 | S128: 31.49394121 | T128: 24.91402968 | U128: 25.38649461 | V128: 20.15846711 | W128: 14.97731599 | X128: 30.09586225 | Y128: 24.44532371 | Z128: 18.82815576 | AA128: 22.48834215 | AB128: 10.81145275 | AC128: 23.99532845 | AD128: 19.81605094 | AE128: 22.43516258 | AF128: 26.98634024 | AG128: 32.82812943 | AH128: 19.16044576 | BA128: Shared among improved sanitation facilities | BB128: Yes | BC128: N/A | BD128: N/A | BE128: N/A | BF128: N/A | BG128: N/A | BH128: N/A | BI128: N/A | BJ128: N/A | BK128: N/A | BL128: N/A | BM128: N/A | BN128: N/A | BO128: N/A | BP128: N/A | BQ128: N/A | BR128: N/A | BS128: N/A | BT128: N/A | BU128: N/A | BV128: N/A | BW128: N/A | BX128: N/A | BY128: N/A | BZ128: N/A | CA128: N/A | CB128: N/A | CC128: N/A | CD128: N/A | CE128: N/A | CF128: N/A | CG128: N/A | CH128: N/A
B129: No | C129: 64.84718647 | D129: 66.10497506 | E129: 75.83375458 | F129: 85.54122773 | G129: 94.09324754 | H129: 60.37155893 | I129: 72.00219495 | J129: 83.27618707 | K129: 90.02301643 | L129: 95.93379259 | M129: 66.01671735 | N129: 65.80586411 | O129: 69.46912083 | P129: 80.34768447 | Q129: 89.82777615 | R129: 68.81140201 | S129: 68.50605879 | T129: 75.08597032 | U129: 74.61350539 | V129: 79.84153289 | W129: 85.02268401 | X129: 69.90413775 | Y129: 75.55467629 | Z129: 81.17184424 | AA129: 77.51165785 | AB129: 89.18854725 | AC129: 76.00467155 | AD129: 80.18394906 | AE129: 77.56483742 | AF129: 73.01365976 | AG129: 67.17187057 | AH129: 80.83955424 | BB129: No | BC129: N/A | BD129: N/A | BE129: N/A | BF129: N/A | BG129: N/A | BH129: N/A | BI129: N/A | BJ129: N/A | BK129: N/A | BL129: N/A | BM129: N/A | BN129: N/A | BO129: N/A | BP129: N/A | BQ129: N/A | BR129: N/A | BS129: N/A | BT129: N/A | BU129: N/A | BV129: N/A | BW129: N/A | BX129: N/A | BY129: N/A | BZ129: N/A | CA129: N/A | CB129: N/A | CC129: N/A | CD129: N/A | CE129: N/A | CF129: N/A | CG129: N/A | CH129: N/A
A130: Manually calculated ratios | B130: Improved latrines
B131: Other
B132: Other
C133: NATIONAL wealth index quintile | H133: URBAN wealth index quintile | M133: RURAL wealth index quintile | R133: SUB-REGIONS: | BA133: Raw numbers of respondents: | BB133: Use of sanitation facilities | BC133: NATIONAL wealth index quintile | BH133: URBAN wealth index quintile | BM133: RURAL wealth index quintile | BR133: SUB-REGIONS:
A134: Percentage based on weighted population | C134: Poorest | D134: Poor | E134: Middle | F134: Rich | G134: Richest | H134: Poorest | I134: Poor | J134: Middle | K134: Rich | L134: Richest | M134: Poorest | N134: Poor | O134: Middle | P134: Rich | Q134: Richest | R134: ARMM | S134: Cordillera Admin Region | T134: I - Ilocos Region | U134: II - Cagayan Valley | V134: III - Central Luzon | W134: IVA - CALABARZON | X134: IVB - MIMAROPA | Y134: IX - Zamboanga Peninsula | Z134: National Capital Region | AA134: V - Bicol Region | AB134: VI - Western Visayas | AC134: VII - Central Visayas | AD134: VIII - Eastern Visayas | AE134: X - Northern Mindanao | AF134: XI - Davao Peninsula | AG134: XII - SOCCSKSARGEN | AH134: XIII - Caraga | BA134: Sanitation data, raw numbers (weighted) | BC134: Poorest | BD134: Poor | BE134: Middle | BF134: Rich | BG134: Richest | BH134: Poorest | BI134: Poor | BJ134: Middle | BK134: Rich | BL134: Richest | BM134: Poorest | BN134: Poor | BO134: Middle | BP134: Rich | BQ134: Richest | BR134: ARMM | BS134: Cordillera Admin Region | BT134: I - Ilocos Region | BU134: II - Cagayan Valley | BV134: III - Central Luzon | BW134: IVA - CALABARZON | BX134: IVB - MIMAROPA | BY134: IX - Zamboanga Peninsula | BZ134: National Capital Region | CA134: V - Bicol Region | CB134: VI - Western Visayas | CC134: VII - Central Visayas | CD134: VIII - Eastern Visayas | CE134: X - Northern Mindanao | CF134: XI - Davao Peninsula | CG134: XII - SOCCSKSARGEN | CH134: XIII - Caraga
A135: Sanitation type | B135: Sewer connection | C135: 0.7410173393 | D135: 2.259401969 | E135: 3.643546831 | F135: 4.092124607 | G135: 6.434007511 | H135: 0.9292209274 | I135: 1.692924091 | J135: 2.306940803 | K135: 3.542394584 | L135: 9.24012961 | M135: 0.3669994888 | N135: 1.551405793 | O135: 3.046109283 | P135: 6.089991305 | Q135: 5.565448242 | R135: 0.3580141728 | S135: 1.590884669 | T135: 0 | U135: 0 | V135: 1.285416058 | W135: 17.77303911 | X135: 0.6285291968 | Y135: 1.056350672 | Z135: 4.210049713 | AA135: 0.7784319073 | AB135: 0.9530362833 | AC135: 0.3072901205 | AD135: 2.414561526 | AE135: 1.05834525 | AF135: 0.06146695913 | AG135: 0.6372910592 | AH135: 0.247904257 | BA135: Sanitation type | BB135: Sewer connection | BC135: N/A | BD135: N/A | BE135: N/A | BF135: N/A | BG135: N/A | BH135: N/A | BI135: N/A | BJ135: N/A | BK135: N/A | BL135: N/A | BM135: N/A | BN135: N/A | BO135: N/A | BP135: N/A | BQ135: N/A | BR135: N/A | BS135: N/A | BT135: N/A | BU135: N/A | BV135: N/A | BW135: N/A | BX135: N/A | BY135: N/A | BZ135: N/A | CA135: N/A | CB135: N/A | CC135: N/A | CD135: N/A | CE135: N/A | CF135: N/A | CG135: N/A | CH135: N/A
B136: Septic tank connection | C136: 22.88298164 | D136: 59.13479472 | E136: 79.19673321 | F136: 89.00869689 | G136: 92.19013097 | H136: 60.03029991 | I136: 84.17562831 | J136: 92.36748855 | K136: 93.86284978 | L136: 90.0698194 | M136: 13.98026489 | N136: 32.32508052 | O136: 56.14125395 | P136: 73.57466813 | Q136: 87.84812816 | R136: 16.58930176 | S136: 59.22634755 | T136: 70.37858261 | U136: 67.3778382 | V136: 91.90127566 | W136: 76.66734203 | X136: 61.92772477 | Y136: 42.77196746 | Z136: 92.42002629 | AA136: 65.97550565 | AB136: 64.12524105 | AC136: 66.17827302 | AD136: 58.94121094 | AE136: 61.76975702 | AF136: 44.4725274 | AG136: 33.98636493 | AH136: 71.79850437 | BB136: Septic tank connection | BC136: N/A | BD136: N/A | BE136: N/A | BF136: N/A | BG136: N/A | BH136: N/A | BI136: N/A | BJ136: N/A | BK136: N/A | BL136: N/A | BM136: N/A | BN136: N/A | BO136: N/A | BP136: N/A | BQ136: N/A | BR136: N/A | BS136: N/A | BT136: N/A | BU136: N/A | BV136: N/A | BW136: N/A | BX136: N/A | BY136: N/A | BZ136: N/A | CA136: N/A | CB136: N/A | CC136: N/A | CD136: N/A | CE136: N/A | CF136: N/A | CG136: N/A | CH136: N/A
B137: Improved latrines | C137: 31.60268113 | D137: 23.07649249 | E137: 11.25847284 | F137: 4.946413857 | G137: 1.102147061 | H137: 16.99430476 | I137: 8.174502658 | J137: 3.546136375 | K137: 1.530973507 | L137: 0.6900509886 | M137: 31.38694358 | N137: 36.02701218 | O137: 26.10089246 | P137: 14.46191307 | Q137: 5.288960484 | R137: 14.00043929 | S137: 31.98038299 | T137: 27.36614963 | U137: 27.49015255 | V137: 2.941145218 | W137: 1.107354478 | X137: 15.29915302 | Y137: 36.64579823 | Z137: 0.4392681347 | AA137: 16.03687141 | AB137: 13.85286314 | AC137: 11.08522905 | AD137: 7.077764067 | AE137: 21.96238734 | AF137: 44.5187402 | AG137: 50.79903467 | AH137: 16.53502702 | BB137: Improved latrines | BC137: N/A | BD137: N/A | BE137: N/A | BF137: N/A | BG137: N/A | BH137: N/A | BI137: N/A | BJ137: N/A | BK137: N/A | BL137: N/A | BM137: N/A | BN137: N/A | BO137: N/A | BP137: N/A | BQ137: N/A | BR137: N/A | BS137: N/A | BT137: N/A | BU137: N/A | BV137: N/A | BW137: N/A | BX137: N/A | BY137: N/A | BZ137: N/A | CA137: N/A | CB137: N/A | CC137: N/A | CD137: N/A | CE137: N/A | CF137: N/A | CG137: N/A | CH137: N/A
B138: Unimproved facilities | C138: 11.65708494 | D138: 5.19023084 | E138: 2.29832224 | F138: 1.131280752 | G138: 0.248966082 | H138: 6.807534738 | I138: 2.69744285 | J138: 0.8973067107 | K138: 0.9214955927 | L138: 0 | M138: 13.00897586 | N138: 9.038247959 | O138: 4.760386617 | P138: 2.21641976 | Q138: 0.7593039194 | R138: 32.89150415 | S138: 2.487732569 | T138: 0.8708609503 | U138: 5.092720198 | V138: 0.964755035 | W138: 1.529288361 | X138: 1.549677232 | Y138: 5.853466796 | Z138: 1.162876833 | AA138: 2.988201498 | AB138: 3.846776803 | AC138: 1.24051953 | AD138: 3.771650267 | AE138: 8.87748521 | AF138: 8.605828141 | AG138: 3.831973018 | AH138: 4.128819851 | BB138: Unimproved facilities | BC138: N/A | BD138: N/A | BE138: N/A | BF138: N/A | BG138: N/A | BH138: N/A | BI138: N/A | BJ138: N/A | BK138: N/A | BL138: N/A | BM138: N/A | BN138: N/A | BO138: N/A | BP138: N/A | BQ138: N/A | BR138: N/A | BS138: N/A | BT138: N/A | BU138: N/A | BV138: N/A | BW138: N/A | BX138: N/A | BY138: N/A | BZ138: N/A | CA138: N/A | CB138: N/A | CC138: N/A | CD138: N/A | CE138: N/A | CF138: N/A | CG138: N/A | CH138: N/A
B139: Open defecation | C139: 33.11623495 | D139: 10.33907998 | E139: 3.602924881 | F139: 0.8214838986 | G139: 0.02474837319 | H139: 15.23863966 | I139: 3.259502092 | J139: 0.8821275573 | K139: 0.142286532 | L139: 0 | M139: 41.25681619 | N139: 21.05825355 | O139: 9.951357699 | P139: 3.657007728 | Q139: 0.5381591941 | R139: 36.16074063 | S139: 4.714652222 | T139: 1.384406808 | U139: 0.03928905072 | V139: 2.907408027 | W139: 2.922976014 | X139: 20.59491578 | Y139: 13.67241685 | Z139: 1.767779029 | AA139: 14.22098954 | AB139: 17.22208273 | AC139: 21.18868828 | AD139: 27.7948132 | AE139: 6.332025183 | AF139: 2.341437301 | AG139: 10.74533632 | AH139: 7.289744498 | BB139: Open defecation | BC139: N/A | BD139: N/A | BE139: N/A | BF139: N/A | BG139: N/A | BH139: N/A | BI139: N/A | BJ139: N/A | BK139: N/A | BL139: N/A | BM139: N/A | BN139: N/A | BO139: N/A | BP139: N/A | BQ139: N/A | BR139: N/A | BS139: N/A | BT139: N/A | BU139: N/A | BV139: N/A | BW139: N/A | BX139: N/A | BY139: N/A | BZ139: N/A | CA139: N/A | CB139: N/A | CC139: N/A | CD139: N/A | CE139: N/A | CF139: N/A | CG139: N/A | CH139: N/A
A140: Septic tank emptying practices | B140: Not emptied/treated and disposed in situ | C140: N/A | D140: N/A | E140: N/A | F140: N/A | G140: N/A | H140: N/A | I140: N/A | J140: N/A | K140: N/A | L140: N/A | M140: N/A | N140: N/A | O140: N/A | P140: N/A | Q140: N/A | R140: N/A | S140: N/A | T140: N/A | U140: N/A | V140: N/A | W140: N/A | X140: N/A | Y140: N/A | Z140: N/A | AA140: N/A | AB140: N/A | AC140: N/A | AD140: N/A | AE140: N/A | AF140: N/A | AG140: N/A | AH140: N/A | BA140: Septic tank emptying practices | BB140: Not emptied/treated and disposed in situ | BC140: N/A | BD140: N/A | BE140: N/A | BF140: N/A | BG140: N/A | BH140: N/A | BI140: N/A | BJ140: N/A | BK140: N/A | BL140: N/A | BM140: N/A | BN140: N/A | BO140: N/A | BP140: N/A | BQ140: N/A | BR140: N/A | BS140: N/A | BT140: N/A | BU140: N/A | BV140: N/A | BW140: N/A | BX140: N/A | BY140: N/A | BZ140: N/A | CA140: N/A | CB140: N/A | CC140: N/A | CD140: N/A | CE140: N/A | CF140: N/A | CG140: N/A | CH140: N/A
B141: Emptied and buried on site | C141: N/A | D141: N/A | E141: N/A | F141: N/A | G141: N/A | H141: N/A | I141: N/A | J141: N/A | K141: N/A | L141: N/A | M141: N/A | N141: N/A | O141: N/A | P141: N/A | Q141: N/A | R141: N/A | S141: N/A | T141: N/A | U141: N/A | V141: N/A | W141: N/A | X141: N/A | Y141: N/A | Z141: N/A | AA141: N/A | AB141: N/A | AC141: N/A | AD141: N/A | AE141: N/A | AF141: N/A | AG141: N/A | AH141: N/A | BB141: Emptied and buried on site | BC141: N/A | BD141: N/A | BE141: N/A | BF141: N/A | BG141: N/A | BH141: N/A | BI141: N/A | BJ141: N/A | BK141: N/A | BL141: N/A | BM141: N/A | BN141: N/A | BO141: N/A | BP141: N/A | BQ141: N/A | BR141: N/A | BS141: N/A | BT141: N/A | BU141: N/A | BV141: N/A | BW141: N/A | BX141: N/A | BY141: N/A | BZ141: N/A | CA141: N/A | CB141: N/A | CC141: N/A | CD141: N/A | CE141: N/A | CF141: N/A | CG141: N/A | CH141: N/A
B142: Emptied and discharged locally | C142: N/A | D142: N/A | E142: N/A | F142: N/A | G142: N/A | H142: N/A | I142: N/A | J142: N/A | K142: N/A | L142: N/A | M142: N/A | N142: N/A | O142: N/A | P142: N/A | Q142: N/A | R142: N/A | S142: N/A | T142: N/A | U142: N/A | V142: N/A | W142: N/A | X142: N/A | Y142: N/A | Z142: N/A | AA142: N/A | AB142: N/A | AC142: N/A | AD142: N/A | AE142: N/A | AF142: N/A | AG142: N/A | AH142: N/A | BB142: Emptied and discharged locally | BC142: N/A | BD142: N/A | BE142: N/A | BF142: N/A | BG142: N/A | BH142: N/A | BI142: N/A | BJ142: N/A | BK142: N/A | BL142: N/A | BM142: N/A | BN142: N/A | BO142: N/A | BP142: N/A | BQ142: N/A | BR142: N/A | BS142: N/A | BT142: N/A | BU142: N/A | BV142: N/A | BW142: N/A | BX142: N/A | BY142: N/A | BZ142: N/A | CA142: N/A | CB142: N/A | CC142: N/A | CD142: N/A | CE142: N/A | CF142: N/A | CG142: N/A | CH142: N/A
B143: Emptied and removed offsite | C143: N/A | D143: N/A | E143: N/A | F143: N/A | G143: N/A | H143: N/A | I143: N/A | J143: N/A | K143: N/A | L143: N/A | M143: N/A | N143: N/A | O143: N/A | P143: N/A | Q143: N/A | R143: N/A | S143: N/A | T143: N/A | U143: N/A | V143: N/A | W143: N/A | X143: N/A | Y143: N/A | Z143: N/A | AA143: N/A | AB143: N/A | AC143: N/A | AD143: N/A | AE143: N/A | AF143: N/A | AG143: N/A | AH143: N/A | BB143: Emptied and removed offsite | BC143: N/A | BD143: N/A | BE143: N/A | BF143: N/A | BG143: N/A | BH143: N/A | BI143: N/A | BJ143: N/A | BK143: N/A | BL143: N/A | BM143: N/A | BN143: N/A | BO143: N/A | BP143: N/A | BQ143: N/A | BR143: N/A | BS143: N/A | BT143: N/A | BU143: N/A | BV143: N/A | BW143: N/A | BX143: N/A | BY143: N/A | BZ143: N/A | CA143: N/A | CB143: N/A | CC143: N/A | CD143: N/A | CE143: N/A | CF143: N/A | CG143: N/A | CH143: N/A
A144: Latrine emptying practices | B144: Not emptied/treated and disposed in situ | C144: N/A | D144: N/A | E144: N/A | F144: N/A | G144: N/A | H144: N/A | I144: N/A | J144: N/A | K144: N/A | L144: N/A | M144: N/A | N144: N/A | O144: N/A | P144: N/A | Q144: N/A | R144: N/A | S144: N/A | T144: N/A | U144: N/A | V144: N/A | W144: N/A | X144: N/A | Y144: N/A | Z144: N/A | AA144: N/A | AB144: N/A | AC144: N/A | AD144: N/A | AE144: N/A | AF144: N/A | AG144: N/A | AH144: N/A | BA144: Latrine emptying practices | BB144: Not emptied/treated and disposed in situ | BC144: N/A | BD144: N/A | BE144: N/A | BF144: N/A | BG144: N/A | BH144: N/A | BI144: N/A | BJ144: N/A | BK144: N/A | BL144: N/A | BM144: N/A | BN144: N/A | BO144: N/A | BP144: N/A | BQ144: N/A | BR144: N/A | BS144: N/A | BT144: N/A | BU144: N/A | BV144: N/A | BW144: N/A | BX144: N/A | BY144: N/A | BZ144: N/A | CA144: N/A | CB144: N/A | CC144: N/A | CD144: N/A | CE144: N/A | CF144: N/A | CG144: N/A | CH144: N/A
B145: Emptied and buried on site | C145: N/A | D145: N/A | E145: N/A | F145: N/A | G145: N/A | H145: N/A | I145: N/A | J145: N/A | K145: N/A | L145: N/A | M145: N/A | N145: N/A | O145: N/A | P145: N/A | Q145: N/A | R145: N/A | S145: N/A | T145: N/A | U145: N/A | V145: N/A | W145: N/A | X145: N/A | Y145: N/A | Z145: N/A | AA145: N/A | AB145: N/A | AC145: N/A | AD145: N/A | AE145: N/A | AF145: N/A | AG145: N/A | AH145: N/A | BB145: Emptied and buried on site | BC145: N/A | BD145: N/A | BE145: N/A | BF145: N/A | BG145: N/A | BH145: N/A | BI145: N/A | BJ145: N/A | BK145: N/A | BL145: N/A | BM145: N/A | BN145: N/A | BO145: N/A | BP145: N/A | BQ145: N/A | BR145: N/A | BS145: N/A | BT145: N/A | BU145: N/A | BV145: N/A | BW145: N/A | BX145: N/A | BY145: N/A | BZ145: N/A | CA145: N/A | CB145: N/A | CC145: N/A | CD145: N/A | CE145: N/A | CF145: N/A | CG145: N/A | CH145: N/A
B146: Emptied and discharged locally | C146: N/A | D146: N/A | E146: N/A | F146: N/A | G146: N/A | H146: N/A | I146: N/A | J146: N/A | K146: N/A | L146: N/A | M146: N/A | N146: N/A | O146: N/A | P146: N/A | Q146: N/A | R146: N/A | S146: N/A | T146: N/A | U146: N/A | V146: N/A | W146: N/A | X146: N/A | Y146: N/A | Z146: N/A | AA146: N/A | AB146: N/A | AC146: N/A | AD146: N/A | AE146: N/A | AF146: N/A | AG146: N/A | AH146: N/A | BB146: Emptied and discharged locally | BC146: N/A | BD146: N/A | BE146: N/A | BF146: N/A | BG146: N/A | BH146: N/A | BI146: N/A | BJ146: N/A | BK146: N/A | BL146: N/A | BM146: N/A | BN146: N/A | BO146: N/A | BP146: N/A | BQ146: N/A | BR146: N/A | BS146: N/A | BT146: N/A | BU146: N/A | BV146: N/A | BW146: N/A | BX146: N/A | BY146: N/A | BZ146: N/A | CA146: N/A | CB146: N/A | CC146: N/A | CD146: N/A | CE146: N/A | CF146: N/A | CG146: N/A | CH146: N/A
B147: Emptied and removed offsite | C147: N/A | D147: N/A | E147: N/A | F147: N/A | G147: N/A | H147: N/A | I147: N/A | J147: N/A | K147: N/A | L147: N/A | M147: N/A | N147: N/A | O147: N/A | P147: N/A | Q147: N/A | R147: N/A | S147: N/A | T147: N/A | U147: N/A | V147: N/A | W147: N/A | X147: N/A | Y147: N/A | Z147: N/A | AA147: N/A | AB147: N/A | AC147: N/A | AD147: N/A | AE147: N/A | AF147: N/A | AG147: N/A | AH147: N/A | BB147: Emptied and removed offsite | BC147: N/A | BD147: N/A | BE147: N/A | BF147: N/A | BG147: N/A | BH147: N/A | BI147: N/A | BJ147: N/A | BK147: N/A | BL147: N/A | BM147: N/A | BN147: N/A | BO147: N/A | BP147: N/A | BQ147: N/A | BR147: N/A | BS147: N/A | BT147: N/A | BU147: N/A | BV147: N/A | BW147: N/A | BX147: N/A | BY147: N/A | BZ147: N/A | CA147: N/A | CB147: N/A | CC147: N/A | CD147: N/A | CE147: N/A | CF147: N/A | CG147: N/A | CH147: N/A
A148: Shared among improved sanitation facilities | B148: Yes | C148: 18.87772863 | D148: 28.17027283 | E148: 22.41254643 | F148: 13.98381446 | G148: 5.797065119 | H148: 30.73927248 | I148: 25.96299172 | J148: 16.19696956 | K148: 9.772816829 | L148: 3.978821375 | M148: 15.05238334 | N148: 23.1449962 | O148: 25.50810888 | P148: 18.24274184 | Q148: 9.895543074 | R148: 9.110009917 | S148: 28.89357602 | T148: 24.0092602 | U148: 23.16290755 | V148: 19.0557069 | W148: 14.14885151 | X148: 23.08802341 | Y148: 19.35137387 | Z148: 18.04857673 | AA148: 18.43054447 | AB148: 8.436877162 | AC148: 18.27196597 | AD148: 12.99797452 | AE148: 18.71322706 | AF148: 23.42874188 | AG148: 27.49611099 | AH148: 16.85815352 | BA148: Shared among improved sanitation facilities | BB148: Yes | BC148: N/A | BD148: N/A | BE148: N/A | BF148: N/A | BG148: N/A | BH148: N/A | BI148: N/A | BJ148: N/A | BK148: N/A | BL148: N/A | BM148: N/A | BN148: N/A | BO148: N/A | BP148: N/A | BQ148: N/A | BR148: N/A | BS148: N/A | BT148: N/A | BU148: N/A | BV148: N/A | BW148: N/A | BX148: N/A | BY148: N/A | BZ148: N/A | CA148: N/A | CB148: N/A | CC148: N/A | CD148: N/A | CE148: N/A | CF148: N/A | CG148: N/A | CH148: N/A
B149: No | C149: 34.82417097 | D149: 54.94007414 | E149: 70.33064162 | F149: 82.7312745 | G149: 92.34595262 | H149: 46.82944243 | I149: 66.7692481 | J149: 80.65277175 | K149: 88.18080569 | L149: 93.87209911 | M149: 29.2411109 | N149: 44.54203727 | O149: 58.04044777 | P149: 74.58470038 | Q149: 87.38449346 | R149: 20.09941438 | S149: 62.84970828 | T149: 72.35917359 | U149: 68.07815549 | V149: 75.47383639 | W149: 80.31968692 | X149: 53.62691905 | Y149: 59.81048997 | Z149: 77.81092732 | AA149: 63.5254501 | AB149: 69.59960281 | AC149: 57.87604763 | AD149: 52.59518813 | AE149: 64.69703125 | AF149: 63.38829843 | AG149: 56.26166463 | AH149: 71.125987 | BB149: No | BC149: N/A | BD149: N/A | BE149: N/A | BF149: N/A | BG149: N/A | BH149: N/A | BI149: N/A | BJ149: N/A | BK149: N/A | BL149: N/A | BM149: N/A | BN149: N/A | BO149: N/A | BP149: N/A | BQ149: N/A | BR149: N/A | BS149: N/A | BT149: N/A | BU149: N/A | BV149: N/A | BW149: N/A | BX149: N/A | BY149: N/A | BZ149: N/A | CA149: N/A | CB149: N/A | CC149: N/A | CD149: N/A | CE149: N/A | CF149: N/A | CG149: N/A | CH149: N/A
B150: DK/missing | C150: 46.29810041 | D150: 16.88965303 | E150: 7.256811951 | F150: 3.284911044 | G150: 1.856982261 | H150: 22.43128509 | I150: 7.267760175 | J150: 3.150258689 | K150: 2.046377482 | L150: 2.149079518 | M150: 55.70650575 | N150: 32.31296653 | O150: 16.45144335 | P150: 7.172557774 | Q150: 2.719963461 | R150: 70.79057571 | S150: 8.256715708 | T150: 3.631566212 | U150: 8.758936958 | V150: 5.470456712 | W150: 5.531461567 | X150: 23.28505754 | Y150: 20.83813616 | Z150: 4.14049595 | AA150: 18.04400543 | AB150: 21.96352003 | AC150: 23.8519864 | AD150: 34.40683735 | AE150: 16.58974168 | AF150: 13.18295968 | AG150: 16.24222438 | AH150: 12.01585948 | BB150: DK/missing | BC150: N/A | BD150: N/A | BE150: N/A | BF150: N/A | BG150: N/A | BH150: N/A | BI150: N/A | BJ150: N/A | BK150: N/A | BL150: N/A | BM150: N/A | BN150: N/A | BO150: N/A | BP150: N/A | BQ150: N/A | BR150: N/A | BS150: N/A | BT150: N/A | BU150: N/A | BV150: N/A | BW150: N/A | BX150: N/A | BY150: N/A | BZ150: N/A | CA150: N/A | CB150: N/A | CC150: N/A | CD150: N/A | CE150: N/A | CF150: N/A | CG150: N/A | CH150: N/A
A151: Shared among all sanitation facilities | B151: Yes | C151: 32.14652563 | D151: 33.70961907 | E151: 24.05358906 | F151: 14.44042672 | G151: 5.798500154 | H151: 39.63553741 | I151: 28.07014775 | J151: 16.78140926 | K151: 9.92628338 | L151: 3.978821375 | M151: 30.05653445 | N151: 32.1807699 | O151: 30.15018643 | P151: 19.26891938 | Q151: 10.0840752 | R151: 28.45353929 | S151: 31.72216328 | T151: 24.65651225 | U151: 24.47521273 | V151: 19.89820827 | W151: 15.19128891 | X151: 29.81624707 | Y151: 23.80394924 | Z151: 19.26864538 | AA151: 21.76888374 | AB151: 10.98463976 | AC151: 23.70242075 | AD151: 20.27130433 | AE151: 22.14473055 | AF151: 26.08278581 | AG151: 31.82152265 | AH151: 19.28039698 | BA151: Shared among all sanitation facilities | BB151: Yes | BC151: N/A | BD151: N/A | BE151: N/A | BF151: N/A | BG151: N/A | BH151: N/A | BI151: N/A | BJ151: N/A | BK151: N/A | BL151: N/A | BM151: N/A | BN151: N/A | BO151: N/A | BP151: N/A | BQ151: N/A | BR151: N/A | BS151: N/A | BT151: N/A | BU151: N/A | BV151: N/A | BW151: N/A | BX151: N/A | BY151: N/A | BZ151: N/A | CA151: N/A | CB151: N/A | CC151: N/A | CD151: N/A | CE151: N/A | CF151: N/A | CG151: N/A | CH151: N/A
B152: No | C152: 64.52523582 | D152: 64.37980886 | E152: 74.19561072 | F152: 84.20360736 | G152: 92.61784011 | H152: 59.2155375 | I152: 70.16924655 | J152: 81.83556628 | K152: 89.06435002 | L152: 93.87209911 | M152: 67.07880235 | N152: 64.03711053 | O152: 67.35255739 | P152: 79.09960645 | Q152: 88.48572772 | R152: 61.87239348 | S152: 67.01768534 | T152: 73.78608096 | U152: 70.97310105 | V152: 78.37800791 | W152: 83.60927563 | X152: 68.74749159 | Y152: 74.6759659 | Z152: 79.49974235 | AA152: 77.25790103 | AB152: 87.93456414 | AC152: 74.4922818 | AD152: 75.52150919 | AE152: 76.38173349 | AF152: 70.9529706 | AG152: 66.3131238 | AH152: 79.96275689 | BB152: No | BC152: N/A | BD152: N/A | BE152: N/A | BF152: N/A | BG152: N/A | BH152: N/A | BI152: N/A | BJ152: N/A | BK152: N/A | BL152: N/A | BM152: N/A | BN152: N/A | BO152: N/A | BP152: N/A | BQ152: N/A | BR152: N/A | BS152: N/A | BT152: N/A | BU152: N/A | BV152: N/A | BW152: N/A | BX152: N/A | BY152: N/A | BZ152: N/A | CA152: N/A | CB152: N/A | CC152: N/A | CD152: N/A | CE152: N/A | CF152: N/A | CG152: N/A | CH152: N/A
A153: Type of toilet facility | B153: Flush toilet to piped sewer system | C153: 0.7410173393 | D153: 2.260313125 | E153: 3.643546831 | F153: 4.092124607 | G153: 6.434007511 | H153: 0.9292209274 | I153: 1.692924091 | J153: 2.306940803 | K153: 3.542394584 | L153: 9.24012961 | M153: 0.3669994888 | N153: 1.552658847 | O153: 3.046109283 | P153: 6.089991305 | Q153: 5.565448242 | R153: 0.3580141728 | S153: 1.590884669 | T153: 0 | U153: 0 | V153: 1.286386204 | W153: 17.77303911 | X153: 0.6285291968 | Y153: 1.056350672 | Z153: 4.210049713 | AA153: 0.7784319073 | AB153: 0.9530362833 | AC153: 0.3072901205 | AD153: 2.414561526 | AE153: 1.05834525 | AF153: 0.06146695913 | AG153: 0.6372910592 | AH153: 0.247904257 | BA153: Type of toilet facility | BB153: Flush toilet to piped sewer system | BC153: 90.001548 | BD153: 274.395818 | BE153: 442.511559 | BF153: 497.041807 | BG153: 781.521242 | BH153: 56.699105 | BI153: 102.774968 | BJ153: 140.894465 | BK153: 215.355056 | BL153: 563.409819 | BM153: 22.190678 | BN153: 94.110863 | BO153: 184.218209 | BP153: 368.915558 | BQ153: 336.903253 | BR153: 8.853139 | BS153: 17.342523 | BT153: 0 | BU153: 0 | BV153: 83.442221 | BW153: 1352.804453 | BX153: 10.864564 | BY153: 25.37303 | BZ153: 388.127125 | CA153: 29.016846 | CB153: 45.541463 | CC153: 12.98112 | CD153: 61.855064 | CE153: 28.116498 | CF153: 1.695184 | CG153: 15.540329 | CH153: 3.918415
